Workbook

Sheet SheetNames (hidden)
A1: SheetNames
A2: tblCountries
A3: tblIndiSets
A4: iMap_Rank
A5: uxb_mapdata
A6: uxb_regions
A7: iCountry_Codes
A8: tblCategories
A9: uxbWorks
A10: tblLookups
A11: iRank
A12: iIndicatorRank
A13: iIndiRankNotes
A14: IndicatorRank
A15: iCountryP
A16: iCompare
A17: iScatter
A18: iWeights
A19: tblIndicators
A20: iScores
A21: iText
A22: rScores

Sheet tblCountries (hidden)
A1: CountryID | B1: ISO | C1: Country | D1: RegionFilter | E1: RegionHighlight | F1: Status | H1: RegionID | I1: Region | K1: =I2 -> <none> | L1: =INDEX($I$3:$I$10,L2) -> All | M1: =INDEX($I$3:$I$10,M2) -> Low income | N1: Middle income | O1: High income | P1: Americas | Q1: Asia Pacific | R1: Europe | S1: Middle East and Africa | Y1: Income | Z1: Region | AA1: combined | AB1: Region Filter | AD1: NONE | AE1: =P1 -> Americas | AF1: =Q1 -> Asia Pacific | AG1: Europe | AH1: Middle East and Africa
A2: 0 | C2: <none> | D2: =uxbWorks!B9 -> 1 | E2: =uxbWorks!B9 -> 1 | F2: =uxbWorks!B8 -> 0 | H2: 0 | I2: <none> | L2: 1 | M2: 2 | N2: 3 | O2: 4 | P2: 5 | Q2: 6 | R2: 7 | S2: 8 | Y2: =uxbWorks!B10 -> 1 | Z2: =uxbWorks!B12 -> 1
A3: 1 | B3: AL | C3: =INDEX(Data!$J$4:$CK$4,A3) -> Argentina | D3: =AB3 -> 1 | E3: =INDEX(K3:S3,$E$2) -> 0 | F3: =IF(A3=$F$2,3,IF(D3=0,0,IF(E3=1,2,1))) -> 1 | H3: 1 | I3: All | K3: 0 | L3: 1 | M3: 0 | N3: 1 | O3: 0 | P3: 1 | Q3: 0 | R3: 0 | S3: 0 | V3: <none> | W3: <none> | Y3: =INDEX(L3:O3,$Y$2) -> 1 | Z3: =INDEX(AD3:AH3,$Z$2) -> 1 | AA3: =IF(AND(Y3=1,Z3=1),1,0) -> 1 | AB3: =IF(AND($Y$2=1,$Z$2<>1),Z3,IF(AND($Y$2<>1,$Z$2=1),Y3,IF(AND($Y$2<>1,$Z$2<>1),AA3,1))) -> 1 | AD3: =L3 -> 1 | AE3: =P3 -> 1 | AF3: =Q3 -> 0 | AG3: 0 | AH3: 0
A4: 2 | B4: AU | C4: =INDEX(Data!$J$4:$CK$4,A4) -> Australia | D4: =AB4 -> 1 | E4: 0 | F4: 1 | H4: 2 | I4: Low income | K4: 0 | L4: 1 | M4: 0 | N4: 0 | O4: 1 | P4: 0 | Q4: 1 | R4: 0 | S4: 0 | V4: Low income | W4: =I7 -> Americas | Y4: 1 | Z4: =INDEX(AD4:AH4,$Z$2) -> 1 | AA4: =IF(AND(Y4=1,Z4=1),1,0) -> 1 | AB4: =IF(AND($Y$2=1,$Z$2<>1),Z4,IF(AND($Y$2<>1,$Z$2=1),Y4,IF(AND($Y$2<>1,$Z$2<>1),AA4,1))) -> 1 | AD4: =L4 -> 1 | AE4: =P4 -> 0 | AF4: =Q4 -> 1 | AG4: =R4 -> 0 | AH4: =S4 -> 0
A5: 3 | B5: AT | C5: =INDEX(Data!$J$4:$CK$4,A5) -> Austria | D5: 1 | E5: 0 | F5: 1 | H5: 3 | I5: Middle income | K5: 0 | L5: 1 | M5: 0 | N5: 0 | O5: 1 | P5: 0 | Q5: 0 | R5: 1 | S5: 0 | V5: Middle income | W5: =I8 -> Asia Pacific | Y5: 1 | Z5: 1 | AA5: 1 | AB5: 1 | AD5: 1 | AE5: 0 | AF5: 0 | AG5: 1 | AH5: 0
A6: 4 | B6: BD | C6: =INDEX(Data!$J$4:$CK$4,A6) -> Bangladesh | D6: 1 | E6: 0 | F6: 1 | H6: 4 | I6: High income | K6: 0 | L6: 1 | M6: 1 | N6: 0 | O6: 0 | P6: 0 | Q6: 1 | R6: 0 | S6: 0 | V6: High income | W6: Europe | Y6: 1 | Z6: 1 | AA6: 1 | AB6: 1 | AD6: 1 | AE6: 0 | AF6: 1 | AG6: 0 | AH6: 0
A7: 5 | B7: BE | C7: =INDEX(Data!$J$4:$CK$4,A7) -> Belgium | D7: 1 | E7: 0 | F7: 1 | H7: 5 | I7: Americas | K7: 0 | L7: 1 | M7: 0 | N7: 0 | O7: 1 | P7: 0 | Q7: 0 | R7: 1 | S7: 0 | W7: Middle East and Africa | Y7: 1 | Z7: 1 | AA7: 1 | AB7: 1 | AD7: 1 | AE7: 0 | AF7: 0 | AG7: 1 | AH7: 0
A8: 6 | B8: BW | C8: =INDEX(Data!$J$4:$CK$4,A8) -> Botswana | D8: 1 | E8: 0 | F8: 1 | H8: 6 | I8: Asia Pacific | K8: 0 | L8: 1 | M8: 0 | N8: 1 | O8: 0 | P8: 0 | Q8: 0 | R8: 0 | S8: 1 | Y8: 1 | Z8: 1 | AA8: 1 | AB8: 1 | AD8: 1 | AE8: 0 | AF8: 0 | AG8: 0 | AH8: 1
A9: 7 | B9: BR | C9: =INDEX(Data!$J$4:$CK$4,A9) -> Brazil | D9: 1 | E9: 0 | F9: 1 | H9: 7 | I9: Europe | K9: 0 | L9: 1 | M9: 0 | N9: 1 | O9: 0 | P9: 1 | Q9: 0 | R9: 0 | S9: 0 | Y9: 1 | Z9: 1 | AA9: 1 | AB9: 1 | AD9: 1 | AE9: 1 | AF9: 0 | AG9: 0 | AH9: 0
A10: 8 | B10: BG | C10: =INDEX(Data!$J$4:$CK$4,A10) -> Bulgaria | D10: 1 | E10: 0 | F10: =IF(A10=$F$2,3,IF(D10=0,0,IF(E10=1,2,1))) -> 1 | H10: 8 | I10: Middle East and Africa | K10: 0 | L10: 1 | M10: 0 | N10: 1 | O10: 0 | P10: 0 | Q10: 0 | R10: 1 | S10: 0 | Y10: 1 | Z10: 1 | AA10: 1 | AB10: 1 | AD10: 1 | AE10: 0 | AF10: 0 | AG10: 1 | AH10: 0
A11: 9 | B11: CA | C11: =INDEX(Data!$J$4:$CK$4,A11) -> Canada | D11: 1 | E11: 0 | F11: 1 | H11: 9 | K11: 0 | L11: 1 | M11: 0 | N11: 0 | O11: 1 | P11: 1 | Q11: 0 | R11: 0 | S11: 0 | Y11: 1 | Z11: 1 | AA11: 1 | AB11: 1 | AD11: 1 | AE11: 1 | AF11: 0 | AG11: 0 | AH11: 0
A12: 10 | B12: CL | C12: =INDEX(Data!$J$4:$CK$4,A12) -> Chile | D12: 1 | E12: 0 | F12: 1 | K12: 0 | L12: 1 | M12: 0 | N12: 0 | O12: 1 | P12: 1 | Q12: 0 | R12: 0 | S12: 0 | Y12: 1 | Z12: 1 | AA12: 1 | AB12: 1 | AD12: 1 | AE12: 1 | AF12: 0 | AG12: 0 | AH12: 0
A13: 11 | B13: CN | C13: =INDEX(Data!$J$4:$CK$4,A13) -> China | D13: 1 | E13: 0 | F13: 1 | K13: 0 | L13: 1 | M13: 0 | N13: 1 | O13: 0 | P13: 0 | Q13: 1 | R13: 0 | S13: 0 | Y13: 1 | Z13: 1 | AA13: 1 | AB13: 1 | AD13: 1 | AE13: 0 | AF13: 1 | AG13: 0 | AH13: 0
A14: 12 | B14: CO | C14: =INDEX(Data!$J$4:$CK$4,A14) -> Colombia | D14: 1 | E14: 0 | F14: 1 | K14: 0 | L14: 1 | M14: 0 | N14: 1 | O14: 0 | P14: 1 | Q14: 0 | R14: 0 | S14: 0 | Y14: 1 | Z14: 1 | AA14: 1 | AB14: 1 | AD14: 1 | AE14: 1 | AF14: 0 | AG14: 0 | AH14: 0
A15: 13 | B15: CR | C15: =INDEX(Data!$J$4:$CK$4,A15) -> Costa Rica | D15: 1 | E15: 0 | F15: 1 | K15: 0 | L15: 1 | M15: 0 | N15: 1 | O15: 0 | P15: 1 | Q15: 0 | R15: 0 | S15: 0 | Y15: 1 | Z15: 1 | AA15: 1 | AB15: 1 | AD15: 1 | AE15: 1 | AF15: 0 | AG15: 0 | AH15: 0
A16: 14 | B16: CU | C16: =INDEX(Data!$J$4:$CK$4,A16) -> Cuba | D16: 1 | E16: 0 | F16: 1 | K16: 0 | L16: 1 | M16: 0 | N16: 1 | O16: 0 | P16: 1 | Q16: 0 | R16: 0 | S16: 0 | Y16: 1 | Z16: 1 | AA16: 1 | AB16: 1 | AD16: 1 | AE16: 1 | AF16: 0 | AG16: 0 | AH16: 0
A17: 15 | B17: CZ | C17: =INDEX(Data!$J$4:$CK$4,A17) -> Czech Republic | D17: 1 | E17: 0 | F17: 1 | K17: 0 | L17: 1 | M17: 0 | N17: 0 | O17: 1 | P17: 0 | Q17: 0 | R17: 1 | S17: 0 | Y17: 1 | Z17: 1 | AA17: 1 | AB17: 1 | AD17: 1 | AE17: 0 | AF17: 0 | AG17: 1 | AH17: 0
A18: 16 | B18: DK | C18: =INDEX(Data!$J$4:$CK$4,A18) -> Denmark | D18: 1 | E18: 0 | F18: 1 | K18: 0 | L18: 1 | M18: 0 | N18: 0 | O18: 1 | P18: 0 | Q18: 0 | R18: 1 | S18: 0 | Y18: 1 | Z18: 1 | AA18: 1 | AB18: 1 | AD18: 1 | AE18: 0 | AF18: 0 | AG18: 1 | AH18: 0
A19: 17 | B19: DO | C19: =INDEX(Data!$J$4:$CK$4,A19) -> Dominican Republic | D19: 1 | E19: 0 | F19: 1 | K19: 0 | L19: 1 | M19: 0 | N19: 1 | O19: 0 | P19: 1 | Q19: 0 | R19: 0 | S19: 0 | Y19: 1 | Z19: 1 | AA19: 1 | AB19: 1 | AD19: 1 | AE19: 1 | AF19: 0 | AG19: 0 | AH19: 0
A20: 18 | B20: EC | C20: =INDEX(Data!$J$4:$CK$4,A20) -> Ecuador | D20: 1 | E20: 0 | F20: 1 | K20: 0 | L20: 1 | M20: 0 | N20: 1 | O20: 0 | P20: 1 | Q20: 0 | R20: 0 | S20: 0 | Y20: 1 | Z20: 1 | AA20: 1 | AB20: 1 | AD20: 1 | AE20: 1 | AF20: 0 | AG20: 0 | AH20: 0
A21: 19 | B21: EG | C21: =INDEX(Data!$J$4:$CK$4,A21) -> Egypt | D21: 1 | E21: 0 | F21: 1 | K21: 0 | L21: 1 | M21: 1 | N21: 0 | O21: 0 | P21: 0 | Q21: 0 | R21: 0 | S21: 1 | Y21: 1 | Z21: 1 | AA21: 1 | AB21: 1 | AD21: 1 | AE21: 0 | AF21: 0 | AG21: 0 | AH21: 1
A22: 20 | B22: ET | C22: =INDEX(Data!$J$4:$CK$4,A22) -> Ethiopia | D22: 1 | E22: 0 | F22: 1 | K22: 0 | L22: 1 | M22: 1 | N22: 0 | O22: 0 | P22: 0 | Q22: 0 | R22: 0 | S22: 1 | Y22: 1 | Z22: 1 | AA22: 1 | AB22: 1 | AD22: 1 | AE22: 0 | AF22: 0 | AG22: 0 | AH22: 1
A23: 21 | B23: FI | C23: =INDEX(Data!$J$4:$CK$4,A23) -> Finland | D23: 1 | E23: 0 | F23: 1 | K23: 0 | L23: 1 | M23: 0 | N23: 0 | O23: 1 | P23: 0 | Q23: 0 | R23: 1 | S23: 0 | Y23: 1 | Z23: 1 | AA23: 1 | AB23: 1 | AD23: 1 | AE23: 0 | AF23: 0 | AG23: 1 | AH23: 0
A24: 22 | B24: FR | C24: =INDEX(Data!$J$4:$CK$4,A24) -> France | D24: 1 | E24: 0 | F24: 1 | K24: 0 | L24: 1 | M24: 0 | N24: 0 | O24: 1 | P24: 0 | Q24: 0 | R24: 1 | S24: 0 | Y24: 1 | Z24: 1 | AA24: 1 | AB24: 1 | AD24: 1 | AE24: 0 | AF24: 0 | AG24: 1 | AH24: 0
A25: 23 | B25: DE | C25: =INDEX(Data!$J$4:$CK$4,A25) -> Germany | D25: 1 | E25: 0 | F25: 1 | K25: 0 | L25: 1 | M25: 0 | N25: 0 | O25: 1 | P25: 0 | Q25: 0 | R25: 1 | S25: 0 | Y25: 1 | Z25: 1 | AA25: 1 | AB25: 1 | AD25: 1 | AE25: 0 | AF25: 0 | AG25: 1 | AH25: 0
A26: 24 | B26: GH | C26: =INDEX(Data!$J$4:$CK$4,A26) -> Ghana | D26: 1 | E26: 0 | F26: 1 | K26: 0 | L26: 1 | M26: 1 | N26: 0 | O26: 0 | P26: 0 | Q26: 0 | R26: 0 | S26: 1 | Y26: 1 | Z26: 1 | AA26: 1 | AB26: 1 | AD26: 1 | AE26: 0 | AF26: 0 | AG26: 0 | AH26: 1
A27: 25 | B27: GR | C27: =INDEX(Data!$J$4:$CK$4,A27) -> Greece | D27: 1 | E27: 0 | F27: 1 | K27: 0 | L27: 1 | M27: 0 | N27: 0 | O27: 1 | P27: 0 | Q27: 0 | R27: 1 | S27: 0 | Y27: 1 | Z27: 1 | AA27: 1 | AB27: 1 | AD27: 1 | AE27: 0 | AF27: 0 | AG27: 1 | AH27: 0
A28: 26 | B28: GT | C28: =INDEX(Data!$J$4:$CK$4,A28) -> Guatemala | D28: 1 | E28: 0 | F28: 1 | K28: 0 | L28: 1 | M28: 1 | N28: 0 | O28: 0 | P28: 1 | Q28: 0 | R28: 0 | S28: 0 | Y28: 1 | Z28: 1 | AA28: 1 | AB28: 1 | AD28: 1 | AE28: 1 | AF28: 0 | AG28: 0 | AH28: 0
A29: 27 | B29: HK | C29: =INDEX(Data!$J$4:$CK$4,A29) -> Hong Kong | D29: 1 | E29: 0 | F29: 1 | K29: 0 | L29: 1 | M29: 0 | N29: 0 | O29: 1 | P29: 0 | Q29: 1 | R29: 0 | S29: 0 | Y29: 1 | Z29: 1 | AA29: 1 | AB29: 1 | AD29: 1 | AE29: 0 | AF29: 1 | AG29: 0 | AH29: 0
A30: 28 | B30: HU | C30: =INDEX(Data!$J$4:$CK$4,A30) -> Hungary | D30: 1 | E30: 0 | F30: 1 | K30: 0 | L30: 1 | M30: 0 | N30: 1 | O30: 0 | P30: 0 | Q30: 0 | R30: 1 | S30: 0 | Y30: 1 | Z30: 1 | AA30: 1 | AB30: 1 | AD30: 1 | AE30: 0 | AF30: 0 | AG30: 1 | AH30: 0
A31: 29 | B31: IN | C31: =INDEX(Data!$J$4:$CK$4,A31) -> India | D31: 1 | E31: 0 | F31: 1 | K31: 0 | L31: 1 | M31: 1 | N31: 0 | O31: 0 | P31: 0 | Q31: 1 | R31: 0 | S31: 0 | Y31: 1 | Z31: 1 | AA31: 1 | AB31: 1 | AD31: 1 | AE31: 0 | AF31: 1 | AG31: 0 | AH31: 0
A32: 30 | B32: ID | C32: =INDEX(Data!$J$4:$CK$4,A32) -> Indonesia | D32: 1 | E32: 0 | F32: 1 | K32: 0 | L32: 1 | M32: 1 | N32: 0 | O32: 0 | P32: 0 | Q32: 1 | R32: 0 | S32: 0 | Y32: 1 | Z32: 1 | AA32: 1 | AB32: 1 | AD32: 1 | AE32: 0 | AF32: 1 | AG32: 0 | AH32: 0
A33: 31 | B33: IR | C33: =INDEX(Data!$J$4:$CK$4,A33) -> Iran | D33: 1 | E33: 0 | F33: 1 | K33: 0 | L33: 1 | M33: 0 | N33: 1 | O33: 0 | P33: 0 | Q33: 0 | R33: 0 | S33: 1 | Y33: 1 | Z33: 1 | AA33: 1 | AB33: 1 | AD33: 1 | AE33: 0 | AF33: 0 | AG33: 0 | AH33: 1
A34: 32 | B34: IQ | C34: =INDEX(Data!$J$4:$CK$4,A34) -> Iraq | D34: 1 | E34: 0 | F34: 1 | K34: 0 | L34: 1 | M34: 0 | N34: 1 | O34: 0 | P34: 0 | Q34: 0 | R34: 0 | S34: 1 | Y34: 1 | Z34: 1 | AA34: 1 | AB34: 1 | AD34: 1 | AE34: 0 | AF34: 0 | AG34: 0 | AH34: 1
A35: 33 | B35: IE | C35: =INDEX(Data!$J$4:$CK$4,A35) -> Ireland | D35: 1 | E35: =INDEX(K35:S35,$E$2) -> 0 | F35: 1 | K35: 0 | L35: 1 | M35: 0 | N35: 0 | O35: 1 | P35: 0 | Q35: 0 | R35: 1 | S35: 0 | Y35: =INDEX(L35:O35,$Y$2) -> 1 | Z35: 1 | AA35: 1 | AB35: 1 | AD35: 1 | AE35: 0 | AF35: 0 | AG35: 1 | AH35: 0
A36: 34 | B36: IL | C36: =INDEX(Data!$J$4:$CK$4,A36) -> Israel | D36: 1 | E36: 0 | F36: 1 | K36: 0 | L36: 1 | M36: 0 | N36: 0 | O36: 1 | P36: 0 | Q36: 0 | R36: 0 | S36: 1 | Y36: 1 | Z36: 1 | AA36: 1 | AB36: 1 | AD36: 1 | AE36: 0 | AF36: 0 | AG36: 0 | AH36: 1
A37: 35 | B37: IT | C37: =INDEX(Data!$J$4:$CK$4,A37) -> Italy | D37: 1 | E37: 0 | F37: 1 | K37: 0 | L37: 1 | M37: 0 | N37: 0 | O37: 1 | P37: 0 | Q37: 0 | R37: 1 | S37: 0 | Y37: 1 | Z37: 1 | AA37: 1 | AB37: 1 | AD37: 1 | AE37: 0 | AF37: 0 | AG37: 1 | AH37: 0
A38: 36 | B38: JP | C38: =INDEX(Data!$J$4:$CK$4,A38) -> Japan | D38: 1 | E38: 0 | F38: 1 | K38: 0 | L38: 1 | M38: 0 | N38: 0 | O38: 1 | P38: 0 | Q38: 1 | R38: 0 | S38: 0 | Y38: 1 | Z38: 1 | AA38: 1 | AB38: 1 | AD38: 1 | AE38: 0 | AF38: 1 | AG38: 0 | AH38: 0
A39: 37 | B39: JO | C39: =INDEX(Data!$J$4:$CK$4,A39) -> Jordan | D39: 1 | E39: 0 | F39: 1 | K39: 0 | L39: 1 | M39: 0 | N39: 1 | O39: 0 | P39: 0 | Q39: 0 | R39: 0 | S39: 1 | Y39: 1 | Z39: 1 | AA39: 1 | AB39: 1 | AD39: 1 | AE39: 0 | AF39: 0 | AG39: 0 | AH39: 1
A40: 38 | B40: KZ | C40: =INDEX(Data!$J$4:$CK$4,A40) -> Kazakhstan | D40: 1 | E40: 0 | F40: 1 | K40: 0 | L40: 1 | M40: 0 | N40: 1 | O40: 0 | P40: 0 | Q40: 0 | R40: 1 | S40: 0 | Y40: 1 | Z40: 1 | AA40: 1 | AB40: 1 | AD40: 1 | AE40: 0 | AF40: 0 | AG40: 1 | AH40: 0
A41: 39 | B41: KE | C41: =INDEX(Data!$J$4:$CK$4,A41) -> Kenya | D41: 1 | E41: 0 | F41: 1 | K41: 0 | L41: 1 | M41: 1 | N41: 0 | O41: 0 | P41: 0 | Q41: 0 | R41: 0 | S41: 1 | Y41: 1 | Z41: 1 | AA41: 1 | AB41: 1 | AD41: 1 | AE41: 0 | AF41: 0 | AG41: 0 | AH41: 1
A42: 40 | B42: LT | C42: =INDEX(Data!$J$4:$CK$4,A42) -> Lithuania | D42: 1 | E42: 0 | F42: 1 | K42: 0 | L42: 1 | M42: 0 | N42: 0 | O42: 1 | P42: 0 | Q42: 0 | R42: 1 | S42: 0 | Y42: 1 | Z42: 1 | AA42: 1 | AB42: 1 | AD42: 1 | AE42: 0 | AF42: 0 | AG42: 1 | AH42: 0
A43: 41 | B43: MW | C43: =INDEX(Data!$J$4:$CK$4,A43) -> Malawi | D43: 1 | E43: 0 | F43: 1 | K43: 0 | L43: 1 | M43: 1 | N43: 0 | O43: 0 | P43: 0 | Q43: 0 | R43: 0 | S43: 1 | Y43: 1 | Z43: 1 | AA43: 1 | AB43: 1 | AD43: 1 | AE43: 0 | AF43: 0 | AG43: 0 | AH43: 1
A44: 42 | B44: MY | C44: =INDEX(Data!$J$4:$CK$4,A44) -> Malaysia | D44: 1 | E44: 0 | F44: 1 | K44: 0 | L44: 1 | M44: 0 | N44: 1 | O44: 0 | P44: 0 | Q44: 1 | R44: 0 | S44: 0 | Y44: 1 | Z44: 1 | AA44: 1 | AB44: 1 | AD44: 1 | AE44: 0 | AF44: 1 | AG44: 0 | AH44: 0
A45: 43 | B45: MX | C45: =INDEX(Data!$J$4:$CK$4,A45) -> Mexico | D45: 1 | E45: 0 | F45: 1 | K45: 0 | L45: 1 | M45: 0 | N45: 1 | O45: 0 | P45: 1 | Q45: 0 | R45: 0 | S45: 0 | Y45: 1 | Z45: 1 | AA45: 1 | AB45: 1 | AD45: 1 | AE45: 1 | AF45: 0 | AG45: 0 | AH45: 0
A46: 44 | B46: MN | C46: =INDEX(Data!$J$4:$CK$4,A46) -> Mongolia | D46: 1 | E46: 0 | F46: 1 | K46: 0 | L46: 1 | M46: 1 | N46: 0 | O46: 0 | P46: 0 | Q46: 1 | R46: 0 | S46: 0 | Y46: 1 | Z46: 1 | AA46: 1 | AB46: 1 | AD46: 1 | AE46: 0 | AF46: 1 | AG46: 0 | AH46: 0
A47: 45 | B47: MA | C47: =INDEX(Data!$J$4:$CK$4,A47) -> Morocco | D47: 1 | E47: 0 | F47: 1 | K47: 0 | L47: 1 | M47: 1 | N47: 0 | O47: 0 | P47: 0 | Q47: 0 | R47: 0 | S47: 1 | Y47: 1 | Z47: 1 | AA47: 1 | AB47: 1 | AD47: 1 | AE47: 0 | AF47: 0 | AG47: 0 | AH47: 1
A48: 46 | B48: MM | C48: =INDEX(Data!$J$4:$CK$4,A48) -> Myanmar | D48: 1 | E48: 0 | F48: 1 | K48: 0 | L48: 1 | M48: 1 | N48: 0 | O48: 0 | P48: 0 | Q48: 1 | R48: 0 | S48: 0 | Y48: 1 | Z48: 1 | AA48: 1 | AB48: 1 | AD48: 1 | AE48: 0 | AF48: 1 | AG48: 0 | AH48: 0
A49: 47 | B49: NL | C49: =INDEX(Data!$J$4:$CK$4,A49) -> Netherlands | D49: 1 | E49: 0 | F49: 1 | K49: 0 | L49: 1 | M49: 0 | N49: 0 | O49: 1 | P49: 0 | Q49: 0 | R49: 1 | S49: 0 | Y49: 1 | Z49: 1 | AA49: 1 | AB49: 1 | AD49: 1 | AE49: 0 | AF49: 0 | AG49: 1 | AH49: 0
A50: 48 | B50: NZ | C50: =INDEX(Data!$J$4:$CK$4,A50) -> New Zealand | D50: 1 | E50: 0 | F50: 1 | K50: 0 | L50: 1 | M50: 0 | N50: 0 | O50: 1 | P50: 0 | Q50: 1 | R50: 0 | S50: 0 | Y50: 1 | Z50: 1 | AA50: 1 | AB50: 1 | AD50: 1 | AE50: 0 | AF50: 1 | AG50: 0 | AH50: 0
A51: 49 | B51: NG | C51: =INDEX(Data!$J$4:$CK$4,A51) -> Nigeria | D51: 1 | E51: 0 | F51: 1 | K51: 0 | L51: 1 | M51: 1 | N51: 0 | O51: 0 | P51: 0 | Q51: 0 | R51: 0 | S51: 1 | Y51: 1 | Z51: 1 | AA51: 1 | AB51: 1 | AD51: 1 | AE51: 0 | AF51: 0 | AG51: 0 | AH51: 1
A52: 50 | B52: NO | C52: =INDEX(Data!$J$4:$CK$4,A52) -> Norway | D52: 1 | E52: 0 | F52: 1 | K52: 0 | L52: 1 | M52: 0 | N52: 0 | O52: 1 | P52: 0 | Q52: 0 | R52: 1 | S52: 0 | Y52: 1 | Z52: 1 | AA52: 1 | AB52: 1 | AD52: 1 | AE52: 0 | AF52: 0 | AG52: 1 | AH52: 0
A53: 51 | B53: PA | C53: =INDEX(Data!$J$4:$CK$4,A53) -> Panama | D53: 1 | E53: 0 | F53: 1 | K53: 0 | L53: 1 | M53: 0 | N53: 1 | O53: 0 | P53: 1 | Q53: 0 | R53: 0 | S53: 0 | Y53: 1 | Z53: 1 | AA53: 1 | AB53: 1 | AD53: 1 | AE53: 1 | AF53: 0 | AG53: 0 | AH53: 0
A54: 52 | B54: PE | C54: =INDEX(Data!$J$4:$CK$4,A54) -> Peru | D54: 1 | E54: 0 | F54: 1 | K54: 0 | L54: 1 | M54: 0 | N54: 1 | O54: 0 | P54: 1 | Q54: 0 | R54: 0 | S54: 0 | Y54: 1 | Z54: 1 | AA54: 1 | AB54: 1 | AD54: 1 | AE54: 1 | AF54: 0 | AG54: 0 | AH54: 0
A55: 53 | B55: PH | C55: =INDEX(Data!$J$4:$CK$4,A55) -> Philippines | D55: 1 | E55: 0 | F55: 1 | K55: 0 | L55: 1 | M55: 1 | N55: 0 | O55: 0 | P55: 0 | Q55: 1 | R55: 0 | S55: 0 | Y55: 1 | Z55: 1 | AA55: 1 | AB55: 1 | AD55: 1 | AE55: 0 | AF55: 1 | AG55: 0 | AH55: 0
A56: 54 | B56: PL | C56: =INDEX(Data!$J$4:$CK$4,A56) -> Poland | D56: 1 | E56: 0 | F56: 1 | K56: 0 | L56: 1 | M56: 0 | N56: 0 | O56: 1 | P56: 0 | Q56: 0 | R56: 1 | S56: 0 | Y56: 1 | Z56: 1 | AA56: 1 | AB56: 1 | AD56: 1 | AE56: 0 | AF56: 0 | AG56: 1 | AH56: 0
A57: 55 | B57: PT | C57: =INDEX(Data!$J$4:$CK$4,A57) -> Portugal | D57: 1 | E57: 0 | F57: 1 | K57: 0 | L57: 1 | M57: 0 | N57: 0 | O57: 1 | P57: 0 | Q57: 0 | R57: 1 | S57: 0 | Y57: 1 | Z57: 1 | AA57: 1 | AB57: 1 | AD57: 1 | AE57: 0 | AF57: 0 | AG57: 1 | AH57: 0
A58: 56 | B58: PR | C58: =INDEX(Data!$J$4:$CK$4,A58) -> Puerto Rico | D58: 1 | E58: 0 | F58: 1 | K58: 0 | L58: 1 | M58: 0 | N58: 0 | O58: 1 | P58: 1 | Q58: 0 | R58: 0 | S58: 0 | Y58: 1 | Z58: 1 | AA58: 1 | AB58: 1 | AD58: 1 | AE58: 1 | AF58: 0 | AG58: 0 | AH58: 0
A59: 57 | B59: RO | C59: =INDEX(Data!$J$4:$CK$4,A59) -> Romania | D59: 1 | E59: 0 | F59: 1 | K59: 0 | L59: 1 | M59: 0 | N59: 1 | O59: 0 | P59: 0 | Q59: 0 | R59: 1 | S59: 0 | Y59: 1 | Z59: 1 | AA59: 1 | AB59: 1 | AD59: 1 | AE59: 0 | AF59: 0 | AG59: 1 | AH59: 0
A60: 58 | B60: RU | C60: =INDEX(Data!$J$4:$CK$4,A60) -> Russia | D60: 1 | E60: 0 | F60: 1 | K60: 0 | L60: 1 | M60: 0 | N60: 0 | O60: 1 | P60: 0 | Q60: 0 | R60: 1 | S60: 0 | Y60: 1 | Z60: 1 | AA60: 1 | AB60: 1 | AD60: 1 | AE60: 0 | AF60: 0 | AG60: 1 | AH60: 0
A61: 59 | B61: SA | C61: =INDEX(Data!$J$4:$CK$4,A61) -> Saudi Arabia | D61: 1 | E61: 0 | F61: 1 | K61: 0 | L61: 1 | M61: 0 | N61: 0 | O61: 1 | P61: 0 | Q61: 0 | R61: 0 | S61: 1 | Y61: 1 | Z61: 1 | AA61: 1 | AB61: 1 | AD61: 1 | AE61: 0 | AF61: 0 | AG61: 0 | AH61: 1
A62: 60 | B62: SG | C62: =INDEX(Data!$J$4:$CK$4,A62) -> Singapore | D62: 1 | E62: 0 | F62: 1 | K62: 0 | L62: 1 | M62: 0 | N62: 0 | O62: 1 | P62: 0 | Q62: 1 | R62: 0 | S62: 0 | Y62: 1 | Z62: 1 | AA62: 1 | AB62: 1 | AD62: 1 | AE62: 0 | AF62: 1 | AG62: 0 | AH62: 0
A63: 61 | B63: SK | C63: =INDEX(Data!$J$4:$CK$4,A63) -> Slovakia | D63: 1 | E63: 0 | F63: 1 | K63: 0 | L63: 1 | M63: 0 | N63: 0 | O63: 1 | P63: 0 | Q63: 0 | R63: 1 | S63: 0 | Y63: 1 | Z63: 1 | AA63: 1 | AB63: 1 | AD63: 1 | AE63: 0 | AF63: 0 | AG63: 1 | AH63: 0
A64: 62 | B64: ZA | C64: =INDEX(Data!$J$4:$CK$4,A64) -> South Africa | D64: 1 | E64: 0 | F64: 1 | K64: 0 | L64: 1 | M64: 0 | N64: 1 | O64: 0 | P64: 0 | Q64: 0 | R64: 0 | S64: 1 | Y64: 1 | Z64: 1 | AA64: 1 | AB64: 1 | AD64: 1 | AE64: 0 | AF64: 0 | AG64: 0 | AH64: 1
A65: 63 | B65: KR | C65: =INDEX(Data!$J$4:$CK$4,A65) -> South Korea | D65: 1 | E65: 0 | F65: 1 | K65: 0 | L65: 1 | M65: 0 | N65: 0 | O65: 1 | P65: 0 | Q65: 1 | R65: 0 | S65: 0 | Y65: 1 | Z65: 1 | AA65: 1 | AB65: 1 | AD65: 1 | AE65: 0 | AF65: 1 | AG65: 0 | AH65: 0
A66: 64 | B66: ES | C66: =INDEX(Data!$J$4:$CK$4,A66) -> Spain | D66: 1 | E66: 0 | F66: 1 | K66: 0 | L66: 1 | M66: 0 | N66: 0 | O66: 1 | P66: 0 | Q66: 0 | R66: 1 | S66: 0 | Y66: 1 | Z66: 1 | AA66: 1 | AB66: 1 | AD66: 1 | AE66: 0 | AF66: 0 | AG66: 1 | AH66: 0
A67: 65 | B67: LK | C67: =INDEX(Data!$J$4:$CK$4,A67) -> Sri Lanka | D67: 1 | E67: =INDEX(K67:S67,$E$2) -> 0 | F67: 1 | K67: 0 | L67: 1 | M67: 1 | N67: 0 | O67: 0 | P67: 0 | Q67: 1 | R67: 0 | S67: 0 | Y67: =INDEX(L67:O67,$Y$2) -> 1 | Z67: 1 | AA67: 1 | AB67: 1 | AD67: 1 | AE67: 0 | AF67: 1 | AG67: 0 | AH67: 0
A68: 66 | B68: SE | C68: =INDEX(Data!$J$4:$CK$4,A68) -> Sweden | D68: =AB68 -> 1 | E68: 0 | F68: 1 | K68: 0 | L68: 1 | M68: 0 | N68: 0 | O68: 1 | P68: 0 | Q68: 0 | R68: 1 | S68: 0 | Y68: 1 | Z68: =INDEX(AD68:AH68,$Z$2) -> 1 | AA68: =IF(AND(Y68=1,Z68=1),1,0) -> 1 | AB68: =IF(AND($Y$2=1,$Z$2<>1),Z68,IF(AND($Y$2<>1,$Z$2=1),Y68,IF(AND($Y$2<>1,$Z$2<>1),AA68,1))) -> 1 | AD68: =L68 -> 1 | AE68: =P68 -> 0 | AF68: =Q68 -> 0 | AG68: =R68 -> 1 | AH68: =S68 -> 0
A69: 67 | B69: CH | C69: =INDEX(Data!$J$4:$CK$4,A69) -> Switzerland | D69: 1 | E69: 0 | F69: 1 | K69: 0 | L69: 1 | M69: 0 | N69: 0 | O69: 1 | P69: 0 | Q69: 0 | R69: 1 | S69: 0 | Y69: 1 | Z69: 1 | AA69: 1 | AB69: 1 | AD69: 1 | AE69: 0 | AF69: 0 | AG69: 1 | AH69: 0
A70: 68 | B70: TW | C70: =INDEX(Data!$J$4:$CK$4,A70) -> Taiwan | D70: 1 | E70: 0 | F70: 1 | K70: 0 | L70: 1 | M70: 0 | N70: 0 | O70: 1 | P70: 0 | Q70: 1 | R70: 0 | S70: 0 | Y70: 1 | Z70: 1 | AA70: 1 | AB70: 1 | AD70: 1 | AE70: 0 | AF70: 1 | AG70: 0 | AH70: 0
A71: 69 | B71: TZ | C71: =INDEX(Data!$J$4:$CK$4,A71) -> Tanzania | D71: 1 | E71: 0 | F71: 1 | K71: 0 | L71: 1 | M71: 1 | N71: 0 | O71: 0 | P71: 0 | Q71: 0 | R71: 0 | S71: 1 | Y71: 1 | Z71: 1 | AA71: 1 | AB71: 1 | AD71: 1 | AE71: 0 | AF71: 0 | AG71: 0 | AH71: 1
A72: 70 | B72: TH | C72: =INDEX(Data!$J$4:$CK$4,A72) -> Thailand | D72: 1 | E72: 0 | F72: 1 | K72: 0 | L72: 1 | M72: 0 | N72: 1 | O72: 0 | P72: 0 | Q72: 1 | R72: 0 | S72: 0 | Y72: 1 | Z72: 1 | AA72: 1 | AB72: 1 | AD72: 1 | AE72: 0 | AF72: 1 | AG72: 0 | AH72: 0
A73: 71 | B73: TR | C73: =INDEX(Data!$J$4:$CK$4,A73) -> Turkey | D73: 1 | E73: 0 | F73: 1 | K73: 0 | L73: 1 | M73: 0 | N73: 1 | O73: 0 | P73: 0 | Q73: 0 | R73: 1 | S73: 0 | Y73: 1 | Z73: 1 | AA73: 1 | AB73: 1 | AD73: 1 | AE73: 0 | AF73: 0 | AG73: 1 | AH73: 0
A74: 72 | B74: UG | C74: =INDEX(Data!$J$4:$CK$4,A74) -> Uganda | D74: 1 | E74: 0 | F74: =IF(A74=$F$2,3,IF(D74=0,0,IF(E74=1,2,1))) -> 1 | K74: 0 | L74: 1 | M74: 1 | N74: 0 | O74: 0 | P74: 0 | Q74: 0 | R74: 0 | S74: 1 | Y74: 1 | Z74: 1 | AA74: 1 | AB74: 1 | AD74: 1 | AE74: 0 | AF74: 0 | AG74: 0 | AH74: 1
A75: 73 | B75: UA | C75: =INDEX(Data!$J$4:$CK$4,A75) -> Ukraine | D75: 1 | E75: 0 | F75: 1 | K75: 0 | L75: 1 | M75: 1 | N75: 0 | O75: 0 | P75: 0 | Q75: 0 | R75: 1 | S75: 0 | Y75: 1 | Z75: 1 | AA75: 1 | AB75: 1 | AD75: 1 | AE75: 0 | AF75: 0 | AG75: 1 | AH75: 0
A76: 74 | B76: GB | C76: =INDEX(Data!$J$4:$CK$4,A76) -> United Kingdom | D76: 1 | E76: 0 | F76: 1 | K76: 0 | L76: 1 | M76: 0 | N76: 0 | O76: 1 | P76: 0 | Q76: 0 | R76: 1 | S76: 0 | Y76: 1 | Z76: 1 | AA76: 1 | AB76: 1 | AD76: 1 | AE76: 0 | AF76: 0 | AG76: 1 | AH76: 0
A77: 75 | B77: US | C77: =INDEX(Data!$J$4:$CK$4,A77) -> United States of America | D77: 1 | E77: 0 | F77: 1 | K77: 0 | L77: 1 | M77: 0 | N77: 0 | O77: 1 | P77: 1 | Q77: 0 | R77: 0 | S77: 0 | Y77: 1 | Z77: 1 | AA77: 1 | AB77: 1 | AD77: 1 | AE77: 1 | AF77: 0 | AG77: 0 | AH77: 0
A78: 76 | B78: UY | C78: =INDEX(Data!$J$4:$CK$4,A78) -> Uruguay | D78: 1 | E78: 0 | F78: 1 | K78: 0 | L78: 1 | M78: 0 | N78: 0 | O78: 1 | P78: 1 | Q78: 0 | R78: 0 | S78: 0 | Y78: 1 | Z78: 1 | AA78: 1 | AB78: 1 | AD78: 1 | AE78: 1 | AF78: 0 | AG78: 0 | AH78: 0
A79: 77 | B79: VE | C79: =INDEX(Data!$J$4:$CK$4,A79) -> Venezuela | D79: 1 | E79: 0 | F79: 1 | K79: 0 | L79: 1 | M79: 0 | N79: 1 | O79: 0 | P79: 1 | Q79: 0 | R79: 0 | S79: 0 | Y79: 1 | Z79: 1 | AA79: 1 | AB79: 1 | AD79: 1 | AE79: 1 | AF79: 0 | AG79: 0 | AH79: 0
A80: 78 | B80: VN | C80: =INDEX(Data!$J$4:$CK$4,A80) -> Vietnam | D80: 1 | E80: 0 | F80: 1 | K80: 0 | L80: 1 | M80: 1 | N80: 0 | O80: 0 | P80: 0 | Q80: 1 | R80: 0 | S80: 0 | Y80: 1 | Z80: 1 | AA80: 1 | AB80: 1 | AD80: 1 | AE80: 0 | AF80: 1 | AG80: 0 | AH80: 0
A81: 79 | B81: ZM | C81: =INDEX(Data!$J$4:$CK$4,A81) -> Zambia | D81: 1 | E81: 0 | F81: 1 | K81: 0 | L81: 1 | M81: 1 | N81: 0 | O81: 0 | P81: 0 | Q81: 0 | R81: 0 | S81: 1 | Y81: 1 | Z81: 1 | AA81: 1 | AB81: 1 | AD81: 1 | AE81: 0 | AF81: 0 | AG81: 0 | AH81: 1
A82: 80 | B82: ZW | C82: =INDEX(Data!$J$4:$CK$4,A82) -> Zimbabwe | D82: 1 | E82: 0 | F82: 1 | K82: 0 | L82: 1 | M82: 1 | N82: 0 | O82: 0 | P82: 0 | Q82: 0 | R82: 0 | S82: 1 | Y82: 1 | Z82: 1 | AA82: 1 | AB82: 1 | AD82: 1 | AE82: 0 | AF82: 0 | AG82: 0 | AH82: 1
C84: DO NOT EDIT COUNTRY NAMES ABOVE.
C85: TO CHANGE COUNTRY NAMES, MAKE CHANGES IN [DATA]

Sheet tblIndiSets (hidden)
A2: CATEGORIES
A5: TOTAL | B5: =IF(A5="","",MATCH(A5,tblIndicators!C$2:C$43,0)) -> 1 | C5: =IF($A5="","",INDEX(tblIndicators!$V$2:$V$43,$B5)) -> SUPPLY ENVIRONMENT
A6: PHE | B6: =IF(A6="","",MATCH(A6,tblIndicators!C$2:C$43,0)) -> 2 | C6: =IF($A6="","",INDEX(tblIndicators!$V$2:$V$43,$B6)) -> 1) PALLIATIVE AND HEALTHCARE ENVIRONMENT
A7: HR | B7: =IF(A7="","",MATCH(A7,tblIndicators!C$2:C$43,0)) -> 7 | C7: =IF($A7="","",INDEX(tblIndicators!$V$2:$V$43,$B7)) -> 2) HUMAN RESOURCES
A8: AOC | B8: =IF(A8="","",MATCH(A8,tblIndicators!C$2:C$43,0)) -> 13 | C8: =IF($A8="","",INDEX(tblIndicators!$V$2:$V$43,$B8)) -> 3) AFFORDABILITY OF CARE
A9: QOC | B9: =IF(A9="","",MATCH(A9,tblIndicators!C$2:C$43,0)) -> 17 | C9: =IF($A9="","",INDEX(tblIndicators!$V$2:$V$43,$B9)) -> 4) QUALITY OF CARE
A10: CE | B10: =IF(A10="","",MATCH(A10,tblIndicators!C$2:C$43,0)) -> 24 | C10: =IF($A10="","",INDEX(tblIndicators!$V$2:$V$43,$B10)) -> 5) COMMUNITY ENGAGEMENT
A11: TN | B11: =IF(A11="","",MATCH(A11,tblIndicators!C$2:C$43,0)) -> 31 | C11: =IF($A11="","",INDEX(tblIndicators!$V$2:$V$43,$B11)) -> 7) DEMAND FOR PALLIATIVE CARE
A14: CATEGORIES + INDICATORS
A15: PHE | B15: =IF(A15="","",MATCH(A15,tblIndicators!C$2:C$35,0)) -> 2 | C15: =IF($A15="","",INDEX(tblIndicators!$V$2:$V$35,$B15)) -> 1) PALLIATIVE AND HEALTHCARE ENVIRONMENT
A16: PHE_01 | B16: =IF(A16="","",MATCH(A16,tblIndicators!C$2:C$35,0)) -> 3 | C16: =IF($A16="","",INDEX(tblIndicators!$V$2:$V$35,$B16)) -> 1.1) Healthcare spending
A17: PHE_02 | B17: =IF(A17="","",MATCH(A17,tblIndicators!C$2:C$35,0)) -> 4 | C17: =IF($A17="","",INDEX(tblIndicators!$V$2:$V$35,$B17)) -> 1.2) Presence and effectiveness of government-led national palliative care strategy | J17: PHE | K17: PHE | L17: PHE_02
A18: PHE_03 | B18: =IF(A18="","",MATCH(A18,tblIndicators!C$2:C$35,0)) -> 5 | C18: =IF($A18="","",INDEX(tblIndicators!$V$2:$V$35,$B18)) -> 1.3) Availability of research-based policy evaluation | J18: PHE_01 | K18: HR | L18: PHE_03
A19: PHE_04 | B19: =IF(A19="","",MATCH(A19,tblIndicators!C$2:C$35,0)) -> 6 | C19: =IF($A19="","",INDEX(tblIndicators!$V$2:$V$35,$B19)) -> 1.4) Capacity to deliver palliative care | J19: PHE_02 | K19: AOC | L19: PHE_04
A20: HR | B20: =IF(A20="","",MATCH(A20,tblIndicators!C$2:C$35,0)) -> 7 | C20: =IF($A20="","",INDEX(tblIndicators!$V$2:$V$35,$B20)) -> 2) HUMAN RESOURCES | J20: PHE_03 | K20: QOC | L20: PHE_05
A21: HR_01 | B21: =IF(A21="","",MATCH(A21,tblIndicators!C$2:C$35,0)) -> 8 | C21: =IF($A21="","",INDEX(tblIndicators!$V$2:$V$35,$B21)) -> 2.1) Availability of specialised palliative care workers | J21: PHE_04 | K21: CE | L21: HR_01
A22: HR_02 | B22: =IF(A22="","",MATCH(A22,tblIndicators!C$2:C$35,0)) -> 9 | C22: =IF($A22="","",INDEX(tblIndicators!$V$2:$V$35,$B22)) -> 2.2) General medical knowledge of palliative care | J22: PHE_05 | L22: HR_02
A23: HR_03 | B23: =IF(A23="","",MATCH(A23,tblIndicators!C$2:C$35,0)) -> 10 | C23: =IF($A23="","",INDEX(tblIndicators!$V$2:$V$35,$B23)) -> 2.3) Certification for palliative care workers | J23: HR | L23: HR_03
A24: HR_04 | B24: =IF(A24="","",MATCH(A24,tblIndicators!C$2:C$35,0)) -> 11 | C24: =IF($A24="","",INDEX(tblIndicators!$V$2:$V$35,$B24)) -> 2.4) Number of doctors per 1,000 PC-related deaths | J24: HR_01 | L24: HR_04
A25: HR_05 | B25: =IF(A25="","",MATCH(A25,tblIndicators!C$2:C$35,0)) -> 12 | C25: =IF($A25="","",INDEX(tblIndicators!$V$2:$V$35,$B25)) -> 2.5) Number of nurses per 1,000 PC-related deaths | J25: HR_02 | L25: HR_05
A26: AOC | B26: =IF(A26="","",MATCH(A26,tblIndicators!C$2:C$35,0)) -> 13 | C26: =IF($A26="","",INDEX(tblIndicators!$V$2:$V$35,$B26)) -> 3) AFFORDABILITY OF CARE | J26: HR_03 | L26: AOC_01
A27: AOC_01 | B27: =IF(A27="","",MATCH(A27,tblIndicators!C$2:C$35,0)) -> 14 | C27: =IF($A27="","",INDEX(tblIndicators!$V$2:$V$35,$B27)) -> 3.1) Availability of public funding for palliative care | J27: HR_04 | L27: AOC_02
A28: AOC_02 | B28: =IF(A28="","",MATCH(A28,tblIndicators!C$2:C$35,0)) -> 15 | C28: =IF($A28="","",INDEX(tblIndicators!$V$2:$V$35,$B28)) -> 3.2) Financial burden to patients for available palliative care | J28: HR_05 | L28: AOC_03
A29: AOC_03 | B29: =IF(A29="","",MATCH(A29,tblIndicators!C$2:C$35,0)) -> 16 | C29: =IF($A29="","",INDEX(tblIndicators!$V$2:$V$35,$B29)) -> 3.3) National pension scheme coverage of palliative care services | J29: AOC | L29: AOC_04
A30: QOC | B30: =IF(A30="","",MATCH(A30,tblIndicators!C$2:C$35,0)) -> 17 | C30: =IF($A30="","",INDEX(tblIndicators!$V$2:$V$35,$B30)) -> 4) QUALITY OF CARE
A31: QOC_01 | B31: =IF(A31="","",MATCH(A31,tblIndicators!C$2:C$35,0)) -> 18 | C31: =IF($A31="","",INDEX(tblIndicators!$V$2:$V$35,$B31)) -> 4.1) Presence of monitoring standards for organisations | J31: AOC_01 | L31: QOC_01
A32: QOC_02 | B32: =IF(A32="","",MATCH(A32,tblIndicators!C$2:C$35,0)) -> 19 | C32: =IF($A32="","",INDEX(tblIndicators!$V$2:$V$35,$B32)) -> 4.2) Availability of painkillers | J32: AOC_02 | L32: QOC_02
A33: QOC_03 | B33: =IF(A33="","",MATCH(A33,tblIndicators!C$2:C$35,0)) -> 20 | C33: =IF($A33="","",INDEX(tblIndicators!$V$2:$V$35,$B33)) -> 4.3) Availability of psycho-socio support for patient and families | J33: AOC_03 | L33: QOC_03
A34: QOC_04 | B34: =IF(A34="","",MATCH(A34,tblIndicators!C$2:C$35,0)) -> 21 | C34: =IF($A34="","",INDEX(tblIndicators!$V$2:$V$35,$B34)) -> 4.4) Presence of Do not resuscitate (DNR) policy | J34: AOC_04 | L34: QOC_04
A35: QOC_05 | B35: =IF(A35="","",MATCH(A35,tblIndicators!C$2:C$35,0)) -> 22 | C35: =IF($A35="","",INDEX(tblIndicators!$V$2:$V$35,$B35)) -> 4.5) Shared decisionmaking | J35: QOC | L35: QOC_05
A36: QOC_06 | B36: =IF(A36="","",MATCH(A36,tblIndicators!C$2:C$35,0)) -> 23 | C36: =IF($A36="","",INDEX(tblIndicators!$V$2:$V$35,$B36)) -> 4.6) Use of patient satisfaction surveys | J36: QOC_01 | L36: QOC_06
A37: CE | B37: =IF(A37="","",MATCH(A37,tblIndicators!C$2:C$35,0)) -> 24 | C37: =IF($A37="","",INDEX(tblIndicators!$V$2:$V$35,$B37)) -> 5) COMMUNITY ENGAGEMENT | J37: QOC_02 | L37: CE_01
A38: CE_01 | B38: =IF(A38="","",MATCH(A38,tblIndicators!C$2:C$35,0)) -> 25 | C38: =IF($A38="","",INDEX(tblIndicators!$V$2:$V$35,$B38)) -> 5.1) Public awareness of palliative care | J38: QOC_03 | L38: CE_02
A39: CE_02 | B39: =IF(A39="","",MATCH(A39,tblIndicators!C$2:C$35,0)) -> 26 | C39: =IF($A39="","",INDEX(tblIndicators!$V$2:$V$35,$B39)) -> 5.2) Availability of volunteer workers for palliative care | J39: QOC_04
A40: TN | B40: =IF(A40="","",MATCH(A40,tblIndicators!C$2:C$35,0)) -> 31 | C40: =IF($A40="","",INDEX(tblIndicators!$V$2:$V$35,$B40)) -> 7) DEMAND FOR PALLIATIVE CARE | J40: QOC_05
A41: EP_01 | B41: =IF(A41="","",MATCH(A41,tblIndicators!C$2:C$35,0)) -> 32 | C41: =IF($A41="","",INDEX(tblIndicators!$V$2:$V$35,$B41)) -> 7.1.1) Burden of diseases | J41: QOC_06
A42: EP_02 | B42: =IF(A42="","",MATCH(A42,tblIndicators!C$2:C$35,0)) -> 33 | C42: =IF($A42="","",INDEX(tblIndicators!$V$2:$V$35,$B42)) -> 7.1.2) Old age dependency ratio | J42: CE
A43: EP_03 | B43: =IF(A43="","",MATCH(A43,tblIndicators!C$2:C$35,0)) -> 34 | C43: =IF($A43="","",INDEX(tblIndicators!$V$2:$V$35,$B43)) -> 7.1.3) Speed of ageing | J43: CE_01
J44: CE_02
B48: =IF(A48="","",MATCH(A48,tblIndicators!C$2:C$35,0)) ->  | C48: VIEW ALL
A49: PHE | B49: =IF(A49="","",MATCH(A49,tblIndicators!C$2:C$35,0)) -> 2 | C49: =IF($A49="","",INDEX(tblIndicators!$V$2:$V$35,$B49)) -> 1) PALLIATIVE AND HEALTHCARE ENVIRONMENT
A50: HR | B50: =IF(A50="","",MATCH(A50,tblIndicators!C$2:C$35,0)) -> 7 | C50: =IF($A50="","",INDEX(tblIndicators!$V$2:$V$35,$B50)) -> 2) HUMAN RESOURCES
A51: AOC | B51: =IF(A51="","",MATCH(A51,tblIndicators!C$2:C$35,0)) -> 13 | C51: =IF($A51="","",INDEX(tblIndicators!$V$2:$V$35,$B51)) -> 3) AFFORDABILITY OF CARE
A52: QOC | B52: =IF(A52="","",MATCH(A52,tblIndicators!C$2:C$35,0)) -> 17 | C52: =IF($A52="","",INDEX(tblIndicators!$V$2:$V$35,$B52)) -> 4) QUALITY OF CARE
A53: CE | B53: =IF(A53="","",MATCH(A53,tblIndicators!C$2:C$35,0)) -> 24 | C53: =IF($A53="","",INDEX(tblIndicators!$V$2:$V$35,$B53)) -> 5) COMMUNITY ENGAGEMENT
A55: Weights Indicators
A56: PHE_01 | B56: =IF(A56="","",MATCH(A56,tblIndicators!C$2:C$35,0)) -> 3 | C56: =IF($A56="","",INDEX(tblIndicators!$V$2:$V$35,$B56)) -> 1.1) Healthcare spending
A57: PHE_02 | B57: =IF(A57="","",MATCH(A57,tblIndicators!C$2:C$35,0)) -> 4 | C57: =IF($A57="","",INDEX(tblIndicators!$V$2:$V$35,$B57)) -> 1.2) Presence and effectiveness of government-led national palliative care strategy
A58: PHE_03 | B58: =IF(A58="","",MATCH(A58,tblIndicators!C$2:C$35,0)) -> 5 | C58: =IF($A58="","",INDEX(tblIndicators!$V$2:$V$35,$B58)) -> 1.3) Availability of research-based policy evaluation
A59: PHE_04 | B59: =IF(A59="","",MATCH(A59,tblIndicators!C$2:C$35,0)) -> 6 | C59: =IF($A59="","",INDEX(tblIndicators!$V$2:$V$35,$B59)) -> 1.4) Capacity to deliver palliative care
A60: HR_01 | B60: =IF(A60="","",MATCH(A60,tblIndicators!C$2:C$35,0)) -> 8 | C60: =IF($A60="","",INDEX(tblIndicators!$V$2:$V$35,$B60)) -> 2.1) Availability of specialised palliative care workers
A61: HR_02 | B61: =IF(A61="","",MATCH(A61,tblIndicators!C$2:C$35,0)) -> 9 | C61: =IF($A61="","",INDEX(tblIndicators!$V$2:$V$35,$B61)) -> 2.2) General medical knowledge of palliative care
A62: HR_03 | B62: =IF(A62="","",MATCH(A62,tblIndicators!C$2:C$35,0)) -> 10 | C62: =IF($A62="","",INDEX(tblIndicators!$V$2:$V$35,$B62)) -> 2.3) Certification for palliative care workers
A63: HR_04 | B63: =IF(A63="","",MATCH(A63,tblIndicators!C$2:C$35,0)) -> 11 | C63: =IF($A63="","",INDEX(tblIndicators!$V$2:$V$35,$B63)) -> 2.4) Number of doctors per 1,000 PC-related deaths
A64: HR_05 | B64: =IF(A64="","",MATCH(A64,tblIndicators!C$2:C$35,0)) -> 12 | C64: =IF($A64="","",INDEX(tblIndicators!$V$2:$V$35,$B64)) -> 2.5) Number of nurses per 1,000 PC-related deaths
A65: AOC_01 | B65: =IF(A65="","",MATCH(A65,tblIndicators!C$2:C$35,0)) -> 14 | C65: =IF($A65="","",INDEX(tblIndicators!$V$2:$V$35,$B65)) -> 3.1) Availability of public funding for palliative care
A66: AOC_02 | B66: =IF(A66="","",MATCH(A66,tblIndicators!C$2:C$35,0)) -> 15 | C66: =IF($A66="","",INDEX(tblIndicators!$V$2:$V$35,$B66)) -> 3.2) Financial burden to patients for available palliative care
A67: AOC_03 | B67: =IF(A67="","",MATCH(A67,tblIndicators!C$2:C$35,0)) -> 16 | C67: =IF($A67="","",INDEX(tblIndicators!$V$2:$V$35,$B67)) -> 3.3) National pension scheme coverage of palliative care services
A68: QOC_01 | B68: =IF(A68="","",MATCH(A68,tblIndicators!C$2:C$35,0)) -> 18 | C68: =IF($A68="","",INDEX(tblIndicators!$V$2:$V$35,$B68)) -> 4.1) Presence of monitoring standards for organisations
A69: QOC_02 | B69: =IF(A69="","",MATCH(A69,tblIndicators!C$2:C$35,0)) -> 19 | C69: =IF($A69="","",INDEX(tblIndicators!$V$2:$V$35,$B69)) -> 4.2) Availability of painkillers
A70: QOC_03 | B70: =IF(A70="","",MATCH(A70,tblIndicators!C$2:C$35,0)) -> 20 | C70: =IF($A70="","",INDEX(tblIndicators!$V$2:$V$35,$B70)) -> 4.3) Availability of psycho-socio support for patient and families
A71: QOC_04 | B71: =IF(A71="","",MATCH(A71,tblIndicators!C$2:C$35,0)) -> 21 | C71: =IF($A71="","",INDEX(tblIndicators!$V$2:$V$35,$B71)) -> 4.4) Presence of Do not resuscitate (DNR) policy
A72: QOC_05 | B72: =IF(A72="","",MATCH(A72,tblIndicators!C$2:C$35,0)) -> 22 | C72: =IF($A72="","",INDEX(tblIndicators!$V$2:$V$35,$B72)) -> 4.5) Shared decisionmaking
A73: QOC_06 | B73: =IF(A73="","",MATCH(A73,tblIndicators!C$2:C$35,0)) -> 23 | C73: =IF($A73="","",INDEX(tblIndicators!$V$2:$V$35,$B73)) -> 4.6) Use of patient satisfaction surveys
A74: CE_01 | B74: =IF(A74="","",MATCH(A74,tblIndicators!C$2:C$35,0)) -> 25 | C74: =IF($A74="","",INDEX(tblIndicators!$V$2:$V$35,$B74)) -> 5.1) Public awareness of palliative care
A75: CE_02 | B75: =IF(A75="","",MATCH(A75,tblIndicators!C$2:C$35,0)) -> 26 | C75: =IF($A75="","",INDEX(tblIndicators!$V$2:$V$35,$B75)) -> 5.2) Availability of volunteer workers for palliative care
A77: Country Compare Spider
A78: PHE | B78: =IF(A78="","",MATCH(A78,tblIndicators!C$2:C$35,0)) -> 2 | C78: =IF($A78="","",INDEX(tblIndicators!$V$2:$V$35,$B78)) -> 1) PALLIATIVE AND HEALTHCARE ENVIRONMENT | D78: =B92 -> 3 | E78: =C92 -> 1.1) Healthcare spending | F78: =B97 -> 8 | G78: =C97 -> 2.1) Availability of specialised palliative care workers | H78: =B103 -> 14 | I78: =C103 -> 3.1) Availability of public funding for palliative care | J78: =B107 -> 18 | K78: =C107 -> 4.1) Presence of monitoring standards for organisations | L78: =B114 -> 25 | M78: =C114 -> 5.1) Public awareness of palliative care
A79: HR | B79: =IF(A79="","",MATCH(A79,tblIndicators!C$2:C$35,0)) -> 7 | C79: =IF($A79="","",INDEX(tblIndicators!$V$2:$V$35,$B79)) -> 2) HUMAN RESOURCES | D79: =B93 -> 4 | E79: 1.2) Presence and effectiveness of government-led national palliative care strategy | F79: =B98 -> 9 | G79: 2.2) General medical knowledge of palliative care | H79: =B104 -> 15 | I79: 3.2) Financial burden to patients for available palliative care | J79: =B108 -> 19 | K79: 4.2) Availability of painkillers | L79: =B115 -> 26 | M79: =C115 -> 5.2) Availability of volunteer workers for palliative care
A80: AOC | B80: =IF(A80="","",MATCH(A80,tblIndicators!C$2:C$35,0)) -> 13 | C80: =IF($A80="","",INDEX(tblIndicators!$V$2:$V$35,$B80)) -> 3) AFFORDABILITY OF CARE | D80: =B94 -> 5 | E80: 1.3) Availability of research-based policy evaluation | F80: =B99 -> 10 | G80: 2.3) Certification for palliative care workers | H80: =B105 -> 16 | I80: 3.3) National pension scheme coverage of palliative care services | J80: =B109 -> 20 | K80: 4.3) Availability of psycho-socio support for patient and families
A81: QOC | B81: =IF(A81="","",MATCH(A81,tblIndicators!C$2:C$35,0)) -> 17 | C81: =IF($A81="","",INDEX(tblIndicators!$V$2:$V$35,$B81)) -> 4) QUALITY OF CARE | D81: =B95 -> 6 | E81: 1.4) Capacity to deliver palliative care | F81: =B100 -> 11 | G81: 2.4) Number of doctors per 1,000 PC-related deaths | J81: =B110 -> 21 | K81: 4.4) Presence of Do not resuscitate (DNR) policy
A82: CE | B82: =IF(A82="","",MATCH(A82,tblIndicators!C$2:C$35,0)) -> 24 | C82: =IF($A82="","",INDEX(tblIndicators!$V$2:$V$35,$B82)) -> 5) COMMUNITY ENGAGEMENT | F82: =B101 -> 12 | G82: 2.5) Number of nurses per 1,000 PC-related deaths | J82: =B111 -> 22 | K82: 4.5) Shared decisionmaking
J83: =B112 -> 23 | K83: 4.6) Use of patient satisfaction surveys
A88: Indicator Ranking selection box
A90: TOTAL | B90: =IF(A90="","",MATCH(A90,tblIndicators!C$2:C$43,0)) -> 1 | C90: =IF($A90="","",CONCATENATE(REPT(" ",2*D90),INDEX(tblIndicators!$V$2:$V$43,$B90))) -> SUPPLY ENVIRONMENT | D90: =IF($A90="","",INDEX(tblIndicators!$E$2:$E$43,$B90)) -> 0
A91: PHE | B91: =IF(A91="","",MATCH(A91,tblIndicators!C$2:C$43,0)) -> 2 | C91: =IF($A91="","",CONCATENATE(REPT(" ",2*D91),INDEX(tblIndicators!$V$2:$V$43,$B91))) -> 1) PALLIATIVE AND HEALTHCARE ENVIRONMENT | D91: =IF($A91="","",INDEX(tblIndicators!$E$2:$E$43,$B91)) -> 1
A92: PHE_01 | B92: =IF(A92="","",MATCH(A92,tblIndicators!C$2:C$43,0)) -> 3 | C92: =IF($A92="","",CONCATENATE(REPT(" ",2*D92),INDEX(tblIndicators!$V$2:$V$43,$B92))) -> 1.1) Healthcare spending | D92: =IF($A92="","",INDEX(tblIndicators!$E$2:$E$43,$B92)) -> 2
A93: PHE_02 | B93: =IF(A93="","",MATCH(A93,tblIndicators!C$2:C$43,0)) -> 4 | C93: =IF($A93="","",CONCATENATE(REPT(" ",2*D93),INDEX(tblIndicators!$V$2:$V$43,$B93))) -> 1.2) Presence and effectiveness of government-led national palliative care strategy | D93: =IF($A93="","",INDEX(tblIndicators!$E$2:$E$43,$B93)) -> 2
A94: PHE_03 | B94: =IF(A94="","",MATCH(A94,tblIndicators!C$2:C$43,0)) -> 5 | C94: =IF($A94="","",CONCATENATE(REPT(" ",2*D94),INDEX(tblIndicators!$V$2:$V$43,$B94))) -> 1.3) Availability of research-based policy evaluation | D94: =IF($A94="","",INDEX(tblIndicators!$E$2:$E$43,$B94)) -> 2
A95: PHE_04 | B95: =IF(A95="","",MATCH(A95,tblIndicators!C$2:C$43,0)) -> 6 | C95: =IF($A95="","",CONCATENATE(REPT(" ",2*D95),INDEX(tblIndicators!$V$2:$V$43,$B95))) -> 1.4) Capacity to deliver palliative care | D95: =IF($A95="","",INDEX(tblIndicators!$E$2:$E$43,$B95)) -> 2
A96: HR | B96: =IF(A96="","",MATCH(A96,tblIndicators!C$2:C$43,0)) -> 7 | C96: =IF($A96="","",CONCATENATE(REPT(" ",2*D96),INDEX(tblIndicators!$V$2:$V$43,$B96))) -> 2) HUMAN RESOURCES | D96: =IF($A96="","",INDEX(tblIndicators!$E$2:$E$43,$B96)) -> 1
A97: HR_01 | B97: =IF(A97="","",MATCH(A97,tblIndicators!C$2:C$43,0)) -> 8 | C97: =IF($A97="","",CONCATENATE(REPT(" ",2*D97),INDEX(tblIndicators!$V$2:$V$43,$B97))) -> 2.1) Availability of specialised palliative care workers | D97: =IF($A97="","",INDEX(tblIndicators!$E$2:$E$43,$B97)) -> 2
A98: HR_02 | B98: =IF(A98="","",MATCH(A98,tblIndicators!C$2:C$43,0)) -> 9 | C98: =IF($A98="","",CONCATENATE(REPT(" ",2*D98),INDEX(tblIndicators!$V$2:$V$43,$B98))) -> 2.2) General medical knowledge of palliative care | D98: =IF($A98="","",INDEX(tblIndicators!$E$2:$E$43,$B98)) -> 2
A99: HR_03 | B99: =IF(A99="","",MATCH(A99,tblIndicators!C$2:C$43,0)) -> 10 | C99: =IF($A99="","",CONCATENATE(REPT(" ",2*D99),INDEX(tblIndicators!$V$2:$V$43,$B99))) -> 2.3) Certification for palliative care workers | D99: =IF($A99="","",INDEX(tblIndicators!$E$2:$E$43,$B99)) -> 2
A100: HR_04 | B100: =IF(A100="","",MATCH(A100,tblIndicators!C$2:C$43,0)) -> 11 | C100: =IF($A100="","",CONCATENATE(REPT(" ",2*D100),INDEX(tblIndicators!$V$2:$V$43,$B100))) -> 2.4) Number of doctors per 1,000 PC-related deaths | D100: =IF($A100="","",INDEX(tblIndicators!$E$2:$E$43,$B100)) -> 2
A101: HR_05 | B101: =IF(A101="","",MATCH(A101,tblIndicators!C$2:C$43,0)) -> 12 | C101: =IF($A101="","",CONCATENATE(REPT(" ",2*D101),INDEX(tblIndicators!$V$2:$V$43,$B101))) -> 2.5) Number of nurses per 1,000 PC-related deaths | D101: =IF($A101="","",INDEX(tblIndicators!$E$2:$E$43,$B101)) -> 2
A102: AOC | B102: =IF(A102="","",MATCH(A102,tblIndicators!C$2:C$43,0)) -> 13 | C102: =IF($A102="","",CONCATENATE(REPT(" ",2*D102),INDEX(tblIndicators!$V$2:$V$43,$B102))) -> 3) AFFORDABILITY OF CARE | D102: =IF($A102="","",INDEX(tblIndicators!$E$2:$E$43,$B102)) -> 1
A103: AOC_01 | B103: =IF(A103="","",MATCH(A103,tblIndicators!C$2:C$43,0)) -> 14 | C103: =IF($A103="","",CONCATENATE(REPT(" ",2*D103),INDEX(tblIndicators!$V$2:$V$43,$B103))) -> 3.1) Availability of public funding for palliative care | D103: =IF($A103="","",INDEX(tblIndicators!$E$2:$E$43,$B103)) -> 2
A104: AOC_02 | B104: =IF(A104="","",MATCH(A104,tblIndicators!C$2:C$43,0)) -> 15 | C104: =IF($A104="","",CONCATENATE(REPT(" ",2*D104),INDEX(tblIndicators!$V$2:$V$43,$B104))) -> 3.2) Financial burden to patients for available palliative care | D104: =IF($A104="","",INDEX(tblIndicators!$E$2:$E$43,$B104)) -> 2
A105: AOC_03 | B105: =IF(A105="","",MATCH(A105,tblIndicators!C$2:C$43,0)) -> 16 | C105: =IF($A105="","",CONCATENATE(REPT(" ",2*D105),INDEX(tblIndicators!$V$2:$V$43,$B105))) -> 3.3) National pension scheme coverage of palliative care services | D105: =IF($A105="","",INDEX(tblIndicators!$E$2:$E$43,$B105)) -> 2
A106: QOC | B106: =IF(A106="","",MATCH(A106,tblIndicators!C$2:C$43,0)) -> 17 | C106: =IF($A106="","",CONCATENATE(REPT(" ",2*D106),INDEX(tblIndicators!$V$2:$V$43,$B106))) -> 4) QUALITY OF CARE | D106: =IF($A106="","",INDEX(tblIndicators!$E$2:$E$43,$B106)) -> 1
A107: QOC_01 | B107: =IF(A107="","",MATCH(A107,tblIndicators!C$2:C$43,0)) -> 18 | C107: =IF($A107="","",CONCATENATE(REPT(" ",2*D107),INDEX(tblIndicators!$V$2:$V$43,$B107))) -> 4.1) Presence of monitoring standards for organisations | D107: =IF($A107="","",INDEX(tblIndicators!$E$2:$E$43,$B107)) -> 2
A108: QOC_02 | B108: =IF(A108="","",MATCH(A108,tblIndicators!C$2:C$43,0)) -> 19 | C108: =IF($A108="","",CONCATENATE(REPT(" ",2*D108),INDEX(tblIndicators!$V$2:$V$43,$B108))) -> 4.2) Availability of painkillers | D108: =IF($A108="","",INDEX(tblIndicators!$E$2:$E$43,$B108)) -> 2
A109: QOC_03 | B109: =IF(A109="","",MATCH(A109,tblIndicators!C$2:C$43,0)) -> 20 | C109: =IF($A109="","",CONCATENATE(REPT(" ",2*D109),INDEX(tblIndicators!$V$2:$V$43,$B109))) -> 4.3) Availability of psycho-socio support for patient and families | D109: =IF($A109="","",INDEX(tblIndicators!$E$2:$E$43,$B109)) -> 2
A110: QOC_04 | B110: =IF(A110="","",MATCH(A110,tblIndicators!C$2:C$43,0)) -> 21 | C110: =IF($A110="","",CONCATENATE(REPT(" ",2*D110),INDEX(tblIndicators!$V$2:$V$43,$B110))) -> 4.4) Presence of Do not resuscitate (DNR) policy | D110: =IF($A110="","",INDEX(tblIndicators!$E$2:$E$43,$B110)) -> 2
A111: QOC_05 | B111: =IF(A111="","",MATCH(A111,tblIndicators!C$2:C$43,0)) -> 22 | C111: =IF($A111="","",CONCATENATE(REPT(" ",2*D111),INDEX(tblIndicators!$V$2:$V$43,$B111))) -> 4.5) Shared decisionmaking | D111: =IF($A111="","",INDEX(tblIndicators!$E$2:$E$43,$B111)) -> 2
A112: QOC_06 | B112: =IF(A112="","",MATCH(A112,tblIndicators!C$2:C$43,0)) -> 23 | C112: =IF($A112="","",CONCATENATE(REPT(" ",2*D112),INDEX(tblIndicators!$V$2:$V$43,$B112))) -> 4.6) Use of patient satisfaction surveys | D112: =IF($A112="","",INDEX(tblIndicators!$E$2:$E$43,$B112)) -> 2
A113: CE | B113: =IF(A113="","",MATCH(A113,tblIndicators!C$2:C$43,0)) -> 24 | C113: =IF($A113="","",CONCATENATE(REPT(" ",2*D113),INDEX(tblIndicators!$V$2:$V$43,$B113))) -> 5) COMMUNITY ENGAGEMENT | D113: =IF($A113="","",INDEX(tblIndicators!$E$2:$E$43,$B113)) -> 1
A114: CE_01 | B114: =IF(A114="","",MATCH(A114,tblIndicators!C$2:C$43,0)) -> 25 | C114: =IF($A114="","",CONCATENATE(REPT(" ",2*D114),INDEX(tblIndicators!$V$2:$V$43,$B114))) -> 5.1) Public awareness of palliative care | D114: =IF($A114="","",INDEX(tblIndicators!$E$2:$E$43,$B114)) -> 2
A115: CE_02 | B115: =IF(A115="","",MATCH(A115,tblIndicators!C$2:C$43,0)) -> 26 | C115: =IF($A115="","",CONCATENATE(REPT(" ",2*D115),INDEX(tblIndicators!$V$2:$V$43,$B115))) -> 5.2) Availability of volunteer workers for palliative care | D115: =IF($A115="","",INDEX(tblIndicators!$E$2:$E$43,$B115)) -> 2
A116: BG | B116: =IF(A116="","",MATCH(A116,tblIndicators!C$2:C$43,0)) -> 27 | C116: =IF($A116="","",CONCATENATE(REPT(" ",2*D116),INDEX(tblIndicators!$V$2:$V$43,$B116))) -> 6) BACKGROUND INFORMATION | D116: =IF($A116="","",INDEX(tblIndicators!$E$2:$E$43,$B116)) -> 1
A117: BG_01 | B117: =IF(A117="","",MATCH(A117,tblIndicators!C$2:C$43,0)) -> 28 | C117: =IF($A117="","",CONCATENATE(REPT(" ",2*D117),INDEX(tblIndicators!$V$2:$V$43,$B117))) -> 6.1) Total population | D117: =IF($A117="","",INDEX(tblIndicators!$E$2:$E$43,$B117)) -> 2
A118: BG_02 | B118: =IF(A118="","",MATCH(A118,tblIndicators!C$2:C$43,0)) -> 29 | C118: =IF($A118="","",CONCATENATE(REPT(" ",2*D118),INDEX(tblIndicators!$V$2:$V$43,$B118))) -> 6.2) GDP size | D118: =IF($A118="","",INDEX(tblIndicators!$E$2:$E$43,$B118)) -> 2
A119: BG_03 | B119: =IF(A119="","",MATCH(A119,tblIndicators!C$2:C$43,0)) -> 30 | C119: =IF($A119="","",CONCATENATE(REPT(" ",2*D119),INDEX(tblIndicators!$V$2:$V$43,$B119))) -> 6.3) Income per capita | D119: =IF($A119="","",INDEX(tblIndicators!$E$2:$E$43,$B119)) -> 2
A120: TN | B120: =IF(A120="","",MATCH(A120,tblIndicators!C$2:C$43,0)) -> 31 | C120: =IF($A120="","",CONCATENATE(REPT(" ",2*D120),INDEX(tblIndicators!$V$2:$V$43,$B120))) -> 7) DEMAND FOR PALLIATIVE CARE | D120: =IF($A120="","",INDEX(tblIndicators!$E$2:$E$43,$B120)) -> 1
A121: EP_01 | B121: =IF(A121="","",MATCH(A121,tblIndicators!C$2:C$43,0)) -> 32 | C121: =IF($A121="","",CONCATENATE(REPT(" ",2*D121),INDEX(tblIndicators!$V$2:$V$43,$B121))) -> 7.1.1) Burden of diseases | D121: =IF($A121="","",INDEX(tblIndicators!$E$2:$E$43,$B121)) -> 2
A122: EP_02 | B122: =IF(A122="","",MATCH(A122,tblIndicators!C$2:C$43,0)) -> 33 | C122: =IF($A122="","",CONCATENATE(REPT(" ",2*D122),INDEX(tblIndicators!$V$2:$V$43,$B122))) -> 7.1.2) Old age dependency ratio | D122: =IF($A122="","",INDEX(tblIndicators!$E$2:$E$43,$B122)) -> 2
A123: EP_03 | B123: =IF(A123="","",MATCH(A123,tblIndicators!C$2:C$43,0)) -> 34 | C123: =IF($A123="","",CONCATENATE(REPT(" ",2*D123),INDEX(tblIndicators!$V$2:$V$43,$B123))) -> 7.1.3) Speed of ageing | D123: =IF($A123="","",INDEX(tblIndicators!$E$2:$E$43,$B123)) -> 2

Sheet iMap_Rank (hidden)
B1: =uxbWorks!B19 -> 0 | C1: =uxbWorks!C19 -> Code | D1: =uxbWorks!D19 -> Parent | E1: =uxbWorks!E19 -> Level | F1: =uxbWorks!F19 -> Indicator | G1: =uxbWorks!G19 -> Unit | H1: =uxbWorks!H19 -> Source | I1: =uxbWorks!I19 -> Description | J1: =uxbWorks!J19 -> Scoring | K1: =uxbWorks!K19 -> Year | L1: =uxbWorks!L19 -> HighIs (0=Good,1=Bad) | M1: =uxbWorks!M19 -> NormalisationTypeID | N1: =uxbWorks!N19 -> MIN | O1: =uxbWorks!O19 -> DP | P1: =uxbWorks!P19 -> Format | Q1: =uxbWorks!Q19 -> WeightRow | R1: =uxbWorks!R19 -> Wnom | S1: =uxbWorks!S19 -> Wpercent | T1: =uxbWorks!T19 -> 0 | U1: =uxbWorks!U19 -> ISBG
A2: =uxbWorks!A20 -> INDI_ID | B2: =uxbWorks!B20 -> 1 | C2: =uxbWorks!C20 -> TOTAL | D2: =uxbWorks!D20 -> 0 | E2: =uxbWorks!E20 -> 0 | F2: =uxbWorks!F20 -> SUPPLY ENVIRONMENT | G2: =uxbWorks!G20 -> 0 - 100 where 100= best and 0=worst | H2: =uxbWorks!H20 -> Weighted sum of category scores. | I2: =uxbWorks!I20 -> This is the weighted sum of the following category scores: 1) Palliative and healthcare environment 2) Human resources 3) Affordability of care 4) Quality of care 5) Community engagement | J2: =uxbWorks!J20 -> Weighted sum of category scores. | K2: =uxbWorks!K20 -> NA | L2: =uxbWorks!L20 -> 0 | M2: =uxbWorks!M20 -> 1 | N2: =uxbWorks!N20 -> 0 | O2: =uxbWorks!O20 -> 0 | P2: =uxbWorks!P20 -> 0.0 | Q2: =uxbWorks!Q20 -> 0 | R2: =uxbWorks!R20 -> 0 | S2: =uxbWorks!S20 -> 0 | T2: =uxbWorks!T20 -> 0 | U2: =uxbWorks!U20 -> 0
A3: INDI_IS_NATIONAL | B3: =D2 -> 0 | U3: =U2+1 -> 1
R5: percentiles | S5: equal buckets
A6: SERIES_LEVEL | B6: 1 | O6: Fifths | Q6: 0 | R6: =IF($U$2=1,PERCENTILE(R$19:R$98,Q6),Q6*100) -> 0 | S6: =AB98 -> 12.5
A7: Rank_Order | B7: 0 | Q7: 0.2 | R7: =IF($U$2=1,PERCENTILE(R$19:R$98,Q7),Q7*100) -> 20 | S7: =AB82 -> 28.3 | T7: 1
A8: =uxbWorks!A45 -> 0 | B8: =uxbWorks!B45 -> 0 | Q8: 0.4 | R8: 40 | S8: =AB66 -> 37.2 | T8: 2
Q9: 0.6 | R9: 60 | S9: =AB50 -> 52.5 | T9: 3
Q10: 0.8 | R10: 80 | S10: =AB34 -> 75.4 | T10: 4
Q11: 1 | R11: 100 | S11: =AB19 -> 93.9 | T11: 5 | U11: =80/5 -> 16
A12: MAP_PIECE | B12: =INDEX(uxb_regions!I2:I82,uxbWorks!B7) -> 0 | C12: =IF(B12=0,"No country highlight selected",uxbWorks!C7) -> No country highlight selected
C13: =IF(B12=0,"",VLOOKUP(C12,C19:G98,5,FALSE)) ->  | S13: =PERCENTILE(R$19:R$98,Q11) -> 93.9
A17: SHOW_DATA | B17: =IF(OR(P2=1,AC2=0),FALSE,TRUE) -> FALSE | D17: =uxbWorks!A6 -> 0 | E17: =uxbWorks!B6 -> 57 | F17: =uxbWorks!C6 -> plus none | G17: =INDEX(tblCountries!L2:L182,iMap_Rank!E17) -> 1 | H17: =IF(G17=0,"",CONCATENATE(F17," is a Tier ",G17," country")) -> plus none is a Tier 1 country | I17: All Tiers | J17: =uxbWorks!B8 -> 0 | T17: ALL UNFILTERED DATA POINTS | V17: Country Highlight | W17: Country Filter | AF17: REGION HIGHLIGHT DATAPOINTS | AI17: COUNTRY HIGHLIGHT | AL17: All Tiers
D18: IsRegion | E18: Status | F18: ActiveStatus | G18: Score (unrounded) | H18: Rank unrounded | I18: LU | J18: yScatter | K18: RankRounded | O18: Score | P18: Score Display | Q18: =IF($B$17,"Data","") ->  | R18: Map Display | T18: X | U18: Y | AD18: HAS_SUB_INDICATORS | AP18: Tier Filter
A19: =tblCountries!A3 -> 1 | B19: =tblCountries!B3 -> AL | C19: =tblCountries!C3 -> Argentina | D19: =tblCountries!D3 -> 1 | E19: =IF(AND(OR(tblCountries!$K$5=4,tblCountries!$K$5=5),$E$2=3),0,IF(AND(OR(tblCountries!$K$5=2,tblCountries!$K$5=3),$E$2=3),tblCountries!G3,IF(AND($E$2=3,tblCountries!$K$5=1),AE19,tblCountries!G3))) -> 0 | F19: =tblCountries!F3 -> 1 | G19: =IF(F19=0,"",IF($U$2=0,ROUND(INDEX(aRoundedScores,$B$2,$A19),5),INDEX(aData,$B$2,$A19))) -> 52.5 | H19: =IF(F19=0,"",RANK(G19,G$19:G$98,$B$7)+COUNTIF(G$19:G19,G19)-1) -> 32 | I19: =IF(ISERROR(MATCH($A19,H$19:H$98,0)),"",MATCH($A19,H$19:H$98,0)) -> 74 | J19: =IF(I19="","",1) -> 1 | K19: =IF(I19="","",RANK(O19,O$19:O$98,$B$7)) -> 1 | L19: =IF(I19="",0,INDEX($F$19:$F$98,I19)) -> 1 | M19: =IF(I19="","",IF(OR(K19=K18,K19=K20),CONCATENATE("=",K19),K19)) -> 1 | N19: =IF(I19="","",INDEX($C$19:$C$98,I19)) -> United Kingdom | O19: =IF(I19="","",IF($U$2=0,INDEX(aRoundedScores,$B$2,I19),INDEX(aData,$B$2,I19))) -> 93.9 | P19: =IF(L19=0,"",IF(OR($C$2=1,$B$2=27),"-",O19)) -> 93.9 | Q19: =IF($B$2=27,"",IF(ISNA(VLOOKUP(N19,uxb_regions!$C$3:$I$82,7,FALSE)),"",VLOOKUP(N19,uxb_regions!$C$3:$I$82,7,FALSE))) -> GBR | R19: =IF(L19=0,"",O19) -> 93.9 | S19: =IF($B$2=27,"",IF(Q19="","",CHOOSE($U$3,IF(R19<R$7,1,IF(R19<R$8,2,IF(R19<R$9,3,IF(R19<R$10,4,IF(R19<=R$11,5,6))))),IF(R19<S$7,1,IF(R19<S$8,2,IF(R19<S$9,3,IF(R19<S$10,4,IF(R19<=S$11,5,6)))))))) -> 5 | T19: =IF(ISNUMBER(O19),O19,NA()) -> 93.9 | U19: =1 -> 1 | V19: =IF(ISNA(INDEX($F$19:$F$98,MATCH(N19,$C$19:$C$98,0))),0,INDEX($F$19:$F$98,MATCH(N19,$C$19:$C$98,0))) -> 1 | W19: =IF(V19<>1,Q19,0) -> 0 | X19: =IF(ISNA(V19),"",Q19) -> GBR | Y19: =IF(L19=2,T19,NA()) ->  | Z19: =IF(L19=2,1,NA()) ->  | AB19: =LARGE($R$19:$R$98,ROW(R1)-ROW($R$1)+1) -> 93.9 | AD19: 0 | AE19: =IF(AD19=1,tblCountries!G3,0) -> 0 | AF19: =IF(L19=2,T19,NA()) ->  | AG19: =IF(L19=2,1,NA()) ->  | AI19: =IF(L19=3,T19,NA()) ->  | AJ19: =IF(L19=3,1,NA()) ->  | AL19: =VLOOKUP(C19,tblCountries!$F$3:$L$182,7,FALSE)+10 ->  | AM19: =tblCountries!L3 -> 1 | AN19: =IF($G$2=3,IF(OR(AM19=3,AM19=4),0,1),1) -> 1 | AP19: =CHOOSE(uxbWorks!$B$10,tblCountries!Q3,tblCountries!#REF!,tblCountries!R3,tblCountries!S3,tblCountries!T3) -> 0
A20: =tblCountries!A4 -> 2 | B20: =tblCountries!B4 -> AU | C20: =tblCountries!C4 -> Australia | D20: =tblCountries!D4 -> 1 | E20: =IF(AND(OR(tblCountries!$K$5=4,tblCountries!$K$5=5),$E$2=3),0,IF(AND(OR(tblCountries!$K$5=2,tblCountries!$K$5=3),$E$2=3),tblCountries!G4,IF(AND($E$2=3,tblCountries!$K$5=1),AE20,tblCountries!G4))) -> 0 | F20: =tblCountries!F4 -> 1 | G20: 91.6 | H20: =IF(F20=0,"",RANK(G20,G$19:G$98,$B$7)+COUNTIF(G$19:G20,G20)-1) -> 2 | I20: 2 | J20: =IF(I20="","",1) -> 1 | K20: 2 | L20: 1 | M20: =IF(I20="","",IF(OR(K20=K19,K20=K21),CONCATENATE("=",K20),K20)) -> 2 | N20: Australia | O20: 91.6 | P20: =IF(L20=0,"",IF(OR($C$2=1,$B$2=27),"-",O20)) -> 91.6 | Q20: =IF($B$2=27,"",IF(ISNA(VLOOKUP(N20,uxb_regions!$C$3:$I$82,7,FALSE)),"",VLOOKUP(N20,uxb_regions!$C$3:$I$82,7,FALSE))) -> AUS | R20: =IF(L20=0,"",O20) -> 91.6 | S20: 5 | T20: =IF(ISNUMBER(O20),O20,NA()) -> 91.6 | U20: =1 -> 1 | V20: 1 | W20: =IF(V20<>1,Q20,0) -> 0 | X20: =IF(ISNA(V20),"",Q20) -> AUS | Y20: =IF(L20=2,T20,NA()) ->  | Z20: =IF(L20=2,1,NA()) ->  | AB20: =LARGE($R$19:$R$98,ROW(R2)-ROW($R$1)+1) -> 91.6 | AD20: 0 | AE20: =IF(AD20=1,tblCountries!G4,0) -> 0 | AG20: =IF(L20=2,1,NA()) ->  | AJ20: =IF(L20=3,1,NA()) ->  | AL20: =VLOOKUP(C20,tblCountries!$F$3:$L$182,7,FALSE)+10 ->  | AM20: =tblCountries!L4 -> 1 | AN20: =IF($G$2=3,IF(OR(AM20=3,AM20=4),0,1),1) -> 1 | AP20: =CHOOSE(uxbWorks!$B$10,tblCountries!Q4,tblCountries!#REF!,tblCountries!R4,tblCountries!S4,tblCountries!T4) -> 1
A21: =tblCountries!A5 -> 3 | B21: =tblCountries!B5 -> AT | C21: =tblCountries!C5 -> Austria | D21: =tblCountries!D5 -> 1 | E21: =IF(AND(OR(tblCountries!$K$5=4,tblCountries!$K$5=5),$E$2=3),0,IF(AND(OR(tblCountries!$K$5=2,tblCountries!$K$5=3),$E$2=3),tblCountries!G5,IF(AND($E$2=3,tblCountries!$K$5=1),AE21,tblCountries!G5))) -> 0 | F21: =tblCountries!F5 -> 1 | G21: 74.8 | H21: =IF(F21=0,"",RANK(G21,G$19:G$98,$B$7)+COUNTIF(G$19:G21,G21)-1) -> 17 | I21: 48 | J21: 1 | K21: 3 | L21: 1 | M21: 3 | N21: New Zealand | O21: 87.6 | P21: 87.6 | Q21: =IF($B$2=27,"",IF(ISNA(VLOOKUP(N21,uxb_regions!$C$3:$I$82,7,FALSE)),"",VLOOKUP(N21,uxb_regions!$C$3:$I$82,7,FALSE))) -> NZL | R21: 87.6 | S21: 5 | T21: 87.6 | U21: =1 -> 1 | V21: 1 | W21: 0 | X21: NZL | Y21: =IF(L21=2,T21,NA()) ->  | AB21: 87.6 | AD21: 0 | AE21: =IF(AD21=1,tblCountries!G5,0) -> 0 | AL21: =VLOOKUP(C21,tblCountries!$F$3:$L$182,7,FALSE)+10 ->  | AM21: =tblCountries!L5 -> 1 | AN21: 1 | AP21: =CHOOSE(uxbWorks!$B$10,tblCountries!Q5,tblCountries!#REF!,tblCountries!R5,tblCountries!S5,tblCountries!T5) -> 0
A22: =tblCountries!A6 -> 4 | B22: =tblCountries!B6 -> BD | C22: =tblCountries!C6 -> Bangladesh | D22: =tblCountries!D6 -> 1 | E22: =IF(AND(OR(tblCountries!$K$5=4,tblCountries!$K$5=5),$E$2=3),0,IF(AND(OR(tblCountries!$K$5=2,tblCountries!$K$5=3),$E$2=3),tblCountries!G6,IF(AND($E$2=3,tblCountries!$K$5=1),AE22,tblCountries!G6))) -> 0 | F22: =tblCountries!F6 -> 1 | G22: 14.1 | H22: =IF(F22=0,"",RANK(G22,G$19:G$98,$B$7)+COUNTIF(G$19:G22,G22)-1) -> 79 | I22: 33 | J22: 1 | K22: 4 | L22: 1 | M22: 4 | N22: Ireland | O22: 85.8 | P22: 85.8 | Q22: =IF($B$2=27,"",IF(ISNA(VLOOKUP(N22,uxb_regions!$C$3:$I$82,7,FALSE)),"",VLOOKUP(N22,uxb_regions!$C$3:$I$82,7,FALSE))) -> IRL | R22: 85.8 | S22: 5 | T22: 85.8 | U22: =1 -> 1 | V22: 1 | W22: 0 | X22: IRL | AB22: 85.8 | AD22: 0 | AE22: =IF(AD22=1,tblCountries!G6,0) -> 0 | AL22: =VLOOKUP(C22,tblCountries!$F$3:$L$182,7,FALSE)+10 ->  | AM22: =tblCountries!L6 -> 1 | AN22: 1 | AP22: =CHOOSE(uxbWorks!$B$10,tblCountries!Q6,tblCountries!#REF!,tblCountries!R6,tblCountries!S6,tblCountries!T6) -> 1
A23: =tblCountries!A7 -> 5 | B23: =tblCountries!B7 -> BE | C23: =tblCountries!C7 -> Belgium | D23: =tblCountries!D7 -> 1 | E23: =IF(AND(OR(tblCountries!$K$5=4,tblCountries!$K$5=5),$E$2=3),0,IF(AND(OR(tblCountries!$K$5=2,tblCountries!$K$5=3),$E$2=3),tblCountries!G7,IF(AND($E$2=3,tblCountries!$K$5=1),AE23,tblCountries!G7))) -> 0 | F23: =tblCountries!F7 -> 1 | G23: 84.5 | H23: =IF(F23=0,"",RANK(G23,G$19:G$98,$B$7)+COUNTIF(G$19:G23,G23)-1) -> 5 | I23: 5 | J23: 1 | K23: 5 | L23: 1 | M23: 5 | N23: Belgium | O23: 84.5 | P23: 84.5 | Q23: =IF($B$2=27,"",IF(ISNA(VLOOKUP(N23,uxb_regions!$C$3:$I$82,7,FALSE)),"",VLOOKUP(N23,uxb_regions!$C$3:$I$82,7,FALSE))) -> BEL | R23: 84.5 | S23: 5 | T23: 84.5 | U23: =1 -> 1 | V23: 1 | W23: 0 | X23: BEL | AB23: 84.5 | AD23: 1 | AE23: =IF(AD23=1,tblCountries!G7,0) -> 0 | AL23: =VLOOKUP(C23,tblCountries!$F$3:$L$182,7,FALSE)+10 ->  | AM23: =tblCountries!L7 -> 1 | AN23: 1 | AP23: =CHOOSE(uxbWorks!$B$10,tblCountries!Q7,tblCountries!#REF!,tblCountries!R7,tblCountries!S7,tblCountries!T7) -> 0
A24: =tblCountries!A8 -> 6 | B24: =tblCountries!B8 -> BW | C24: =tblCountries!C8 -> Botswana | D24: =tblCountries!D8 -> 1 | E24: =IF(AND(OR(tblCountries!$K$5=4,tblCountries!$K$5=5),$E$2=3),0,IF(AND(OR(tblCountries!$K$5=2,tblCountries!$K$5=3),$E$2=3),tblCountries!G8,IF(AND($E$2=3,tblCountries!$K$5=1),AE24,tblCountries!G8))) -> 0 | F24: =tblCountries!F8 -> 1 | G24: 22.8 | H24: =IF(F24=0,"",RANK(G24,G$19:G$98,$B$7)+COUNTIF(G$19:G24,G24)-1) -> 72 | I24: 68 | J24: 1 | K24: 6 | L24: 1 | M24: 6 | N24: Taiwan | O24: 83.1 | P24: 83.1 | Q24: =IF($B$2=27,"",IF(ISNA(VLOOKUP(N24,uxb_regions!$C$3:$I$82,7,FALSE)),"",VLOOKUP(N24,uxb_regions!$C$3:$I$82,7,FALSE))) -> TWN | R24: 83.1 | S24: 5 | T24: 83.1 | U24: =1 -> 1 | V24: 1 | W24: 0 | X24: TWN | AB24: 83.1 | AD24: 0 | AE24: =IF(AD24=1,tblCountries!G8,0) -> 0 | AL24: =VLOOKUP(C24,tblCountries!$F$3:$L$182,7,FALSE)+10 ->  | AM24: =tblCountries!L8 -> 1 | AN24: 1 | AP24: =CHOOSE(uxbWorks!$B$10,tblCountries!Q8,tblCountries!#REF!,tblCountries!R8,tblCountries!S8,tblCountries!T8) -> 0
A25: =tblCountries!A9 -> 7 | B25: =tblCountries!B9 -> BR | C25: =tblCountries!C9 -> Brazil | D25: =tblCountries!D9 -> 1 | E25: =IF(AND(OR(tblCountries!$K$5=4,tblCountries!$K$5=5),$E$2=3),0,IF(AND(OR(tblCountries!$K$5=2,tblCountries!$K$5=3),$E$2=3),tblCountries!G9,IF(AND($E$2=3,tblCountries!$K$5=1),AE25,tblCountries!G9))) -> 0 | F25: =tblCountries!F9 -> 1 | G25: 42.5 | H25: =IF(F25=0,"",RANK(G25,G$19:G$98,$B$7)+COUNTIF(G$19:G25,G25)-1) -> 42 | I25: 23 | J25: 1 | K25: 7 | L25: 1 | M25: 7 | N25: Germany | O25: 82 | P25: 82 | Q25: =IF($B$2=27,"",IF(ISNA(VLOOKUP(N25,uxb_regions!$C$3:$I$82,7,FALSE)),"",VLOOKUP(N25,uxb_regions!$C$3:$I$82,7,FALSE))) -> DEU | R25: 82 | S25: 5 | T25: 82 | U25: =1 -> 1 | V25: 1 | W25: 0 | X25: DEU | AB25: 82 | AD25: 0 | AE25: =IF(AD25=1,tblCountries!G9,0) -> 0 | AL25: =VLOOKUP(C25,tblCountries!$F$3:$L$182,7,FALSE)+10 ->  | AM25: =tblCountries!L9 -> 1 | AN25: 1 | AP25: =CHOOSE(uxbWorks!$B$10,tblCountries!Q9,tblCountries!#REF!,tblCountries!R9,tblCountries!S9,tblCountries!T9) -> 0
A26: =tblCountries!A10 -> 8 | B26: =tblCountries!B10 -> BG | C26: =tblCountries!C10 -> Bulgaria | D26: =tblCountries!D10 -> 1 | E26: =IF(AND(OR(tblCountries!$K$5=4,tblCountries!$K$5=5),$E$2=3),0,IF(AND(OR(tblCountries!$K$5=2,tblCountries!$K$5=3),$E$2=3),tblCountries!G10,IF(AND($E$2=3,tblCountries!$K$5=1),AE26,tblCountries!G10))) -> 0 | F26: =tblCountries!F10 -> 1 | G26: 30.1 | H26: =IF(F26=0,"",RANK(G26,G$19:G$98,$B$7)+COUNTIF(G$19:G26,G26)-1) -> 62 | I26: 47 | J26: 1 | K26: 8 | L26: 1 | M26: 8 | N26: Netherlands | O26: 80.9 | P26: 80.9 | Q26: =IF($B$2=27,"",IF(ISNA(VLOOKUP(N26,uxb_regions!$C$3:$I$82,7,FALSE)),"",VLOOKUP(N26,uxb_regions!$C$3:$I$82,7,FALSE))) -> NLD | R26: 80.9 | S26: 5 | T26: 80.9 | U26: =1 -> 1 | V26: 1 | W26: 0 | X26: NLD | AB26: 80.9 | AD26: 1 | AE26: =IF(AD26=1,tblCountries!G10,0) -> 0 | AL26: =VLOOKUP(C26,tblCountries!$F$3:$L$182,7,FALSE)+10 ->  | AM26: =tblCountries!L10 -> 1 | AN26: 1 | AP26: =CHOOSE(uxbWorks!$B$10,tblCountries!Q10,tblCountries!#REF!,tblCountries!R10,tblCountries!S10,tblCountries!T10) -> 0
A27: =tblCountries!A11 -> 9 | B27: =tblCountries!B11 -> CA | C27: =tblCountries!C11 -> Canada | D27: =tblCountries!D11 -> 1 | E27: =IF(AND(OR(tblCountries!$K$5=4,tblCountries!$K$5=5),$E$2=3),0,IF(AND(OR(tblCountries!$K$5=2,tblCountries!$K$5=3),$E$2=3),tblCountries!G11,IF(AND($E$2=3,tblCountries!$K$5=1),AE27,tblCountries!G11))) -> 0 | F27: =tblCountries!F11 -> 1 | G27: 77.8 | H27: =IF(F27=0,"",RANK(G27,G$19:G$98,$B$7)+COUNTIF(G$19:G27,G27)-1) -> 11 | I27: 75 | J27: 1 | K27: 9 | L27: 1 | M27: 9 | N27: United States of America | O27: 80.8 | P27: 80.8 | Q27: =IF($B$2=27,"",IF(ISNA(VLOOKUP(N27,uxb_regions!$C$3:$I$82,7,FALSE)),"",VLOOKUP(N27,uxb_regions!$C$3:$I$82,7,FALSE))) -> USA | R27: 80.8 | S27: 5 | T27: 80.8 | U27: =1 -> 1 | V27: 1 | W27: 0 | X27: USA | AB27: 80.8 | AD27: 0 | AE27: =IF(AD27=1,tblCountries!G11,0) -> 0 | AL27: =VLOOKUP(C27,tblCountries!$F$3:$L$182,7,FALSE)+10 ->  | AM27: =tblCountries!L11 -> 1 | AN27: 1 | AP27: =CHOOSE(uxbWorks!$B$10,tblCountries!Q11,tblCountries!#REF!,tblCountries!R11,tblCountries!S11,tblCountries!T11) -> 0
A28: =tblCountries!A12 -> 10 | B28: =tblCountries!B12 -> CL | C28: =tblCountries!C12 -> Chile | D28: =tblCountries!D12 -> 1 | E28: =IF(AND(OR(tblCountries!$K$5=4,tblCountries!$K$5=5),$E$2=3),0,IF(AND(OR(tblCountries!$K$5=2,tblCountries!$K$5=3),$E$2=3),tblCountries!G12,IF(AND($E$2=3,tblCountries!$K$5=1),AE28,tblCountries!G12))) -> 0 | F28: =tblCountries!F12 -> 1 | G28: 58.6 | H28: =IF(F28=0,"",RANK(G28,G$19:G$98,$B$7)+COUNTIF(G$19:G28,G28)-1) -> 27 | I28: 22 | J28: 1 | K28: 10 | L28: 1 | M28: 10 | N28: France | O28: 79.4 | P28: 79.4 | Q28: =IF($B$2=27,"",IF(ISNA(VLOOKUP(N28,uxb_regions!$C$3:$I$82,7,FALSE)),"",VLOOKUP(N28,uxb_regions!$C$3:$I$82,7,FALSE))) -> FRA | R28: 79.4 | S28: 4 | T28: 79.4 | U28: =1 -> 1 | V28: 1 | W28: 0 | X28: FRA | AB28: 79.4 | AD28: 0 | AE28: =IF(AD28=1,tblCountries!G12,0) -> 0 | AL28: =VLOOKUP(C28,tblCountries!$F$3:$L$182,7,FALSE)+10 ->  | AM28: =tblCountries!L12 -> 1 | AN28: 1 | AP28: =CHOOSE(uxbWorks!$B$10,tblCountries!Q12,tblCountries!#REF!,tblCountries!R12,tblCountries!S12,tblCountries!T12) -> 0
A29: =tblCountries!A13 -> 11 | B29: =tblCountries!B13 -> CN | C29: =tblCountries!C13 -> China | D29: =tblCountries!D13 -> 1 | E29: =IF(AND(OR(tblCountries!$K$5=4,tblCountries!$K$5=5),$E$2=3),0,IF(AND(OR(tblCountries!$K$5=2,tblCountries!$K$5=3),$E$2=3),tblCountries!G13,IF(AND($E$2=3,tblCountries!$K$5=1),AE29,tblCountries!G13))) -> 0 | F29: =tblCountries!F13 -> 1 | G29: 23.3 | H29: =IF(F29=0,"",RANK(G29,G$19:G$98,$B$7)+COUNTIF(G$19:G29,G29)-1) -> 71 | I29: 9 | J29: 1 | K29: 11 | L29: 1 | M29: 11 | N29: Canada | O29: 77.8 | P29: 77.8 | Q29: =IF($B$2=27,"",IF(ISNA(VLOOKUP(N29,uxb_regions!$C$3:$I$82,7,FALSE)),"",VLOOKUP(N29,uxb_regions!$C$3:$I$82,7,FALSE))) -> CAN | R29: 77.8 | S29: 4 | T29: 77.8 | U29: =1 -> 1 | V29: 1 | W29: 0 | X29: CAN | AB29: 77.8 | AD29: 0 | AE29: =IF(AD29=1,tblCountries!G13,0) -> 0 | AL29: =VLOOKUP(C29,tblCountries!$F$3:$L$182,7,FALSE)+10 ->  | AM29: =tblCountries!L13 -> 1 | AN29: 1 | AP29: =CHOOSE(uxbWorks!$B$10,tblCountries!Q13,tblCountries!#REF!,tblCountries!R13,tblCountries!S13,tblCountries!T13) -> 1
A30: =tblCountries!A14 -> 12 | B30: =tblCountries!B14 -> CO | C30: =tblCountries!C14 -> Colombia | D30: =tblCountries!D14 -> 1 | E30: =IF(AND(OR(tblCountries!$K$5=4,tblCountries!$K$5=5),$E$2=3),0,IF(AND(OR(tblCountries!$K$5=2,tblCountries!$K$5=3),$E$2=3),tblCountries!G14,IF(AND($E$2=3,tblCountries!$K$5=1),AE30,tblCountries!G14))) -> 0 | F30: =tblCountries!F14 -> 1 | G30: 26.7 | H30: =IF(F30=0,"",RANK(G30,G$19:G$98,$B$7)+COUNTIF(G$19:G30,G30)-1) -> 68 | I30: 60 | J30: 1 | K30: 12 | L30: 1 | M30: 12 | N30: Singapore | O30: 77.6 | P30: 77.6 | Q30: =IF($B$2=27,"",IF(ISNA(VLOOKUP(N30,uxb_regions!$C$3:$I$82,7,FALSE)),"",VLOOKUP(N30,uxb_regions!$C$3:$I$82,7,FALSE))) -> SGP | R30: 77.6 | S30: 4 | T30: 77.6 | U30: =1 -> 1 | V30: 1 | W30: 0 | X30: SGP | AB30: 77.6 | AD30: 0 | AE30: =IF(AD30=1,tblCountries!G14,0) -> 0 | AL30: =VLOOKUP(C30,tblCountries!$F$3:$L$182,7,FALSE)+10 ->  | AM30: =tblCountries!L14 -> 1 | AN30: 1 | AP30: =CHOOSE(uxbWorks!$B$10,tblCountries!Q14,tblCountries!#REF!,tblCountries!R14,tblCountries!S14,tblCountries!T14) -> 0
A31: =tblCountries!A15 -> 13 | B31: =tblCountries!B15 -> CR | C31: =tblCountries!C15 -> Costa Rica | D31: =tblCountries!D15 -> 1 | E31: =IF(AND(OR(tblCountries!$K$5=4,tblCountries!$K$5=5),$E$2=3),0,IF(AND(OR(tblCountries!$K$5=2,tblCountries!$K$5=3),$E$2=3),tblCountries!G15,IF(AND($E$2=3,tblCountries!$K$5=1),AE31,tblCountries!G15))) -> 0 | F31: =tblCountries!F15 -> 1 | G31: 57.3 | H31: =IF(F31=0,"",RANK(G31,G$19:G$98,$B$7)+COUNTIF(G$19:G31,G31)-1) -> 29 | I31: 50 | J31: 1 | K31: 13 | L31: 1 | M31: 13 | N31: Norway | O31: 77.4 | P31: 77.4 | Q31: =IF($B$2=27,"",IF(ISNA(VLOOKUP(N31,uxb_regions!$C$3:$I$82,7,FALSE)),"",VLOOKUP(N31,uxb_regions!$C$3:$I$82,7,FALSE))) -> NOR | R31: 77.4 | S31: 4 | T31: 77.4 | U31: =1 -> 1 | V31: 1 | W31: 0 | X31: NOR | AB31: 77.4 | AD31: 0 | AE31: =IF(AD31=1,tblCountries!G15,0) -> 0 | AL31: =VLOOKUP(C31,tblCountries!$F$3:$L$182,7,FALSE)+10 ->  | AM31: =tblCountries!L15 -> 1 | AN31: 1 | AP31: =CHOOSE(uxbWorks!$B$10,tblCountries!Q15,tblCountries!#REF!,tblCountries!R15,tblCountries!S15,tblCountries!T15) -> 0
A32: =tblCountries!A16 -> 14 | B32: =tblCountries!B16 -> CU | C32: =tblCountries!C16 -> Cuba | D32: =tblCountries!D16 -> 1 | E32: =IF(AND(OR(tblCountries!$K$5=4,tblCountries!$K$5=5),$E$2=3),0,IF(AND(OR(tblCountries!$K$5=2,tblCountries!$K$5=3),$E$2=3),tblCountries!G16,IF(AND($E$2=3,tblCountries!$K$5=1),AE32,tblCountries!G16))) -> 0 | F32: =tblCountries!F16 -> 1 | G32: 46.8 | H32: =IF(F32=0,"",RANK(G32,G$19:G$98,$B$7)+COUNTIF(G$19:G32,G32)-1) -> 36 | I32: 36 | J32: 1 | K32: 14 | L32: 1 | M32: 14 | N32: Japan | O32: 76.3 | P32: 76.3 | Q32: =IF($B$2=27,"",IF(ISNA(VLOOKUP(N32,uxb_regions!$C$3:$I$82,7,FALSE)),"",VLOOKUP(N32,uxb_regions!$C$3:$I$82,7,FALSE))) -> JPN | R32: 76.3 | S32: 4 | T32: 76.3 | U32: =1 -> 1 | V32: 1 | W32: 0 | X32: JPN | AB32: 76.3 | AD32: 0 | AE32: =IF(AD32=1,tblCountries!G16,0) -> 0 | AL32: =VLOOKUP(C32,tblCountries!$F$3:$L$182,7,FALSE)+10 ->  | AM32: =tblCountries!L16 -> 1 | AN32: 1 | AP32: =CHOOSE(uxbWorks!$B$10,tblCountries!Q16,tblCountries!#REF!,tblCountries!R16,tblCountries!S16,tblCountries!T16) -> 0
A33: =tblCountries!A17 -> 15 | B33: =tblCountries!B17 -> CZ | C33: =tblCountries!C17 -> Czech Republic | D33: =tblCountries!D17 -> 1 | E33: =IF(AND(OR(tblCountries!$K$5=4,tblCountries!$K$5=5),$E$2=3),0,IF(AND(OR(tblCountries!$K$5=2,tblCountries!$K$5=3),$E$2=3),tblCountries!G17,IF(AND($E$2=3,tblCountries!$K$5=1),AE33,tblCountries!G17))) -> 0 | F33: =tblCountries!F17 -> 1 | G33: 51.8 | H33: =IF(F33=0,"",RANK(G33,G$19:G$98,$B$7)+COUNTIF(G$19:G33,G33)-1) -> 33 | I33: 67 | J33: 1 | K33: 15 | L33: 1 | M33: 15 | N33: Switzerland | O33: 76.1 | P33: 76.1 | Q33: =IF($B$2=27,"",IF(ISNA(VLOOKUP(N33,uxb_regions!$C$3:$I$82,7,FALSE)),"",VLOOKUP(N33,uxb_regions!$C$3:$I$82,7,FALSE))) -> CHE | R33: 76.1 | S33: 4 | T33: 76.1 | U33: =1 -> 1 | V33: 1 | W33: 0 | X33: CHE | AB33: 76.1 | AD33: 0 | AE33: =IF(AD33=1,tblCountries!G17,0) -> 0 | AL33: =VLOOKUP(C33,tblCountries!$F$3:$L$182,7,FALSE)+10 ->  | AM33: =tblCountries!L17 -> 1 | AN33: 1 | AP33: =CHOOSE(uxbWorks!$B$10,tblCountries!Q17,tblCountries!#REF!,tblCountries!R17,tblCountries!S17,tblCountries!T17) -> 0
A34: =tblCountries!A18 -> 16 | B34: =tblCountries!B18 -> DK | C34: =tblCountries!C18 -> Denmark | D34: =tblCountries!D18 -> 1 | E34: =IF(AND(OR(tblCountries!$K$5=4,tblCountries!$K$5=5),$E$2=3),0,IF(AND(OR(tblCountries!$K$5=2,tblCountries!$K$5=3),$E$2=3),tblCountries!G18,IF(AND($E$2=3,tblCountries!$K$5=1),AE34,tblCountries!G18))) -> 0 | F34: =tblCountries!F18 -> 1 | G34: 73.5 | H34: =IF(F34=0,"",RANK(G34,G$19:G$98,$B$7)+COUNTIF(G$19:G34,G34)-1) -> 19 | I34: 66 | J34: 1 | K34: 16 | L34: 1 | M34: 16 | N34: Sweden | O34: 75.4 | P34: 75.4 | Q34: =IF($B$2=27,"",IF(ISNA(VLOOKUP(N34,uxb_regions!$C$3:$I$82,7,FALSE)),"",VLOOKUP(N34,uxb_regions!$C$3:$I$82,7,FALSE))) -> SWE | R34: 75.4 | S34: 4 | T34: 75.4 | U34: =1 -> 1 | V34: 1 | W34: 0 | X34: SWE | AB34: 75.4 | AD34: 0 | AE34: =IF(AD34=1,tblCountries!G18,0) -> 0 | AL34: =VLOOKUP(C34,tblCountries!$F$3:$L$182,7,FALSE)+10 ->  | AM34: =tblCountries!L18 -> 1 | AN34: 1 | AP34: =CHOOSE(uxbWorks!$B$10,tblCountries!Q18,tblCountries!#REF!,tblCountries!R18,tblCountries!S18,tblCountries!T18) -> 0
A35: =tblCountries!A19 -> 17 | B35: =tblCountries!B19 -> DO | C35: =tblCountries!C19 -> Dominican Republic | D35: =tblCountries!D19 -> 1 | E35: =IF(AND(OR(tblCountries!$K$5=4,tblCountries!$K$5=5),$E$2=3),0,IF(AND(OR(tblCountries!$K$5=2,tblCountries!$K$5=3),$E$2=3),tblCountries!G19,IF(AND($E$2=3,tblCountries!$K$5=1),AE35,tblCountries!G19))) -> 0 | F35: =tblCountries!F19 -> 1 | G35: 17.2 | H35: =IF(F35=0,"",RANK(G35,G$19:G$98,$B$7)+COUNTIF(G$19:G35,G35)-1) -> 75 | I35: 3 | J35: 1 | K35: 17 | L35: 1 | M35: 17 | N35: Austria | O35: 74.8 | P35: 74.8 | Q35: =IF($B$2=27,"",IF(ISNA(VLOOKUP(N35,uxb_regions!$C$3:$I$82,7,FALSE)),"",VLOOKUP(N35,uxb_regions!$C$3:$I$82,7,FALSE))) -> AUT | R35: 74.8 | S35: 4 | T35: 74.8 | U35: =1 -> 1 | V35: 1 | W35: 0 | X35: AUT | AB35: 74.8 | AD35: 0 | AE35: =IF(AD35=1,tblCountries!G19,0) -> 0 | AL35: =VLOOKUP(C35,tblCountries!$F$3:$L$182,7,FALSE)+10 ->  | AM35: =tblCountries!L19 -> 1 | AN35: 1 | AP35: =CHOOSE(uxbWorks!$B$10,tblCountries!Q19,tblCountries!#REF!,tblCountries!R19,tblCountries!S19,tblCountries!T19) -> 0
A36: =tblCountries!A20 -> 18 | B36: =tblCountries!B20 -> EC | C36: =tblCountries!C20 -> Ecuador | D36: =tblCountries!D20 -> 1 | E36: =IF(AND(OR(tblCountries!$K$5=4,tblCountries!$K$5=5),$E$2=3),0,IF(AND(OR(tblCountries!$K$5=2,tblCountries!$K$5=3),$E$2=3),tblCountries!G20,IF(AND($E$2=3,tblCountries!$K$5=1),AE36,tblCountries!G20))) -> 0 | F36: =tblCountries!F20 -> 1 | G36: 44 | H36: =IF(F36=0,"",RANK(G36,G$19:G$98,$B$7)+COUNTIF(G$19:G36,G36)-1) -> 40 | I36: 63 | J36: 1 | K36: 18 | L36: 1 | M36: 18 | N36: South Korea | O36: 73.7 | P36: 73.7 | Q36: =IF($B$2=27,"",IF(ISNA(VLOOKUP(N36,uxb_regions!$C$3:$I$82,7,FALSE)),"",VLOOKUP(N36,uxb_regions!$C$3:$I$82,7,FALSE))) -> KOR | R36: 73.7 | S36: 4 | T36: 73.7 | U36: =1 -> 1 | V36: 1 | W36: 0 | X36: KOR | AB36: 73.7 | AD36: 0 | AE36: =IF(AD36=1,tblCountries!G20,0) -> 0 | AL36: =VLOOKUP(C36,tblCountries!$F$3:$L$182,7,FALSE)+10 ->  | AM36: =tblCountries!L20 -> 1 | AN36: 1 | AP36: =CHOOSE(uxbWorks!$B$10,tblCountries!Q20,tblCountries!#REF!,tblCountries!R20,tblCountries!S20,tblCountries!T20) -> 0
A37: =tblCountries!A21 -> 19 | B37: =tblCountries!B21 -> EG | C37: =tblCountries!C21 -> Egypt | D37: =tblCountries!D21 -> 1 | E37: =IF(AND(OR(tblCountries!$K$5=4,tblCountries!$K$5=5),$E$2=3),0,IF(AND(OR(tblCountries!$K$5=2,tblCountries!$K$5=3),$E$2=3),tblCountries!G21,IF(AND($E$2=3,tblCountries!$K$5=1),AE37,tblCountries!G21))) -> 0 | F37: =tblCountries!F21 -> 1 | G37: 32.9 | H37: =IF(F37=0,"",RANK(G37,G$19:G$98,$B$7)+COUNTIF(G$19:G37,G37)-1) -> 56 | I37: 16 | J37: 1 | K37: 19 | L37: 1 | M37: 19 | N37: Denmark | O37: 73.5 | P37: 73.5 | Q37: =IF($B$2=27,"",IF(ISNA(VLOOKUP(N37,uxb_regions!$C$3:$I$82,7,FALSE)),"",VLOOKUP(N37,uxb_regions!$C$3:$I$82,7,FALSE))) -> DNK | R37: 73.5 | S37: 4 | T37: 73.5 | U37: =1 -> 1 | V37: 1 | W37: 0 | X37: DNK | AB37: 73.5 | AD37: 0 | AE37: =IF(AD37=1,tblCountries!G21,0) -> 0 | AL37: =VLOOKUP(C37,tblCountries!$F$3:$L$182,7,FALSE)+10 ->  | AM37: =tblCountries!L21 -> 1 | AN37: 1 | AP37: =CHOOSE(uxbWorks!$B$10,tblCountries!Q21,tblCountries!#REF!,tblCountries!R21,tblCountries!S21,tblCountries!T21) -> 0
A38: =tblCountries!A22 -> 20 | B38: =tblCountries!B22 -> ET | C38: =tblCountries!C22 -> Ethiopia | D38: =tblCountries!D22 -> 1 | E38: =IF(AND(OR(tblCountries!$K$5=4,tblCountries!$K$5=5),$E$2=3),0,IF(AND(OR(tblCountries!$K$5=2,tblCountries!$K$5=3),$E$2=3),tblCountries!G22,IF(AND($E$2=3,tblCountries!$K$5=1),AE38,tblCountries!G22))) -> 0 | F38: =tblCountries!F22 -> 1 | G38: 25.1 | H38: =IF(F38=0,"",RANK(G38,G$19:G$98,$B$7)+COUNTIF(G$19:G38,G38)-1) -> 70 | I38: 21 | J38: 1 | K38: 20 | L38: 1 | M38: 20 | N38: Finland | O38: 73.3 | P38: 73.3 | Q38: =IF($B$2=27,"",IF(ISNA(VLOOKUP(N38,uxb_regions!$C$3:$I$82,7,FALSE)),"",VLOOKUP(N38,uxb_regions!$C$3:$I$82,7,FALSE))) -> FIN | R38: 73.3 | S38: 4 | T38: 73.3 | U38: =1 -> 1 | V38: 1 | W38: 0 | X38: FIN | AB38: 73.3 | AD38: 0 | AE38: =IF(AD38=1,tblCountries!G22,0) -> 0 | AL38: =VLOOKUP(C38,tblCountries!$F$3:$L$182,7,FALSE)+10 ->  | AM38: =tblCountries!L22 -> 1 | AN38: 1 | AP38: =CHOOSE(uxbWorks!$B$10,tblCountries!Q22,tblCountries!#REF!,tblCountries!R22,tblCountries!S22,tblCountries!T22) -> 0
A39: =tblCountries!A23 -> 21 | B39: =tblCountries!B23 -> FI | C39: =tblCountries!C23 -> Finland | D39: =tblCountries!D23 -> 1 | E39: =IF(AND(OR(tblCountries!$K$5=4,tblCountries!$K$5=5),$E$2=3),0,IF(AND(OR(tblCountries!$K$5=2,tblCountries!$K$5=3),$E$2=3),tblCountries!G23,IF(AND($E$2=3,tblCountries!$K$5=1),AE39,tblCountries!G23))) -> 0 | F39: =tblCountries!F23 -> 1 | G39: 73.3 | H39: =IF(F39=0,"",RANK(G39,G$19:G$98,$B$7)+COUNTIF(G$19:G39,G39)-1) -> 20 | I39: 35 | J39: 1 | K39: 21 | L39: 1 | M39: 21 | N39: Italy | O39: 71.1 | P39: 71.1 | Q39: =IF($B$2=27,"",IF(ISNA(VLOOKUP(N39,uxb_regions!$C$3:$I$82,7,FALSE)),"",VLOOKUP(N39,uxb_regions!$C$3:$I$82,7,FALSE))) -> ITA | R39: 71.1 | S39: 4 | T39: 71.1 | U39: =1 -> 1 | V39: 1 | W39: 0 | X39: ITA | AB39: 71.1 | AD39: 0 | AE39: =IF(AD39=1,tblCountries!G23,0) -> 0 | AL39: =VLOOKUP(C39,tblCountries!$F$3:$L$182,7,FALSE)+10 ->  | AM39: =tblCountries!L23 -> 1 | AN39: 1 | AP39: =CHOOSE(uxbWorks!$B$10,tblCountries!Q23,tblCountries!#REF!,tblCountries!R23,tblCountries!S23,tblCountries!T23) -> 0
A40: =tblCountries!A24 -> 22 | B40: =tblCountries!B24 -> FR | C40: =tblCountries!C24 -> France | D40: =tblCountries!D24 -> 1 | E40: =IF(AND(OR(tblCountries!$K$5=4,tblCountries!$K$5=5),$E$2=3),0,IF(AND(OR(tblCountries!$K$5=2,tblCountries!$K$5=3),$E$2=3),tblCountries!G24,IF(AND($E$2=3,tblCountries!$K$5=1),AE40,tblCountries!G24))) -> 0 | F40: =tblCountries!F24 -> 1 | G40: 79.4 | H40: =IF(F40=0,"",RANK(G40,G$19:G$98,$B$7)+COUNTIF(G$19:G40,G40)-1) -> 10 | I40: 27 | J40: 1 | K40: 22 | L40: 1 | M40: 22 | N40: Hong Kong | O40: 66.6 | P40: 66.6 | Q40: =IF($B$2=27,"",IF(ISNA(VLOOKUP(N40,uxb_regions!$C$3:$I$82,7,FALSE)),"",VLOOKUP(N40,uxb_regions!$C$3:$I$82,7,FALSE))) -> HKG | R40: 66.6 | S40: 4 | T40: 66.6 | U40: =1 -> 1 | V40: 1 | W40: 0 | X40: HKG | AB40: 66.6 | AD40: 0 | AE40: =IF(AD40=1,tblCountries!G24,0) -> 0 | AL40: =VLOOKUP(C40,tblCountries!$F$3:$L$182,7,FALSE)+10 ->  | AM40: =tblCountries!L24 -> 1 | AN40: 1 | AP40: =CHOOSE(uxbWorks!$B$10,tblCountries!Q24,tblCountries!#REF!,tblCountries!R24,tblCountries!S24,tblCountries!T24) -> 0
A41: =tblCountries!A25 -> 23 | B41: =tblCountries!B25 -> DE | C41: =tblCountries!C25 -> Germany | D41: =tblCountries!D25 -> 1 | E41: =IF(AND(OR(tblCountries!$K$5=4,tblCountries!$K$5=5),$E$2=3),0,IF(AND(OR(tblCountries!$K$5=2,tblCountries!$K$5=3),$E$2=3),tblCountries!G25,IF(AND($E$2=3,tblCountries!$K$5=1),AE41,tblCountries!G25))) -> 0 | F41: =tblCountries!F25 -> 1 | G41: 82 | H41: =IF(F41=0,"",RANK(G41,G$19:G$98,$B$7)+COUNTIF(G$19:G41,G41)-1) -> 7 | I41: 64 | J41: 1 | K41: 23 | L41: 1 | M41: 23 | N41: Spain | O41: 63.4 | P41: 63.4 | Q41: =IF($B$2=27,"",IF(ISNA(VLOOKUP(N41,uxb_regions!$C$3:$I$82,7,FALSE)),"",VLOOKUP(N41,uxb_regions!$C$3:$I$82,7,FALSE))) -> ESP | R41: 63.4 | S41: 4 | T41: 63.4 | U41: =1 -> 1 | V41: 1 | W41: 0 | X41: ESP | AB41: 63.4 | AD41: 0 | AE41: =IF(AD41=1,tblCountries!G25,0) -> 0 | AL41: =VLOOKUP(C41,tblCountries!$F$3:$L$182,7,FALSE)+10 ->  | AM41: =tblCountries!L25 -> 1 | AN41: 1 | AP41: =CHOOSE(uxbWorks!$B$10,tblCountries!Q25,tblCountries!#REF!,tblCountries!R25,tblCountries!S25,tblCountries!T25) -> 0
A42: =tblCountries!A26 -> 24 | B42: =tblCountries!B26 -> GH | C42: =tblCountries!C26 -> Ghana | D42: =tblCountries!D26 -> 1 | E42: =IF(AND(OR(tblCountries!$K$5=4,tblCountries!$K$5=5),$E$2=3),0,IF(AND(OR(tblCountries!$K$5=2,tblCountries!$K$5=3),$E$2=3),tblCountries!G26,IF(AND($E$2=3,tblCountries!$K$5=1),AE42,tblCountries!G26))) -> 0 | F42: =tblCountries!F26 -> 1 | G42: 34.3 | H42: =IF(F42=0,"",RANK(G42,G$19:G$98,$B$7)+COUNTIF(G$19:G42,G42)-1) -> 51 | I42: 55 | J42: 1 | K42: 24 | L42: 1 | M42: 24 | N42: Portugal | O42: 60.8 | P42: 60.8 | Q42: =IF($B$2=27,"",IF(ISNA(VLOOKUP(N42,uxb_regions!$C$3:$I$82,7,FALSE)),"",VLOOKUP(N42,uxb_regions!$C$3:$I$82,7,FALSE))) -> PRT | R42: 60.8 | S42: 4 | T42: 60.8 | U42: =1 -> 1 | V42: 1 | W42: 0 | X42: PRT | AB42: 60.8 | AD42: 0 | AE42: =IF(AD42=1,tblCountries!G26,0) -> 0 | AL42: =VLOOKUP(C42,tblCountries!$F$3:$L$182,7,FALSE)+10 ->  | AM42: =tblCountries!L26 -> 1 | AN42: 1 | AP42: =CHOOSE(uxbWorks!$B$10,tblCountries!Q26,tblCountries!#REF!,tblCountries!R26,tblCountries!S26,tblCountries!T26) -> 0
A43: =tblCountries!A27 -> 25 | B43: =tblCountries!B27 -> GR | C43: =tblCountries!C27 -> Greece | D43: =tblCountries!D27 -> 1 | E43: =IF(AND(OR(tblCountries!$K$5=4,tblCountries!$K$5=5),$E$2=3),0,IF(AND(OR(tblCountries!$K$5=2,tblCountries!$K$5=3),$E$2=3),tblCountries!G27,IF(AND($E$2=3,tblCountries!$K$5=1),AE43,tblCountries!G27))) -> 0 | F43: =tblCountries!F27 -> 1 | G43: 32.9 | H43: =IF(F43=0,"",RANK(G43,G$19:G$98,$B$7)+COUNTIF(G$19:G43,G43)-1) -> 57 | I43: 34 | J43: 1 | K43: 25 | L43: 1 | M43: 25 | N43: Israel | O43: 59.8 | P43: 59.8 | Q43: =IF($B$2=27,"",IF(ISNA(VLOOKUP(N43,uxb_regions!$C$3:$I$82,7,FALSE)),"",VLOOKUP(N43,uxb_regions!$C$3:$I$82,7,FALSE))) -> ISR | R43: 59.8 | S43: 3 | T43: 59.8 | U43: =1 -> 1 | V43: 1 | W43: 0 | X43: ISR | AB43: 59.8 | AD43: 0 | AE43: =IF(AD43=1,tblCountries!G27,0) -> 0 | AL43: =VLOOKUP(C43,tblCountries!$F$3:$L$182,7,FALSE)+10 ->  | AM43: =tblCountries!L27 -> 1 | AN43: 1 | AP43: =CHOOSE(uxbWorks!$B$10,tblCountries!Q27,tblCountries!#REF!,tblCountries!R27,tblCountries!S27,tblCountries!T27) -> 0
A44: =tblCountries!A28 -> 26 | B44: =tblCountries!B28 -> GT | C44: =tblCountries!C28 -> Guatemala | D44: =tblCountries!D28 -> 1 | E44: =IF(AND(OR(tblCountries!$K$5=4,tblCountries!$K$5=5),$E$2=3),0,IF(AND(OR(tblCountries!$K$5=2,tblCountries!$K$5=3),$E$2=3),tblCountries!G28,IF(AND($E$2=3,tblCountries!$K$5=1),AE44,tblCountries!G28))) -> 0 | F44: =tblCountries!F28 -> 1 | G44: 20.9 | H44: =IF(F44=0,"",RANK(G44,G$19:G$98,$B$7)+COUNTIF(G$19:G44,G44)-1) -> 74 | I44: 54 | J44: 1 | K44: 26 | L44: 1 | M44: 26 | N44: Poland | O44: 58.7 | P44: 58.7 | Q44: =IF($B$2=27,"",IF(ISNA(VLOOKUP(N44,uxb_regions!$C$3:$I$82,7,FALSE)),"",VLOOKUP(N44,uxb_regions!$C$3:$I$82,7,FALSE))) -> POL | R44: 58.7 | S44: 3 | T44: 58.7 | U44: =1 -> 1 | V44: 1 | W44: 0 | X44: POL | AB44: 58.7 | AD44: 1 | AE44: =IF(AD44=1,tblCountries!G28,0) -> 0 | AL44: =VLOOKUP(C44,tblCountries!$F$3:$L$182,7,FALSE)+10 ->  | AM44: =tblCountries!L28 -> 1 | AN44: 1 | AP44: =CHOOSE(uxbWorks!$B$10,tblCountries!Q28,tblCountries!#REF!,tblCountries!R28,tblCountries!S28,tblCountries!T28) -> 0
A45: =tblCountries!A29 -> 27 | B45: =tblCountries!B29 -> HK | C45: =tblCountries!C29 -> Hong Kong | D45: =tblCountries!D29 -> 1 | E45: =IF(AND(OR(tblCountries!$K$5=4,tblCountries!$K$5=5),$E$2=3),0,IF(AND(OR(tblCountries!$K$5=2,tblCountries!$K$5=3),$E$2=3),tblCountries!G29,IF(AND($E$2=3,tblCountries!$K$5=1),AE45,tblCountries!G29))) -> 0 | F45: =tblCountries!F29 -> 1 | G45: 66.6 | H45: =IF(F45=0,"",RANK(G45,G$19:G$98,$B$7)+COUNTIF(G$19:G45,G45)-1) -> 22 | I45: 10 | J45: 1 | K45: 27 | L45: 1 | M45: 27 | N45: Chile | O45: 58.6 | P45: 58.6 | Q45: =IF($B$2=27,"",IF(ISNA(VLOOKUP(N45,uxb_regions!$C$3:$I$82,7,FALSE)),"",VLOOKUP(N45,uxb_regions!$C$3:$I$82,7,FALSE))) -> CHL | R45: 58.6 | S45: 3 | T45: 58.6 | U45: =1 -> 1 | V45: 1 | W45: 0 | X45: CHL | AB45: 58.6 | AD45: 0 | AE45: =IF(AD45=1,tblCountries!G29,0) -> 0 | AL45: =VLOOKUP(C45,tblCountries!$F$3:$L$182,7,FALSE)+10 ->  | AM45: =tblCountries!L29 -> 1 | AN45: 1 | AP45: =CHOOSE(uxbWorks!$B$10,tblCountries!Q29,tblCountries!#REF!,tblCountries!R29,tblCountries!S29,tblCountries!T29) -> 1
A46: =tblCountries!A30 -> 28 | B46: =tblCountries!B30 -> HU | C46: =tblCountries!C30 -> Hungary | D46: =tblCountries!D30 -> 1 | E46: =IF(AND(OR(tblCountries!$K$5=4,tblCountries!$K$5=5),$E$2=3),0,IF(AND(OR(tblCountries!$K$5=2,tblCountries!$K$5=3),$E$2=3),tblCountries!G30,IF(AND($E$2=3,tblCountries!$K$5=1),AE46,tblCountries!G30))) -> 0 | F46: =tblCountries!F30 -> 1 | G46: 42.7 | H46: =IF(F46=0,"",RANK(G46,G$19:G$98,$B$7)+COUNTIF(G$19:G46,G46)-1) -> 41 | I46: 44 | J46: 1 | K46: 28 | L46: 1 | M46: 28 | N46: Mongolia | O46: 57.7 | P46: 57.7 | Q46: =IF($B$2=27,"",IF(ISNA(VLOOKUP(N46,uxb_regions!$C$3:$I$82,7,FALSE)),"",VLOOKUP(N46,uxb_regions!$C$3:$I$82,7,FALSE))) -> MNG | R46: 57.7 | S46: 3 | T46: 57.7 | U46: =1 -> 1 | V46: 1 | W46: 0 | X46: MNG | AB46: 57.7 | AD46: 0 | AE46: =IF(AD46=1,tblCountries!G30,0) -> 0 | AL46: =VLOOKUP(C46,tblCountries!$F$3:$L$182,7,FALSE)+10 ->  | AM46: =tblCountries!L30 -> 1 | AN46: 1 | AP46: =CHOOSE(uxbWorks!$B$10,tblCountries!Q30,tblCountries!#REF!,tblCountries!R30,tblCountries!S30,tblCountries!T30) -> 0
A47: =tblCountries!A31 -> 29 | B47: =tblCountries!B31 -> IN | C47: =tblCountries!C31 -> India | D47: =tblCountries!D31 -> 1 | E47: =IF(AND(OR(tblCountries!$K$5=4,tblCountries!$K$5=5),$E$2=3),0,IF(AND(OR(tblCountries!$K$5=2,tblCountries!$K$5=3),$E$2=3),tblCountries!G31,IF(AND($E$2=3,tblCountries!$K$5=1),AE47,tblCountries!G31))) -> 0 | F47: =tblCountries!F31 -> 1 | G47: 26.8 | H47: =IF(F47=0,"",RANK(G47,G$19:G$98,$B$7)+COUNTIF(G$19:G47,G47)-1) -> 67 | I47: 13 | J47: 1 | K47: 29 | L47: 1 | M47: 29 | N47: Costa Rica | O47: 57.3 | P47: 57.3 | Q47: =IF($B$2=27,"",IF(ISNA(VLOOKUP(N47,uxb_regions!$C$3:$I$82,7,FALSE)),"",VLOOKUP(N47,uxb_regions!$C$3:$I$82,7,FALSE))) -> CRI | R47: 57.3 | S47: 3 | T47: 57.3 | U47: =1 -> 1 | V47: 1 | W47: 0 | X47: CRI | AB47: 57.3 | AD47: 0 | AE47: =IF(AD47=1,tblCountries!G31,0) -> 0 | AL47: =VLOOKUP(C47,tblCountries!$F$3:$L$182,7,FALSE)+10 ->  | AM47: =tblCountries!L31 -> 1 | AN47: 1 | AP47: =CHOOSE(uxbWorks!$B$10,tblCountries!Q31,tblCountries!#REF!,tblCountries!R31,tblCountries!S31,tblCountries!T31) -> 1
A48: =tblCountries!A32 -> 30 | B48: =tblCountries!B32 -> ID | C48: =tblCountries!C32 -> Indonesia | D48: =tblCountries!D32 -> 1 | E48: =IF(AND(OR(tblCountries!$K$5=4,tblCountries!$K$5=5),$E$2=3),0,IF(AND(OR(tblCountries!$K$5=2,tblCountries!$K$5=3),$E$2=3),tblCountries!G32,IF(AND($E$2=3,tblCountries!$K$5=1),AE48,tblCountries!G32))) -> 0 | F48: =tblCountries!F32 -> 1 | G48: 33.6 | H48: =IF(F48=0,"",RANK(G48,G$19:G$98,$B$7)+COUNTIF(G$19:G48,G48)-1) -> 53 | I48: 40 | J48: 1 | K48: 30 | L48: 1 | M48: 30 | N48: Lithuania | O48: 54 | P48: 54 | Q48: =IF($B$2=27,"",IF(ISNA(VLOOKUP(N48,uxb_regions!$C$3:$I$82,7,FALSE)),"",VLOOKUP(N48,uxb_regions!$C$3:$I$82,7,FALSE))) -> LTU | R48: 54 | S48: 3 | T48: 54 | U48: =1 -> 1 | V48: 1 | W48: 0 | X48: LTU | AB48: 54 | AD48: 1 | AE48: =IF(AD48=1,tblCountries!G32,0) -> 0 | AL48: =VLOOKUP(C48,tblCountries!$F$3:$L$182,7,FALSE)+10 ->  | AM48: =tblCountries!L32 -> 1 | AN48: 1 | AP48: =CHOOSE(uxbWorks!$B$10,tblCountries!Q32,tblCountries!#REF!,tblCountries!R32,tblCountries!S32,tblCountries!T32) -> 1
A49: =tblCountries!A33 -> 31 | B49: =tblCountries!B33 -> IR | C49: =tblCountries!C33 -> Iran | D49: =tblCountries!D33 -> 1 | E49: =IF(AND(OR(tblCountries!$K$5=4,tblCountries!$K$5=5),$E$2=3),0,IF(AND(OR(tblCountries!$K$5=2,tblCountries!$K$5=3),$E$2=3),tblCountries!G33,IF(AND($E$2=3,tblCountries!$K$5=1),AE49,tblCountries!G33))) -> 0 | F49: =tblCountries!F33 -> 1 | G49: 21.2 | H49: =IF(F49=0,"",RANK(G49,G$19:G$98,$B$7)+COUNTIF(G$19:G49,G49)-1) -> 73 | I49: 51 | J49: 1 | K49: 31 | L49: 1 | M49: 31 | N49: Panama | O49: 53.6 | P49: 53.6 | Q49: =IF($B$2=27,"",IF(ISNA(VLOOKUP(N49,uxb_regions!$C$3:$I$82,7,FALSE)),"",VLOOKUP(N49,uxb_regions!$C$3:$I$82,7,FALSE))) -> PAN | R49: 53.6 | S49: 3 | T49: 53.6 | U49: =1 -> 1 | V49: 1 | W49: 0 | X49: PAN | AB49: 53.6 | AD49: 0 | AE49: =IF(AD49=1,tblCountries!G33,0) -> 0 | AL49: =VLOOKUP(C49,tblCountries!$F$3:$L$182,7,FALSE)+10 ->  | AM49: =tblCountries!L33 -> 1 | AN49: 1 | AP49: =CHOOSE(uxbWorks!$B$10,tblCountries!Q33,tblCountries!#REF!,tblCountries!R33,tblCountries!S33,tblCountries!T33) -> 0
A50: =tblCountries!A34 -> 32 | B50: =tblCountries!B34 -> IQ | C50: =tblCountries!C34 -> Iraq | D50: =tblCountries!D34 -> 1 | E50: =IF(AND(OR(tblCountries!$K$5=4,tblCountries!$K$5=5),$E$2=3),0,IF(AND(OR(tblCountries!$K$5=2,tblCountries!$K$5=3),$E$2=3),tblCountries!G34,IF(AND($E$2=3,tblCountries!$K$5=1),AE50,tblCountries!G34))) -> 0 | F50: =tblCountries!F34 -> 1 | G50: 12.5 | H50: =IF(F50=0,"",RANK(G50,G$19:G$98,$B$7)+COUNTIF(G$19:G50,G50)-1) -> 80 | I50: 1 | J50: 1 | K50: 32 | L50: 1 | M50: 32 | N50: Argentina | O50: 52.5 | P50: 52.5 | Q50: =IF($B$2=27,"",IF(ISNA(VLOOKUP(N50,uxb_regions!$C$3:$I$82,7,FALSE)),"",VLOOKUP(N50,uxb_regions!$C$3:$I$82,7,FALSE))) -> ARG | R50: 52.5 | S50: 3 | T50: 52.5 | U50: =1 -> 1 | V50: 1 | W50: 0 | X50: ARG | AB50: 52.5 | AD50: 0 | AE50: =IF(AD50=1,tblCountries!G34,0) -> 0 | AL50: =VLOOKUP(C50,tblCountries!$F$3:$L$182,7,FALSE)+10 ->  | AM50: =tblCountries!L34 -> 1 | AN50: 1 | AP50: =CHOOSE(uxbWorks!$B$10,tblCountries!Q34,tblCountries!#REF!,tblCountries!R34,tblCountries!S34,tblCountries!T34) -> 0
A51: =tblCountries!A35 -> 33 | B51: =tblCountries!B35 -> IE | C51: =tblCountries!C35 -> Ireland | D51: =tblCountries!D35 -> 1 | E51: =IF(AND(OR(tblCountries!$K$5=4,tblCountries!$K$5=5),$E$2=3),0,IF(AND(OR(tblCountries!$K$5=2,tblCountries!$K$5=3),$E$2=3),tblCountries!G35,IF(AND($E$2=3,tblCountries!$K$5=1),AE51,tblCountries!G35))) -> 0 | F51: =tblCountries!F35 -> 1 | G51: =IF(F51=0,"",IF($U$2=0,ROUND(INDEX(aRoundedScores,$B$2,$A51),5),INDEX(aData,$B$2,$A51))) -> 85.8 | H51: =IF(F51=0,"",RANK(G51,G$19:G$98,$B$7)+COUNTIF(G$19:G51,G51)-1) -> 4 | I51: =IF(ISERROR(MATCH($A51,H$19:H$98,0)),"",MATCH($A51,H$19:H$98,0)) -> 15 | J51: 1 | K51: =IF(I51="","",RANK(O51,O$19:O$98,$B$7)) -> 33 | L51: =IF(I51="",0,INDEX($F$19:$F$98,I51)) -> 1 | M51: 33 | N51: =IF(I51="","",INDEX($C$19:$C$98,I51)) -> Czech Republic | O51: =IF(I51="","",IF($U$2=0,INDEX(aRoundedScores,$B$2,I51),INDEX(aData,$B$2,I51))) -> 51.8 | P51: 51.8 | Q51: =IF($B$2=27,"",IF(ISNA(VLOOKUP(N51,uxb_regions!$C$3:$I$82,7,FALSE)),"",VLOOKUP(N51,uxb_regions!$C$3:$I$82,7,FALSE))) -> CZE | R51: 51.8 | S51: =IF($B$2=27,"",IF(Q51="","",CHOOSE($U$3,IF(R51<R$7,1,IF(R51<R$8,2,IF(R51<R$9,3,IF(R51<R$10,4,IF(R51<=R$11,5,6))))),IF(R51<S$7,1,IF(R51<S$8,2,IF(R51<S$9,3,IF(R51<S$10,4,IF(R51<=S$11,5,6)))))))) -> 3 | T51: 51.8 | U51: =1 -> 1 | V51: =IF(ISNA(INDEX($F$19:$F$98,MATCH(N51,$C$19:$C$98,0))),0,INDEX($F$19:$F$98,MATCH(N51,$C$19:$C$98,0))) -> 1 | W51: 0 | X51: CZE | AB51: 51.8 | AD51: 0 | AE51: =IF(AD51=1,tblCountries!G35,0) -> 0 | AL51: =VLOOKUP(C51,tblCountries!$F$3:$L$182,7,FALSE)+10 ->  | AM51: =tblCountries!L35 -> 1 | AN51: 1 | AP51: =CHOOSE(uxbWorks!$B$10,tblCountries!Q35,tblCountries!#REF!,tblCountries!R35,tblCountries!S35,tblCountries!T35) -> 0
A52: =tblCountries!A36 -> 34 | B52: =tblCountries!B36 -> IL | C52: =tblCountries!C36 -> Israel | D52: =tblCountries!D36 -> 1 | E52: =IF(AND(OR(tblCountries!$K$5=4,tblCountries!$K$5=5),$E$2=3),0,IF(AND(OR(tblCountries!$K$5=2,tblCountries!$K$5=3),$E$2=3),tblCountries!G36,IF(AND($E$2=3,tblCountries!$K$5=1),AE52,tblCountries!G36))) -> 0 | F52: =tblCountries!F36 -> 1 | G52: 59.8 | H52: =IF(F52=0,"",RANK(G52,G$19:G$98,$B$7)+COUNTIF(G$19:G52,G52)-1) -> 25 | I52: 62 | J52: 1 | K52: 34 | L52: 1 | M52: 34 | N52: South Africa | O52: 48.5 | P52: 48.5 | Q52: =IF($B$2=27,"",IF(ISNA(VLOOKUP(N52,uxb_regions!$C$3:$I$82,7,FALSE)),"",VLOOKUP(N52,uxb_regions!$C$3:$I$82,7,FALSE))) -> ZAF | R52: 48.5 | S52: 3 | T52: 48.5 | U52: =1 -> 1 | V52: 1 | W52: 0 | X52: ZAF | AB52: 48.5 | AD52: 0 | AE52: =IF(AD52=1,tblCountries!G36,0) -> 0 | AL52: =VLOOKUP(C52,tblCountries!$F$3:$L$182,7,FALSE)+10 ->  | AM52: =tblCountries!L36 -> 1 | AN52: 1 | AP52: =CHOOSE(uxbWorks!$B$10,tblCountries!Q36,tblCountries!#REF!,tblCountries!R36,tblCountries!S36,tblCountries!T36) -> 0
A53: =tblCountries!A37 -> 35 | B53: =tblCountries!B37 -> IT | C53: =tblCountries!C37 -> Italy | D53: =tblCountries!D37 -> 1 | E53: =IF(AND(OR(tblCountries!$K$5=4,tblCountries!$K$5=5),$E$2=3),0,IF(AND(OR(tblCountries!$K$5=2,tblCountries!$K$5=3),$E$2=3),tblCountries!G37,IF(AND($E$2=3,tblCountries!$K$5=1),AE53,tblCountries!G37))) -> 0 | F53: =tblCountries!F37 -> 1 | G53: 71.1 | H53: =IF(F53=0,"",RANK(G53,G$19:G$98,$B$7)+COUNTIF(G$19:G53,G53)-1) -> 21 | I53: 72 | J53: 1 | K53: 35 | L53: 1 | M53: 35 | N53: Uganda | O53: 47.8 | P53: 47.8 | Q53: =IF($B$2=27,"",IF(ISNA(VLOOKUP(N53,uxb_regions!$C$3:$I$82,7,FALSE)),"",VLOOKUP(N53,uxb_regions!$C$3:$I$82,7,FALSE))) -> UGA | R53: 47.8 | S53: 3 | T53: 47.8 | U53: =1 -> 1 | V53: 1 | W53: 0 | X53: UGA | AB53: 47.8 | AD53: 1 | AE53: =IF(AD53=1,tblCountries!G37,0) -> 0 | AL53: =VLOOKUP(C53,tblCountries!$F$3:$L$182,7,FALSE)+10 ->  | AM53: =tblCountries!L37 -> 1 | AN53: 1 | AP53: =CHOOSE(uxbWorks!$B$10,tblCountries!Q37,tblCountries!#REF!,tblCountries!R37,tblCountries!S37,tblCountries!T37) -> 0
A54: =tblCountries!A38 -> 36 | B54: =tblCountries!B38 -> JP | C54: =tblCountries!C38 -> Japan | D54: =tblCountries!D38 -> 1 | E54: =IF(AND(OR(tblCountries!$K$5=4,tblCountries!$K$5=5),$E$2=3),0,IF(AND(OR(tblCountries!$K$5=2,tblCountries!$K$5=3),$E$2=3),tblCountries!G38,IF(AND($E$2=3,tblCountries!$K$5=1),AE54,tblCountries!G38))) -> 0 | F54: =tblCountries!F38 -> 1 | G54: 76.3 | H54: =IF(F54=0,"",RANK(G54,G$19:G$98,$B$7)+COUNTIF(G$19:G54,G54)-1) -> 14 | I54: 14 | J54: 1 | K54: 36 | L54: 1 | M54: 36 | N54: Cuba | O54: 46.8 | P54: 46.8 | Q54: =IF($B$2=27,"",IF(ISNA(VLOOKUP(N54,uxb_regions!$C$3:$I$82,7,FALSE)),"",VLOOKUP(N54,uxb_regions!$C$3:$I$82,7,FALSE))) -> CUB | R54: 46.8 | S54: 3 | T54: 46.8 | U54: =1 -> 1 | V54: 1 | W54: 0 | X54: CUB | AB54: 46.8 | AD54: 1 | AE54: =IF(AD54=1,tblCountries!G38,0) -> 0 | AL54: =VLOOKUP(C54,tblCountries!$F$3:$L$182,7,FALSE)+10 ->  | AM54: =tblCountries!L38 -> 1 | AN54: 1 | AP54: =CHOOSE(uxbWorks!$B$10,tblCountries!Q38,tblCountries!#REF!,tblCountries!R38,tblCountries!S38,tblCountries!T38) -> 1
A55: =tblCountries!A39 -> 37 | B55: =tblCountries!B39 -> JO | C55: =tblCountries!C39 -> Jordan | D55: =tblCountries!D39 -> 1 | E55: =IF(AND(OR(tblCountries!$K$5=4,tblCountries!$K$5=5),$E$2=3),0,IF(AND(OR(tblCountries!$K$5=2,tblCountries!$K$5=3),$E$2=3),tblCountries!G39,IF(AND($E$2=3,tblCountries!$K$5=1),AE55,tblCountries!G39))) -> 0 | F55: =tblCountries!F39 -> 1 | G55: 46.7 | H55: =IF(F55=0,"",RANK(G55,G$19:G$98,$B$7)+COUNTIF(G$19:G55,G55)-1) -> 37 | I55: 37 | J55: 1 | K55: 37 | L55: 1 | M55: 37 | N55: Jordan | O55: 46.7 | P55: 46.7 | Q55: =IF($B$2=27,"",IF(ISNA(VLOOKUP(N55,uxb_regions!$C$3:$I$82,7,FALSE)),"",VLOOKUP(N55,uxb_regions!$C$3:$I$82,7,FALSE))) -> JOR | R55: 46.7 | S55: 3 | T55: 46.7 | U55: =1 -> 1 | V55: 1 | W55: 0 | X55: JOR | AB55: 46.7 | AD55: 0 | AE55: =IF(AD55=1,tblCountries!G39,0) -> 0 | AL55: =VLOOKUP(C55,tblCountries!$F$3:$L$182,7,FALSE)+10 ->  | AM55: =tblCountries!L39 -> 1 | AN55: 1 | AP55: =CHOOSE(uxbWorks!$B$10,tblCountries!Q39,tblCountries!#REF!,tblCountries!R39,tblCountries!S39,tblCountries!T39) -> 0
A56: =tblCountries!A40 -> 38 | B56: =tblCountries!B40 -> KZ | C56: =tblCountries!C40 -> Kazakhstan | D56: =tblCountries!D40 -> 1 | E56: =IF(AND(OR(tblCountries!$K$5=4,tblCountries!$K$5=5),$E$2=3),0,IF(AND(OR(tblCountries!$K$5=2,tblCountries!$K$5=3),$E$2=3),tblCountries!G40,IF(AND($E$2=3,tblCountries!$K$5=1),AE56,tblCountries!G40))) -> 0 | F56: =tblCountries!F40 -> 1 | G56: 34.8 | H56: =IF(F56=0,"",RANK(G56,G$19:G$98,$B$7)+COUNTIF(G$19:G56,G56)-1) -> 50 | I56: 42 | J56: 1 | K56: 38 | L56: 1 | M56: 38 | N56: Malaysia | O56: 46.5 | P56: 46.5 | Q56: =IF($B$2=27,"",IF(ISNA(VLOOKUP(N56,uxb_regions!$C$3:$I$82,7,FALSE)),"",VLOOKUP(N56,uxb_regions!$C$3:$I$82,7,FALSE))) -> MYS | R56: 46.5 | S56: 3 | T56: 46.5 | U56: =1 -> 1 | V56: 1 | W56: 0 | X56: MYS | AB56: 46.5 | AD56: 0 | AE56: =IF(AD56=1,tblCountries!G40,0) -> 0 | AL56: =VLOOKUP(C56,tblCountries!$F$3:$L$182,7,FALSE)+10 ->  | AM56: =tblCountries!L40 -> 1 | AN56: 1 | AP56: =CHOOSE(uxbWorks!$B$10,tblCountries!Q40,tblCountries!#REF!,tblCountries!R40,tblCountries!S40,tblCountries!T40) -> 0
A57: =tblCountries!A41 -> 39 | B57: =tblCountries!B41 -> KE | C57: =tblCountries!C41 -> Kenya | D57: =tblCountries!D41 -> 1 | E57: =IF(AND(OR(tblCountries!$K$5=4,tblCountries!$K$5=5),$E$2=3),0,IF(AND(OR(tblCountries!$K$5=2,tblCountries!$K$5=3),$E$2=3),tblCountries!G41,IF(AND($E$2=3,tblCountries!$K$5=1),AE57,tblCountries!G41))) -> 0 | F57: =tblCountries!F41 -> 1 | G57: 30 | H57: =IF(F57=0,"",RANK(G57,G$19:G$98,$B$7)+COUNTIF(G$19:G57,G57)-1) -> 63 | I57: 76 | J57: 1 | K57: 39 | L57: 1 | M57: 39 | N57: Uruguay | O57: 46.1 | P57: 46.1 | Q57: =IF($B$2=27,"",IF(ISNA(VLOOKUP(N57,uxb_regions!$C$3:$I$82,7,FALSE)),"",VLOOKUP(N57,uxb_regions!$C$3:$I$82,7,FALSE))) -> URY | R57: 46.1 | S57: 3 | T57: 46.1 | U57: =1 -> 1 | V57: 1 | W57: 0 | X57: URY | AB57: 46.1 | AD57: 0 | AE57: =IF(AD57=1,tblCountries!G41,0) -> 0 | AL57: =VLOOKUP(C57,tblCountries!$F$3:$L$182,7,FALSE)+10 ->  | AM57: =tblCountries!L41 -> 1 | AN57: 1 | AP57: =CHOOSE(uxbWorks!$B$10,tblCountries!Q41,tblCountries!#REF!,tblCountries!R41,tblCountries!S41,tblCountries!T41) -> 0
A58: =tblCountries!A42 -> 40 | B58: =tblCountries!B42 -> LT | C58: =tblCountries!C42 -> Lithuania | D58: =tblCountries!D42 -> 1 | E58: =IF(AND(OR(tblCountries!$K$5=4,tblCountries!$K$5=5),$E$2=3),0,IF(AND(OR(tblCountries!$K$5=2,tblCountries!$K$5=3),$E$2=3),tblCountries!G42,IF(AND($E$2=3,tblCountries!$K$5=1),AE58,tblCountries!G42))) -> 0 | F58: =tblCountries!F42 -> 1 | G58: 54 | H58: =IF(F58=0,"",RANK(G58,G$19:G$98,$B$7)+COUNTIF(G$19:G58,G58)-1) -> 30 | I58: 18 | J58: 1 | K58: 40 | L58: 1 | M58: 40 | N58: Ecuador | O58: 44 | P58: 44 | Q58: =IF($B$2=27,"",IF(ISNA(VLOOKUP(N58,uxb_regions!$C$3:$I$82,7,FALSE)),"",VLOOKUP(N58,uxb_regions!$C$3:$I$82,7,FALSE))) -> ECU | R58: 44 | S58: 3 | T58: 44 | U58: =1 -> 1 | V58: 1 | W58: 0 | X58: ECU | AB58: 44 | AD58: 0 | AE58: =IF(AD58=1,tblCountries!G42,0) -> 0 | AL58: =VLOOKUP(C58,tblCountries!$F$3:$L$182,7,FALSE)+10 ->  | AM58: =tblCountries!L42 -> 1 | AN58: 1 | AP58: =CHOOSE(uxbWorks!$B$10,tblCountries!Q42,tblCountries!#REF!,tblCountries!R42,tblCountries!S42,tblCountries!T42) -> 0
A59: =tblCountries!A43 -> 41 | B59: =tblCountries!B43 -> MW | C59: =tblCountries!C43 -> Malawi | D59: =tblCountries!D43 -> 1 | E59: =IF(AND(OR(tblCountries!$K$5=4,tblCountries!$K$5=5),$E$2=3),0,IF(AND(OR(tblCountries!$K$5=2,tblCountries!$K$5=3),$E$2=3),tblCountries!G43,IF(AND($E$2=3,tblCountries!$K$5=1),AE59,tblCountries!G43))) -> 0 | F59: =tblCountries!F43 -> 1 | G59: 27 | H59: =IF(F59=0,"",RANK(G59,G$19:G$98,$B$7)+COUNTIF(G$19:G59,G59)-1) -> 66 | I59: 28 | J59: 1 | K59: 41 | L59: 1 | M59: 41 | N59: Hungary | O59: 42.7 | P59: 42.7 | Q59: =IF($B$2=27,"",IF(ISNA(VLOOKUP(N59,uxb_regions!$C$3:$I$82,7,FALSE)),"",VLOOKUP(N59,uxb_regions!$C$3:$I$82,7,FALSE))) -> HUN | R59: 42.7 | S59: 3 | T59: 42.7 | U59: =1 -> 1 | V59: 1 | W59: 0 | X59: HUN | AB59: 42.7 | AD59: 0 | AE59: =IF(AD59=1,tblCountries!G43,0) -> 0 | AL59: =VLOOKUP(C59,tblCountries!$F$3:$L$182,7,FALSE)+10 ->  | AM59: =tblCountries!L43 -> 1 | AN59: 1 | AP59: =CHOOSE(uxbWorks!$B$10,tblCountries!Q43,tblCountries!#REF!,tblCountries!R43,tblCountries!S43,tblCountries!T43) -> 0
A60: =tblCountries!A44 -> 42 | B60: =tblCountries!B44 -> MY | C60: =tblCountries!C44 -> Malaysia | D60: =tblCountries!D44 -> 1 | E60: =IF(AND(OR(tblCountries!$K$5=4,tblCountries!$K$5=5),$E$2=3),0,IF(AND(OR(tblCountries!$K$5=2,tblCountries!$K$5=3),$E$2=3),tblCountries!G44,IF(AND($E$2=3,tblCountries!$K$5=1),AE60,tblCountries!G44))) -> 0 | F60: =tblCountries!F44 -> 1 | G60: 46.5 | H60: =IF(F60=0,"",RANK(G60,G$19:G$98,$B$7)+COUNTIF(G$19:G60,G60)-1) -> 38 | I60: 7 | J60: 1 | K60: 42 | L60: 1 | M60: 42 | N60: Brazil | O60: 42.5 | P60: 42.5 | Q60: =IF($B$2=27,"",IF(ISNA(VLOOKUP(N60,uxb_regions!$C$3:$I$82,7,FALSE)),"",VLOOKUP(N60,uxb_regions!$C$3:$I$82,7,FALSE))) -> BRA | R60: 42.5 | S60: 3 | T60: 42.5 | U60: =1 -> 1 | V60: 1 | W60: 0 | X60: BRA | AB60: 42.5 | AD60: 0 | AE60: =IF(AD60=1,tblCountries!G44,0) -> 0 | AL60: =VLOOKUP(C60,tblCountries!$F$3:$L$182,7,FALSE)+10 ->  | AM60: =tblCountries!L44 -> 1 | AN60: 1 | AP60: =CHOOSE(uxbWorks!$B$10,tblCountries!Q44,tblCountries!#REF!,tblCountries!R44,tblCountries!S44,tblCountries!T44) -> 1
A61: =tblCountries!A45 -> 43 | B61: =tblCountries!B45 -> MX | C61: =tblCountries!C45 -> Mexico | D61: =tblCountries!D45 -> 1 | E61: =IF(AND(OR(tblCountries!$K$5=4,tblCountries!$K$5=5),$E$2=3),0,IF(AND(OR(tblCountries!$K$5=2,tblCountries!$K$5=3),$E$2=3),tblCountries!G45,IF(AND($E$2=3,tblCountries!$K$5=1),AE61,tblCountries!G45))) -> 0 | F61: =tblCountries!F45 -> 1 | G61: 42.3 | H61: =IF(F61=0,"",RANK(G61,G$19:G$98,$B$7)+COUNTIF(G$19:G61,G61)-1) -> 43 | I61: 43 | J61: 1 | K61: 43 | L61: 1 | M61: 43 | N61: Mexico | O61: 42.3 | P61: 42.3 | Q61: =IF($B$2=27,"",IF(ISNA(VLOOKUP(N61,uxb_regions!$C$3:$I$82,7,FALSE)),"",VLOOKUP(N61,uxb_regions!$C$3:$I$82,7,FALSE))) -> MEX | R61: 42.3 | S61: 3 | T61: 42.3 | U61: =1 -> 1 | V61: 1 | W61: 0 | X61: MEX | AB61: 42.3 | AD61: 0 | AE61: =IF(AD61=1,tblCountries!G45,0) -> 0 | AL61: =VLOOKUP(C61,tblCountries!$F$3:$L$182,7,FALSE)+10 ->  | AM61: =tblCountries!L45 -> 1 | AN61: 1 | AP61: =CHOOSE(uxbWorks!$B$10,tblCountries!Q45,tblCountries!#REF!,tblCountries!R45,tblCountries!S45,tblCountries!T45) -> 0
A62: =tblCountries!A46 -> 44 | B62: =tblCountries!B46 -> MN | C62: =tblCountries!C46 -> Mongolia | D62: =tblCountries!D46 -> 1 | E62: =IF(AND(OR(tblCountries!$K$5=4,tblCountries!$K$5=5),$E$2=3),0,IF(AND(OR(tblCountries!$K$5=2,tblCountries!$K$5=3),$E$2=3),tblCountries!G46,IF(AND($E$2=3,tblCountries!$K$5=1),AE62,tblCountries!G46))) -> 0 | F62: =tblCountries!F46 -> 1 | G62: 57.7 | H62: =IF(F62=0,"",RANK(G62,G$19:G$98,$B$7)+COUNTIF(G$19:G62,G62)-1) -> 28 | I62: 70 | J62: 1 | K62: 44 | L62: 1 | M62: 44 | N62: Thailand | O62: 40.2 | P62: 40.2 | Q62: =IF($B$2=27,"",IF(ISNA(VLOOKUP(N62,uxb_regions!$C$3:$I$82,7,FALSE)),"",VLOOKUP(N62,uxb_regions!$C$3:$I$82,7,FALSE))) -> THA | R62: 40.2 | S62: 3 | T62: 40.2 | U62: =1 -> 1 | V62: 1 | W62: 0 | X62: THA | AB62: 40.2 | AD62: 0 | AE62: =IF(AD62=1,tblCountries!G46,0) -> 0 | AL62: =VLOOKUP(C62,tblCountries!$F$3:$L$182,7,FALSE)+10 ->  | AM62: =tblCountries!L46 -> 1 | AN62: 1 | AP62: =CHOOSE(uxbWorks!$B$10,tblCountries!Q46,tblCountries!#REF!,tblCountries!R46,tblCountries!S46,tblCountries!T46) -> 1
A63: =tblCountries!A47 -> 45 | B63: =tblCountries!B47 -> MA | C63: =tblCountries!C47 -> Morocco | D63: =tblCountries!D47 -> 1 | E63: =IF(AND(OR(tblCountries!$K$5=4,tblCountries!$K$5=5),$E$2=3),0,IF(AND(OR(tblCountries!$K$5=2,tblCountries!$K$5=3),$E$2=3),tblCountries!G47,IF(AND($E$2=3,tblCountries!$K$5=1),AE63,tblCountries!G47))) -> 0 | F63: =tblCountries!F47 -> 1 | G63: 33.8 | H63: =IF(F63=0,"",RANK(G63,G$19:G$98,$B$7)+COUNTIF(G$19:G63,G63)-1) -> 52 | I63: 77 | J63: 1 | K63: 45 | L63: 1 | M63: 45 | N63: Venezuela | O63: 40.1 | P63: 40.1 | Q63: =IF($B$2=27,"",IF(ISNA(VLOOKUP(N63,uxb_regions!$C$3:$I$82,7,FALSE)),"",VLOOKUP(N63,uxb_regions!$C$3:$I$82,7,FALSE))) -> VEN | R63: 40.1 | S63: 3 | T63: 40.1 | U63: =1 -> 1 | V63: 1 | W63: 0 | X63: VEN | AB63: 40.1 | AD63: 1 | AE63: =IF(AD63=1,tblCountries!G47,0) -> 0 | AL63: =VLOOKUP(C63,tblCountries!$F$3:$L$182,7,FALSE)+10 ->  | AM63: =tblCountries!L47 -> 1 | AN63: 1 | AP63: =CHOOSE(uxbWorks!$B$10,tblCountries!Q47,tblCountries!#REF!,tblCountries!R47,tblCountries!S47,tblCountries!T47) -> 0
A64: =tblCountries!A48 -> 46 | B64: =tblCountries!B48 -> MM | C64: =tblCountries!C48 -> Myanmar | D64: =tblCountries!D48 -> 1 | E64: =IF(AND(OR(tblCountries!$K$5=4,tblCountries!$K$5=5),$E$2=3),0,IF(AND(OR(tblCountries!$K$5=2,tblCountries!$K$5=3),$E$2=3),tblCountries!G48,IF(AND($E$2=3,tblCountries!$K$5=1),AE64,tblCountries!G48))) -> 0 | F64: =tblCountries!F48 -> 1 | G64: 17.1 | H64: =IF(F64=0,"",RANK(G64,G$19:G$98,$B$7)+COUNTIF(G$19:G64,G64)-1) -> 76 | I64: 56 | J64: 1 | K64: 46 | L64: 1 | M64: 46 | N64: Puerto Rico | O64: 40 | P64: 40 | Q64: =IF($B$2=27,"",IF(ISNA(VLOOKUP(N64,uxb_regions!$C$3:$I$82,7,FALSE)),"",VLOOKUP(N64,uxb_regions!$C$3:$I$82,7,FALSE))) -> PRI | R64: 40 | S64: 3 | T64: 40 | U64: =1 -> 1 | V64: 1 | W64: 0 | X64: PRI | AB64: 40 | AD64: 0 | AE64: =IF(AD64=1,tblCountries!G48,0) -> 0 | AL64: =VLOOKUP(C64,tblCountries!$F$3:$L$182,7,FALSE)+10 ->  | AM64: =tblCountries!L48 -> 1 | AN64: 1 | AP64: =CHOOSE(uxbWorks!$B$10,tblCountries!Q48,tblCountries!#REF!,tblCountries!R48,tblCountries!S48,tblCountries!T48) -> 1
A65: =tblCountries!A49 -> 47 | B65: =tblCountries!B49 -> NL | C65: =tblCountries!C49 -> Netherlands | D65: =tblCountries!D49 -> 1 | E65: =IF(AND(OR(tblCountries!$K$5=4,tblCountries!$K$5=5),$E$2=3),0,IF(AND(OR(tblCountries!$K$5=2,tblCountries!$K$5=3),$E$2=3),tblCountries!G49,IF(AND($E$2=3,tblCountries!$K$5=1),AE65,tblCountries!G49))) -> 0 | F65: =tblCountries!F49 -> 1 | G65: 80.9 | H65: =IF(F65=0,"",RANK(G65,G$19:G$98,$B$7)+COUNTIF(G$19:G65,G65)-1) -> 8 | I65: 71 | J65: 1 | K65: 47 | L65: 1 | M65: 47 | N65: Turkey | O65: 38.2 | P65: 38.2 | Q65: =IF($B$2=27,"",IF(ISNA(VLOOKUP(N65,uxb_regions!$C$3:$I$82,7,FALSE)),"",VLOOKUP(N65,uxb_regions!$C$3:$I$82,7,FALSE))) -> TUR | R65: 38.2 | S65: 2 | T65: 38.2 | U65: =1 -> 1 | V65: 1 | W65: 0 | X65: TUR | AB65: 38.2 | AD65: 0 | AE65: =IF(AD65=1,tblCountries!G49,0) -> 0 | AL65: =VLOOKUP(C65,tblCountries!$F$3:$L$182,7,FALSE)+10 ->  | AM65: =tblCountries!L49 -> 1 | AN65: 1 | AP65: =CHOOSE(uxbWorks!$B$10,tblCountries!Q49,tblCountries!#REF!,tblCountries!R49,tblCountries!S49,tblCountries!T49) -> 0
A66: =tblCountries!A50 -> 48 | B66: =tblCountries!B50 -> NZ | C66: =tblCountries!C50 -> New Zealand | D66: =tblCountries!D50 -> 1 | E66: =IF(AND(OR(tblCountries!$K$5=4,tblCountries!$K$5=5),$E$2=3),0,IF(AND(OR(tblCountries!$K$5=2,tblCountries!$K$5=3),$E$2=3),tblCountries!G50,IF(AND($E$2=3,tblCountries!$K$5=1),AE66,tblCountries!G50))) -> 0 | F66: =tblCountries!F50 -> 1 | G66: 87.6 | H66: =IF(F66=0,"",RANK(G66,G$19:G$98,$B$7)+COUNTIF(G$19:G66,G66)-1) -> 3 | I66: 58 | J66: 1 | K66: 48 | L66: 1 | M66: 48 | N66: Russia | O66: 37.2 | P66: 37.2 | Q66: =IF($B$2=27,"",IF(ISNA(VLOOKUP(N66,uxb_regions!$C$3:$I$82,7,FALSE)),"",VLOOKUP(N66,uxb_regions!$C$3:$I$82,7,FALSE))) -> RUS | R66: 37.2 | S66: 2 | T66: 37.2 | U66: =1 -> 1 | V66: 1 | W66: 0 | X66: RUS | AB66: 37.2 | AD66: 0 | AE66: =IF(AD66=1,tblCountries!G50,0) -> 0 | AL66: =VLOOKUP(C66,tblCountries!$F$3:$L$182,7,FALSE)+10 ->  | AM66: =tblCountries!L50 -> 1 | AN66: 1 | AP66: =CHOOSE(uxbWorks!$B$10,tblCountries!Q50,tblCountries!#REF!,tblCountries!R50,tblCountries!S50,tblCountries!T50) -> 1
A67: =tblCountries!A51 -> 49 | B67: =tblCountries!B51 -> NG | C67: =tblCountries!C51 -> Nigeria | D67: =tblCountries!D51 -> 1 | E67: =IF(AND(OR(tblCountries!$K$5=4,tblCountries!$K$5=5),$E$2=3),0,IF(AND(OR(tblCountries!$K$5=2,tblCountries!$K$5=3),$E$2=3),tblCountries!G51,IF(AND($E$2=3,tblCountries!$K$5=1),AE67,tblCountries!G51))) -> 0 | F67: =tblCountries!F51 -> 1 | G67: 16.9 | H67: =IF(F67=0,"",RANK(G67,G$19:G$98,$B$7)+COUNTIF(G$19:G67,G67)-1) -> 77 | I67: 52 | J67: 1 | K67: 49 | L67: 1 | M67: 49 | N67: Peru | O67: 36 | P67: 36 | Q67: =IF($B$2=27,"",IF(ISNA(VLOOKUP(N67,uxb_regions!$C$3:$I$82,7,FALSE)),"",VLOOKUP(N67,uxb_regions!$C$3:$I$82,7,FALSE))) -> PER | R67: 36 | S67: 2 | T67: 36 | U67: =1 -> 1 | V67: 1 | W67: 0 | X67: PER | AB67: 36 | AD67: 0 | AE67: =IF(AD67=1,tblCountries!G51,0) -> 0 | AL67: =VLOOKUP(C67,tblCountries!$F$3:$L$182,7,FALSE)+10 ->  | AM67: =tblCountries!L51 -> 1 | AN67: 1 | AP67: =CHOOSE(uxbWorks!$B$10,tblCountries!Q51,tblCountries!#REF!,tblCountries!R51,tblCountries!S51,tblCountries!T51) -> 0
A68: =tblCountries!A52 -> 50 | B68: =tblCountries!B52 -> NO | C68: =tblCountries!C52 -> Norway | D68: =tblCountries!D52 -> 1 | E68: =IF(AND(OR(tblCountries!$K$5=4,tblCountries!$K$5=5),$E$2=3),0,IF(AND(OR(tblCountries!$K$5=2,tblCountries!$K$5=3),$E$2=3),tblCountries!G52,IF(AND($E$2=3,tblCountries!$K$5=1),AE68,tblCountries!G52))) -> 0 | F68: =tblCountries!F52 -> 1 | G68: 77.4 | H68: =IF(F68=0,"",RANK(G68,G$19:G$98,$B$7)+COUNTIF(G$19:G68,G68)-1) -> 13 | I68: 38 | J68: 1 | K68: 50 | L68: 1 | M68: 50 | N68: Kazakhstan | O68: 34.8 | P68: 34.8 | Q68: =IF($B$2=27,"",IF(ISNA(VLOOKUP(N68,uxb_regions!$C$3:$I$82,7,FALSE)),"",VLOOKUP(N68,uxb_regions!$C$3:$I$82,7,FALSE))) -> KAZ | R68: 34.8 | S68: 2 | T68: 34.8 | U68: =1 -> 1 | V68: 1 | W68: 0 | X68: KAZ | AB68: 34.8 | AD68: 0 | AE68: =IF(AD68=1,tblCountries!G52,0) -> 0 | AL68: =VLOOKUP(C68,tblCountries!$F$3:$L$182,7,FALSE)+10 ->  | AM68: =tblCountries!L52 -> 1 | AN68: 1 | AP68: =CHOOSE(uxbWorks!$B$10,tblCountries!Q52,tblCountries!#REF!,tblCountries!R52,tblCountries!S52,tblCountries!T52) -> 0
A69: =tblCountries!A53 -> 51 | B69: =tblCountries!B53 -> PA | C69: =tblCountries!C53 -> Panama | D69: =tblCountries!D53 -> 1 | E69: =IF(AND(OR(tblCountries!$K$5=4,tblCountries!$K$5=5),$E$2=3),0,IF(AND(OR(tblCountries!$K$5=2,tblCountries!$K$5=3),$E$2=3),tblCountries!G53,IF(AND($E$2=3,tblCountries!$K$5=1),AE69,tblCountries!G53))) -> 0 | F69: =tblCountries!F53 -> 1 | G69: 53.6 | H69: =IF(F69=0,"",RANK(G69,G$19:G$98,$B$7)+COUNTIF(G$19:G69,G69)-1) -> 31 | I69: 24 | J69: 1 | K69: 51 | L69: 1 | M69: 51 | N69: Ghana | O69: 34.3 | P69: 34.3 | Q69: =IF($B$2=27,"",IF(ISNA(VLOOKUP(N69,uxb_regions!$C$3:$I$82,7,FALSE)),"",VLOOKUP(N69,uxb_regions!$C$3:$I$82,7,FALSE))) -> GHA | R69: 34.3 | S69: 2 | T69: 34.3 | U69: =1 -> 1 | V69: 1 | W69: 0 | X69: GHA | AB69: 34.3 | AD69: 0 | AE69: =IF(AD69=1,tblCountries!G53,0) -> 0 | AL69: =VLOOKUP(C69,tblCountries!$F$3:$L$182,7,FALSE)+10 ->  | AM69: =tblCountries!L53 -> 1 | AN69: 1 | AP69: =CHOOSE(uxbWorks!$B$10,tblCountries!Q53,tblCountries!#REF!,tblCountries!R53,tblCountries!S53,tblCountries!T53) -> 0
A70: =tblCountries!A54 -> 52 | B70: =tblCountries!B54 -> PE | C70: =tblCountries!C54 -> Peru | D70: =tblCountries!D54 -> 1 | E70: =IF(AND(OR(tblCountries!$K$5=4,tblCountries!$K$5=5),$E$2=3),0,IF(AND(OR(tblCountries!$K$5=2,tblCountries!$K$5=3),$E$2=3),tblCountries!G54,IF(AND($E$2=3,tblCountries!$K$5=1),AE70,tblCountries!G54))) -> 0 | F70: =tblCountries!F54 -> 1 | G70: 36 | H70: =IF(F70=0,"",RANK(G70,G$19:G$98,$B$7)+COUNTIF(G$19:G70,G70)-1) -> 49 | I70: 45 | J70: 1 | K70: 52 | L70: 1 | M70: 52 | N70: Morocco | O70: 33.8 | P70: 33.8 | Q70: =IF($B$2=27,"",IF(ISNA(VLOOKUP(N70,uxb_regions!$C$3:$I$82,7,FALSE)),"",VLOOKUP(N70,uxb_regions!$C$3:$I$82,7,FALSE))) -> MAR | R70: 33.8 | S70: 2 | T70: 33.8 | U70: =1 -> 1 | V70: 1 | W70: 0 | X70: MAR | AB70: 33.8 | AD70: 0 | AE70: =IF(AD70=1,tblCountries!G54,0) -> 0 | AL70: =VLOOKUP(C70,tblCountries!$F$3:$L$182,7,FALSE)+10 ->  | AM70: =tblCountries!L54 -> 1 | AN70: 1 | AP70: =CHOOSE(uxbWorks!$B$10,tblCountries!Q54,tblCountries!#REF!,tblCountries!R54,tblCountries!S54,tblCountries!T54) -> 0
A71: =tblCountries!A55 -> 53 | B71: =tblCountries!B55 -> PH | C71: =tblCountries!C55 -> Philippines | D71: =tblCountries!D55 -> 1 | E71: =IF(AND(OR(tblCountries!$K$5=4,tblCountries!$K$5=5),$E$2=3),0,IF(AND(OR(tblCountries!$K$5=2,tblCountries!$K$5=3),$E$2=3),tblCountries!G55,IF(AND($E$2=3,tblCountries!$K$5=1),AE71,tblCountries!G55))) -> 0 | F71: =tblCountries!F55 -> 1 | G71: 15.3 | H71: =IF(F71=0,"",RANK(G71,G$19:G$98,$B$7)+COUNTIF(G$19:G71,G71)-1) -> 78 | I71: 30 | J71: 1 | K71: 53 | L71: 1 | M71: 53 | N71: Indonesia | O71: 33.6 | P71: 33.6 | Q71: =IF($B$2=27,"",IF(ISNA(VLOOKUP(N71,uxb_regions!$C$3:$I$82,7,FALSE)),"",VLOOKUP(N71,uxb_regions!$C$3:$I$82,7,FALSE))) -> IDN | R71: 33.6 | S71: 2 | T71: 33.6 | U71: =1 -> 1 | V71: 1 | W71: 0 | X71: IDN | AB71: 33.6 | AD71: 0 | AE71: =IF(AD71=1,tblCountries!G55,0) -> 0 | AL71: =VLOOKUP(C71,tblCountries!$F$3:$L$182,7,FALSE)+10 ->  | AM71: =tblCountries!L55 -> 1 | AN71: 1 | AP71: =CHOOSE(uxbWorks!$B$10,tblCountries!Q55,tblCountries!#REF!,tblCountries!R55,tblCountries!S55,tblCountries!T55) -> 1
A72: =tblCountries!A56 -> 54 | B72: =tblCountries!B56 -> PL | C72: =tblCountries!C56 -> Poland | D72: =tblCountries!D56 -> 1 | E72: =IF(AND(OR(tblCountries!$K$5=4,tblCountries!$K$5=5),$E$2=3),0,IF(AND(OR(tblCountries!$K$5=2,tblCountries!$K$5=3),$E$2=3),tblCountries!G56,IF(AND($E$2=3,tblCountries!$K$5=1),AE72,tblCountries!G56))) -> 0 | F72: =tblCountries!F56 -> 1 | G72: 58.7 | H72: =IF(F72=0,"",RANK(G72,G$19:G$98,$B$7)+COUNTIF(G$19:G72,G72)-1) -> 26 | I72: 69 | J72: 1 | K72: 54 | L72: 1 | M72: 54 | N72: Tanzania | O72: 33.4 | P72: 33.4 | Q72: =IF($B$2=27,"",IF(ISNA(VLOOKUP(N72,uxb_regions!$C$3:$I$82,7,FALSE)),"",VLOOKUP(N72,uxb_regions!$C$3:$I$82,7,FALSE))) -> TZA | R72: 33.4 | S72: 2 | T72: 33.4 | U72: =1 -> 1 | V72: 1 | W72: 0 | X72: TZA | AB72: 33.4 | AD72: 0 | AE72: =IF(AD72=1,tblCountries!G56,0) -> 0 | AL72: =VLOOKUP(C72,tblCountries!$F$3:$L$182,7,FALSE)+10 ->  | AM72: =tblCountries!L56 -> 1 | AN72: 1 | AP72: =CHOOSE(uxbWorks!$B$10,tblCountries!Q56,tblCountries!#REF!,tblCountries!R56,tblCountries!S56,tblCountries!T56) -> 0
A73: =tblCountries!A57 -> 55 | B73: =tblCountries!B57 -> PT | C73: =tblCountries!C57 -> Portugal | D73: =tblCountries!D57 -> 1 | E73: =IF(AND(OR(tblCountries!$K$5=4,tblCountries!$K$5=5),$E$2=3),0,IF(AND(OR(tblCountries!$K$5=2,tblCountries!$K$5=3),$E$2=3),tblCountries!G57,IF(AND($E$2=3,tblCountries!$K$5=1),AE73,tblCountries!G57))) -> 0 | F73: =tblCountries!F57 -> 1 | G73: 60.8 | H73: =IF(F73=0,"",RANK(G73,G$19:G$98,$B$7)+COUNTIF(G$19:G73,G73)-1) -> 24 | I73: 61 | J73: 1 | K73: 55 | L73: 1 | M73: 55 | N73: Slovakia | O73: 33.2 | P73: 33.2 | Q73: =IF($B$2=27,"",IF(ISNA(VLOOKUP(N73,uxb_regions!$C$3:$I$82,7,FALSE)),"",VLOOKUP(N73,uxb_regions!$C$3:$I$82,7,FALSE))) -> SVK | R73: 33.2 | S73: 2 | T73: 33.2 | U73: =1 -> 1 | V73: 1 | W73: 0 | X73: SVK | AB73: 33.2 | AD73: 0 | AE73: =IF(AD73=1,tblCountries!G57,0) -> 0 | AL73: =VLOOKUP(C73,tblCountries!$F$3:$L$182,7,FALSE)+10 ->  | AM73: =tblCountries!L57 -> 1 | AN73: 1 | AP73: =CHOOSE(uxbWorks!$B$10,tblCountries!Q57,tblCountries!#REF!,tblCountries!R57,tblCountries!S57,tblCountries!T57) -> 0
A74: =tblCountries!A58 -> 56 | B74: =tblCountries!B58 -> PR | C74: =tblCountries!C58 -> Puerto Rico | D74: =tblCountries!D58 -> 1 | E74: =IF(AND(OR(tblCountries!$K$5=4,tblCountries!$K$5=5),$E$2=3),0,IF(AND(OR(tblCountries!$K$5=2,tblCountries!$K$5=3),$E$2=3),tblCountries!G58,IF(AND($E$2=3,tblCountries!$K$5=1),AE74,tblCountries!G58))) -> 0 | F74: =tblCountries!F58 -> 1 | G74: 40 | H74: =IF(F74=0,"",RANK(G74,G$19:G$98,$B$7)+COUNTIF(G$19:G74,G74)-1) -> 46 | I74: 19 | J74: 1 | K74: 56 | L74: 1 | M74: =56 | N74: Egypt | O74: 32.9 | P74: 32.9 | Q74: =IF($B$2=27,"",IF(ISNA(VLOOKUP(N74,uxb_regions!$C$3:$I$82,7,FALSE)),"",VLOOKUP(N74,uxb_regions!$C$3:$I$82,7,FALSE))) -> EGY | R74: 32.9 | S74: 2 | T74: 32.9 | U74: =1 -> 1 | V74: 1 | W74: 0 | X74: EGY | AB74: 32.9 | AD74: 1 | AE74: =IF(AD74=1,tblCountries!G58,0) -> 0 | AL74: =VLOOKUP(C74,tblCountries!$F$3:$L$182,7,FALSE)+10 ->  | AM74: =tblCountries!L58 -> 1 | AN74: 1 | AP74: =CHOOSE(uxbWorks!$B$10,tblCountries!Q58,tblCountries!#REF!,tblCountries!R58,tblCountries!S58,tblCountries!T58) -> 0
A75: =tblCountries!A59 -> 57 | B75: =tblCountries!B59 -> RO | C75: =tblCountries!C59 -> Romania | D75: =tblCountries!D59 -> 1 | E75: =IF(AND(OR(tblCountries!$K$5=4,tblCountries!$K$5=5),$E$2=3),0,IF(AND(OR(tblCountries!$K$5=2,tblCountries!$K$5=3),$E$2=3),tblCountries!G59,IF(AND($E$2=3,tblCountries!$K$5=1),AE75,tblCountries!G59))) -> 0 | F75: =tblCountries!F59 -> 1 | G75: 28.3 | H75: =IF(F75=0,"",RANK(G75,G$19:G$98,$B$7)+COUNTIF(G$19:G75,G75)-1) -> 64 | I75: 25 | J75: 1 | K75: 56 | L75: 1 | M75: =56 | N75: Greece | O75: 32.9 | P75: 32.9 | Q75: =IF($B$2=27,"",IF(ISNA(VLOOKUP(N75,uxb_regions!$C$3:$I$82,7,FALSE)),"",VLOOKUP(N75,uxb_regions!$C$3:$I$82,7,FALSE))) -> GRC | R75: 32.9 | S75: 2 | T75: 32.9 | U75: =1 -> 1 | V75: 1 | W75: 0 | X75: GRC | AB75: 32.9 | AD75: 0 | AE75: =IF(AD75=1,tblCountries!G59,0) -> 0 | AL75: =VLOOKUP(C75,tblCountries!$F$3:$L$182,7,FALSE)+10 ->  | AM75: =tblCountries!L59 -> 1 | AN75: 1 | AP75: =CHOOSE(uxbWorks!$B$10,tblCountries!Q59,tblCountries!#REF!,tblCountries!R59,tblCountries!S59,tblCountries!T59) -> 0
A76: =tblCountries!A60 -> 58 | B76: =tblCountries!B60 -> RU | C76: =tblCountries!C60 -> Russia | D76: =tblCountries!D60 -> 1 | E76: =IF(AND(OR(tblCountries!$K$5=4,tblCountries!$K$5=5),$E$2=3),0,IF(AND(OR(tblCountries!$K$5=2,tblCountries!$K$5=3),$E$2=3),tblCountries!G60,IF(AND($E$2=3,tblCountries!$K$5=1),AE76,tblCountries!G60))) -> 0 | F76: =tblCountries!F60 -> 1 | G76: 37.2 | H76: =IF(F76=0,"",RANK(G76,G$19:G$98,$B$7)+COUNTIF(G$19:G76,G76)-1) -> 48 | I76: 78 | J76: 1 | K76: 58 | L76: 1 | M76: 58 | N76: Vietnam | O76: 31.9 | P76: 31.9 | Q76: =IF($B$2=27,"",IF(ISNA(VLOOKUP(N76,uxb_regions!$C$3:$I$82,7,FALSE)),"",VLOOKUP(N76,uxb_regions!$C$3:$I$82,7,FALSE))) -> VNM | R76: 31.9 | S76: 2 | T76: 31.9 | U76: =1 -> 1 | V76: 1 | W76: 0 | X76: VNM | AB76: 31.9 | AD76: 0 | AE76: =IF(AD76=1,tblCountries!G60,0) -> 0 | AL76: =VLOOKUP(C76,tblCountries!$F$3:$L$182,7,FALSE)+10 ->  | AM76: =tblCountries!L60 -> 1 | AN76: 1 | AP76: =CHOOSE(uxbWorks!$B$10,tblCountries!Q60,tblCountries!#REF!,tblCountries!R60,tblCountries!S60,tblCountries!T60) -> 0
A77: =tblCountries!A61 -> 59 | B77: =tblCountries!B61 -> SA | C77: =tblCountries!C61 -> Saudi Arabia | D77: =tblCountries!D61 -> 1 | E77: =IF(AND(OR(tblCountries!$K$5=4,tblCountries!$K$5=5),$E$2=3),0,IF(AND(OR(tblCountries!$K$5=2,tblCountries!$K$5=3),$E$2=3),tblCountries!G61,IF(AND($E$2=3,tblCountries!$K$5=1),AE77,tblCountries!G61))) -> 0 | F77: =tblCountries!F61 -> 1 | G77: 30.8 | H77: =IF(F77=0,"",RANK(G77,G$19:G$98,$B$7)+COUNTIF(G$19:G77,G77)-1) -> 60 | I77: 80 | J77: 1 | K77: 59 | L77: 1 | M77: 59 | N77: Zimbabwe | O77: 31.3 | P77: 31.3 | Q77: =IF($B$2=27,"",IF(ISNA(VLOOKUP(N77,uxb_regions!$C$3:$I$82,7,FALSE)),"",VLOOKUP(N77,uxb_regions!$C$3:$I$82,7,FALSE))) -> ZWE | R77: 31.3 | S77: 2 | T77: 31.3 | U77: =1 -> 1 | V77: 1 | W77: 0 | X77: ZWE | AB77: 31.3 | AD77: 0 | AE77: =IF(AD77=1,tblCountries!G61,0) -> 0 | AL77: =VLOOKUP(C77,tblCountries!$F$3:$L$182,7,FALSE)+10 ->  | AM77: =tblCountries!L61 -> 1 | AN77: 1 | AP77: =CHOOSE(uxbWorks!$B$10,tblCountries!Q61,tblCountries!#REF!,tblCountries!R61,tblCountries!S61,tblCountries!T61) -> 0
A78: =tblCountries!A62 -> 60 | B78: =tblCountries!B62 -> SG | C78: =tblCountries!C62 -> Singapore | D78: =tblCountries!D62 -> 1 | E78: =IF(AND(OR(tblCountries!$K$5=4,tblCountries!$K$5=5),$E$2=3),0,IF(AND(OR(tblCountries!$K$5=2,tblCountries!$K$5=3),$E$2=3),tblCountries!G62,IF(AND($E$2=3,tblCountries!$K$5=1),AE78,tblCountries!G62))) -> 0 | F78: =tblCountries!F62 -> 1 | G78: 77.6 | H78: =IF(F78=0,"",RANK(G78,G$19:G$98,$B$7)+COUNTIF(G$19:G78,G78)-1) -> 12 | I78: 59 | J78: 1 | K78: 60 | L78: 1 | M78: 60 | N78: Saudi Arabia | O78: 30.8 | P78: 30.8 | Q78: =IF($B$2=27,"",IF(ISNA(VLOOKUP(N78,uxb_regions!$C$3:$I$82,7,FALSE)),"",VLOOKUP(N78,uxb_regions!$C$3:$I$82,7,FALSE))) -> SAU | R78: 30.8 | S78: 2 | T78: 30.8 | U78: =1 -> 1 | V78: 1 | W78: 0 | X78: SAU | AB78: 30.8 | AD78: 0 | AE78: =IF(AD78=1,tblCountries!G62,0) -> 0 | AL78: =VLOOKUP(C78,tblCountries!$F$3:$L$182,7,FALSE)+10 ->  | AM78: =tblCountries!L62 -> 1 | AN78: 1 | AP78: =CHOOSE(uxbWorks!$B$10,tblCountries!Q62,tblCountries!#REF!,tblCountries!R62,tblCountries!S62,tblCountries!T62) -> 1
A79: =tblCountries!A63 -> 61 | B79: =tblCountries!B63 -> SK | C79: =tblCountries!C63 -> Slovakia | D79: =tblCountries!D63 -> 1 | E79: =IF(AND(OR(tblCountries!$K$5=4,tblCountries!$K$5=5),$E$2=3),0,IF(AND(OR(tblCountries!$K$5=2,tblCountries!$K$5=3),$E$2=3),tblCountries!G63,IF(AND($E$2=3,tblCountries!$K$5=1),AE79,tblCountries!G63))) -> 0 | F79: =tblCountries!F63 -> 1 | G79: 33.2 | H79: =IF(F79=0,"",RANK(G79,G$19:G$98,$B$7)+COUNTIF(G$19:G79,G79)-1) -> 55 | I79: 79 | J79: 1 | K79: 61 | L79: 1 | M79: 61 | N79: Zambia | O79: 30.3 | P79: 30.3 | Q79: =IF($B$2=27,"",IF(ISNA(VLOOKUP(N79,uxb_regions!$C$3:$I$82,7,FALSE)),"",VLOOKUP(N79,uxb_regions!$C$3:$I$82,7,FALSE))) -> ZMB | R79: 30.3 | S79: 2 | T79: 30.3 | U79: =1 -> 1 | V79: 1 | W79: 0 | X79: ZMB | AB79: 30.3 | AD79: 0 | AE79: =IF(AD79=1,tblCountries!G63,0) -> 0 | AL79: =VLOOKUP(C79,tblCountries!$F$3:$L$182,7,FALSE)+10 ->  | AM79: =tblCountries!L63 -> 1 | AN79: 1 | AP79: =CHOOSE(uxbWorks!$B$10,tblCountries!Q63,tblCountries!#REF!,tblCountries!R63,tblCountries!S63,tblCountries!T63) -> 0
A80: =tblCountries!A64 -> 62 | B80: =tblCountries!B64 -> ZA | C80: =tblCountries!C64 -> South Africa | D80: =tblCountries!D64 -> 1 | E80: =IF(AND(OR(tblCountries!$K$5=4,tblCountries!$K$5=5),$E$2=3),0,IF(AND(OR(tblCountries!$K$5=2,tblCountries!$K$5=3),$E$2=3),tblCountries!G64,IF(AND($E$2=3,tblCountries!$K$5=1),AE80,tblCountries!G64))) -> 0 | F80: =tblCountries!F64 -> 1 | G80: 48.5 | H80: =IF(F80=0,"",RANK(G80,G$19:G$98,$B$7)+COUNTIF(G$19:G80,G80)-1) -> 34 | I80: 8 | J80: 1 | K80: 62 | L80: 1 | M80: 62 | N80: Bulgaria | O80: 30.1 | P80: 30.1 | Q80: =IF($B$2=27,"",IF(ISNA(VLOOKUP(N80,uxb_regions!$C$3:$I$82,7,FALSE)),"",VLOOKUP(N80,uxb_regions!$C$3:$I$82,7,FALSE))) -> BGR | R80: 30.1 | S80: 2 | T80: 30.1 | U80: =1 -> 1 | V80: 1 | W80: 0 | X80: BGR | AB80: 30.1 | AD80: 1 | AE80: =IF(AD80=1,tblCountries!G64,0) -> 0 | AL80: =VLOOKUP(C80,tblCountries!$F$3:$L$182,7,FALSE)+10 ->  | AM80: =tblCountries!L64 -> 1 | AN80: 1 | AP80: =CHOOSE(uxbWorks!$B$10,tblCountries!Q64,tblCountries!#REF!,tblCountries!R64,tblCountries!S64,tblCountries!T64) -> 0
A81: =tblCountries!A65 -> 63 | B81: =tblCountries!B65 -> KR | C81: =tblCountries!C65 -> South Korea | D81: =tblCountries!D65 -> 1 | E81: =IF(AND(OR(tblCountries!$K$5=4,tblCountries!$K$5=5),$E$2=3),0,IF(AND(OR(tblCountries!$K$5=2,tblCountries!$K$5=3),$E$2=3),tblCountries!G65,IF(AND($E$2=3,tblCountries!$K$5=1),AE81,tblCountries!G65))) -> 0 | F81: =tblCountries!F65 -> 1 | G81: 73.7 | H81: =IF(F81=0,"",RANK(G81,G$19:G$98,$B$7)+COUNTIF(G$19:G81,G81)-1) -> 18 | I81: 39 | J81: 1 | K81: 63 | L81: 1 | M81: 63 | N81: Kenya | O81: 30 | P81: 30 | Q81: =IF($B$2=27,"",IF(ISNA(VLOOKUP(N81,uxb_regions!$C$3:$I$82,7,FALSE)),"",VLOOKUP(N81,uxb_regions!$C$3:$I$82,7,FALSE))) -> KEN | R81: 30 | S81: 2 | T81: 30 | U81: =1 -> 1 | V81: 1 | W81: 0 | X81: KEN | AB81: 30 | AD81: 1 | AE81: =IF(AD81=1,tblCountries!G65,0) -> 0 | AL81: =VLOOKUP(C81,tblCountries!$F$3:$L$182,7,FALSE)+10 ->  | AM81: =tblCountries!L65 -> 1 | AN81: 1 | AP81: =CHOOSE(uxbWorks!$B$10,tblCountries!Q65,tblCountries!#REF!,tblCountries!R65,tblCountries!S65,tblCountries!T65) -> 1
A82: =tblCountries!A66 -> 64 | B82: =tblCountries!B66 -> ES | C82: =tblCountries!C66 -> Spain | D82: =tblCountries!D66 -> 1 | E82: =IF(AND(OR(tblCountries!$K$5=4,tblCountries!$K$5=5),$E$2=3),0,IF(AND(OR(tblCountries!$K$5=2,tblCountries!$K$5=3),$E$2=3),tblCountries!G66,IF(AND($E$2=3,tblCountries!$K$5=1),AE82,tblCountries!G66))) -> 0 | F82: =tblCountries!F66 -> 1 | G82: 63.4 | H82: =IF(F82=0,"",RANK(G82,G$19:G$98,$B$7)+COUNTIF(G$19:G82,G82)-1) -> 23 | I82: 57 | J82: 1 | K82: 64 | L82: 1 | M82: 64 | N82: Romania | O82: 28.3 | P82: 28.3 | Q82: =IF($B$2=27,"",IF(ISNA(VLOOKUP(N82,uxb_regions!$C$3:$I$82,7,FALSE)),"",VLOOKUP(N82,uxb_regions!$C$3:$I$82,7,FALSE))) -> ROU | R82: 28.3 | S82: 2 | T82: 28.3 | U82: =1 -> 1 | V82: 1 | W82: 0 | X82: ROU | AB82: 28.3 | AD82: 0 | AE82: =IF(AD82=1,tblCountries!G66,0) -> 0 | AL82: =VLOOKUP(C82,tblCountries!$F$3:$L$182,7,FALSE)+10 ->  | AM82: =tblCountries!L66 -> 1 | AN82: 1 | AP82: =CHOOSE(uxbWorks!$B$10,tblCountries!Q66,tblCountries!#REF!,tblCountries!R66,tblCountries!S66,tblCountries!T66) -> 0
A83: =tblCountries!A67 -> 65 | B83: =tblCountries!B67 -> LK | C83: =tblCountries!C67 -> Sri Lanka | D83: =tblCountries!D67 -> 1 | E83: =IF(AND(OR(tblCountries!$K$5=4,tblCountries!$K$5=5),$E$2=3),0,IF(AND(OR(tblCountries!$K$5=2,tblCountries!$K$5=3),$E$2=3),tblCountries!G67,IF(AND($E$2=3,tblCountries!$K$5=1),AE83,tblCountries!G67))) -> 0 | F83: =tblCountries!F67 -> 1 | G83: =IF(F83=0,"",IF($U$2=0,ROUND(INDEX(aRoundedScores,$B$2,$A83),5),INDEX(aData,$B$2,$A83))) -> 27.1 | H83: =IF(F83=0,"",RANK(G83,G$19:G$98,$B$7)+COUNTIF(G$19:G83,G83)-1) -> 65 | I83: =IF(ISERROR(MATCH($A83,H$19:H$98,0)),"",MATCH($A83,H$19:H$98,0)) -> 65 | J83: 1 | K83: =IF(I83="","",RANK(O83,O$19:O$98,$B$7)) -> 65 | L83: =IF(I83="",0,INDEX($F$19:$F$98,I83)) -> 1 | M83: 65 | N83: =IF(I83="","",INDEX($C$19:$C$98,I83)) -> Sri Lanka | O83: =IF(I83="","",IF($U$2=0,INDEX(aRoundedScores,$B$2,I83),INDEX(aData,$B$2,I83))) -> 27.1 | P83: 27.1 | Q83: =IF($B$2=27,"",IF(ISNA(VLOOKUP(N83,uxb_regions!$C$3:$I$82,7,FALSE)),"",VLOOKUP(N83,uxb_regions!$C$3:$I$82,7,FALSE))) -> LKA | R83: 27.1 | S83: =IF($B$2=27,"",IF(Q83="","",CHOOSE($U$3,IF(R83<R$7,1,IF(R83<R$8,2,IF(R83<R$9,3,IF(R83<R$10,4,IF(R83<=R$11,5,6))))),IF(R83<S$7,1,IF(R83<S$8,2,IF(R83<S$9,3,IF(R83<S$10,4,IF(R83<=S$11,5,6)))))))) -> 2 | T83: 27.1 | U83: =1 -> 1 | V83: =IF(ISNA(INDEX($F$19:$F$98,MATCH(N83,$C$19:$C$98,0))),0,INDEX($F$19:$F$98,MATCH(N83,$C$19:$C$98,0))) -> 1 | W83: 0 | X83: LKA | AB83: 27.1 | AD83: 0 | AE83: =IF(AD83=1,tblCountries!G67,0) -> 0 | AF83: =IF(L83=2,T83,NA()) ->  | AI83: =IF(L83=3,T83,NA()) ->  | AL83: =VLOOKUP(C83,tblCountries!$F$3:$L$182,7,FALSE)+10 ->  | AM83: =tblCountries!L67 -> 1 | AN83: 1 | AP83: =CHOOSE(uxbWorks!$B$10,tblCountries!Q67,tblCountries!#REF!,tblCountries!R67,tblCountries!S67,tblCountries!T67) -> 1
A84: =tblCountries!A68 -> 66 | B84: =tblCountries!B68 -> SE | C84: =tblCountries!C68 -> Sweden | D84: =tblCountries!D68 -> 1 | E84: =IF(AND(OR(tblCountries!$K$5=4,tblCountries!$K$5=5),$E$2=3),0,IF(AND(OR(tblCountries!$K$5=2,tblCountries!$K$5=3),$E$2=3),tblCountries!G68,IF(AND($E$2=3,tblCountries!$K$5=1),AE84,tblCountries!G68))) -> 0 | F84: =tblCountries!F68 -> 1 | G84: 75.4 | H84: =IF(F84=0,"",RANK(G84,G$19:G$98,$B$7)+COUNTIF(G$19:G84,G84)-1) -> 16 | I84: 41 | J84: =IF(I84="","",1) -> 1 | K84: 66 | L84: 1 | M84: =IF(I84="","",IF(OR(K84=K83,K84=K85),CONCATENATE("=",K84),K84)) -> 66 | N84: Malawi | O84: 27 | P84: =IF(L84=0,"",IF(OR($C$2=1,$B$2=27),"-",O84)) -> 27 | Q84: =IF($B$2=27,"",IF(ISNA(VLOOKUP(N84,uxb_regions!$C$3:$I$82,7,FALSE)),"",VLOOKUP(N84,uxb_regions!$C$3:$I$82,7,FALSE))) -> MWI | R84: =IF(L84=0,"",O84) -> 27 | S84: 2 | T84: =IF(ISNUMBER(O84),O84,NA()) -> 27 | U84: =1 -> 1 | V84: 1 | W84: =IF(V84<>1,Q84,0) -> 0 | X84: =IF(ISNA(V84),"",Q84) -> MWI | Z84: =IF(L84=2,1,NA()) ->  | AB84: =LARGE($R$19:$R$98,ROW(R66)-ROW($R$1)+1) -> 27 | AD84: 0 | AE84: =IF(AD84=1,tblCountries!G68,0) -> 0 | AG84: =IF(L84=2,1,NA()) ->  | AJ84: =IF(L84=3,1,NA()) ->  | AL84: =VLOOKUP(C84,tblCountries!$F$3:$L$182,7,FALSE)+10 ->  | AM84: =tblCountries!L68 -> 1 | AN84: =IF($G$2=3,IF(OR(AM84=3,AM84=4),0,1),1) -> 1 | AP84: =CHOOSE(uxbWorks!$B$10,tblCountries!Q68,tblCountries!#REF!,tblCountries!R68,tblCountries!S68,tblCountries!T68) -> 0
A85: =tblCountries!A69 -> 67 | B85: =tblCountries!B69 -> CH | C85: =tblCountries!C69 -> Switzerland | D85: =tblCountries!D69 -> 1 | E85: =IF(AND(OR(tblCountries!$K$5=4,tblCountries!$K$5=5),$E$2=3),0,IF(AND(OR(tblCountries!$K$5=2,tblCountries!$K$5=3),$E$2=3),tblCountries!G69,IF(AND($E$2=3,tblCountries!$K$5=1),AE85,tblCountries!G69))) -> 0 | F85: =tblCountries!F69 -> 1 | G85: 76.1 | H85: =IF(F85=0,"",RANK(G85,G$19:G$98,$B$7)+COUNTIF(G$19:G85,G85)-1) -> 15 | I85: 29 | J85: 1 | K85: 67 | L85: 1 | M85: 67 | N85: India | O85: 26.8 | P85: 26.8 | Q85: =IF($B$2=27,"",IF(ISNA(VLOOKUP(N85,uxb_regions!$C$3:$I$82,7,FALSE)),"",VLOOKUP(N85,uxb_regions!$C$3:$I$82,7,FALSE))) -> IND | R85: 26.8 | S85: 2 | T85: 26.8 | U85: =1 -> 1 | V85: 1 | W85: 0 | X85: IND | Y85: =IF(L85=2,T85,NA()) ->  | AB85: 26.8 | AD85: 1 | AE85: =IF(AD85=1,tblCountries!G69,0) -> 0 | AL85: =VLOOKUP(C85,tblCountries!$F$3:$L$182,7,FALSE)+10 ->  | AM85: =tblCountries!L69 -> 1 | AN85: 1 | AP85: =CHOOSE(uxbWorks!$B$10,tblCountries!Q69,tblCountries!#REF!,tblCountries!R69,tblCountries!S69,tblCountries!T69) -> 0
A86: =tblCountries!A70 -> 68 | B86: =tblCountries!B70 -> TW | C86: =tblCountries!C70 -> Taiwan | D86: =tblCountries!D70 -> 1 | E86: =IF(AND(OR(tblCountries!$K$5=4,tblCountries!$K$5=5),$E$2=3),0,IF(AND(OR(tblCountries!$K$5=2,tblCountries!$K$5=3),$E$2=3),tblCountries!G70,IF(AND($E$2=3,tblCountries!$K$5=1),AE86,tblCountries!G70))) -> 0 | F86: =tblCountries!F70 -> 1 | G86: 83.1 | H86: =IF(F86=0,"",RANK(G86,G$19:G$98,$B$7)+COUNTIF(G$19:G86,G86)-1) -> 6 | I86: 12 | J86: 1 | K86: 68 | L86: 1 | M86: 68 | N86: Colombia | O86: 26.7 | P86: 26.7 | Q86: =IF($B$2=27,"",IF(ISNA(VLOOKUP(N86,uxb_regions!$C$3:$I$82,7,FALSE)),"",VLOOKUP(N86,uxb_regions!$C$3:$I$82,7,FALSE))) -> COL | R86: 26.7 | S86: 2 | T86: 26.7 | U86: =1 -> 1 | V86: 1 | W86: 0 | X86: COL | AB86: 26.7 | AD86: 0 | AE86: =IF(AD86=1,tblCountries!G70,0) -> 0 | AL86: =VLOOKUP(C86,tblCountries!$F$3:$L$182,7,FALSE)+10 ->  | AM86: =tblCountries!L70 -> 1 | AN86: 1 | AP86: =CHOOSE(uxbWorks!$B$10,tblCountries!Q70,tblCountries!#REF!,tblCountries!R70,tblCountries!S70,tblCountries!T70) -> 1
A87: =tblCountries!A71 -> 69 | B87: =tblCountries!B71 -> TZ | C87: =tblCountries!C71 -> Tanzania | D87: =tblCountries!D71 -> 1 | E87: =IF(AND(OR(tblCountries!$K$5=4,tblCountries!$K$5=5),$E$2=3),0,IF(AND(OR(tblCountries!$K$5=2,tblCountries!$K$5=3),$E$2=3),tblCountries!G71,IF(AND($E$2=3,tblCountries!$K$5=1),AE87,tblCountries!G71))) -> 0 | F87: =tblCountries!F71 -> 1 | G87: 33.4 | H87: =IF(F87=0,"",RANK(G87,G$19:G$98,$B$7)+COUNTIF(G$19:G87,G87)-1) -> 54 | I87: 73 | J87: 1 | K87: 69 | L87: 1 | M87: 69 | N87: Ukraine | O87: 25.5 | P87: 25.5 | Q87: =IF($B$2=27,"",IF(ISNA(VLOOKUP(N87,uxb_regions!$C$3:$I$82,7,FALSE)),"",VLOOKUP(N87,uxb_regions!$C$3:$I$82,7,FALSE))) -> UKR | R87: 25.5 | S87: 2 | T87: 25.5 | U87: =1 -> 1 | V87: 1 | W87: 0 | X87: UKR | AB87: 25.5 | AD87: 0 | AE87: =IF(AD87=1,tblCountries!G71,0) -> 0 | AL87: =VLOOKUP(C87,tblCountries!$F$3:$L$182,7,FALSE)+10 ->  | AM87: =tblCountries!L71 -> 1 | AN87: 1 | AP87: =CHOOSE(uxbWorks!$B$10,tblCountries!Q71,tblCountries!#REF!,tblCountries!R71,tblCountries!S71,tblCountries!T71) -> 0
A88: =tblCountries!A72 -> 70 | B88: =tblCountries!B72 -> TH | C88: =tblCountries!C72 -> Thailand | D88: =tblCountries!D72 -> 1 | E88: =IF(AND(OR(tblCountries!$K$5=4,tblCountries!$K$5=5),$E$2=3),0,IF(AND(OR(tblCountries!$K$5=2,tblCountries!$K$5=3),$E$2=3),tblCountries!G72,IF(AND($E$2=3,tblCountries!$K$5=1),AE88,tblCountries!G72))) -> 0 | F88: =tblCountries!F72 -> 1 | G88: 40.2 | H88: =IF(F88=0,"",RANK(G88,G$19:G$98,$B$7)+COUNTIF(G$19:G88,G88)-1) -> 44 | I88: 20 | J88: 1 | K88: 70 | L88: 1 | M88: 70 | N88: Ethiopia | O88: 25.1 | P88: 25.1 | Q88: =IF($B$2=27,"",IF(ISNA(VLOOKUP(N88,uxb_regions!$C$3:$I$82,7,FALSE)),"",VLOOKUP(N88,uxb_regions!$C$3:$I$82,7,FALSE))) -> ETH | R88: 25.1 | S88: 2 | T88: 25.1 | U88: =1 -> 1 | V88: 1 | W88: 0 | X88: ETH | AB88: 25.1 | AD88: 0 | AE88: =IF(AD88=1,tblCountries!G72,0) -> 0 | AL88: =VLOOKUP(C88,tblCountries!$F$3:$L$182,7,FALSE)+10 ->  | AM88: =tblCountries!L72 -> 1 | AN88: 1 | AP88: =CHOOSE(uxbWorks!$B$10,tblCountries!Q72,tblCountries!#REF!,tblCountries!R72,tblCountries!S72,tblCountries!T72) -> 1
A89: =tblCountries!A73 -> 71 | B89: =tblCountries!B73 -> TR | C89: =tblCountries!C73 -> Turkey | D89: =tblCountries!D73 -> 1 | E89: =IF(AND(OR(tblCountries!$K$5=4,tblCountries!$K$5=5),$E$2=3),0,IF(AND(OR(tblCountries!$K$5=2,tblCountries!$K$5=3),$E$2=3),tblCountries!G73,IF(AND($E$2=3,tblCountries!$K$5=1),AE89,tblCountries!G73))) -> 0 | F89: =tblCountries!F73 -> 1 | G89: 38.2 | H89: =IF(F89=0,"",RANK(G89,G$19:G$98,$B$7)+COUNTIF(G$19:G89,G89)-1) -> 47 | I89: 11 | J89: 1 | K89: 71 | L89: 1 | M89: 71 | N89: China | O89: 23.3 | P89: 23.3 | Q89: =IF($B$2=27,"",IF(ISNA(VLOOKUP(N89,uxb_regions!$C$3:$I$82,7,FALSE)),"",VLOOKUP(N89,uxb_regions!$C$3:$I$82,7,FALSE))) -> CHN | R89: 23.3 | S89: 2 | T89: 23.3 | U89: =1 -> 1 | V89: 1 | W89: 0 | X89: CHN | AB89: 23.3 | AD89: 0 | AE89: =IF(AD89=1,tblCountries!G73,0) -> 0 | AL89: =VLOOKUP(C89,tblCountries!$F$3:$L$182,7,FALSE)+10 ->  | AM89: =tblCountries!L73 -> 1 | AN89: 1 | AP89: =CHOOSE(uxbWorks!$B$10,tblCountries!Q73,tblCountries!#REF!,tblCountries!R73,tblCountries!S73,tblCountries!T73) -> 0
A90: =tblCountries!A74 -> 72 | B90: =tblCountries!B74 -> UG | C90: =tblCountries!C74 -> Uganda | D90: =tblCountries!D74 -> 1 | E90: =IF(AND(OR(tblCountries!$K$5=4,tblCountries!$K$5=5),$E$2=3),0,IF(AND(OR(tblCountries!$K$5=2,tblCountries!$K$5=3),$E$2=3),tblCountries!G74,IF(AND($E$2=3,tblCountries!$K$5=1),AE90,tblCountries!G74))) -> 0 | F90: =tblCountries!F74 -> 1 | G90: 47.8 | H90: =IF(F90=0,"",RANK(G90,G$19:G$98,$B$7)+COUNTIF(G$19:G90,G90)-1) -> 35 | I90: 6 | J90: 1 | K90: 72 | L90: 1 | M90: 72 | N90: Botswana | O90: 22.8 | P90: 22.8 | Q90: =IF($B$2=27,"",IF(ISNA(VLOOKUP(N90,uxb_regions!$C$3:$I$82,7,FALSE)),"",VLOOKUP(N90,uxb_regions!$C$3:$I$82,7,FALSE))) -> BWA | R90: 22.8 | S90: 2 | T90: 22.8 | U90: =1 -> 1 | V90: 1 | W90: 0 | X90: BWA | AB90: 22.8 | AD90: 0 | AE90: =IF(AD90=1,tblCountries!G74,0) -> 0 | AL90: =VLOOKUP(C90,tblCountries!$F$3:$L$182,7,FALSE)+10 ->  | AM90: =tblCountries!L74 -> 1 | AN90: 1 | AP90: =CHOOSE(uxbWorks!$B$10,tblCountries!Q74,tblCountries!#REF!,tblCountries!R74,tblCountries!S74,tblCountries!T74) -> 0
A91: =tblCountries!A75 -> 73 | B91: =tblCountries!B75 -> UA | C91: =tblCountries!C75 -> Ukraine | D91: =tblCountries!D75 -> 1 | E91: =IF(AND(OR(tblCountries!$K$5=4,tblCountries!$K$5=5),$E$2=3),0,IF(AND(OR(tblCountries!$K$5=2,tblCountries!$K$5=3),$E$2=3),tblCountries!G75,IF(AND($E$2=3,tblCountries!$K$5=1),AE91,tblCountries!G75))) -> 0 | F91: =tblCountries!F75 -> 1 | G91: 25.5 | H91: =IF(F91=0,"",RANK(G91,G$19:G$98,$B$7)+COUNTIF(G$19:G91,G91)-1) -> 69 | I91: 31 | J91: 1 | K91: 73 | L91: 1 | M91: 73 | N91: Iran | O91: 21.2 | P91: 21.2 | Q91: =IF($B$2=27,"",IF(ISNA(VLOOKUP(N91,uxb_regions!$C$3:$I$82,7,FALSE)),"",VLOOKUP(N91,uxb_regions!$C$3:$I$82,7,FALSE))) -> IRN | R91: 21.2 | S91: 2 | T91: 21.2 | U91: =1 -> 1 | V91: 1 | W91: 0 | X91: IRN | AB91: 21.2 | AD91: 0 | AE91: =IF(AD91=1,tblCountries!G75,0) -> 0 | AL91: =VLOOKUP(C91,tblCountries!$F$3:$L$182,7,FALSE)+10 ->  | AM91: =tblCountries!L75 -> 1 | AN91: 1 | AP91: =CHOOSE(uxbWorks!$B$10,tblCountries!Q75,tblCountries!#REF!,tblCountries!R75,tblCountries!S75,tblCountries!T75) -> 0
A92: =tblCountries!A76 -> 74 | B92: =tblCountries!B76 -> GB | C92: =tblCountries!C76 -> United Kingdom | D92: =tblCountries!D76 -> 1 | E92: =IF(AND(OR(tblCountries!$K$5=4,tblCountries!$K$5=5),$E$2=3),0,IF(AND(OR(tblCountries!$K$5=2,tblCountries!$K$5=3),$E$2=3),tblCountries!G76,IF(AND($E$2=3,tblCountries!$K$5=1),AE92,tblCountries!G76))) -> 0 | F92: =tblCountries!F76 -> 1 | G92: 93.9 | H92: =IF(F92=0,"",RANK(G92,G$19:G$98,$B$7)+COUNTIF(G$19:G92,G92)-1) -> 1 | I92: 26 | J92: 1 | K92: 74 | L92: 1 | M92: 74 | N92: Guatemala | O92: 20.9 | P92: 20.9 | Q92: =IF($B$2=27,"",IF(ISNA(VLOOKUP(N92,uxb_regions!$C$3:$I$82,7,FALSE)),"",VLOOKUP(N92,uxb_regions!$C$3:$I$82,7,FALSE))) -> GTM | R92: 20.9 | S92: 2 | T92: 20.9 | U92: =1 -> 1 | V92: 1 | W92: 0 | X92: GTM | AB92: 20.9 | AD92: 1 | AE92: =IF(AD92=1,tblCountries!G76,0) -> 0 | AL92: =VLOOKUP(C92,tblCountries!$F$3:$L$182,7,FALSE)+10 ->  | AM92: =tblCountries!L76 -> 1 | AN92: 1 | AP92: =CHOOSE(uxbWorks!$B$10,tblCountries!Q76,tblCountries!#REF!,tblCountries!R76,tblCountries!S76,tblCountries!T76) -> 0
A93: =tblCountries!A77 -> 75 | B93: =tblCountries!B77 -> US | C93: =tblCountries!C77 -> United States of America | D93: =tblCountries!D77 -> 1 | E93: =IF(AND(OR(tblCountries!$K$5=4,tblCountries!$K$5=5),$E$2=3),0,IF(AND(OR(tblCountries!$K$5=2,tblCountries!$K$5=3),$E$2=3),tblCountries!G77,IF(AND($E$2=3,tblCountries!$K$5=1),AE93,tblCountries!G77))) -> 0 | F93: =tblCountries!F77 -> 1 | G93: 80.8 | H93: =IF(F93=0,"",RANK(G93,G$19:G$98,$B$7)+COUNTIF(G$19:G93,G93)-1) -> 9 | I93: 17 | J93: 1 | K93: 75 | L93: 1 | M93: 75 | N93: Dominican Republic | O93: 17.2 | P93: 17.2 | Q93: =IF($B$2=27,"",IF(ISNA(VLOOKUP(N93,uxb_regions!$C$3:$I$82,7,FALSE)),"",VLOOKUP(N93,uxb_regions!$C$3:$I$82,7,FALSE))) -> DOM | R93: 17.2 | S93: 1 | T93: 17.2 | U93: =1 -> 1 | V93: 1 | W93: 0 | X93: DOM | AB93: 17.2 | AD93: 1 | AE93: =IF(AD93=1,tblCountries!G77,0) -> 0 | AL93: =VLOOKUP(C93,tblCountries!$F$3:$L$182,7,FALSE)+10 ->  | AM93: =tblCountries!L77 -> 1 | AN93: 1 | AP93: =CHOOSE(uxbWorks!$B$10,tblCountries!Q77,tblCountries!#REF!,tblCountries!R77,tblCountries!S77,tblCountries!T77) -> 0
A94: =tblCountries!A78 -> 76 | B94: =tblCountries!B78 -> UY | C94: =tblCountries!C78 -> Uruguay | D94: =tblCountries!D78 -> 1 | E94: =IF(AND(OR(tblCountries!$K$5=4,tblCountries!$K$5=5),$E$2=3),0,IF(AND(OR(tblCountries!$K$5=2,tblCountries!$K$5=3),$E$2=3),tblCountries!G78,IF(AND($E$2=3,tblCountries!$K$5=1),AE94,tblCountries!G78))) -> 0 | F94: =tblCountries!F78 -> 1 | G94: 46.1 | H94: =IF(F94=0,"",RANK(G94,G$19:G$98,$B$7)+COUNTIF(G$19:G94,G94)-1) -> 39 | I94: 46 | J94: 1 | K94: 76 | L94: 1 | M94: 76 | N94: Myanmar | O94: 17.1 | P94: 17.1 | Q94: =IF($B$2=27,"",IF(ISNA(VLOOKUP(N94,uxb_regions!$C$3:$I$82,7,FALSE)),"",VLOOKUP(N94,uxb_regions!$C$3:$I$82,7,FALSE))) -> MMR | R94: 17.1 | S94: 1 | T94: 17.1 | U94: =1 -> 1 | V94: 1 | W94: 0 | X94: MMR | AB94: 17.1 | AD94: 0 | AE94: =IF(AD94=1,tblCountries!G78,0) -> 0 | AL94: =VLOOKUP(C94,tblCountries!$F$3:$L$182,7,FALSE)+10 ->  | AM94: =tblCountries!L78 -> 1 | AN94: 1 | AP94: =CHOOSE(uxbWorks!$B$10,tblCountries!Q78,tblCountries!#REF!,tblCountries!R78,tblCountries!S78,tblCountries!T78) -> 0
A95: =tblCountries!A79 -> 77 | B95: =tblCountries!B79 -> VE | C95: =tblCountries!C79 -> Venezuela | D95: =tblCountries!D79 -> 1 | E95: =IF(AND(OR(tblCountries!$K$5=4,tblCountries!$K$5=5),$E$2=3),0,IF(AND(OR(tblCountries!$K$5=2,tblCountries!$K$5=3),$E$2=3),tblCountries!G79,IF(AND($E$2=3,tblCountries!$K$5=1),AE95,tblCountries!G79))) -> 0 | F95: =tblCountries!F79 -> 1 | G95: 40.1 | H95: =IF(F95=0,"",RANK(G95,G$19:G$98,$B$7)+COUNTIF(G$19:G95,G95)-1) -> 45 | I95: 49 | J95: 1 | K95: 77 | L95: 1 | M95: 77 | N95: Nigeria | O95: 16.9 | P95: 16.9 | Q95: =IF($B$2=27,"",IF(ISNA(VLOOKUP(N95,uxb_regions!$C$3:$I$82,7,FALSE)),"",VLOOKUP(N95,uxb_regions!$C$3:$I$82,7,FALSE))) -> NGA | R95: 16.9 | S95: 1 | T95: 16.9 | U95: =1 -> 1 | V95: 1 | W95: 0 | X95: NGA | AB95: 16.9 | AD95: 0 | AE95: =IF(AD95=1,tblCountries!G79,0) -> 0 | AL95: =VLOOKUP(C95,tblCountries!$F$3:$L$182,7,FALSE)+10 ->  | AM95: =tblCountries!L79 -> 1 | AN95: 1 | AP95: =CHOOSE(uxbWorks!$B$10,tblCountries!Q79,tblCountries!#REF!,tblCountries!R79,tblCountries!S79,tblCountries!T79) -> 0
A96: =tblCountries!A80 -> 78 | B96: =tblCountries!B80 -> VN | C96: =tblCountries!C80 -> Vietnam | D96: =tblCountries!D80 -> 1 | E96: =IF(AND(OR(tblCountries!$K$5=4,tblCountries!$K$5=5),$E$2=3),0,IF(AND(OR(tblCountries!$K$5=2,tblCountries!$K$5=3),$E$2=3),tblCountries!G80,IF(AND($E$2=3,tblCountries!$K$5=1),AE96,tblCountries!G80))) -> 0 | F96: =tblCountries!F80 -> 1 | G96: 31.9 | H96: =IF(F96=0,"",RANK(G96,G$19:G$98,$B$7)+COUNTIF(G$19:G96,G96)-1) -> 58 | I96: 53 | J96: 1 | K96: 78 | L96: 1 | M96: 78 | N96: Philippines | O96: 15.3 | P96: 15.3 | Q96: =IF($B$2=27,"",IF(ISNA(VLOOKUP(N96,uxb_regions!$C$3:$I$82,7,FALSE)),"",VLOOKUP(N96,uxb_regions!$C$3:$I$82,7,FALSE))) -> PHL | R96: 15.3 | S96: 1 | T96: 15.3 | U96: =1 -> 1 | V96: 1 | W96: 0 | X96: PHL | AB96: 15.3 | AD96: 0 | AE96: =IF(AD96=1,tblCountries!G80,0) -> 0 | AL96: =VLOOKUP(C96,tblCountries!$F$3:$L$182,7,FALSE)+10 ->  | AM96: =tblCountries!L80 -> 1 | AN96: 1 | AP96: =CHOOSE(uxbWorks!$B$10,tblCountries!Q80,tblCountries!#REF!,tblCountries!R80,tblCountries!S80,tblCountries!T80) -> 1
A97: =tblCountries!A81 -> 79 | B97: =tblCountries!B81 -> ZM | C97: =tblCountries!C81 -> Zambia | D97: =tblCountries!D81 -> 1 | E97: =IF(AND(OR(tblCountries!$K$5=4,tblCountries!$K$5=5),$E$2=3),0,IF(AND(OR(tblCountries!$K$5=2,tblCountries!$K$5=3),$E$2=3),tblCountries!G81,IF(AND($E$2=3,tblCountries!$K$5=1),AE97,tblCountries!G81))) -> 0 | F97: =tblCountries!F81 -> 1 | G97: 30.3 | H97: =IF(F97=0,"",RANK(G97,G$19:G$98,$B$7)+COUNTIF(G$19:G97,G97)-1) -> 61 | I97: 4 | J97: 1 | K97: 79 | L97: 1 | M97: 79 | N97: Bangladesh | O97: 14.1 | P97: 14.1 | Q97: =IF($B$2=27,"",IF(ISNA(VLOOKUP(N97,uxb_regions!$C$3:$I$82,7,FALSE)),"",VLOOKUP(N97,uxb_regions!$C$3:$I$82,7,FALSE))) -> BGD | R97: 14.1 | S97: 1 | T97: 14.1 | U97: =1 -> 1 | V97: 1 | W97: 0 | X97: BGD | AB97: 14.1 | AD97: 0 | AE97: =IF(AD97=1,tblCountries!G81,0) -> 0 | AL97: =VLOOKUP(C97,tblCountries!$F$3:$L$182,7,FALSE)+10 ->  | AM97: =tblCountries!L81 -> 1 | AN97: 1 | AP97: =CHOOSE(uxbWorks!$B$10,tblCountries!Q81,tblCountries!#REF!,tblCountries!R81,tblCountries!S81,tblCountries!T81) -> 0
A98: =tblCountries!A82 -> 80 | B98: =tblCountries!B82 -> ZW | C98: =tblCountries!C82 -> Zimbabwe | D98: =tblCountries!D82 -> 1 | E98: =IF(AND(OR(tblCountries!$K$5=4,tblCountries!$K$5=5),$E$2=3),0,IF(AND(OR(tblCountries!$K$5=2,tblCountries!$K$5=3),$E$2=3),tblCountries!G82,IF(AND($E$2=3,tblCountries!$K$5=1),AE98,tblCountries!G82))) -> 0 | F98: =tblCountries!F82 -> 1 | G98: 31.3 | H98: =IF(F98=0,"",RANK(G98,G$19:G$98,$B$7)+COUNTIF(G$19:G98,G98)-1) -> 59 | I98: 32 | J98: =IF(I98="","",1) -> 1 | K98: 80 | L98: 1 | M98: =IF(I98="","",IF(OR(K98=K97,K98=K99),CONCATENATE("=",K98),K98)) -> 80 | N98: Iraq | O98: 12.5 | P98: 12.5 | Q98: =IF($B$2=27,"",IF(ISNA(VLOOKUP(N98,uxb_regions!$C$3:$I$82,7,FALSE)),"",VLOOKUP(N98,uxb_regions!$C$3:$I$82,7,FALSE))) -> IRQ | R98: 12.5 | S98: 1 | T98: =IF(ISNUMBER(O98),O98,NA()) -> 12.5 | U98: =1 -> 1 | V98: 1 | W98: =IF(V98<>1,Q98,0) -> 0 | X98: =IF(ISNA(V98),"",Q98) -> IRQ | Y98: =IF(L98=2,T98,NA()) ->  | Z98: =IF(L98=2,1,NA()) ->  | AB98: 12.5 | AD98: 0 | AE98: =IF(AD98=1,tblCountries!G82,0) -> 0 | AF98: =IF(L98=2,T98,NA()) ->  | AG98: =IF(L98=2,1,NA()) ->  | AI98: =IF(L98=3,T98,NA()) ->  | AJ98: =IF(L98=3,1,NA()) ->  | AL98: =VLOOKUP(C98,tblCountries!$F$3:$L$182,7,FALSE)+10 ->  | AM98: =tblCountries!L82 -> 1 | AN98: =IF($G$2=3,IF(OR(AM98=3,AM98=4),0,1),1) -> 1 | AP98: =CHOOSE(uxbWorks!$B$10,tblCountries!Q82,tblCountries!#REF!,tblCountries!R82,tblCountries!S82,tblCountries!T82) -> 0
J102: 1 | O102: =IF(uxbWorks!B7>1,INDEX(G18:G98,uxbWorks!B7),NA()) -> 
AI104: Less Than

Sheet uxb_mapdata (hidden)
N1: 1 | P1: 2 | R1: 3 | T1: 4 | V1: 5
L5: =iMap_Rank!I2 -> This is the weighted sum of the following category scores: 1) Palliative and healthcare environment 2) Human resources 3) Affordability of care 4) Quality of care 5) Community engagement
L6: EIU Calculation
M9: =IF(iMap_Rank!R6<100,TEXT(iMap_Rank!R6,"0"),TEXT(iMap_Rank!R6,"#,#")) -> 0 | O9: =IF(iMap_Rank!R7<100,TEXT(iMap_Rank!R7,"0"),TEXT(iMap_Rank!R7,"#,#")) -> 20 | Q9: =IF(iMap_Rank!R8<100,TEXT(iMap_Rank!R8,"0"),TEXT(iMap_Rank!R8,"#,#")) -> 40 | S9: =IF(iMap_Rank!R9<100,TEXT(iMap_Rank!R9,"0"),TEXT(iMap_Rank!R9,"#,#")) -> 60 | U9: =IF(iMap_Rank!R10<100,TEXT(iMap_Rank!R10,"0"),TEXT(iMap_Rank!R10,"#,#")) -> 80 | W9: =IF(iMap_Rank!R11<100,TEXT(iMap_Rank!R11,"0.0"),TEXT(iMap_Rank!R11,"#,#")) -> 100
I12: Highlight outline | J12: Shape outline | K12: N/A Fill | M12: 1 | N12: 2 | O12: 3 | P12: 4
G13: =iMap_Rank!B7 -> 0 | J13: x
L19: =iMap_Rank!I2 -> This is the weighted sum of the following category scores: 1) Palliative and healthcare environment 2) Human resources 3) Affordability of care 4) Quality of care 5) Community engagement
L20: =iMap_Rank!J2 -> Weighted sum of category scores.
M23: =IF(iMap_Rank!R6<100,TEXT(iMap_Rank!R6,"0.0"),TEXT(iMap_Rank!R6,"#,#")) -> 0.0 | O23: =IF(iMap_Rank!R7<100,TEXT(iMap_Rank!R7,"0.0"),TEXT(iMap_Rank!R7,"#,#")) -> 20.0 | Q23: =IF(iMap_Rank!R8<100,TEXT(iMap_Rank!R8,"0.0"),TEXT(iMap_Rank!R8,"#,#")) -> 40.0 | S23: =IF(iMap_Rank!R9<100,TEXT(iMap_Rank!R9,"0.0"),TEXT(iMap_Rank!R9,"#,#")) -> 60.0 | U23: =IF(iMap_Rank!R10<100,TEXT(iMap_Rank!R10,"0.0"),TEXT(iMap_Rank!R10,"#,#")) -> 80.0

Sheet uxb_regions (hidden)
A1: RegionID | B1: MAPCODE | C1: <none> | G1: ISO-2 | I1: MAPCODE | J1: MAPCODE
A2: 1 | C2: <none>
A3: 2 | B3: ARG | C3: =tblCountries!C3 -> Argentina | G3: =tblCountries!B3 -> AL | I3: ARG
A4: 3 | B4: AUS | C4: =tblCountries!C4 -> Australia | G4: =tblCountries!B4 -> AU | I4: AUS
A5: 4 | B5: AUT | C5: =tblCountries!C5 -> Austria | G5: =tblCountries!B5 -> AT | I5: AUT
A6: 5 | B6: BGD | C6: =tblCountries!C6 -> Bangladesh | G6: =tblCountries!B6 -> BD | I6: BGD
A7: 6 | B7: BEL | C7: =tblCountries!C7 -> Belgium | G7: =tblCountries!B7 -> BE | I7: BEL
A8: 7 | B8: BWA | C8: =tblCountries!C8 -> Botswana | G8: =tblCountries!B8 -> BW | I8: BWA
A9: 8 | B9: BRA | C9: =tblCountries!C9 -> Brazil | G9: =tblCountries!B9 -> BR | I9: BRA
A10: 9 | B10: BGR | C10: =tblCountries!C10 -> Bulgaria | G10: =tblCountries!B10 -> BG | I10: BGR
A11: 10 | B11: CAN | C11: =tblCountries!C11 -> Canada | G11: =tblCountries!B11 -> CA | I11: CAN
A12: 11 | B12: CHL | C12: =tblCountries!C12 -> Chile | G12: =tblCountries!B12 -> CL | I12: CHL
A13: 12 | B13: CHN | C13: =tblCountries!C13 -> China | G13: =tblCountries!B13 -> CN | I13: CHN
A14: 13 | B14: COL | C14: =tblCountries!C14 -> Colombia | G14: =tblCountries!B14 -> CO | I14: COL
A15: 14 | B15: CRI | C15: =tblCountries!C15 -> Costa Rica | G15: =tblCountries!B15 -> CR | I15: CRI
A16: 15 | B16: CUB | C16: =tblCountries!C16 -> Cuba | G16: =tblCountries!B16 -> CU | I16: CUB
A17: 16 | B17: CZE | C17: =tblCountries!C17 -> Czech Republic | G17: =tblCountries!B17 -> CZ | I17: CZE
A18: 17 | B18: DNK | C18: =tblCountries!C18 -> Denmark | G18: =tblCountries!B18 -> DK | I18: DNK
A19: 18 | B19: DOM | C19: =tblCountries!C19 -> Dominican Republic | G19: =tblCountries!B19 -> DO | I19: DOM
A20: 19 | B20: ECU | C20: =tblCountries!C20 -> Ecuador | G20: =tblCountries!B20 -> EC | I20: ECU
A21: 20 | B21: EGY | C21: =tblCountries!C21 -> Egypt | G21: =tblCountries!B21 -> EG | I21: EGY
A22: 21 | B22: ETH | C22: =tblCountries!C22 -> Ethiopia | G22: =tblCountries!B22 -> ET | I22: ETH
A23: 22 | B23: FIN | C23: =tblCountries!C23 -> Finland | G23: =tblCountries!B23 -> FI | I23: FIN
A24: 23 | B24: FRA | C24: =tblCountries!C24 -> France | G24: =tblCountries!B24 -> FR | I24: FRA
A25: 24 | B25: DEU | C25: =tblCountries!C25 -> Germany | G25: =tblCountries!B25 -> DE | I25: DEU
A26: 25 | B26: GHA | C26: =tblCountries!C26 -> Ghana | G26: =tblCountries!B26 -> GH | I26: GHA
A27: 26 | B27: GRC | C27: =tblCountries!C27 -> Greece | G27: =tblCountries!B27 -> GR | I27: GRC
A28: 27 | B28: GTM | C28: =tblCountries!C28 -> Guatemala | G28: =tblCountries!B28 -> GT | I28: GTM
A29: 28 | B29: HKG | C29: =tblCountries!C29 -> Hong Kong | G29: =tblCountries!B29 -> HK | I29: HKG
A30: 29 | B30: HUN | C30: =tblCountries!C30 -> Hungary | G30: =tblCountries!B30 -> HU | I30: HUN
A31: 30 | B31: IND | C31: =tblCountries!C31 -> India | G31: =tblCountries!B31 -> IN | I31: IND
A32: 31 | B32: IDN | C32: =tblCountries!C32 -> Indonesia | G32: =tblCountries!B32 -> ID | I32: IDN
A33: 32 | B33: IRN | C33: =tblCountries!C33 -> Iran | G33: =tblCountries!B33 -> IR | I33: IRN
A34: 33 | B34: IRQ | C34: =tblCountries!C34 -> Iraq | G34: =tblCountries!B34 -> IQ | I34: IRQ
A35: 34 | B35: IRL | C35: =tblCountries!C35 -> Ireland | G35: =tblCountries!B35 -> IE | I35: IRL
A36: 35 | B36: ISR | C36: =tblCountries!C36 -> Israel | G36: =tblCountries!B36 -> IL | I36: ISR
A37: 36 | B37: ITA | C37: =tblCountries!C37 -> Italy | G37: =tblCountries!B37 -> IT | I37: ITA
A38: 37 | B38: JPN | C38: =tblCountries!C38 -> Japan | G38: =tblCountries!B38 -> JP | I38: JPN
A39: 38 | B39: JOR | C39: =tblCountries!C39 -> Jordan | G39: =tblCountries!B39 -> JO | I39: JOR
A40: 39 | B40: KAZ | C40: =tblCountries!C40 -> Kazakhstan | G40: =tblCountries!B40 -> KZ | I40: KAZ
A41: 40 | B41: KEN | C41: =tblCountries!C41 -> Kenya | G41: =tblCountries!B41 -> KE | I41: KEN
A42: 41 | B42: LTU | C42: =tblCountries!C42 -> Lithuania | G42: =tblCountries!B42 -> LT | I42: LTU
A43: 42 | B43: MWI | C43: =tblCountries!C43 -> Malawi | G43: =tblCountries!B43 -> MW | I43: MWI
A44: 43 | B44: MYS | C44: =tblCountries!C44 -> Malaysia | G44: =tblCountries!B44 -> MY | I44: MYS
A45: 44 | B45: MEX | C45: =tblCountries!C45 -> Mexico | G45: =tblCountries!B45 -> MX | I45: MEX
A46: 45 | B46: MNG | C46: =tblCountries!C46 -> Mongolia | G46: =tblCountries!B46 -> MN | I46: MNG
A47: 46 | B47: MAR | C47: =tblCountries!C47 -> Morocco | G47: =tblCountries!B47 -> MA | I47: MAR
A48: 47 | B48: MMR | C48: =tblCountries!C48 -> Myanmar | G48: =tblCountries!B48 -> MM | I48: MMR
A49: 48 | B49: NLD | C49: =tblCountries!C49 -> Netherlands | G49: =tblCountries!B49 -> NL | I49: NLD
A50: 49 | B50: NZL | C50: =tblCountries!C50 -> New Zealand | G50: =tblCountries!B50 -> NZ | I50: NZL
A51: 50 | B51: NGA | C51: =tblCountries!C51 -> Nigeria | G51: =tblCountries!B51 -> NG | I51: NGA
A52: 51 | B52: NOR | C52: =tblCountries!C52 -> Norway | G52: =tblCountries!B52 -> NO | I52: NOR
A53: 52 | B53: PAN | C53: =tblCountries!C53 -> Panama | G53: =tblCountries!B53 -> PA | I53: PAN
A54: 53 | B54: PER | C54: =tblCountries!C54 -> Peru | G54: =tblCountries!B54 -> PE | I54: PER
A55: 54 | B55: PHL | C55: =tblCountries!C55 -> Philippines | G55: =tblCountries!B55 -> PH | I55: PHL
A56: 55 | B56: POL | C56: =tblCountries!C56 -> Poland | G56: =tblCountries!B56 -> PL | I56: POL
A57: 56 | B57: PRT | C57: =tblCountries!C57 -> Portugal | G57: =tblCountries!B57 -> PT | I57: PRT
A58: 57 | B58: PRI | C58: =tblCountries!C58 -> Puerto Rico | G58: =tblCountries!B58 -> PR | I58: PRI
A59: 58 | B59: ROU | C59: =tblCountries!C59 -> Romania | G59: =tblCountries!B59 -> RO | I59: ROU
A60: 59 | B60: RUS | C60: =tblCountries!C60 -> Russia | G60: =tblCountries!B60 -> RU | I60: RUS
A61: 60 | B61: SAU | C61: =tblCountries!C61 -> Saudi Arabia | G61: =tblCountries!B61 -> SA | I61: SAU
A62: 61 | B62: SGP | C62: =tblCountries!C62 -> Singapore | G62: =tblCountries!B62 -> SG | I62: SGP
A63: 62 | B63: SVK | C63: =tblCountries!C63 -> Slovakia | G63: =tblCountries!B63 -> SK | I63: SVK
A64: 63 | B64: ZAF | C64: =tblCountries!C64 -> South Africa | G64: =tblCountries!B64 -> ZA | I64: ZAF
A65: 64 | B65: KOR | C65: =tblCountries!C65 -> South Korea | G65: =tblCountries!B65 -> KR | I65: KOR
A66: 65 | B66: ESP | C66: =tblCountries!C66 -> Spain | G66: =tblCountries!B66 -> ES | I66: ESP
A67: 66 | B67: LKA | C67: =tblCountries!C67 -> Sri Lanka | G67: =tblCountries!B67 -> LK | I67: LKA
A68: 67 | B68: SWE | C68: =tblCountries!C68 -> Sweden | G68: =tblCountries!B68 -> SE | I68: SWE
A69: 68 | B69: CHE | C69: =tblCountries!C69 -> Switzerland | G69: =tblCountries!B69 -> CH | I69: CHE
A70: 69 | B70: TWN | C70: =tblCountries!C70 -> Taiwan | G70: =tblCountries!B70 -> TW | I70: TWN
A71: 70 | B71: TZA | C71: =tblCountries!C71 -> Tanzania | G71: =tblCountries!B71 -> TZ | I71: TZA
A72: 71 | B72: THA | C72: =tblCountries!C72 -> Thailand | G72: =tblCountries!B72 -> TH | I72: THA
A73: 72 | B73: TUR | C73: =tblCountries!C73 -> Turkey | G73: =tblCountries!B73 -> TR | I73: TUR
A74: 73 | B74: UGA | C74: =tblCountries!C74 -> Uganda | G74: =tblCountries!B74 -> UG | I74: UGA
A75: 74 | B75: UKR | C75: =tblCountries!C75 -> Ukraine | G75: =tblCountries!B75 -> UA | I75: UKR
A76: 75 | B76: GBR | C76: =tblCountries!C76 -> United Kingdom | G76: =tblCountries!B76 -> GB | I76: GBR
A77: 76 | B77: USA | C77: =tblCountries!C77 -> United States of America | G77: =tblCountries!B77 -> US | I77: USA
A78: 77 | B78: URY | C78: =tblCountries!C78 -> Uruguay | G78: =tblCountries!B78 -> UY | I78: URY
A79: 78 | B79: VEN | C79: =tblCountries!C79 -> Venezuela | G79: =tblCountries!B79 -> VE | I79: VEN
A80: 79 | B80: VNM | C80: =tblCountries!C80 -> Vietnam | G80: =tblCountries!B80 -> VN | I80: VNM
A81: 80 | B81: ZMB | C81: =tblCountries!C81 -> Zambia | G81: =tblCountries!B81 -> ZM | I81: ZMB
A82: 81 | B82: ZWE | C82: =tblCountries!C82 -> Zimbabwe | G82: =tblCountries!B82 -> ZW | I82: ZWE

Sheet iCountry_Codes (hidden)
A1: RegionID | B1: RegionCode | C1: <none> | G1: ISO-2 | H1: EIU | I1: MAPCODE | J1: MAPCODE | L1: Code for Score Data Sheets
A2: 1 | C2: <none>
A3: 2 | B3: AFG | C3: Albania | G3: AL | H3: AD | I3: ALB | J3: ALB | L3: =CONCATENATE(H3,"S") -> ADS
A4: 3 | B4: ALB | C4: Algeria | G4: DZ | H4: AL | I4: DZA | J4: DZA | L4: =CONCATENATE(H4,"S") -> ALS
A5: 4 | B5: DZA | C5: Angola | G5: AO | H5: AN | I5: AGO | J5: AGO | L5: ANS
A6: 5 | B6: AGO | C6: Argentina | G6: AR | H6: AR | I6: ARG | J6: ARG | L6: ARS
A7: 6 | B7: ARG | C7: Australia | G7: AU | H7: AU | I7: AUS | J7: AUS | L7: AUS
A8: 7 | B8: ARM | C8: Austria | G8: AT | H8: AI | I8: AUT | J8: AUT | L8: AIS
A9: 8 | B9: ABW | C9: Azerbaijan | G9: AZ | H9: AZ | I9: AZE | J9: AZE | L9: AZS
A10: 9 | B10: AUS | C10: Bahrain | G10: BH | H10: BA | I10: BHR | J10: BHR | L10: BAS
A11: 10 | B11: AUT | C11: Bangladesh | G11: BD | H11: BD | I11: BGD | J11: BGD | L11: BDS
A12: 11 | B12: AZE | C12: Belarus | G12: BY | H12: BY | I12: BLR | J12: BLR | L12: BYS
A13: 12 | B13: BHS | C13: Belgium | G13: BE | H13: BI | I13: BEL | J13: BEL | L13: BIS
A14: 13 | B14: BHR | C14: Bolivia | G14: BO | H14: BL | I14: BOL | J14: BOL | L14: BLS
A15: 14 | B15: BGD | C15: Bosnia and Hercegovina | D15: =MID(CELL("filename"),SEARCH("[",CELL("filename"))+1, SEARCH("]",CELL("filename"))-SEARCH("[",CELL("filename"))-1) -> Data workbook_Online version_2.xlsm | G15: BA | H15: BH | I15: BIH | J15: BIH | L15: BHS
A16: 15 | B16: BRB | C16: Botswana | G16: BW | H16: BO | I16: BWA | J16: BWA | L16: BOS
A17: 16 | B17: BLR | C17: Brazil | G17: BR | H17: BR | I17: BRA | J17: BRA | L17: BRS
A18: 17 | B18: BEL | C18: Bulgaria | G18: BG | H18: BG | I18: BGR | J18: BGR | L18: BGS
A19: 18 | B19: BLZ | C19: Cambodia | G19: KH | H19: KH | I19: KHM | J19: KHM | L19: KHS
A20: 19 | B20: BEN | C20: Cameroon | G20: CM | H20: CM | I20: CMR | J20: CMR | L20: CMS
A21: 20 | B21: BTN | C21: Canada | G21: CA | H21: CD | I21: CAN | J21: CAN | L21: CDS
A22: 21 | B22: BOL | C22: Chile | G22: CL | H22: CH | I22: CHL | J22: CHL | L22: CHS
A23: 22 | B23: BIH | C23: China | G23: CN | H23: CN | I23: CHN | J23: CHN | L23: CNS
A24: 23 | B24: BWA | C24: Colombia | G24: CO | H24: CB | I24: COL | J24: COL | L24: CBS
A25: 24 | B25: BRA | C25: Congo (Brazzaville) | G25: CG | H25: CG | I25: COG | J25: COG | L25: CGS
A26: 25 | B26: BRN | C26: Congo (Democratic Republic) | G26: CD | H26: RC | I26: COD | J26: COD | L26: RCS
A27: 26 | B27: BGR | C27: Costa Rica | G27: CR | H27: CR | I27: CRI | J27: CRI | L27: CRS
A28: 27 | B28: BFA | C28: Côte d'Ivoire | G28: CI | H28: CI | I28: CIV | J28: CIV | L28: CIS
A29: 28 | B29: BDI | C29: Croatia | G29: HR | H29: CT | I29: HRV | J29: HRV | L29: CTS
A30: 29 | B30: KHM | C30: Cuba | G30: CU | H30: CU | I30: CUB | J30: CUB | L30: CUS
A31: 30 | B31: CMR | C31: Cyprus | G31: CY | H31: CY | I31: CYP | J31: CYP | L31: CYS
A32: 31 | B32: CAN | C32: Czech Republic | G32: CZ | H32: CZ | I32: CZE | J32: CZE | L32: CZS
A33: 32 | B33: CPV | C33: Denmark | G33: DK | H33: DN | I33: DNK | J33: DNK | L33: DNS
A34: 33 | B34: CYM | C34: Dominican Republic | G34: DO | H34: DR | I34: DOM | J34: DOM | L34: DRS
A35: 34 | B35: CAF | C35: Ecuador | G35: EC | H35: EC | I35: ECU | J35: ECU | L35: ECS
A36: 35 | B36: TCD | C36: Egypt | G36: EG | H36: EG | I36: EGY | J36: EGY | L36: EGS
A37: 36 | B37: CHL | C37: El Salvador | G37: SV | H37: ES | I37: SLV | J37: SLV | L37: ESS
A38: 37 | B38: CHN | C38: Equatorial Guinea | G38: GQ | H38: GQ | I38: GNQ | J38: GNQ | L38: GQS
A39: 38 | B39: COL | C39: Estonia | G39: EE | H39: ET | I39: EST | J39: EST | L39: ETS
A40: 39 | B40: COG | C40: Ethiopia | G40: ET | H40: EH | I40: ETH | J40: ETH | L40: EHS
A41: 40 | B41: CRI | C41: Finland | G41: FI | H41: FN | I41: FIN | J41: FIN | L41: FNS
A42: 41 | B42: CIV | C42: France | G42: FR | H42: FR | I42: FRA | J42: FRA | L42: FRS
A43: 42 | B43: HRV | C43: Gabon | G43: GA | H43: GA | I43: GAB | J43: GAB | L43: GAS
A44: 43 | B44: CUB | C44: Germany | G44: DE | H44: DE | I44: DEU | J44: DEU | L44: DES
A45: 44 | B45: CYP | C45: Ghana | G45: GH | H45: GH | I45: GHA | J45: GHA | L45: GHS
A46: 45 | B46: CZE | C46: Greece | G46: GR | H46: GR | I46: GRC | J46: GRC | L46: GRS
A47: 46 | B47: COD | C47: Guatemala | G47: GT | H47: GU | I47: GTM | J47: GTM | L47: GUS
A48: 47 | B48: DNK | C48: Honduras | G48: HN | H48: HD | I48: HND | J48: HND | L48: HDS
A49: 48 | B49: DJI | C49: Hong Kong | G49: HK | H49: HK | I49: HKG | J49: HKG | L49: HKS
A50: 49 | B50: DOM | C50: Hungary | G50: HU | H50: HG | I50: HUN | J50: HUN | L50: HGS
A51: 50 | B51: TLS | C51: India | G51: IN | H51: IN | I51: IND | J51: IND | L51: INS
A52: 51 | B52: ECU | C52: Indonesia | G52: ID | H52: ID | I52: IDN | J52: IDN | L52: IDS
A53: 52 | B53: EGY | C53: Iran | G53: IR | H53: IR | I53: IRN | J53: IRN | L53: IRS
A54: 53 | B54: SLV | C54: Iraq | G54: IQ | H54: IQ | I54: IRQ | J54: IRQ | L54: IQS
A55: 54 | B55: GNQ | C55: Ireland | G55: IE | H55: EI | I55: IRL | J55: IRL | L55: EIS
A56: 55 | B56: ERI | C56: Israel | G56: IL | H56: IS | I56: ISR | J56: ISR | L56: ISS
A57: 56 | B57: EST | C57: Italy | G57: IT | H57: IT | I57: ITA | J57: ITA | L57: ITS
A58: 57 | B58: ETH | C58: Jamaica | G58: JM | H58: JM | I58: JAM | J58: JAM | L58: JMS
A59: 58 | B59: FIN | C59: Japan | G59: JP | H59: JP | I59: JPN | J59: JPN | L59: JPS
A60: 59 | B60: FRA | C60: Jordan | G60: JO | H60: JD | I60: JOR | J60: JOR | L60: JDS
A61: 60 | B61: GUF | C61: Kazakhstan | G61: KZ | H61: KZ | I61: KAZ | J61: KAZ | L61: KZS
A62: 61 | B62: GAB | C62: Kenya | G62: KE | H62: KN | I62: KEN | J62: KEN | L62: KNS
A63: 62 | B63: GEO | C63: Kuwait | G63: KW | H63: KU | I63: KWT | J63: KWT | L63: KUS
A64: 63 | B64: DEU | C64: Latvia | G64: LV | H64: LV | I64: LVA | J64: LVA | L64: LVS
A65: 64 | B65: GHA | C65: Lebanon | G65: LB | H65: LB | I65: LBN | J65: LBN | L65: LBS
A66: 65 | B66: GRC | C66: Libya | G66: LY | H66: LA | I66: LBY | J66: LBY | L66: LAS
A67: 66 | B67: GRL | C67: Lithuania | G67: LT | H67: LT | I67: LTU | J67: LTU | L67: LTS
A68: 67 | B68: GTM | C68: Macedonia | G68: MK | H68: MN | I68: MKD | J68: MKD | L68: =CONCATENATE(H68,"S") -> MNS
A69: 68 | B69: GIN | C69: Malawi | G69: MW | H69: MW | I69: MWI | J69: MWI | L69: MWS
A70: 69 | B70: GUY | C70: Malaysia | G70: MY | H70: MA | I70: MYS | J70: MYS | L70: MAS
A71: 70 | B71: HTI | C71: Mauritius | G71: MU | H71: MR | I71: MUS | J71: MUS | L71: MRS
A72: 71 | B72: HND | C72: Mexico | G72: MX | H72: MX | I72: MEX | J72: MEX | L72: MXS
A73: 72 | B73: HKG | C73: Moldova | G73: MD | H73: MV | I73: MDA | J73: MDA | L73: MVS
A74: 73 | B74: HUN | C74: Mongolia | G74: MN | H74: MQ | I74: MNG | J74: MNG | L74: MQS
A75: 74 | B75: ISL | C75: Morocco | G75: MA | H75: MC | I75: MAR | J75: MAR | L75: MCS
A76: 75 | B76: IND | C76: Mozambique | G76: MZ | H76: MZ | I76: MOZ | J76: MOZ | L76: MZS
A77: 76 | B77: IDN | C77: Myanmar | G77: MM | H77: MY | I77: MMR | J77: MMR | L77: MYS
A78: 77 | B78: IRN | C78: Namibia | G78: NA | H78: NB | I78: NAM | J78: NAM | L78: NBS
A79: 78 | B79: IRQ | C79: Netherlands | G79: NL | H79: NL | I79: NLD | J79: NLD | L79: NLS
A80: 79 | B80: IRL | C80: New Zealand | G80: NZ | H80: NZ | I80: NZL | J80: NZL | L80: NZS
A81: 80 | B81: ISR | C81: Nicaragua | G81: NI | H81: NC | I81: NIC | J81: NIC | L81: NCS
A82: 81 | B82: ITA | C82: Nigeria | G82: NG | H82: NG | I82: NGA | J82: NGA | L82: NGS
A83: 82 | B83: JAM | C83: Norway | G83: NO | H83: NW | I83: NOR | J83: NOR | L83: NWS
A84: 83 | B84: JPN | C84: Oman | G84: OM | H84: OM | I84: OMN | J84: OMN | L84: OMS
A85: 84 | B85: JEY | C85: Pakistan | G85: PK | H85: PK | I85: PAK | J85: PAK | L85: PKS
A86: 85 | B86: JOR | C86: Panama | G86: PA | H86: PN | I86: PAN | J86: PAN | L86: PNS
A87: 86 | B87: KAZ | C87: Papua New Guinea | G87: PG | H87: PP | I87: PNG | J87: PNG | L87: PPS
A88: 87 | B88: KEN | C88: Paraguay | G88: PY | H88: PG | I88: PRY | J88: PRY | L88: PGS
A89: 88 | B89: XKS | C89: Peru | G89: PE | H89: PE | I89: PER | J89: PER | L89: PES
A90: 89 | B90: KWT | C90: Philippines | G90: PH | H90: PH | I90: PHL | J90: PHL | L90: PHS
A91: 90 | B91: KGZ | C91: Poland | G91: PL | H91: PL | I91: POL | J91: POL | L91: PLS
A92: 91 | B92: LAO | C92: Portugal | G92: PT | H92: PT | I92: PRT | J92: PRT | L92: PTS
A93: 92 | B93: LVA | C93: Qatar | G93: QA | H93: QA | I93: QAT | J93: QAT | L93: QAS
A94: 93 | B94: LBN | C94: Romania | G94: RO | H94: RM | I94: ROU | J94: ROU | L94: RMS
A95: 94 | B95: LSO | C95: Russia | G95: RU | H95: RU | I95: RUS | J95: RUS | L95: RUS
A96: 95 | B96: LBR | C96: Saudi Arabia | G96: SA | H96: SD | I96: SAU | J96: SAU | L96: SDS
A97: 96 | B97: LBY | C97: Senegal | G97: SN | H97: SE | I97: SEN | J97: SEN | L97: SES
A98: 97 | B98: LIE | C98: Serbia | G98: YG | H98: SB | I98: SRB | J98: SRB | L98: SBS
A99: 98 | B99: LTU | C99: Seychelles | G99: SC | H99: SC | I99: SYC | J99: SYC | L99: SCS
A100: 99 | B100: LUX | C100: Sierra Leone | G100: SL | H100: LE | I100: SLE | J100: SLE | L100: LES
A101: 100 | B101: MAC | C101: Singapore | G101: SG | H101: SG | I101: SGP | J101: SGP | L101: SGS
A102: 101 | B102: MKD | C102: Slovakia | G102: SK | H102: SL | I102: SVK | J102: SVK | L102: SLS
A103: 102 | B103: MDG | C103: Slovenia | G103: SI | H103: SV | I103: SVN | J103: SVN | L103: SVS
A104: 103 | B104: MWI | C104: South Africa | G104: ZA | H104: SA | I104: ZAF | J104: ZAF | L104: SAS
A105: 104 | B105: MYS | C105: South Korea | G105: KR | H105: KS | I105: KOR | J105: KOR | L105: KSS
A106: 105 | B106: MLI | C106: Spain | G106: ES | H106: SP | I106: ESP | J106: ESP | L106: SPS
A107: 106 | B107: MLT | C107: Sri Lanka | G107: LK | H107: SR | I107: LKA | J107: LKA | L107: SRS
A108: 107 | B108: MRT | C108: Sudan | G108: SD | H108: SU | I108: SDN | J108: SDN | L108: SUS
A109: 108 | B109: MUS | C109: Sweden | G109: SE | H109: SW | I109: SWE | J109: SWE | L109: SWS
A110: 109 | B110: MEX | C110: Switzerland | G110: CH | H110: SI | I110: CHE | J110: CHE | L110: SIS
A111: 110 | B111: MDA | C111: Syria | G111: SY | H111: SY | I111: SYR | J111: SYR | L111: SYS
A112: 111 | B112: MNG | C112: Taiwan | G112: TW | H112: TW | I112: TWN | J112: TWN | L112: TWS
A113: 112 | B113: MNE | C113: Tanzania | G113: TZ | H113: TZ | I113: TZA | J113: TZA | L113: TZS
A114: 113 | B114: MAR | C114: Thailand | G114: TH | H114: TH | I114: THA | J114: THA | L114: THS
A115: 114 | B115: MOZ | C115: Trinidad & Tobago | G115: TT | H115: TT | I115: TTO | J115: TTO | L115: TTS
A116: 115 | B116: MMR | C116: Tunisia | G116: TN | H116: TN | I116: TUN | J116: TUN | L116: TNS
A117: 116 | B117: NAM | C117: Turkey | G117: TR | H117: TK | I117: TUR | J117: TUR | L117: TKS
A118: 117 | B118: NPL | C118: Turkmenistan | G118: TM | H118: TM | I118: TKM | J118: TKM | L118: TMS
A119: 118 | B119: NLD | C119: Uganda | G119: UG | H119: UG | I119: UGA | J119: UGA | L119: UGS
A120: 119 | B120: NZL | C120: Ukraine | G120: UA | H120: UI | I120: UKR | J120: UKR | L120: UIS
A121: 120 | B121: NIC | C121: United Arab Emirates | G121: AE | H121: UA | I121: UAE | J121: UAE | L121: UAS
A122: 121 | B122: NER | C122: United Kingdom | G122: GB | H122: UK | I122: GBR | J122: GBR | L122: UKS
A123: 122 | B123: NGA | C123: United States | G123: US | H123: US | I123: USA | J123: USA | L123: USS
A124: 123 | B124: PRK | C124: Uruguay | G124: UY | H124: UR | I124: URY | J124: URY | L124: URS
A125: 124 | B125: NOR | C125: Uzbekistan | G125: UZ | H125: UZ | I125: UZB | J125: UZB | L125: UZS
A126: 125 | B126: OMN | C126: Venezuela | G126: VE | H126: VZ | I126: VEN | J126: VEN | L126: VZS
A127: 126 | B127: PAK | C127: Vietnam | G127: VN | H127: VN | I127: VNM | J127: VNM | L127: VNS
A128: 127 | B128: PAN | C128: Yemen | G128: YE | H128: YA | I128: YEM | J128: YEM | L128: YAS
A129: 128 | B129: PNG | C129: Zambia | G129: ZM | H129: ZB | I129: ZMB | J129: ZMB | L129: ZBS
A130: 129 | B130: PRY | C130: Zimbabwe | G130: ZW | H130: ZI | I130: ZWE | J130: ZWE | L130: ZIS

Sheet Cover

Sheet Index
A1: INDEX
B3: Click the circle icon in any worksheet to return to this page
B5: RANKING
B6: This worksheet provides a ranked comparisons by Overall as well as Category scores. It enables evaluation of how specific geographies fared against one another across the five major scoring categories.
B7: MAP
B8: A visual display of the indiator scores.
B9: INDICATOR RANKING
B10: This worksheet displays the scores and ranks for each Category and Indicator as well as detailing qualatitive results by country.
B11: COUNTRY PROFILE
B12: This worksheet displays scores and data for each of the 80 countries in detail. It provides a visual analysis of a selected country's absolute and relative performance.
B13: COUNTRY COMPARE
B14: The facility to compare the scores and data of up to 2 countries and filter by category.
B15: SCATTER
B16: A visual comparison between 2 indicators of all countries or filtered groups of countries.

Sheet tblCategories (hidden)
A1: CityID | B1: ISO | C1: City | D1: DisplayName | E1: ISO/MAP | F1: Display_Status | G1: ParentCountry | M1: 1 | N1: 2 | O1: 3 | P1: 4 | Q1: 5 | R1: 6
A2: 0 | C2: <none> | D2: =C2 -> <none> | F2: 0 | K2: All | M2: =INDEX(tblIndiSets!$C$48:$C$53,tblCategories!M1) -> VIEW ALL | N2: =INDEX(tblIndiSets!$C$48:$C$53,tblCategories!N1) -> 1) PALLIATIVE AND HEALTHCARE ENVIRONMENT | O2: =INDEX(tblIndiSets!$C$48:$C$53,tblCategories!O1) -> 2) HUMAN RESOURCES | P2: =INDEX(tblIndiSets!$C$48:$C$53,tblCategories!P1) -> 3) AFFORDABILITY OF CARE | Q2: =INDEX(tblIndiSets!$C$48:$C$53,tblCategories!Q1) -> 4) QUALITY OF CARE | R2: =INDEX(tblIndiSets!$C$48:$C$53,tblCategories!R1) -> 5) COMMUNITY ENGAGEMENT
A3: =tblIndicators!A2 -> 1 | C3: =tblIndicators!V3 -> 1) PALLIATIVE AND HEALTHCARE ENVIRONMENT | D3: =C3 -> 1) PALLIATIVE AND HEALTHCARE ENVIRONMENT | F3: =IF(INDEX($M3:$R3,$I$5)=0,0,IF(A3=$I$3,3,IF(INDEX($L3:$R3,$I$4)=1,1,1))) -> 3 | H3: COUNTRY_HIGHLIGHT_ID | I3: =uxbWorks!B9 -> 1 | K3: 0 | L3: 1 | M3: 1 | N3: 1 | O3: 0 | P3: 0 | Q3: 0 | R3: 0
A4: =tblIndicators!A3 -> 2 | C4: =tblIndicators!V4 -> 1.1) Healthcare spending | D4: =C4 -> 1.1) Healthcare spending | F4: =IF(INDEX($M4:$R4,$I$5)=0,0,IF(A4=$I$3,3,IF(INDEX($L4:$R4,$I$4)=1,1,1))) -> 1 | H4: GROUP_HIGHLIGHT_ID | I4: 1 | L4: 1 | M4: 1 | N4: 1 | O4: 0 | P4: 0 | Q4: 0 | R4: 0
A5: =tblIndicators!A4 -> 3 | C5: =tblIndicators!V5 -> 1.2) Presence and effectiveness of government-led national palliative care strategy | D5: 1.2) Presence and effectiveness of government-led national palliative care strategy | F5: 1 | I5: =uxbWorks!B15 -> 1 | L5: 1 | M5: 1 | N5: 1 | O5: 0 | P5: 0 | Q5: 0 | R5: 0
A6: =tblIndicators!A5 -> 4 | C6: =tblIndicators!V6 -> 1.3) Availability of research-based policy evaluation | D6: 1.3) Availability of research-based policy evaluation | F6: 1 | L6: 1 | M6: 1 | N6: 1 | O6: 0 | P6: 0 | Q6: 0 | R6: 0
A7: =tblIndicators!A6 -> 5 | C7: =tblIndicators!V7 -> 1.4) Capacity to deliver palliative care | D7: 1.4) Capacity to deliver palliative care | F7: 1 | L7: 1 | M7: 1 | N7: 1 | O7: 0 | P7: 0 | Q7: 0 | R7: 0
A8: =tblIndicators!A7 -> 6 | C8: =tblIndicators!V8 -> 2) HUMAN RESOURCES | D8: 2) HUMAN RESOURCES | F8: 1 | L8: 1 | M8: 1 | N8: 0 | O8: 1 | P8: 0 | Q8: 0 | R8: 0
A9: =tblIndicators!A8 -> 7 | C9: =tblIndicators!V9 -> 2.1) Availability of specialised palliative care workers | D9: 2.1) Availability of specialised palliative care workers | F9: 1 | L9: 1 | M9: 1 | N9: 0 | O9: 1 | P9: 0 | Q9: 0 | R9: 0
A10: =tblIndicators!A9 -> 8 | C10: =tblIndicators!V10 -> 2.2) General medical knowledge of palliative care | D10: 2.2) General medical knowledge of palliative care | F10: 1 | L10: 1 | M10: 1 | N10: 0 | O10: 1 | P10: 0 | Q10: 0 | R10: 0
A11: =tblIndicators!A10 -> 9 | C11: =tblIndicators!V11 -> 2.3) Certification for palliative care workers | D11: 2.3) Certification for palliative care workers | F11: 1 | L11: 1 | M11: 1 | N11: 0 | O11: 1 | P11: 0 | Q11: 0 | R11: 0
A12: =tblIndicators!A11 -> 10 | C12: =tblIndicators!V12 -> 2.4) Number of doctors per 1,000 PC-related deaths | D12: 2.4) Number of doctors per 1,000 PC-related deaths | F12: 1 | L12: 1 | M12: 1 | N12: 0 | O12: 1 | P12: 0 | Q12: 0 | R12: 0
A13: =tblIndicators!A12 -> 11 | C13: =tblIndicators!V13 -> 2.5) Number of nurses per 1,000 PC-related deaths | D13: 2.5) Number of nurses per 1,000 PC-related deaths | F13: 1 | L13: 1 | M13: 1 | N13: 0 | O13: 1 | P13: 0 | Q13: 0 | R13: 0
A14: =tblIndicators!A13 -> 12 | C14: =tblIndicators!V14 -> 3) AFFORDABILITY OF CARE | D14: 3) AFFORDABILITY OF CARE | F14: 1 | L14: 1 | M14: 1 | N14: 0 | O14: 0 | P14: 1 | Q14: 0 | R14: 0
A15: =tblIndicators!A14 -> 13 | C15: =tblIndicators!V15 -> 3.1) Availability of public funding for palliative care | D15: 3.1) Availability of public funding for palliative care | F15: 1 | L15: 1 | M15: 1 | N15: 0 | O15: 0 | P15: 1 | Q15: 0 | R15: 0
A16: =tblIndicators!A15 -> 14 | C16: =tblIndicators!V16 -> 3.2) Financial burden to patients for available palliative care | D16: 3.2) Financial burden to patients for available palliative care | F16: 1 | L16: 1 | M16: 1 | N16: 0 | O16: 0 | P16: 1 | Q16: 0 | R16: 0
A17: =tblIndicators!A16 -> 15 | C17: =tblIndicators!V17 -> 3.3) National pension scheme coverage of palliative care services | D17: 3.3) National pension scheme coverage of palliative care services | F17: 1 | L17: 1 | M17: 1 | N17: 0 | O17: 0 | P17: 1 | Q17: 0 | R17: 0
A18: =tblIndicators!A17 -> 16 | C18: =tblIndicators!V18 -> 4) QUALITY OF CARE | D18: 4) QUALITY OF CARE | F18: 1 | L18: 1 | M18: 1 | N18: 0 | O18: 0 | P18: 0 | Q18: 1 | R18: 0
A19: =tblIndicators!A18 -> 17 | C19: =tblIndicators!V19 -> 4.1) Presence of monitoring standards for organisations | D19: 4.1) Presence of monitoring standards for organisations | F19: 1 | L19: 1 | M19: 1 | N19: 0 | O19: 0 | P19: 0 | Q19: 1 | R19: 0
A20: =tblIndicators!A19 -> 18 | C20: =tblIndicators!V20 -> 4.2) Availability of painkillers | D20: 4.2) Availability of painkillers | F20: 1 | L20: 1 | M20: 1 | N20: 0 | O20: 0 | P20: 0 | Q20: 1 | R20: 0
A21: =tblIndicators!A20 -> 19 | C21: =tblIndicators!V21 -> 4.3) Availability of psycho-socio support for patient and families | D21: 4.3) Availability of psycho-socio support for patient and families | F21: 1 | L21: 1 | M21: 1 | N21: 0 | O21: 0 | P21: 0 | Q21: 1 | R21: 0
A22: =tblIndicators!A21 -> 20 | C22: =tblIndicators!V22 -> 4.4) Presence of Do not resuscitate (DNR) policy | D22: 4.4) Presence of Do not resuscitate (DNR) policy | F22: 1 | L22: 1 | M22: 1 | N22: 0 | O22: 0 | P22: 0 | Q22: 1 | R22: 0
A23: =tblIndicators!A22 -> 21 | C23: =tblIndicators!V23 -> 4.5) Shared decisionmaking | D23: 4.5) Shared decisionmaking | F23: 1 | L23: 1 | M23: 1 | N23: 0 | O23: 0 | P23: 0 | Q23: 1 | R23: 0
A24: =tblIndicators!A23 -> 22 | C24: =tblIndicators!V24 -> 4.6) Use of patient satisfaction surveys | D24: 4.6) Use of patient satisfaction surveys | F24: 1 | L24: 1 | M24: 1 | N24: 0 | O24: 0 | P24: 0 | Q24: 1 | R24: 0
A25: =tblIndicators!A24 -> 23 | C25: =tblIndicators!V25 -> 5) COMMUNITY ENGAGEMENT | D25: 5) COMMUNITY ENGAGEMENT | F25: 1 | L25: 1 | M25: 1 | N25: 0 | O25: 0 | P25: 0 | Q25: 0 | R25: 1
A26: =tblIndicators!A25 -> 24 | C26: =tblIndicators!V26 -> 5.1) Public awareness of palliative care | D26: 5.1) Public awareness of palliative care | F26: 1 | L26: 1 | M26: 1 | N26: 0 | O26: 0 | P26: 0 | Q26: 0 | R26: 1
A27: =tblIndicators!A26 -> 25 | C27: =tblIndicators!V27 -> 5.2) Availability of volunteer workers for palliative care | D27: 5.2) Availability of volunteer workers for palliative care | F27: 1 | L27: 1 | M27: 1 | N27: 0 | O27: 0 | P27: 0 | Q27: 0 | R27: 1

Sheet uxbWorks (hidden)
A2: COUNTRY_COUNT | B2: 80
A3: DEFAULT_ROUND_DP | B3: 1
A4: TRIM_TEXT_LEN | B4: 200
A5: WEIGHT_PROFILE_ID | B5: 2
B6: 57 | C6: plus none | D6: ignore none | F6: Map-Highlight
A7: COUNTRY_HIGHLIGHT_DD | B7: 1 | C7: =INDEX(tblCountries!$C$2:$C$82,$B$7) -> <none> | D7: =INDEX(tblCountries!$C$3:$C$82,$B$7) -> Argentina | F7: RUS | G7: =MATCH(F7,uxb_regions!I2:I82,0) -> 59
A8: COUNTRY_HIGHLIGHT_ID | B8: =B7-1 -> 0
A9: REGION_HIGHLIGHT_ID | B9: 1
A10: INCOME_HIGHLIGHT_DD | B10: 1
A11: INCOME_HIGHLIGHT_ID | B11: =B10-1 -> 0
A12: REGION_HIGHLIGHT_DD | B12: 1
A13: REGION_HIGHLIGHT_ID
A15: COUNTRY_COMP_SEL | B15: 1
A17: VERSION | B17: PRODUCTION
C19: =tblIndicators!C1 -> Code | D19: =tblIndicators!D1 -> Parent | E19: =tblIndicators!E1 -> Level | F19: =tblIndicators!G1 -> Indicator | G19: =tblIndicators!H1 -> Unit | H19: =tblIndicators!I1 -> Source | I19: =tblIndicators!J1 -> Description | J19: =tblIndicators!K1 -> Scoring | K19: =tblIndicators!L1 -> Year | L19: =tblIndicators!M1 -> HighIs (0=Good,1=Bad) | M19: =tblIndicators!N1 -> NormalisationTypeID | N19: =tblIndicators!O1 -> MIN | O19: =tblIndicators!Q1 -> DP | P19: =tblIndicators!R1 -> Format | Q19: =tblIndicators!S1 -> WeightRow | R19: =tblIndicators!T1 -> Wnom | S19: =tblIndicators!U1 -> Wpercent | U19: ISBG
A20: INDI_ID | B20: 1 | C20: =INDEX(tblIndicators!C$2:C$43,$B20) -> TOTAL | D20: =INDEX(tblIndicators!D$2:D$43,$B20) -> 0 | E20: =INDEX(tblIndicators!E$2:E$43,$B20) -> 0 | F20: =INDEX(tblIndicators!G$2:G$43,$B20) -> SUPPLY ENVIRONMENT | G20: =INDEX(tblIndicators!H$2:H$43,$B20) -> 0 - 100 where 100= best and 0=worst | H20: =INDEX(tblIndicators!I$2:I$43,$B20) -> Weighted sum of category scores. | I20: =INDEX(tblIndicators!J$2:J$43,$B20) -> This is the weighted sum of the following category scores: 1) Palliative and healthcare environment 2) Human resources 3) Affordability of care 4) Quality of care 5) Community engagement | J20: =INDEX(tblIndicators!K$2:K$43,$B20) -> Weighted sum of category scores. | K20: =INDEX(tblIndicators!L$2:L$43,$B20) -> NA | L20: =INDEX(tblIndicators!M$2:M$43,$B20) -> 0 | M20: =INDEX(tblIndicators!N$2:N$43,$B20) -> 1 | N20: =INDEX(tblIndicators!O$2:O$43,$B20) -> 0 | O20: =INDEX(tblIndicators!Q$2:Q$43,$B20) -> 0 | P20: =INDEX(tblIndicators!R$2:R$43,$B20) -> 0.0 | Q20: =INDEX(tblIndicators!S$2:S$43,$B20) -> 0 | R20: =INDEX(tblIndicators!T$2:T$43,$B20) -> 0 | S20: =INDEX(tblIndicators!U$2:U$43,$B20) -> 0 | U20: =INDEX(tblIndicators!B$2:B$43,$B20) -> 0
A21: INDI_2_ID | B21: 1 | C21: =INDEX(tblIndicators!C$2:C$43,$B21) -> TOTAL | D21: =INDEX(tblIndicators!D$2:D$43,$B21) -> 0 | E21: =INDEX(tblIndicators!E$2:E$43,$B21) -> 0 | F21: =INDEX(tblIndicators!G$2:G$43,$B21) -> SUPPLY ENVIRONMENT | G21: =INDEX(tblIndicators!H$2:H$43,$B21) -> 0 - 100 where 100= best and 0=worst | H21: =INDEX(tblIndicators!I$2:I$43,$B21) -> Weighted sum of category scores. | I21: =INDEX(tblIndicators!J$2:J$43,$B21) -> This is the weighted sum of the following category scores: 1) Palliative and healthcare environment 2) Human resources 3) Affordability of care 4) Quality of care 5) Community engagement | J21: =INDEX(tblIndicators!K$2:K$43,$B21) -> Weighted sum of category scores. | K21: =INDEX(tblIndicators!L$2:L$43,$B21) -> NA | L21: =INDEX(tblIndicators!M$2:M$43,$B21) -> 0 | M21: =INDEX(tblIndicators!N$2:N$43,$B21) -> 1 | N21: =INDEX(tblIndicators!O$2:O$43,$B21) -> 0 | O21: =INDEX(tblIndicators!Q$2:Q$43,$B21) -> 0 | P21: =INDEX(tblIndicators!R$2:R$43,$B21) -> 0.0 | Q21: =INDEX(tblIndicators!S$2:S$43,$B21) -> 0 | R21: =INDEX(tblIndicators!T$2:T$43,$B21) -> 0 | S21: =INDEX(tblIndicators!U$2:U$43,$B21) -> 0 | U21: =INDEX(tblIndicators!B$2:B$43,$B21) -> 0
A24: COUNTRY1_ID | B24: 3 | C24: =INDEX(tblCountries!C$3:C$82,$B24) -> Austria
A25: COUNTRY2_DD | B25: 80 | C25: =INDEX(tblCountries!C$3:C$82,$B25) -> Zimbabwe
A27: COUNTRY1_ID | B27: 5 | C27: =INDEX(tblCountries!C$3:C$82,$B27) -> Belgium
A28: COUNTRY2_ID | B28: 27 | C28: =INDEX(tblCountries!C$3:C$82,$B28) -> Hong Kong
A31: TEXT_BOX
A32: TXT_INDI_ID | B32: 5
A33: TXT_LEVEL | B33: =INDEX(tblIndicators!E2:E27,$B$32) -> 2
A34: TXT_COUNTRY | B34: =C24 -> Austria
A35: TXT_INDI | B35: =INDEX(tblIndicators!G2:G27,$B$32) -> Availability of research-based policy evaluation
A36: TXT_SCORE | B36: =INDEX(aScores,$B32,$B$24) -> 75
A37: TXT_TEXT | B37: =SUBSTITUTE(INDEX(aText,$B32,$B$24),"\n",CHAR(10)) -> Data exists from the country's two non-government based hospice organizations. Surveys are regularly conducted on an annual basis.
A39: SHOW_LABELS | B39: FALSE
A40: SHOW_OUTLIERS | B40: FALSE
A42: INDI_GROUP_SEL | B42: =CountryCompare!AL232 -> 0
A47: REVERSE_ORDER | B47: FALSE

Sheet tblLookups (hidden)
A1: NormalisationID | E1: SectionID
A2: 1 | B2: Weighted Sum | E2: 0 | F2: =tblIndiSets!A5 -> TOTAL | G2: =MATCH(F2,lu_indicode,0) -> 1 | H2: =INDEX(tblIndicators!G$2:G$43,G2) -> SUPPLY ENVIRONMENT
A3: 2 | B3: Multiply by NP1 | E3: 1 | F3: =tblIndiSets!A6 -> PHE | G3: 2 | H3: =INDEX(tblIndicators!G$2:G$43,G3) -> Palliative and healthcare environment
A4: 3 | B4: Min/max | E4: 2 | F4: =tblIndiSets!A7 -> HR | G4: 7 | H4: =INDEX(tblIndicators!G$2:G$43,G4) -> Human resources
E5: 3 | F5: =tblIndiSets!A8 -> AOC | G5: 13 | H5: =INDEX(tblIndicators!G$2:G$43,G5) -> Affordability of care
E6: 4 | F6: =tblIndiSets!A9 -> QOC | G6: 17 | H6: =INDEX(tblIndicators!G$2:G$43,G6) -> Quality of care
E7: 5 | F7: =tblIndiSets!A10 -> CE | G7: 24 | H7: =INDEX(tblIndicators!G$2:G$43,G7) -> Community engagement
E8: 6 | F8: =tblIndiSets!A11 -> TN | G8: =MATCH(F8,lu_indicode,0) -> 31 | H8: =INDEX(tblIndicators!G$2:G$43,G8) -> DEMAND FOR PALLIATIVE CARE

Sheet iRank (hidden)
B1: =uxbWorks!B19 -> 0 | C1: =uxbWorks!C19 -> Code | D1: =uxbWorks!D19 -> Parent | E1: =uxbWorks!E19 -> Level | F1: =uxbWorks!F19 -> Indicator | G1: =uxbWorks!G19 -> Unit | H1: =uxbWorks!H19 -> Source | I1: =uxbWorks!I19 -> Description | J1: =uxbWorks!L19 -> HighIs (0=Good,1=Bad) | K1: =uxbWorks!M19 -> NormalisationTypeID | L1: =uxbWorks!N19 -> MIN | M1: =uxbWorks!O19 -> DP | N1: =uxbWorks!P19 -> Format | O1: =uxbWorks!Q19 -> WeightRow | P1: =uxbWorks!R19 -> Wnom | Q1: =uxbWorks!S19 -> Wpercent | S1: ISBG
A2: INDI_ID | B2: =uxbWorks!B20 -> 1 | C2: =uxbWorks!C20 -> TOTAL | D2: =uxbWorks!D20 -> 0 | E2: =uxbWorks!E20 -> 0 | F2: =uxbWorks!F20 -> SUPPLY ENVIRONMENT | G2: =uxbWorks!G20 -> 0 - 100 where 100= best and 0=worst | H2: =uxbWorks!H20 -> Weighted sum of category scores. | I2: =uxbWorks!I20 -> This is the weighted sum of the following category scores: 1) Palliative and healthcare environment 2) Human resources 3) Affordability of care 4) Quality of care 5) Community engagement | J2: =uxbWorks!L20 -> 0 | K2: =uxbWorks!M20 -> 1 | L2: =uxbWorks!N20 -> 0 | M2: =uxbWorks!O20 -> 0 | N2: =uxbWorks!P20 -> 0.0 | O2: =uxbWorks!Q20 -> 0 | P2: =uxbWorks!R20 -> 0 | Q2: =uxbWorks!S20 -> 0 | S2: =uxbWorks!U20 -> 0
K3: SECTIONID | L3: 1 | V3: SECTIONID | W3: 2 | AG3: SECTIONID | AH3: 3 | AR3: SECTIONID | AS3: 4 | BB3: SECTIONID | BC3: 5 | BL3: SECTIONID | BM3: 6 | BV3: SECTIONID | BW3: 7
K4: INDI_CODE | L4: =INDEX(tblLookups!$F$1:$F$6,L3+1) -> TOTAL | V4: INDI_CODE | W4: =INDEX(tblLookups!$F$1:$F$6,W3+1) -> PHE | AG4: INDI_CODE | AH4: =INDEX(tblLookups!$F$1:$F$6,AH3+1) -> HR | AR4: INDI_CODE | AS4: =INDEX(tblLookups!$F$1:$F$6,AS3+1) -> AOC | BB4: INDI_CODE | BC4: =INDEX(tblLookups!$F$1:$F$6,BC3+1) -> QOC | BL4: INDI_CODE | BM4: =INDEX(tblLookups!$F$1:$F$7,BM3+1) -> CE | BV4: INDI_CODE | BW4: =INDEX(tblLookups!$F$1:$F$8,BW3+1) -> TN
K5: INDI_ID | L5: =INDEX(tblLookups!$G$1:$G$6,L3+1) -> 1 | V5: INDI_ID | W5: =INDEX(tblLookups!$G$1:$G$6,W3+1) -> 2 | AG5: INDI_ID | AH5: =INDEX(tblLookups!$G$1:$G$6,AH3+1) -> 7 | AR5: INDI_ID | AS5: =INDEX(tblLookups!$G$1:$G$6,AS3+1) -> 13 | BB5: INDI_ID | BC5: =INDEX(tblLookups!$G$1:$G$6,BC3+1) -> 17 | BL5: INDI_ID | BM5: =INDEX(tblLookups!$G$1:$G$7,BM3+1) -> 24 | BV5: INDI_ID | BW5: =INDEX(tblLookups!$G$1:$G$8,BW3+1) -> 31
G6: =INDEX(tblLookups!$H$1:$H$6,L3+1) -> SUPPLY ENVIRONMENT | M6: =G6 -> SUPPLY ENVIRONMENT | Q6: INDI_ID | R6: =INDEX(tblLookups!$H$1:$H$6,W3+1) -> Palliative and healthcare environment | X6: =R6 -> Palliative and healthcare environment | AB6: INDI_ID | AC6: =INDEX(tblLookups!$H$1:$H$6,AH3+1) -> Human resources | AI6: =AC6 -> Human resources | AL6: INDI_ID | AM6: =INDEX(tblLookups!$H$1:$H$6,AS3+1) -> Affordability of care | AS6: =AM6 -> Affordability of care | AV6: INDI_ID | AW6: =INDEX(tblLookups!$H$1:$H$6,BC3+1) -> Quality of care | BC6: =AW6 -> Quality of care | BF6: INDI_ID | BG6: =INDEX(tblLookups!$H$1:$H$7,BM3+1) -> Community engagement | BM6: =BG6 -> Community engagement | BP6: INDI_ID | BQ6: =INDEX(tblLookups!$H$1:$H$8,BW3+1) -> DEMAND FOR PALLIATIVE CARE | BW6: =BQ6 -> DEMAND FOR PALLIATIVE CARE | BZ6: INDI_ID
A7: ID/HC | B7: Status | G7: SCORE | H7: RANK (NO TIE) | I7: RANK (TIE) | J7: LU | K7: RANK_TIE | L7: STATUS | R7: SCORE | S7: RANK (NO TIE) | T7: RANK (TIE) | U7: LU | V7: RANK_TIE | W7: STATUS | AC7: SCORE | AD7: RANK (NO TIE) | AE7: RANK (TIE) | AF7: LU | AG7: RANK_TIE | AH7: STATUS | AM7: SCORE | AN7: RANK (NO TIE) | AO7: RANK (TIE) | AP7: LU | AQ7: RANK_TIE | AR7: STATUS | AW7: SCORE | AX7: RANK (NO TIE) | AY7: RANK (TIE) | AZ7: LU | BA7: RANK_TIE | BB7: STATUS | BG7: SCORE | BH7: RANK (NO TIE) | BI7: RANK (TIE) | BJ7: LU | BK7: RANK_TIE | BL7: STATUS | BQ7: SCORE | BR7: RANK (NO TIE) | BS7: RANK (TIE) | BT7: LU | BU7: RANK_TIE | BV7: STATUS
A8: =tblCountries!A3 -> 1 | B8: =tblCountries!F3 -> 1 | C8: =tblCountries!C3 -> Argentina | G8: =IF($B8=0,"",INDEX(aRoundedScores,L$5,$A8)) -> 52.5 | H8: =IF($B8=0,"",RANK(G8,G$8:G$87)+COUNTIF(G$8:G8,G8)-1) -> 32 | I8: =IF($B8=0,"",RANK(G8,G$8:G$87)) -> 32 | J8: =MATCH($A8,H$8:H$87,0) -> 74 | K8: =IF(ISNUMBER(J8),INDEX(I$8:I$87,J8),"") -> 1 | L8: =IF(ISNUMBER(K8),INDEX($B$8:$B$87,J8),0) -> 1 | M8: =IF(L8=0,"",CONCATENATE(IF(OR(K8=K7,K8=K9),"=",""),K8)) -> 1 | N8: =IF(L8=0,"",INDEX($C$8:$C$87,J8)) -> United Kingdom | O8: =IF(L8=0,"",INDEX(G$8:G$87,J8)) -> 93.9 | R8: =IF($B8=0,"",INDEX(aRoundedScores,W$5,$A8)) -> 25.8 | S8: =IF($B8=0,"",RANK(R8,R$8:R$87)+COUNTIF(R$8:R8,R8)-1) -> 59 | T8: =IF($B8=0,"",RANK(R8,R$8:R$87)) -> 59 | U8: =MATCH($A8,S$8:S$87,0) -> 74 | V8: =IF(ISNUMBER(U8),INDEX(T$8:T$87,U8),"") -> 1 | W8: =IF(ISNUMBER(V8),INDEX($B$8:$B$87,U8),0) -> 1 | X8: =IF(W8=0,"",CONCATENATE(IF(OR(V8=V7,V8=V9),"=",""),V8)) -> 1 | Y8: =IF(W8=0,"",INDEX($C$8:$C$87,U8)) -> United Kingdom | Z8: =IF(W8=0,"",INDEX(R$8:R$87,U8)) -> 85.2 | AC8: =IF($B8=0,"",INDEX(aRoundedScores,AH$5,$A8)) -> 50.7 | AD8: =IF($B8=0,"",RANK(AC8,AC$8:AC$87)+COUNTIF(AC$8:AC8,AC8)-1) -> 29 | AE8: =IF($B8=0,"",RANK(AC8,AC$8:AC$87)) -> 29 | AF8: =MATCH($A8,AD$8:AD$87,0) -> 2 | AG8: =IF(ISNUMBER(AF8),INDEX(AE$8:AE$87,AF8),"") -> 1 | AH8: =IF(ISNUMBER(AG8),INDEX($B$8:$B$87,AF8),0) -> 1 | AI8: =IF(AH8=0,"",CONCATENATE(IF(OR(AG8=AG7,AG8=AG9),"=",""),AG8)) -> 1 | AJ8: =IF(AH8=0,"",INDEX($C$8:$C$87,AF8)) -> Australia | AK8: =IF(AH8=0,"",INDEX(AC$8:AC$87,AF8)) -> 92.3 | AM8: =IF($B8=0,"",INDEX(aRoundedScores,AS$5,$A8)) -> 57.5 | AN8: =IF($B8=0,"",RANK(AM8,AM$8:AM$87)+COUNTIF(AM$8:AM8,AM8)-1) -> 44 | AO8: =IF($B8=0,"",RANK(AM8,AM$8:AM$87)) -> 44 | AP8: =MATCH($A8,AN$8:AN$87,0) -> 2 | AQ8: =IF(ISNUMBER(AP8),INDEX(AO$8:AO$87,AP8),"") -> 1 | AR8: =IF(ISNUMBER(AQ8),INDEX($B$8:$B$87,AP8),0) -> 1 | AS8: =IF(AR8=0,"",CONCATENATE(IF(OR(AQ8=AQ7,AQ8=AQ9),"=",""),AQ8)) -> =1 | AT8: =IF(AR8=0,"",INDEX($C$8:$C$87,AP8)) -> Australia | AU8: =IF(AR8=0,"",INDEX(AM$8:AM$87,AP8)) -> 100 | AW8: =IF($B8=0,"",INDEX(aRoundedScores,BC$5,$A8)) -> 75 | AX8: =IF($B8=0,"",RANK(AW8,AW$8:AW$87)+COUNTIF(AW$8:AW8,AW8)-1) -> 26 | AY8: =IF($B8=0,"",RANK(AW8,AW$8:AW$87)) -> 26 | AZ8: =MATCH($A8,AX$8:AX$87,0) -> 74 | BA8: =IF(ISNUMBER(AZ8),INDEX(AY$8:AY$87,AZ8),"") -> 1 | BB8: =IF(ISNUMBER(BA8),INDEX($B$8:$B$87,AZ8),0) -> 1 | BC8: =IF(BB8=0,"",CONCATENATE(IF(OR(BA8=BA7,BA8=BA9),"=",""),BA8)) -> 1 | BD8: =IF(BB8=0,"",INDEX($C$8:$C$87,AZ8)) -> United Kingdom | BE8: =IF(BB8=0,"",INDEX(AW$8:AW$87,AZ8)) -> 100 | BG8: =IF($B8=0,"",INDEX(aRoundedScores,BM$5,$A8)) -> 32.5 | BH8: =IF($B8=0,"",RANK(BG8,BG$8:BG$87)+COUNTIF(BG$8:BG8,BG8)-1) -> 38 | BI8: =IF($B8=0,"",RANK(BG8,BG$8:BG$87)) -> 38 | BJ8: =MATCH($A8,BH$8:BH$87,0) -> 5 | BK8: =IF(ISNUMBER(BJ8),INDEX(BI$8:BI$87,BJ8),"") -> 1 | BL8: =IF(ISNUMBER(BK8),INDEX($B$8:$B$87,BJ8),0) -> 1 | BM8: =IF(BL8=0,"",CONCATENATE(IF(OR(BK8=BK7,BK8=BK9),"=",""),BK8)) -> =1 | BN8: =IF(BL8=0,"",INDEX($C$8:$C$87,BJ8)) -> Belgium | BO8: =IF(BL8=0,"",INDEX(BG$8:BG$87,BJ8)) -> 100 | BQ8: =IF($B8=0,"",INDEX(aRoundedScores,BW$5,$A8)) -> 52.6 | BR8: =IF($B8=0,"",RANK(BQ8,BQ$8:BQ$87)+COUNTIF(BQ$8:BQ8,BQ8)-1) -> 47 | BS8: =IF($B8=0,"",RANK(BQ8,BQ$8:BQ$87)) -> 47 | BT8: =MATCH($A8,BR$8:BR$87,0) -> 47 | BU8: =IF(ISNUMBER(BT8),INDEX(BS$8:BS$87,BT8),"") -> 1 | BV8: =IF(ISNUMBER(BU8),INDEX($B$8:$B$87,BT8),0) -> 1 | BW8: =IF(BV8=0,"",CONCATENATE(IF(OR(BU8=BU7,BU8=BU9),"=",""),BU8)) -> 1 | BX8: =IF(BV8=0,"",INDEX($C$8:$C$87,BT8)) -> Netherlands | BY8: =IF(BV8=0,"",INDEX(BQ$8:BQ$87,BT8)) -> 78
A9: =tblCountries!A4 -> 2 | B9: =tblCountries!F4 -> 1 | C9: =tblCountries!C4 -> Australia | G9: 91.6 | H9: =IF($B9=0,"",RANK(G9,G$8:G$87)+COUNTIF(G$8:G9,G9)-1) -> 2 | I9: =IF($B9=0,"",RANK(G9,G$8:G$87)) -> 2 | J9: =MATCH($A9,H$8:H$87,0) -> 2 | K9: =IF(ISNUMBER(J9),INDEX(I$8:I$87,J9),"") -> 2 | L9: =IF(ISNUMBER(K9),INDEX($B$8:$B$87,J9),0) -> 1 | M9: =IF(L9=0,"",CONCATENATE(IF(OR(K9=K8,K9=K10),"=",""),K9)) -> 2 | N9: =IF(L9=0,"",INDEX($C$8:$C$87,J9)) -> Australia | O9: =IF(L9=0,"",INDEX(G$8:G$87,J9)) -> 91.6 | R9: 84.1 | S9: =IF($B9=0,"",RANK(R9,R$8:R$87)+COUNTIF(R$8:R9,R9)-1) -> 3 | T9: =IF($B9=0,"",RANK(R9,R$8:R$87)) -> 3 | U9: =MATCH($A9,S$8:S$87,0) -> 47 | V9: =IF(ISNUMBER(U9),INDEX(T$8:T$87,U9),"") -> 2 | W9: =IF(ISNUMBER(V9),INDEX($B$8:$B$87,U9),0) -> 1 | X9: =IF(W9=0,"",CONCATENATE(IF(OR(V9=V8,V9=V10),"=",""),V9)) -> 2 | Y9: =IF(W9=0,"",INDEX($C$8:$C$87,U9)) -> Netherlands | Z9: =IF(W9=0,"",INDEX(R$8:R$87,U9)) -> 84.8 | AC9: 92.3 | AD9: =IF($B9=0,"",RANK(AC9,AC$8:AC$87)+COUNTIF(AC$8:AC9,AC9)-1) -> 1 | AE9: =IF($B9=0,"",RANK(AC9,AC$8:AC$87)) -> 1 | AF9: =MATCH($A9,AD$8:AD$87,0) -> 74 | AG9: =IF(ISNUMBER(AF9),INDEX(AE$8:AE$87,AF9),"") -> 2 | AH9: =IF(ISNUMBER(AG9),INDEX($B$8:$B$87,AF9),0) -> 1 | AI9: =IF(AH9=0,"",CONCATENATE(IF(OR(AG9=AG8,AG9=AG10),"=",""),AG9)) -> 2 | AJ9: =IF(AH9=0,"",INDEX($C$8:$C$87,AF9)) -> United Kingdom | AK9: =IF(AH9=0,"",INDEX(AC$8:AC$87,AF9)) -> 88.2 | AM9: 100 | AN9: =IF($B9=0,"",RANK(AM9,AM$8:AM$87)+COUNTIF(AM$8:AM9,AM9)-1) -> 1 | AO9: =IF($B9=0,"",RANK(AM9,AM$8:AM$87)) -> 1 | AP9: =MATCH($A9,AN$8:AN$87,0) -> 5 | AQ9: =IF(ISNUMBER(AP9),INDEX(AO$8:AO$87,AP9),"") -> 1 | AR9: =IF(ISNUMBER(AQ9),INDEX($B$8:$B$87,AP9),0) -> 1 | AS9: =IF(AR9=0,"",CONCATENATE(IF(OR(AQ9=AQ8,AQ9=AQ10),"=",""),AQ9)) -> =1 | AT9: =IF(AR9=0,"",INDEX($C$8:$C$87,AP9)) -> Belgium | AU9: =IF(AR9=0,"",INDEX(AM$8:AM$87,AP9)) -> 100 | AW9: 96.3 | AX9: =IF($B9=0,"",RANK(AW9,AW$8:AW$87)+COUNTIF(AW$8:AW9,AW9)-1) -> 3 | AY9: =IF($B9=0,"",RANK(AW9,AW$8:AW$87)) -> 3 | AZ9: =MATCH($A9,AX$8:AX$87,0) -> 66 | BA9: =IF(ISNUMBER(AZ9),INDEX(AY$8:AY$87,AZ9),"") -> 2 | BB9: =IF(ISNUMBER(BA9),INDEX($B$8:$B$87,AZ9),0) -> 1 | BC9: =IF(BB9=0,"",CONCATENATE(IF(OR(BA9=BA8,BA9=BA10),"=",""),BA9)) -> 2 | BD9: =IF(BB9=0,"",INDEX($C$8:$C$87,AZ9)) -> Sweden | BE9: =IF(BB9=0,"",INDEX(AW$8:AW$87,AZ9)) -> 97.5 | BG9: 75 | BH9: =IF($B9=0,"",RANK(BG9,BG$8:BG$87)+COUNTIF(BG$8:BG9,BG9)-1) -> 9 | BI9: =IF($B9=0,"",RANK(BG9,BG$8:BG$87)) -> 9 | BJ9: =MATCH($A9,BH$8:BH$87,0) -> 48 | BK9: =IF(ISNUMBER(BJ9),INDEX(BI$8:BI$87,BJ9),"") -> 1 | BL9: =IF(ISNUMBER(BK9),INDEX($B$8:$B$87,BJ9),0) -> 1 | BM9: =IF(BL9=0,"",CONCATENATE(IF(OR(BK9=BK8,BK9=BK10),"=",""),BK9)) -> =1 | BN9: =IF(BL9=0,"",INDEX($C$8:$C$87,BJ9)) -> New Zealand | BO9: =IF(BL9=0,"",INDEX(BG$8:BG$87,BJ9)) -> 100 | BQ9: 71.2 | BR9: =IF($B9=0,"",RANK(BQ9,BQ$8:BQ$87)+COUNTIF(BQ$8:BQ9,BQ9)-1) -> 7 | BS9: =IF($B9=0,"",RANK(BQ9,BQ$8:BQ$87)) -> 7 | BT9: =MATCH($A9,BR$8:BR$87,0) -> 35 | BU9: =IF(ISNUMBER(BT9),INDEX(BS$8:BS$87,BT9),"") -> 2 | BV9: =IF(ISNUMBER(BU9),INDEX($B$8:$B$87,BT9),0) -> 1 | BW9: =IF(BV9=0,"",CONCATENATE(IF(OR(BU9=BU8,BU9=BU10),"=",""),BU9)) -> 2 | BX9: =IF(BV9=0,"",INDEX($C$8:$C$87,BT9)) -> Italy | BY9: =IF(BV9=0,"",INDEX(BQ$8:BQ$87,BT9)) -> 75.2
A10: =tblCountries!A5 -> 3 | B10: =tblCountries!F5 -> 1 | C10: =tblCountries!C5 -> Austria | G10: 74.8 | H10: =IF($B10=0,"",RANK(G10,G$8:G$87)+COUNTIF(G$8:G10,G10)-1) -> 17 | I10: 17 | J10: 48 | K10: 3 | L10: 1 | M10: 3 | N10: New Zealand | O10: 87.6 | R10: 77.8 | S10: =IF($B10=0,"",RANK(R10,R$8:R$87)+COUNTIF(R$8:R10,R10)-1) -> 7 | T10: 7 | U10: 2 | V10: 3 | W10: 1 | X10: 3 | Y10: Australia | Z10: 84.1 | AC10: 71.4 | AD10: =IF($B10=0,"",RANK(AC10,AC$8:AC$87)+COUNTIF(AC$8:AC10,AC10)-1) -> 12 | AE10: 12 | AF10: 23 | AG10: 3 | AH10: 1 | AI10: 3 | AJ10: Germany | AK10: 87.9 | AM10: 65 | AN10: =IF($B10=0,"",RANK(AM10,AM$8:AM$87)+COUNTIF(AM$8:AM10,AM10)-1) -> 36 | AO10: 36 | AP10: 16 | AQ10: 1 | AR10: 1 | AS10: =1 | AT10: Denmark | AU10: 100 | AW10: 87.5 | AX10: =IF($B10=0,"",RANK(AW10,AW$8:AW$87)+COUNTIF(AW$8:AW10,AW10)-1) -> 13 | AY10: 13 | AZ10: 2 | BA10: 3 | BB10: 1 | BC10: 3 | BD10: Australia | BE10: 96.3 | BG10: 57.5 | BH10: =IF($B10=0,"",RANK(BG10,BG$8:BG$87)+COUNTIF(BG$8:BG10,BG10)-1) -> 15 | BI10: 15 | BJ10: 22 | BK10: 3 | BL10: 1 | BM10: =3 | BN10: France | BO10: 92.5 | BQ10: 73.4 | BR10: =IF($B10=0,"",RANK(BQ10,BQ$8:BQ$87)+COUNTIF(BQ$8:BQ10,BQ10)-1) -> 4 | BS10: 4 | BT10: 16 | BU10: 3 | BV10: 1 | BW10: 3 | BX10: Denmark | BY10: 75.1
A11: =tblCountries!A6 -> 4 | B11: =tblCountries!F6 -> 1 | C11: =tblCountries!C6 -> Bangladesh | G11: 14.1 | H11: =IF($B11=0,"",RANK(G11,G$8:G$87)+COUNTIF(G$8:G11,G11)-1) -> 79 | I11: 79 | J11: 33 | K11: 4 | L11: 1 | M11: 4 | N11: Ireland | O11: 85.8 | R11: 19 | S11: =IF($B11=0,"",RANK(R11,R$8:R$87)+COUNTIF(R$8:R11,R11)-1) -> 71 | T11: 71 | U11: 33 | V11: 4 | W11: 1 | X11: 4 | Y11: Ireland | Z11: 81.7 | AC11: 1.3 | AD11: =IF($B11=0,"",RANK(AC11,AC$8:AC$87)+COUNTIF(AC$8:AC11,AC11)-1) -> 80 | AE11: 80 | AF11: 33 | AG11: 4 | AH11: 1 | AI11: 4 | AJ11: Ireland | AK11: 86.1 | AM11: 30 | AN11: =IF($B11=0,"",RANK(AM11,AM$8:AM$87)+COUNTIF(AM$8:AM11,AM11)-1) -> 72 | AO11: 72 | AP11: 33 | AQ11: 1 | AR11: 1 | AS11: =1 | AT11: Ireland | AU11: 100 | AW11: 7.5 | AX11: =IF($B11=0,"",RANK(AW11,AW$8:AW$87)+COUNTIF(AW$8:AW11,AW11)-1) -> 77 | AY11: 77 | AZ11: 48 | BA11: 4 | BB11: 1 | BC11: 4 | BD11: New Zealand | BE11: 95 | BG11: 17.5 | BH11: =IF($B11=0,"",RANK(BG11,BG$8:BG$87)+COUNTIF(BG$8:BG11,BG11)-1) -> 66 | BI11: 66 | BJ11: 74 | BK11: 3 | BL11: 1 | BM11: =3 | BN11: United Kingdom | BO11: 92.5 | BQ11: 23.9 | BR11: =IF($B11=0,"",RANK(BQ11,BQ$8:BQ$87)+COUNTIF(BQ$8:BQ11,BQ11)-1) -> 77 | BS11: 77 | BT11: 3 | BU11: 4 | BV11: 1 | BW11: 4 | BX11: Austria | BY11: 73.4
A12: =tblCountries!A7 -> 5 | B12: =tblCountries!F7 -> 1 | C12: =tblCountries!C7 -> Belgium | G12: 84.5 | H12: =IF($B12=0,"",RANK(G12,G$8:G$87)+COUNTIF(G$8:G12,G12)-1) -> 5 | I12: 5 | J12: 5 | K12: 5 | L12: 1 | M12: 5 | N12: Belgium | O12: 84.5 | R12: 69.4 | S12: =IF($B12=0,"",RANK(R12,R$8:R$87)+COUNTIF(R$8:R12,R12)-1) -> 10 | T12: 10 | U12: 68 | V12: 5 | W12: 1 | X12: 5 | Y12: Taiwan | Z12: 79.6 | AC12: 66 | AD12: =IF($B12=0,"",RANK(AC12,AC$8:AC$87)+COUNTIF(AC$8:AC12,AC12)-1) -> 17 | AE12: 17 | AF12: 48 | AG12: 5 | AH12: 1 | AI12: 5 | AJ12: New Zealand | AK12: 81.4 | AM12: 100 | AN12: =IF($B12=0,"",RANK(AM12,AM$8:AM$87)+COUNTIF(AM$8:AM12,AM12)-1) -> 2 | AO12: 1 | AP12: 74 | AQ12: 1 | AR12: 1 | AS12: =1 | AT12: United Kingdom | AU12: 100 | AW12: 91.3 | AX12: =IF($B12=0,"",RANK(AW12,AW$8:AW$87)+COUNTIF(AW$8:AW12,AW12)-1) -> 7 | AY12: 7 | AZ12: 22 | BA12: 5 | BB12: 1 | BC12: 5 | BD12: France | BE12: 93.8 | BG12: 100 | BH12: =IF($B12=0,"",RANK(BG12,BG$8:BG$87)+COUNTIF(BG$8:BG12,BG12)-1) -> 1 | BI12: 1 | BJ12: 23 | BK12: 5 | BL12: 1 | BM12: =5 | BN12: Germany | BO12: 82.5 | BQ12: 65 | BR12: =IF($B12=0,"",RANK(BQ12,BQ$8:BQ$87)+COUNTIF(BQ$8:BQ12,BQ12)-1) -> 27 | BS12: 27 | BT12: 9 | BU12: 5 | BV12: 1 | BW12: 5 | BX12: Canada | BY12: 72.8
A13: =tblCountries!A8 -> 6 | B13: =tblCountries!F8 -> 1 | C13: =tblCountries!C8 -> Botswana | G13: 22.8 | H13: =IF($B13=0,"",RANK(G13,G$8:G$87)+COUNTIF(G$8:G13,G13)-1) -> 72 | I13: 72 | J13: 68 | K13: 6 | L13: 1 | M13: 6 | N13: Taiwan | O13: 83.1 | R13: 21.5 | S13: =IF($B13=0,"",RANK(R13,R$8:R$87)+COUNTIF(R$8:R13,R13)-1) -> 67 | T13: 67 | U13: 75 | V13: 6 | W13: 1 | X13: 6 | Y13: United States of America | Z13: 78.9 | AC13: 19.6 | AD13: =IF($B13=0,"",RANK(AC13,AC$8:AC$87)+COUNTIF(AC$8:AC13,AC13)-1) -> 72 | AE13: 72 | AF13: 9 | AG13: 6 | AH13: 1 | AI13: 6 | AJ13: Canada | AK13: 78 | AM13: 52.5 | AN13: =IF($B13=0,"",RANK(AM13,AM$8:AM$87)+COUNTIF(AM$8:AM13,AM13)-1) -> 49 | AO13: 49 | AP13: 14 | AQ13: 6 | AR13: 1 | AS13: =6 | AT13: Cuba | AU13: 87.5 | AW13: 13.8 | AX13: =IF($B13=0,"",RANK(AW13,AW$8:AW$87)+COUNTIF(AW$8:AW13,AW13)-1) -> 71 | AY13: 71 | AZ13: 9 | BA13: 6 | BB13: 1 | BC13: 6 | BD13: Canada | BE13: 92.5 | BG13: 0 | BH13: =IF($B13=0,"",RANK(BG13,BG$8:BG$87)+COUNTIF(BG$8:BG13,BG13)-1) -> 78 | BI13: 78 | BJ13: 33 | BK13: 5 | BL13: 1 | BM13: =5 | BN13: Ireland | BO13: 82.5 | BQ13: 64.1 | BR13: =IF($B13=0,"",RANK(BQ13,BQ$8:BQ$87)+COUNTIF(BQ$8:BQ13,BQ13)-1) -> 29 | BS13: 29 | BT13: 33 | BU13: 6 | BV13: 1 | BW13: 6 | BX13: Ireland | BY13: 71.4
A14: =tblCountries!A9 -> 7 | B14: =tblCountries!F9 -> 1 | C14: =tblCountries!C9 -> Brazil | G14: 42.5 | H14: =IF($B14=0,"",RANK(G14,G$8:G$87)+COUNTIF(G$8:G14,G14)-1) -> 42 | I14: 42 | J14: 23 | K14: 7 | L14: 1 | M14: 7 | N14: Germany | O14: 82 | R14: 38 | S14: =IF($B14=0,"",RANK(R14,R$8:R$87)+COUNTIF(R$8:R14,R14)-1) -> 36 | T14: 36 | U14: 3 | V14: 7 | W14: 1 | X14: 7 | Y14: Austria | Z14: 77.8 | AC14: 46.2 | AD14: =IF($B14=0,"",RANK(AC14,AC$8:AC$87)+COUNTIF(AC$8:AC14,AC14)-1) -> 33 | AE14: 33 | AF14: 50 | AG14: 7 | AH14: 1 | AI14: 7 | AJ14: Norway | AK14: 75.5 | AM14: 52.5 | AN14: =IF($B14=0,"",RANK(AM14,AM$8:AM$87)+COUNTIF(AM$8:AM14,AM14)-1) -> 50 | AO14: 49 | AP14: 21 | AQ14: 6 | AR14: 1 | AS14: =6 | AT14: Finland | AU14: 87.5 | AW14: 33.8 | AX14: =IF($B14=0,"",RANK(AW14,AW$8:AW$87)+COUNTIF(AW$8:AW14,AW14)-1) -> 51 | AY14: 51 | AZ14: 5 | BA14: 7 | BB14: 1 | BC14: 7 | BD14: Belgium | BE14: 91.3 | BG14: 50 | BH14: =IF($B14=0,"",RANK(BG14,BG$8:BG$87)+COUNTIF(BG$8:BG14,BG14)-1) -> 22 | BI14: 22 | BJ14: 36 | BK14: 5 | BL14: 1 | BM14: =5 | BN14: Japan | BO14: 82.5 | BQ14: 44.7 | BR14: =IF($B14=0,"",RANK(BQ14,BQ$8:BQ$87)+COUNTIF(BQ$8:BQ14,BQ14)-1) -> 61 | BS14: 61 | BT14: 2 | BU14: 7 | BV14: 1 | BW14: 7 | BX14: Australia | BY14: 71.2
A15: =tblCountries!A10 -> 8 | B15: =tblCountries!F10 -> 1 | C15: =tblCountries!C10 -> Bulgaria | G15: 30.1 | H15: =IF($B15=0,"",RANK(G15,G$8:G$87)+COUNTIF(G$8:G15,G15)-1) -> 62 | I15: 62 | J15: 47 | K15: 8 | L15: 1 | M15: 8 | N15: Netherlands | O15: 80.9 | R15: 12.6 | S15: =IF($B15=0,"",RANK(R15,R$8:R$87)+COUNTIF(R$8:R15,R15)-1) -> 74 | T15: 74 | U15: 48 | V15: 8 | W15: 1 | X15: 8 | Y15: New Zealand | Z15: 76.7 | AC15: 11.6 | AD15: =IF($B15=0,"",RANK(AC15,AC$8:AC$87)+COUNTIF(AC$8:AC15,AC15)-1) -> 76 | AE15: 76 | AF15: 60 | AG15: 8 | AH15: 1 | AI15: 8 | AJ15: Singapore | AK15: 74 | AM15: 57.5 | AN15: =IF($B15=0,"",RANK(AM15,AM$8:AM$87)+COUNTIF(AM$8:AM15,AM15)-1) -> 45 | AO15: 44 | AP15: 23 | AQ15: 6 | AR15: 1 | AS15: =6 | AT15: Germany | AU15: 87.5 | AW15: 40 | AX15: =IF($B15=0,"",RANK(AW15,AW$8:AW$87)+COUNTIF(AW$8:AW15,AW15)-1) -> 44 | AY15: 44 | AZ15: 47 | BA15: 8 | BB15: 1 | BC15: =8 | BD15: Netherlands | BE15: 90 | BG15: 17.5 | BH15: =IF($B15=0,"",RANK(BG15,BG$8:BG$87)+COUNTIF(BG$8:BG15,BG15)-1) -> 67 | BI15: 66 | BJ15: 68 | BK15: 5 | BL15: 1 | BM15: =5 | BN15: Taiwan | BO15: 82.5 | BQ15: 64.5 | BR15: =IF($B15=0,"",RANK(BQ15,BQ$8:BQ$87)+COUNTIF(BQ$8:BQ15,BQ15)-1) -> 28 | BS15: 28 | BT15: 11 | BU15: 8 | BV15: 1 | BW15: =8 | BX15: China | BY15: 71.1
A16: =tblCountries!A11 -> 9 | B16: =tblCountries!F11 -> 1 | C16: =tblCountries!C11 -> Canada | G16: 77.8 | H16: =IF($B16=0,"",RANK(G16,G$8:G$87)+COUNTIF(G$8:G16,G16)-1) -> 11 | I16: 11 | J16: 75 | K16: 9 | L16: 1 | M16: 9 | N16: United States of America | O16: 80.8 | R16: 57.5 | S16: =IF($B16=0,"",RANK(R16,R$8:R$87)+COUNTIF(R$8:R16,R16)-1) -> 18 | T16: 18 | U16: 50 | V16: 9 | W16: 1 | X16: 9 | Y16: Norway | Z16: 71 | AC16: 78 | AD16: =IF($B16=0,"",RANK(AC16,AC$8:AC$87)+COUNTIF(AC$8:AC16,AC16)-1) -> 6 | AE16: 6 | AF16: 68 | AG16: 9 | AH16: 1 | AI16: 9 | AJ16: Taiwan | AK16: 72.2 | AM16: 77.5 | AN16: =IF($B16=0,"",RANK(AM16,AM$8:AM$87)+COUNTIF(AM$8:AM16,AM16)-1) -> 22 | AO16: 22 | AP16: 35 | AQ16: 6 | AR16: 1 | AS16: =6 | AT16: Italy | AU16: 87.5 | AW16: 92.5 | AX16: =IF($B16=0,"",RANK(AW16,AW$8:AW$87)+COUNTIF(AW$8:AW16,AW16)-1) -> 6 | AY16: 6 | AZ16: 60 | BA16: 8 | BB16: 1 | BC16: =8 | BD16: Singapore | BE16: 90 | BG16: 75 | BH16: =IF($B16=0,"",RANK(BG16,BG$8:BG$87)+COUNTIF(BG$8:BG16,BG16)-1) -> 10 | BI16: 9 | BJ16: 2 | BK16: 9 | BL16: 1 | BM16: =9 | BN16: Australia | BO16: 75 | BQ16: 72.8 | BR16: =IF($B16=0,"",RANK(BQ16,BQ$8:BQ$87)+COUNTIF(BQ$8:BQ16,BQ16)-1) -> 5 | BS16: 5 | BT16: 48 | BU16: 8 | BV16: 1 | BW16: =8 | BX16: New Zealand | BY16: 71.1
A17: =tblCountries!A12 -> 10 | B17: =tblCountries!F12 -> 1 | C17: =tblCountries!C12 -> Chile | G17: 58.6 | H17: =IF($B17=0,"",RANK(G17,G$8:G$87)+COUNTIF(G$8:G17,G17)-1) -> 27 | I17: 27 | J17: 22 | K17: 10 | L17: 1 | M17: 10 | N17: France | O17: 79.4 | R17: 51.9 | S17: =IF($B17=0,"",RANK(R17,R$8:R$87)+COUNTIF(R$8:R17,R17)-1) -> 23 | T17: 23 | U17: 5 | V17: 10 | W17: 1 | X17: 10 | Y17: Belgium | Z17: 69.4 | AC17: 47.4 | AD17: =IF($B17=0,"",RANK(AC17,AC$8:AC$87)+COUNTIF(AC$8:AC17,AC17)-1) -> 32 | AE17: 32 | AF17: 22 | AG17: 10 | AH17: 1 | AI17: =10 | AJ17: France | AK17: 71.6 | AM17: 82.5 | AN17: =IF($B17=0,"",RANK(AM17,AM$8:AM$87)+COUNTIF(AM$8:AM17,AM17)-1) -> 18 | AO17: 18 | AP17: 47 | AQ17: 6 | AR17: 1 | AS17: =6 | AT17: Netherlands | AU17: 87.5 | AW17: 60 | AX17: =IF($B17=0,"",RANK(AW17,AW$8:AW$87)+COUNTIF(AW$8:AW17,AW17)-1) -> 32 | AY17: 32 | AZ17: 67 | BA17: 8 | BB17: 1 | BC17: =8 | BD17: Switzerland | BE17: 90 | BG17: 42.5 | BH17: =IF($B17=0,"",RANK(BG17,BG$8:BG$87)+COUNTIF(BG$8:BG17,BG17)-1) -> 27 | BI17: 27 | BJ17: 9 | BK17: 9 | BL17: 1 | BM17: =9 | BN17: Canada | BO17: 75 | BQ17: 60.2 | BR17: =IF($B17=0,"",RANK(BQ17,BQ$8:BQ$87)+COUNTIF(BQ$8:BQ17,BQ17)-1) -> 36 | BS17: 36 | BT17: 23 | BU17: 10 | BV17: 1 | BW17: 10 | BX17: Germany | BY17: 70.9
A18: =tblCountries!A13 -> 11 | B18: =tblCountries!F13 -> 1 | C18: =tblCountries!C13 -> China | G18: 23.3 | H18: =IF($B18=0,"",RANK(G18,G$8:G$87)+COUNTIF(G$8:G18,G18)-1) -> 71 | I18: 71 | J18: 9 | K18: 11 | L18: 1 | M18: 11 | N18: Canada | O18: 77.8 | R18: 21.1 | S18: =IF($B18=0,"",RANK(R18,R$8:R$87)+COUNTIF(R$8:R18,R18)-1) -> 69 | T18: 69 | U18: 23 | V18: 11 | W18: 1 | X18: 11 | Y18: Germany | Z18: 67.6 | AC18: 21 | AD18: =IF($B18=0,"",RANK(AC18,AC$8:AC$87)+COUNTIF(AC$8:AC18,AC18)-1) -> 70 | AE18: 70 | AF18: 66 | AG18: 10 | AH18: 1 | AI18: =10 | AJ18: Sweden | AK18: 71.6 | AM18: 37.5 | AN18: =IF($B18=0,"",RANK(AM18,AM$8:AM$87)+COUNTIF(AM$8:AM18,AM18)-1) -> 65 | AO18: 65 | AP18: 48 | AQ18: 6 | AR18: 1 | AS18: =6 | AT18: New Zealand | AU18: 87.5 | AW18: 16.3 | AX18: =IF($B18=0,"",RANK(AW18,AW$8:AW$87)+COUNTIF(AW$8:AW18,AW18)-1) -> 69 | AY18: 69 | AZ18: 68 | BA18: 8 | BB18: 1 | BC18: =8 | BD18: Taiwan | BE18: 90 | BG18: 25 | BH18: =IF($B18=0,"",RANK(BG18,BG$8:BG$87)+COUNTIF(BG$8:BG18,BG18)-1) -> 45 | BI18: 45 | BJ18: 47 | BK18: 9 | BL18: 1 | BM18: =9 | BN18: Netherlands | BO18: 75 | BQ18: 71.1 | BR18: =IF($B18=0,"",RANK(BQ18,BQ$8:BQ$87)+COUNTIF(BQ$8:BQ18,BQ18)-1) -> 8 | BS18: 8 | BT18: 67 | BU18: 11 | BV18: 1 | BW18: 11 | BX18: Switzerland | BY18: 70.7
A19: =tblCountries!A14 -> 12 | B19: =tblCountries!F14 -> 1 | C19: =tblCountries!C14 -> Colombia | G19: 26.7 | H19: =IF($B19=0,"",RANK(G19,G$8:G$87)+COUNTIF(G$8:G19,G19)-1) -> 68 | I19: 68 | J19: 60 | K19: 12 | L19: 1 | M19: 12 | N19: Singapore | O19: 77.6 | R19: 22.7 | S19: =IF($B19=0,"",RANK(R19,R$8:R$87)+COUNTIF(R$8:R19,R19)-1) -> 62 | T19: 62 | U19: 60 | V19: 12 | W19: 1 | X19: 12 | Y19: Singapore | Z19: 66.4 | AC19: 33.8 | AD19: =IF($B19=0,"",RANK(AC19,AC$8:AC$87)+COUNTIF(AC$8:AC19,AC19)-1) -> 53 | AE19: 53 | AF19: 3 | AG19: 12 | AH19: 1 | AI19: 12 | AJ19: Austria | AK19: 71.4 | AM19: 40 | AN19: =IF($B19=0,"",RANK(AM19,AM$8:AM$87)+COUNTIF(AM$8:AM19,AM19)-1) -> 60 | AO19: 60 | AP19: 51 | AQ19: 6 | AR19: 1 | AS19: =6 | AT19: Panama | AU19: 87.5 | AW19: 18.8 | AX19: =IF($B19=0,"",RANK(AW19,AW$8:AW$87)+COUNTIF(AW$8:AW19,AW19)-1) -> 67 | AY19: 67 | AZ19: 75 | BA19: 8 | BB19: 1 | BC19: =8 | BD19: United States of America | BE19: 90 | BG19: 17.5 | BH19: =IF($B19=0,"",RANK(BG19,BG$8:BG$87)+COUNTIF(BG$8:BG19,BG19)-1) -> 68 | BI19: 66 | BJ19: 50 | BK19: 9 | BL19: 1 | BM19: =9 | BN19: Norway | BO19: 75 | BQ19: 45.1 | BR19: =IF($B19=0,"",RANK(BQ19,BQ$8:BQ$87)+COUNTIF(BQ$8:BQ19,BQ19)-1) -> 60 | BS19: 60 | BT19: 15 | BU19: 12 | BV19: 1 | BW19: 12 | BX19: Czech Republic | BY19: 70.6
A20: =tblCountries!A15 -> 13 | B20: =tblCountries!F15 -> 1 | C20: =tblCountries!C15 -> Costa Rica | G20: 57.3 | H20: =IF($B20=0,"",RANK(G20,G$8:G$87)+COUNTIF(G$8:G20,G20)-1) -> 29 | I20: 29 | J20: 50 | K20: 13 | L20: 1 | M20: 13 | N20: Norway | O20: 77.4 | R20: 52.1 | S20: =IF($B20=0,"",RANK(R20,R$8:R$87)+COUNTIF(R$8:R20,R20)-1) -> 22 | T20: 22 | U20: 67 | V20: 13 | W20: 1 | X20: 13 | Y20: Switzerland | Z20: 64.8 | AC20: 41.6 | AD20: =IF($B20=0,"",RANK(AC20,AC$8:AC$87)+COUNTIF(AC$8:AC20,AC20)-1) -> 41 | AE20: 41 | AF20: 63 | AG20: 13 | AH20: 1 | AI20: 13 | AJ20: South Korea | AK20: 71.2 | AM20: 70 | AN20: =IF($B20=0,"",RANK(AM20,AM$8:AM$87)+COUNTIF(AM$8:AM20,AM20)-1) -> 30 | AO20: 30 | AP20: 60 | AQ20: 6 | AR20: 1 | AS20: =6 | AT20: Singapore | AU20: 87.5 | AW20: 65 | AX20: =IF($B20=0,"",RANK(AW20,AW$8:AW$87)+COUNTIF(AW$8:AW20,AW20)-1) -> 30 | AY20: 30 | AZ20: 3 | BA20: 13 | BB20: 1 | BC20: =13 | BD20: Austria | BE20: 87.5 | BG20: 50 | BH20: =IF($B20=0,"",RANK(BG20,BG$8:BG$87)+COUNTIF(BG$8:BG20,BG20)-1) -> 23 | BI20: 22 | BJ20: 75 | BK20: 9 | BL20: 1 | BM20: =9 | BN20: United States of America | BO20: 75 | BQ20: 57.3 | BR20: =IF($B20=0,"",RANK(BQ20,BQ$8:BQ$87)+COUNTIF(BQ$8:BQ20,BQ20)-1) -> 39 | BS20: 39 | BT20: 28 | BU20: 13 | BV20: 1 | BW20: 13 | BX20: Hungary | BY20: 70
A21: =tblCountries!A16 -> 14 | B21: =tblCountries!F16 -> 1 | C21: =tblCountries!C16 -> Cuba | G21: 46.8 | H21: =IF($B21=0,"",RANK(G21,G$8:G$87)+COUNTIF(G$8:G21,G21)-1) -> 36 | I21: 36 | J21: 36 | K21: 14 | L21: 1 | M21: 14 | N21: Japan | O21: 76.3 | R21: 39.7 | S21: =IF($B21=0,"",RANK(R21,R$8:R$87)+COUNTIF(R$8:R21,R21)-1) -> 34 | T21: 34 | U21: 36 | V21: 14 | W21: 1 | X21: 14 | Y21: Japan | Z21: 62.2 | AC21: 41.9 | AD21: =IF($B21=0,"",RANK(AC21,AC$8:AC$87)+COUNTIF(AC$8:AC21,AC21)-1) -> 39 | AE21: 39 | AF21: 75 | AG21: 14 | AH21: 1 | AI21: 14 | AJ21: United States of America | AK21: 70.2 | AM21: 87.5 | AN21: =IF($B21=0,"",RANK(AM21,AM$8:AM$87)+COUNTIF(AM$8:AM21,AM21)-1) -> 6 | AO21: 6 | AP21: 63 | AQ21: 6 | AR21: 1 | AS21: =6 | AT21: South Korea | AU21: 87.5 | AW21: 37.5 | AX21: =IF($B21=0,"",RANK(AW21,AW$8:AW$87)+COUNTIF(AW$8:AW21,AW21)-1) -> 47 | AY21: 47 | AZ21: 35 | BA21: 13 | BB21: 1 | BC21: =13 | BD21: Italy | BE21: 87.5 | BG21: 17.5 | BH21: =IF($B21=0,"",RANK(BG21,BG$8:BG$87)+COUNTIF(BG$8:BG21,BG21)-1) -> 69 | BI21: 66 | BJ21: 63 | BK21: 14 | BL21: 1 | BM21: 14 | BN21: South Korea | BO21: 65 | BQ21: 67 | BR21: =IF($B21=0,"",RANK(BQ21,BQ$8:BQ$87)+COUNTIF(BQ$8:BQ21,BQ21)-1) -> 22 | BS21: 22 | BT21: 21 | BU21: 14 | BV21: 1 | BW21: 14 | BX21: Finland | BY21: 69.1
A22: =tblCountries!A17 -> 15 | B22: =tblCountries!F17 -> 1 | C22: =tblCountries!C17 -> Czech Republic | G22: 51.8 | H22: =IF($B22=0,"",RANK(G22,G$8:G$87)+COUNTIF(G$8:G22,G22)-1) -> 33 | I22: 33 | J22: 67 | K22: 15 | L22: 1 | M22: 15 | N22: Switzerland | O22: 76.1 | R22: 24.5 | S22: =IF($B22=0,"",RANK(R22,R$8:R$87)+COUNTIF(R$8:R22,R22)-1) -> 60 | T22: 60 | U22: 64 | V22: 15 | W22: 1 | X22: 15 | Y22: Spain | Z22: 61.2 | AC22: 52.2 | AD22: =IF($B22=0,"",RANK(AC22,AC$8:AC$87)+COUNTIF(AC$8:AC22,AC22)-1) -> 26 | AE22: 26 | AF22: 67 | AG22: 15 | AH22: 1 | AI22: 15 | AJ22: Switzerland | AK22: 69.4 | AM22: 65 | AN22: =IF($B22=0,"",RANK(AM22,AM$8:AM$87)+COUNTIF(AM$8:AM22,AM22)-1) -> 37 | AO22: 36 | AP22: 66 | AQ22: 6 | AR22: 1 | AS22: =6 | AT22: Sweden | AU22: 87.5 | AW22: 70 | AX22: =IF($B22=0,"",RANK(AW22,AW$8:AW$87)+COUNTIF(AW$8:AW22,AW22)-1) -> 28 | AY22: 28 | AZ22: 21 | BA22: 15 | BB22: 1 | BC22: 15 | BD22: Finland | BE22: 86.3 | BG22: 25 | BH22: =IF($B22=0,"",RANK(BG22,BG$8:BG$87)+COUNTIF(BG$8:BG22,BG22)-1) -> 46 | BI22: 45 | BJ22: 3 | BK22: 15 | BL22: 1 | BM22: =15 | BN22: Austria | BO22: 57.5 | BQ22: 70.6 | BR22: =IF($B22=0,"",RANK(BQ22,BQ$8:BQ$87)+COUNTIF(BQ$8:BQ22,BQ22)-1) -> 12 | BS22: 12 | BT22: 25 | BU22: 15 | BV22: 1 | BW22: 15 | BX22: Greece | BY22: 69
A23: =tblCountries!A18 -> 16 | B23: =tblCountries!F18 -> 1 | C23: =tblCountries!C18 -> Denmark | G23: 73.5 | H23: =IF($B23=0,"",RANK(G23,G$8:G$87)+COUNTIF(G$8:G23,G23)-1) -> 19 | I23: 19 | J23: 66 | K23: 16 | L23: 1 | M23: 16 | N23: Sweden | O23: 75.4 | R23: 50.5 | S23: =IF($B23=0,"",RANK(R23,R$8:R$87)+COUNTIF(R$8:R23,R23)-1) -> 26 | T23: 26 | U23: 22 | V23: 16 | W23: 1 | X23: 16 | Y23: France | Z23: 60.9 | AC23: 62.4 | AD23: =IF($B23=0,"",RANK(AC23,AC$8:AC$87)+COUNTIF(AC$8:AC23,AC23)-1) -> 19 | AE23: 19 | AF23: 36 | AG23: 16 | AH23: 1 | AI23: 16 | AJ23: Japan | AK23: 67.5 | AM23: 100 | AN23: =IF($B23=0,"",RANK(AM23,AM$8:AM$87)+COUNTIF(AM$8:AM23,AM23)-1) -> 3 | AO23: 1 | AP23: 68 | AQ23: 6 | AR23: 1 | AS23: =6 | AT23: Taiwan | AU23: 87.5 | AW23: 83.8 | AX23: =IF($B23=0,"",RANK(AW23,AW$8:AW$87)+COUNTIF(AW$8:AW23,AW23)-1) -> 16 | AY23: 16 | AZ23: 16 | BA23: 16 | BB23: 1 | BC23: =16 | BD23: Denmark | BE23: 83.8 | BG23: 57.5 | BH23: =IF($B23=0,"",RANK(BG23,BG$8:BG$87)+COUNTIF(BG$8:BG23,BG23)-1) -> 16 | BI23: 15 | BJ23: 16 | BK23: 15 | BL23: 1 | BM23: =15 | BN23: Denmark | BO23: 57.5 | BQ23: 75.1 | BR23: =IF($B23=0,"",RANK(BQ23,BQ$8:BQ$87)+COUNTIF(BQ$8:BQ23,BQ23)-1) -> 3 | BS23: 3 | BT23: 54 | BU23: 16 | BV23: 1 | BW23: 16 | BX23: Poland | BY23: 68.9
A24: =tblCountries!A19 -> 17 | B24: =tblCountries!F19 -> 1 | C24: =tblCountries!C19 -> Dominican Republic | G24: 17.2 | H24: =IF($B24=0,"",RANK(G24,G$8:G$87)+COUNTIF(G$8:G24,G24)-1) -> 75 | I24: 75 | J24: 3 | K24: 17 | L24: 1 | M24: 17 | N24: Austria | O24: 74.8 | R24: 6.1 | S24: =IF($B24=0,"",RANK(R24,R$8:R$87)+COUNTIF(R$8:R24,R24)-1) -> 78 | T24: 78 | U24: 21 | V24: 17 | W24: 1 | X24: 17 | Y24: Finland | Z24: 58.4 | AC24: 24.4 | AD24: =IF($B24=0,"",RANK(AC24,AC$8:AC$87)+COUNTIF(AC$8:AC24,AC24)-1) -> 64 | AE24: 64 | AF24: 5 | AG24: 17 | AH24: 1 | AI24: 17 | AJ24: Belgium | AK24: 66 | AM24: 35 | AN24: =IF($B24=0,"",RANK(AM24,AM$8:AM$87)+COUNTIF(AM$8:AM24,AM24)-1) -> 69 | AO24: 69 | AP24: 36 | AQ24: 17 | AR24: 1 | AS24: 17 | AT24: Japan | AU24: 85 | AW24: 13.8 | AX24: =IF($B24=0,"",RANK(AW24,AW$8:AW$87)+COUNTIF(AW$8:AW24,AW24)-1) -> 72 | AY24: 71 | AZ24: 23 | BA24: 16 | BB24: 1 | BC24: =16 | BD24: Germany | BE24: 83.8 | BG24: 0 | BH24: =IF($B24=0,"",RANK(BG24,BG$8:BG$87)+COUNTIF(BG$8:BG24,BG24)-1) -> 79 | BI24: 78 | BJ24: 21 | BK24: 15 | BL24: 1 | BM24: =15 | BN24: Finland | BO24: 57.5 | BQ24: 53.6 | BR24: =IF($B24=0,"",RANK(BQ24,BQ$8:BQ$87)+COUNTIF(BQ$8:BQ24,BQ24)-1) -> 45 | BS24: 45 | BT24: 66 | BU24: 17 | BV24: 1 | BW24: 17 | BX24: Sweden | BY24: 68.7
A25: =tblCountries!A20 -> 18 | B25: =tblCountries!F20 -> 1 | C25: =tblCountries!C20 -> Ecuador | G25: 44 | H25: =IF($B25=0,"",RANK(G25,G$8:G$87)+COUNTIF(G$8:G25,G25)-1) -> 40 | I25: 40 | J25: 63 | K25: 18 | L25: 1 | M25: 18 | N25: South Korea | O25: 73.7 | R25: 37.3 | S25: =IF($B25=0,"",RANK(R25,R$8:R$87)+COUNTIF(R$8:R25,R25)-1) -> 41 | T25: 41 | U25: 9 | V25: 18 | W25: 1 | X25: 18 | Y25: Canada | Z25: 57.5 | AC25: 34.4 | AD25: =IF($B25=0,"",RANK(AC25,AC$8:AC$87)+COUNTIF(AC$8:AC25,AC25)-1) -> 51 | AE25: 51 | AF25: 21 | AG25: 18 | AH25: 1 | AI25: 18 | AJ25: Finland | AK25: 62.6 | AM25: 70 | AN25: =IF($B25=0,"",RANK(AM25,AM$8:AM$87)+COUNTIF(AM$8:AM25,AM25)-1) -> 31 | AO25: 30 | AP25: 10 | AQ25: 18 | AR25: 1 | AS25: =18 | AT25: Chile | AU25: 82.5 | AW25: 43.8 | AX25: =IF($B25=0,"",RANK(AW25,AW$8:AW$87)+COUNTIF(AW$8:AW25,AW25)-1) -> 41 | AY25: 41 | AZ25: 36 | BA25: 16 | BB25: 1 | BC25: =16 | BD25: Japan | BE25: 83.8 | BG25: 25 | BH25: =IF($B25=0,"",RANK(BG25,BG$8:BG$87)+COUNTIF(BG$8:BG25,BG25)-1) -> 47 | BI25: 45 | BJ25: 35 | BK25: 15 | BL25: 1 | BM25: =15 | BN25: Italy | BO25: 57.5 | BQ25: 46.8 | BR25: =IF($B25=0,"",RANK(BQ25,BQ$8:BQ$87)+COUNTIF(BQ$8:BQ25,BQ25)-1) -> 54 | BS25: 54 | BT25: 64 | BU25: 18 | BV25: 1 | BW25: 18 | BX25: Spain | BY25: 68.1
A26: =tblCountries!A21 -> 19 | B26: =tblCountries!F21 -> 1 | C26: =tblCountries!C21 -> Egypt | G26: 32.9 | H26: =IF($B26=0,"",RANK(G26,G$8:G$87)+COUNTIF(G$8:G26,G26)-1) -> 56 | I26: 56 | J26: 16 | K26: 19 | L26: 1 | M26: 19 | N26: Denmark | O26: 73.5 | R26: 5.5 | S26: =IF($B26=0,"",RANK(R26,R$8:R$87)+COUNTIF(R$8:R26,R26)-1) -> 79 | T26: 79 | U26: 35 | V26: 19 | W26: 1 | X26: 19 | Y26: Italy | Z26: 56.7 | AC26: 36.1 | AD26: =IF($B26=0,"",RANK(AC26,AC$8:AC$87)+COUNTIF(AC$8:AC26,AC26)-1) -> 48 | AE26: 48 | AF26: 16 | AG26: 19 | AH26: 1 | AI26: 19 | AJ26: Denmark | AK26: 62.4 | AM26: 30 | AN26: =IF($B26=0,"",RANK(AM26,AM$8:AM$87)+COUNTIF(AM$8:AM26,AM26)-1) -> 73 | AO26: 72 | AP26: 27 | AQ26: 18 | AR26: 1 | AS26: =18 | AT26: Hong Kong | AU26: 82.5 | AW26: 53.8 | AX26: =IF($B26=0,"",RANK(AW26,AW$8:AW$87)+COUNTIF(AW$8:AW26,AW26)-1) -> 36 | AY26: 36 | AZ26: 50 | BA26: 16 | BB26: 1 | BC26: =16 | BD26: Norway | BE26: 83.8 | BG26: 25 | BH26: =IF($B26=0,"",RANK(BG26,BG$8:BG$87)+COUNTIF(BG$8:BG26,BG26)-1) -> 48 | BI26: 45 | BJ26: 54 | BK26: 15 | BL26: 1 | BM26: =15 | BN26: Poland | BO26: 57.5 | BQ26: 46.4 | BR26: =IF($B26=0,"",RANK(BQ26,BQ$8:BQ$87)+COUNTIF(BQ$8:BQ26,BQ26)-1) -> 57 | BS26: 57 | BT26: 22 | BU26: 19 | BV26: 1 | BW26: 19 | BX26: France | BY26: 67.7
A27: =tblCountries!A22 -> 20 | B27: =tblCountries!F22 -> 1 | C27: =tblCountries!C22 -> Ethiopia | G27: 25.1 | H27: =IF($B27=0,"",RANK(G27,G$8:G$87)+COUNTIF(G$8:G27,G27)-1) -> 70 | I27: 70 | J27: 21 | K27: 20 | L27: 1 | M27: 20 | N27: Finland | O27: 73.3 | R27: 16.8 | S27: =IF($B27=0,"",RANK(R27,R$8:R$87)+COUNTIF(R$8:R27,R27)-1) -> 72 | T27: 72 | U27: 63 | V27: 20 | W27: 1 | X27: 20 | Y27: South Korea | Z27: 55.5 | AC27: 17.9 | AD27: =IF($B27=0,"",RANK(AC27,AC$8:AC$87)+COUNTIF(AC$8:AC27,AC27)-1) -> 74 | AE27: 74 | AF27: 27 | AG27: 20 | AH27: 1 | AI27: 20 | AJ27: Hong Kong | AK27: 62.1 | AM27: 42.5 | AN27: =IF($B27=0,"",RANK(AM27,AM$8:AM$87)+COUNTIF(AM$8:AM27,AM27)-1) -> 58 | AO27: 58 | AP27: 67 | AQ27: 18 | AR27: 1 | AS27: =18 | AT27: Switzerland | AU27: 82.5 | AW27: 26.3 | AX27: =IF($B27=0,"",RANK(AW27,AW$8:AW$87)+COUNTIF(AW$8:AW27,AW27)-1) -> 59 | AY27: 59 | AZ27: 27 | BA27: 20 | BB27: 1 | BC27: =20 | BD27: Hong Kong | BE27: 81.3 | BG27: 17.5 | BH27: =IF($B27=0,"",RANK(BG27,BG$8:BG$87)+COUNTIF(BG$8:BG27,BG27)-1) -> 70 | BI27: 66 | BJ27: 67 | BK27: 15 | BL27: 1 | BM27: =15 | BN27: Switzerland | BO27: 57.5 | BQ27: 9.9 | BR27: =IF($B27=0,"",RANK(BQ27,BQ$8:BQ$87)+COUNTIF(BQ$8:BQ27,BQ27)-1) -> 80 | BS27: 80 | BT27: 74 | BU27: 20 | BV27: 1 | BW27: 20 | BX27: United Kingdom | BY27: 67.4
A28: =tblCountries!A23 -> 21 | B28: =tblCountries!F23 -> 1 | C28: =tblCountries!C23 -> Finland | G28: 73.3 | H28: =IF($B28=0,"",RANK(G28,G$8:G$87)+COUNTIF(G$8:G28,G28)-1) -> 20 | I28: 20 | J28: 35 | K28: 21 | L28: 1 | M28: 21 | N28: Italy | O28: 71.1 | R28: 58.4 | S28: =IF($B28=0,"",RANK(R28,R$8:R$87)+COUNTIF(R$8:R28,R28)-1) -> 17 | T28: 17 | U28: 34 | V28: 21 | W28: 1 | X28: 21 | Y28: Israel | Z28: 53.5 | AC28: 62.6 | AD28: =IF($B28=0,"",RANK(AC28,AC$8:AC$87)+COUNTIF(AC$8:AC28,AC28)-1) -> 18 | AE28: 18 | AF28: 44 | AG28: 21 | AH28: 1 | AI28: 21 | AJ28: Mongolia | AK28: 61.1 | AM28: 87.5 | AN28: =IF($B28=0,"",RANK(AM28,AM$8:AM$87)+COUNTIF(AM$8:AM28,AM28)-1) -> 7 | AO28: 6 | AP28: 75 | AQ28: 18 | AR28: 1 | AS28: =18 | AT28: United States of America | AU28: 82.5 | AW28: 86.3 | AX28: =IF($B28=0,"",RANK(AW28,AW$8:AW$87)+COUNTIF(AW$8:AW28,AW28)-1) -> 15 | AY28: 15 | AZ28: 63 | BA28: 20 | BB28: 1 | BC28: =20 | BD28: South Korea | BE28: 81.3 | BG28: 57.5 | BH28: =IF($B28=0,"",RANK(BG28,BG$8:BG$87)+COUNTIF(BG$8:BG28,BG28)-1) -> 17 | BI28: 15 | BJ28: 72 | BK28: 15 | BL28: 1 | BM28: =15 | BN28: Uganda | BO28: 57.5 | BQ28: 69.1 | BR28: =IF($B28=0,"",RANK(BQ28,BQ$8:BQ$87)+COUNTIF(BQ$8:BQ28,BQ28)-1) -> 14 | BS28: 14 | BT28: 50 | BU28: 21 | BV28: 1 | BW28: 21 | BX28: Norway | BY28: 67.3
A29: =tblCountries!A24 -> 22 | B29: =tblCountries!F24 -> 1 | C29: =tblCountries!C24 -> France | G29: 79.4 | H29: =IF($B29=0,"",RANK(G29,G$8:G$87)+COUNTIF(G$8:G29,G29)-1) -> 10 | I29: 10 | J29: 27 | K29: 22 | L29: 1 | M29: 22 | N29: Hong Kong | O29: 66.6 | R29: 60.9 | S29: =IF($B29=0,"",RANK(R29,R$8:R$87)+COUNTIF(R$8:R29,R29)-1) -> 16 | T29: 16 | U29: 13 | V29: 22 | W29: 1 | X29: 22 | Y29: Costa Rica | Z29: 52.1 | AC29: 71.6 | AD29: =IF($B29=0,"",RANK(AC29,AC$8:AC$87)+COUNTIF(AC$8:AC29,AC29)-1) -> 10 | AE29: 10 | AF29: 47 | AG29: 22 | AH29: 1 | AI29: 22 | AJ29: Netherlands | AK29: 59.6 | AM29: 77.5 | AN29: =IF($B29=0,"",RANK(AM29,AM$8:AM$87)+COUNTIF(AM$8:AM29,AM29)-1) -> 23 | AO29: 22 | AP29: 9 | AQ29: 22 | AR29: 1 | AS29: =22 | AT29: Canada | AU29: 77.5 | AW29: 93.8 | AX29: =IF($B29=0,"",RANK(AW29,AW$8:AW$87)+COUNTIF(AW$8:AW29,AW29)-1) -> 5 | AY29: 5 | AZ29: 33 | BA29: 22 | BB29: 1 | BC29: =22 | BD29: Ireland | BE29: 80 | BG29: 92.5 | BH29: =IF($B29=0,"",RANK(BG29,BG$8:BG$87)+COUNTIF(BG$8:BG29,BG29)-1) -> 3 | BI29: 3 | BJ29: 7 | BK29: 22 | BL29: 1 | BM29: =22 | BN29: Brazil | BO29: 50 | BQ29: 67.7 | BR29: =IF($B29=0,"",RANK(BQ29,BQ$8:BQ$87)+COUNTIF(BQ$8:BQ29,BQ29)-1) -> 19 | BS29: 19 | BT29: 14 | BU29: 22 | BV29: 1 | BW29: 22 | BX29: Cuba | BY29: 67
A30: =tblCountries!A25 -> 23 | B30: =tblCountries!F25 -> 1 | C30: =tblCountries!C25 -> Germany | G30: 82 | H30: =IF($B30=0,"",RANK(G30,G$8:G$87)+COUNTIF(G$8:G30,G30)-1) -> 7 | I30: 7 | J30: 64 | K30: 23 | L30: 1 | M30: 23 | N30: Spain | O30: 63.4 | R30: 67.6 | S30: =IF($B30=0,"",RANK(R30,R$8:R$87)+COUNTIF(R$8:R30,R30)-1) -> 11 | T30: 11 | U30: 10 | V30: 23 | W30: 1 | X30: 23 | Y30: Chile | Z30: 51.9 | AC30: 87.9 | AD30: =IF($B30=0,"",RANK(AC30,AC$8:AC$87)+COUNTIF(AC$8:AC30,AC30)-1) -> 3 | AE30: 3 | AF30: 34 | AG30: 23 | AH30: 1 | AI30: 23 | AJ30: Israel | AK30: 57.5 | AM30: 87.5 | AN30: =IF($B30=0,"",RANK(AM30,AM$8:AM$87)+COUNTIF(AM$8:AM30,AM30)-1) -> 8 | AO30: 6 | AP30: 22 | AQ30: 22 | AR30: 1 | AS30: =22 | AT30: France | AU30: 77.5 | AW30: 83.8 | AX30: =IF($B30=0,"",RANK(AW30,AW$8:AW$87)+COUNTIF(AW$8:AW30,AW30)-1) -> 17 | AY30: 16 | AZ30: 55 | BA30: 22 | BB30: 1 | BC30: =22 | BD30: Portugal | BE30: 80 | BG30: 82.5 | BH30: =IF($B30=0,"",RANK(BG30,BG$8:BG$87)+COUNTIF(BG$8:BG30,BG30)-1) -> 5 | BI30: 5 | BJ30: 13 | BK30: 22 | BL30: 1 | BM30: =22 | BN30: Costa Rica | BO30: 50 | BQ30: 70.9 | BR30: =IF($B30=0,"",RANK(BQ30,BQ$8:BQ$87)+COUNTIF(BQ$8:BQ30,BQ30)-1) -> 10 | BS30: 10 | BT30: 60 | BU30: 23 | BV30: 1 | BW30: 23 | BX30: Singapore | BY30: 65.7
A31: =tblCountries!A26 -> 24 | B31: =tblCountries!F26 -> 1 | C31: =tblCountries!C26 -> Ghana | G31: 34.3 | H31: =IF($B31=0,"",RANK(G31,G$8:G$87)+COUNTIF(G$8:G31,G31)-1) -> 51 | I31: 51 | J31: 55 | K31: 24 | L31: 1 | M31: 24 | N31: Portugal | O31: 60.8 | R31: 33.4 | S31: =IF($B31=0,"",RANK(R31,R$8:R$87)+COUNTIF(R$8:R31,R31)-1) -> 48 | T31: 48 | U31: 44 | V31: 24 | W31: 1 | X31: 24 | Y31: Mongolia | Z31: 51.3 | AC31: 36.3 | AD31: =IF($B31=0,"",RANK(AC31,AC$8:AC$87)+COUNTIF(AC$8:AC31,AC31)-1) -> 47 | AE31: 47 | AF31: 72 | AG31: 24 | AH31: 1 | AI31: 24 | AJ31: Uganda | AK31: 54 | AM31: 50 | AN31: =IF($B31=0,"",RANK(AM31,AM$8:AM$87)+COUNTIF(AM$8:AM31,AM31)-1) -> 54 | AO31: 54 | AP31: 50 | AQ31: 22 | AR31: 1 | AS31: =22 | AT31: Norway | AU31: 77.5 | AW31: 28.8 | AX31: =IF($B31=0,"",RANK(AW31,AW$8:AW$87)+COUNTIF(AW$8:AW31,AW31)-1) -> 58 | AY31: 58 | AZ31: 64 | BA31: 24 | BB31: 1 | BC31: 24 | BD31: Spain | BE31: 78.8 | BG31: 17.5 | BH31: =IF($B31=0,"",RANK(BG31,BG$8:BG$87)+COUNTIF(BG$8:BG31,BG31)-1) -> 71 | BI31: 66 | BJ31: 55 | BK31: 22 | BL31: 1 | BM31: =22 | BN31: Portugal | BO31: 50 | BQ31: 15.8 | BR31: =IF($B31=0,"",RANK(BQ31,BQ$8:BQ$87)+COUNTIF(BQ$8:BQ31,BQ31)-1) -> 79 | BS31: 79 | BT31: 63 | BU31: 24 | BV31: 1 | BW31: 24 | BX31: South Korea | BY31: 65.6
A32: =tblCountries!A27 -> 25 | B32: =tblCountries!F27 -> 1 | C32: =tblCountries!C27 -> Greece | G32: 32.9 | H32: =IF($B32=0,"",RANK(G32,G$8:G$87)+COUNTIF(G$8:G32,G32)-1) -> 57 | I32: 56 | J32: 34 | K32: 25 | L32: 1 | M32: 25 | N32: Israel | O32: 59.8 | R32: 26.7 | S32: =IF($B32=0,"",RANK(R32,R$8:R$87)+COUNTIF(R$8:R32,R32)-1) -> 58 | T32: 58 | U32: 51 | V32: 25 | W32: 1 | X32: 25 | Y32: Panama | Z32: 51.2 | AC32: 25.9 | AD32: =IF($B32=0,"",RANK(AC32,AC$8:AC$87)+COUNTIF(AC$8:AC32,AC32)-1) -> 61 | AE32: 61 | AF32: 76 | AG32: 25 | AH32: 1 | AI32: 25 | AJ32: Uruguay | AK32: 52.6 | AM32: 60 | AN32: =IF($B32=0,"",RANK(AM32,AM$8:AM$87)+COUNTIF(AM$8:AM32,AM32)-1) -> 42 | AO32: 42 | AP32: 38 | AQ32: 25 | AR32: 1 | AS32: =25 | AT32: Kazakhstan | AU32: 75 | AW32: 23.8 | AX32: =IF($B32=0,"",RANK(AW32,AW$8:AW$87)+COUNTIF(AW$8:AW32,AW32)-1) -> 63 | AY32: 63 | AZ32: 34 | BA32: 25 | BB32: 1 | BC32: 25 | BD32: Israel | BE32: 76.3 | BG32: 32.5 | BH32: =IF($B32=0,"",RANK(BG32,BG$8:BG$87)+COUNTIF(BG$8:BG32,BG32)-1) -> 39 | BI32: 38 | BJ32: 60 | BK32: 22 | BL32: 1 | BM32: =22 | BN32: Singapore | BO32: 50 | BQ32: 69 | BR32: =IF($B32=0,"",RANK(BQ32,BQ$8:BQ$87)+COUNTIF(BQ$8:BQ32,BQ32)-1) -> 15 | BS32: 15 | BT32: 55 | BU32: 25 | BV32: 1 | BW32: =25 | BX32: Portugal | BY32: 65.5
A33: =tblCountries!A28 -> 26 | B33: =tblCountries!F28 -> 1 | C33: =tblCountries!C28 -> Guatemala | G33: 20.9 | H33: =IF($B33=0,"",RANK(G33,G$8:G$87)+COUNTIF(G$8:G33,G33)-1) -> 74 | I33: 74 | J33: 54 | K33: 26 | L33: 1 | M33: 26 | N33: Poland | O33: 58.7 | R33: 10.3 | S33: =IF($B33=0,"",RANK(R33,R$8:R$87)+COUNTIF(R$8:R33,R33)-1) -> 75 | T33: 75 | U33: 16 | V33: 26 | W33: 1 | X33: =26 | Y33: Denmark | Z33: 50.5 | AC33: 22.1 | AD33: =IF($B33=0,"",RANK(AC33,AC$8:AC$87)+COUNTIF(AC$8:AC33,AC33)-1) -> 68 | AE33: 68 | AF33: 15 | AG33: 26 | AH33: 1 | AI33: 26 | AJ33: Czech Republic | AK33: 52.2 | AM33: 27.5 | AN33: =IF($B33=0,"",RANK(AM33,AM$8:AM$87)+COUNTIF(AM$8:AM33,AM33)-1) -> 74 | AO33: 74 | AP33: 40 | AQ33: 25 | AR33: 1 | AS33: =25 | AT33: Lithuania | AU33: 75 | AW33: 21.3 | AX33: =IF($B33=0,"",RANK(AW33,AW$8:AW$87)+COUNTIF(AW$8:AW33,AW33)-1) -> 64 | AY33: 64 | AZ33: 1 | BA33: 26 | BB33: 1 | BC33: 26 | BD33: Argentina | BE33: 75 | BG33: 25 | BH33: =IF($B33=0,"",RANK(BG33,BG$8:BG$87)+COUNTIF(BG$8:BG33,BG33)-1) -> 49 | BI33: 45 | BJ33: 80 | BK33: 22 | BL33: 1 | BM33: =22 | BN33: Zimbabwe | BO33: 50 | BQ33: 25.7 | BR33: =IF($B33=0,"",RANK(BQ33,BQ$8:BQ$87)+COUNTIF(BQ$8:BQ33,BQ33)-1) -> 76 | BS33: 76 | BT33: 75 | BU33: 25 | BV33: 1 | BW33: =25 | BX33: United States of America | BY33: 65.5
A34: =tblCountries!A29 -> 27 | B34: =tblCountries!F29 -> 1 | C34: =tblCountries!C29 -> Hong Kong | G34: 66.6 | H34: =IF($B34=0,"",RANK(G34,G$8:G$87)+COUNTIF(G$8:G34,G34)-1) -> 22 | I34: 22 | J34: 10 | K34: 27 | L34: 1 | M34: 27 | N34: Chile | O34: 58.6 | R34: 50.4 | S34: =IF($B34=0,"",RANK(R34,R$8:R$87)+COUNTIF(R$8:R34,R34)-1) -> 28 | T34: 28 | U34: 66 | V34: 26 | W34: 1 | X34: =26 | Y34: Sweden | Z34: 50.5 | AC34: 62.1 | AD34: =IF($B34=0,"",RANK(AC34,AC$8:AC$87)+COUNTIF(AC$8:AC34,AC34)-1) -> 20 | AE34: 20 | AF34: 35 | AG34: 27 | AH34: 1 | AI34: 27 | AJ34: Italy | AK34: 51.5 | AM34: 82.5 | AN34: =IF($B34=0,"",RANK(AM34,AM$8:AM$87)+COUNTIF(AM$8:AM34,AM34)-1) -> 19 | AO34: 18 | AP34: 55 | AQ34: 25 | AR34: 1 | AS34: =25 | AT34: Portugal | AU34: 75 | AW34: 81.3 | AX34: =IF($B34=0,"",RANK(AW34,AW$8:AW$87)+COUNTIF(AW$8:AW34,AW34)-1) -> 20 | AY34: 20 | AZ34: 54 | BA34: 27 | BB34: 1 | BC34: 27 | BD34: Poland | BE34: 73.8 | BG34: 32.5 | BH34: =IF($B34=0,"",RANK(BG34,BG$8:BG$87)+COUNTIF(BG$8:BG34,BG34)-1) -> 40 | BI34: 38 | BJ34: 10 | BK34: 27 | BL34: 1 | BM34: =27 | BN34: Chile | BO34: 42.5 | BQ34: 62.9 | BR34: =IF($B34=0,"",RANK(BQ34,BQ$8:BQ$87)+COUNTIF(BQ$8:BQ34,BQ34)-1) -> 33 | BS34: 33 | BT34: 5 | BU34: 27 | BV34: 1 | BW34: 27 | BX34: Belgium | BY34: 65
A35: =tblCountries!A30 -> 28 | B35: =tblCountries!F30 -> 1 | C35: =tblCountries!C30 -> Hungary | G35: 42.7 | H35: =IF($B35=0,"",RANK(G35,G$8:G$87)+COUNTIF(G$8:G35,G35)-1) -> 41 | I35: 41 | J35: 44 | K35: 28 | L35: 1 | M35: 28 | N35: Mongolia | O35: 57.7 | R35: 27.6 | S35: =IF($B35=0,"",RANK(R35,R$8:R$87)+COUNTIF(R$8:R35,R35)-1) -> 57 | T35: 57 | U35: 27 | V35: 28 | W35: 1 | X35: 28 | Y35: Hong Kong | Z35: 50.4 | AC35: 42.1 | AD35: =IF($B35=0,"",RANK(AC35,AC$8:AC$87)+COUNTIF(AC$8:AC35,AC35)-1) -> 38 | AE35: 38 | AF35: 40 | AG35: 28 | AH35: 1 | AI35: 28 | AJ35: Lithuania | AK35: 51.3 | AM35: 55 | AN35: =IF($B35=0,"",RANK(AM35,AM$8:AM$87)+COUNTIF(AM$8:AM35,AM35)-1) -> 47 | AO35: 47 | AP35: 64 | AQ35: 25 | AR35: 1 | AS35: =25 | AT35: Spain | AU35: 75 | AW35: 47.5 | AX35: =IF($B35=0,"",RANK(AW35,AW$8:AW$87)+COUNTIF(AW$8:AW35,AW35)-1) -> 38 | AY35: 38 | AZ35: 15 | BA35: 28 | BB35: 1 | BC35: 28 | BD35: Czech Republic | BE35: 70 | BG35: 35 | BH35: =IF($B35=0,"",RANK(BG35,BG$8:BG$87)+COUNTIF(BG$8:BG35,BG35)-1) -> 37 | BI35: 37 | BJ35: 34 | BK35: 27 | BL35: 1 | BM35: =27 | BN35: Israel | BO35: 42.5 | BQ35: 70 | BR35: =IF($B35=0,"",RANK(BQ35,BQ$8:BQ$87)+COUNTIF(BQ$8:BQ35,BQ35)-1) -> 13 | BS35: 13 | BT35: 8 | BU35: 28 | BV35: 1 | BW35: 28 | BX35: Bulgaria | BY35: 64.5
A36: =tblCountries!A31 -> 29 | B36: =tblCountries!F31 -> 1 | C36: =tblCountries!C31 -> India | G36: 26.8 | H36: =IF($B36=0,"",RANK(G36,G$8:G$87)+COUNTIF(G$8:G36,G36)-1) -> 67 | I36: 67 | J36: 13 | K36: 29 | L36: 1 | M36: 29 | N36: Costa Rica | O36: 57.3 | R36: 32.1 | S36: =IF($B36=0,"",RANK(R36,R$8:R$87)+COUNTIF(R$8:R36,R36)-1) -> 51 | T36: 51 | U36: 76 | V36: 29 | W36: 1 | X36: 29 | Y36: Uruguay | Z36: 44.8 | AC36: 22.3 | AD36: =IF($B36=0,"",RANK(AC36,AC$8:AC$87)+COUNTIF(AC$8:AC36,AC36)-1) -> 67 | AE36: 67 | AF36: 1 | AG36: 29 | AH36: 1 | AI36: 29 | AJ36: Argentina | AK36: 50.7 | AM36: 27.5 | AN36: =IF($B36=0,"",RANK(AM36,AM$8:AM$87)+COUNTIF(AM$8:AM36,AM36)-1) -> 75 | AO36: 74 | AP36: 77 | AQ36: 25 | AR36: 1 | AS36: =25 | AT36: Venezuela | AU36: 75 | AW36: 26.3 | AX36: =IF($B36=0,"",RANK(AW36,AW$8:AW$87)+COUNTIF(AW$8:AW36,AW36)-1) -> 60 | AY36: 59 | AZ36: 40 | BA36: 29 | BB36: 1 | BC36: 29 | BD36: Lithuania | BE36: 67.5 | BG36: 25 | BH36: =IF($B36=0,"",RANK(BG36,BG$8:BG$87)+COUNTIF(BG$8:BG36,BG36)-1) -> 50 | BI36: 45 | BJ36: 44 | BK36: 27 | BL36: 1 | BM36: =27 | BN36: Mongolia | BO36: 42.5 | BQ36: 28.2 | BR36: =IF($B36=0,"",RANK(BQ36,BQ$8:BQ$87)+COUNTIF(BQ$8:BQ36,BQ36)-1) -> 75 | BS36: 75 | BT36: 6 | BU36: 29 | BV36: 1 | BW36: =29 | BX36: Botswana | BY36: 64.1
A37: =tblCountries!A32 -> 30 | B37: =tblCountries!F32 -> 1 | C37: =tblCountries!C32 -> Indonesia | G37: 33.6 | H37: =IF($B37=0,"",RANK(G37,G$8:G$87)+COUNTIF(G$8:G37,G37)-1) -> 53 | I37: 53 | J37: 40 | K37: 30 | L37: 1 | M37: 30 | N37: Lithuania | O37: 54 | R37: 30.9 | S37: =IF($B37=0,"",RANK(R37,R$8:R$87)+COUNTIF(R$8:R37,R37)-1) -> 54 | T37: 54 | U37: 56 | V37: 30 | W37: 1 | X37: 30 | Y37: Puerto Rico | Z37: 44.6 | AC37: 19.7 | AD37: =IF($B37=0,"",RANK(AC37,AC$8:AC$87)+COUNTIF(AC$8:AC37,AC37)-1) -> 71 | AE37: 71 | AF37: 37 | AG37: 30 | AH37: 1 | AI37: =30 | AJ37: Jordan | AK37: 49.4 | AM37: 37.5 | AN37: =IF($B37=0,"",RANK(AM37,AM$8:AM$87)+COUNTIF(AM$8:AM37,AM37)-1) -> 66 | AO37: 65 | AP37: 13 | AQ37: 30 | AR37: 1 | AS37: =30 | AT37: Costa Rica | AU37: 70 | AW37: 42.5 | AX37: =IF($B37=0,"",RANK(AW37,AW$8:AW$87)+COUNTIF(AW$8:AW37,AW37)-1) -> 42 | AY37: 42 | AZ37: 13 | BA37: 30 | BB37: 1 | BC37: 30 | BD37: Costa Rica | BE37: 65 | BG37: 32.5 | BH37: =IF($B37=0,"",RANK(BG37,BG$8:BG$87)+COUNTIF(BG$8:BG37,BG37)-1) -> 41 | BI37: 38 | BJ37: 61 | BK37: 27 | BL37: 1 | BM37: =27 | BN37: Slovakia | BO37: 42.5 | BQ37: 48.4 | BR37: =IF($B37=0,"",RANK(BQ37,BQ$8:BQ$87)+COUNTIF(BQ$8:BQ37,BQ37)-1) -> 51 | BS37: 51 | BT37: 36 | BU37: 29 | BV37: 1 | BW37: =29 | BX37: Japan | BY37: 64.1
A38: =tblCountries!A33 -> 31 | B38: =tblCountries!F33 -> 1 | C38: =tblCountries!C33 -> Iran | G38: 21.2 | H38: =IF($B38=0,"",RANK(G38,G$8:G$87)+COUNTIF(G$8:G38,G38)-1) -> 73 | I38: 73 | J38: 51 | K38: 31 | L38: 1 | M38: 31 | N38: Panama | O38: 53.6 | R38: 22.5 | S38: =IF($B38=0,"",RANK(R38,R$8:R$87)+COUNTIF(R$8:R38,R38)-1) -> 63 | T38: 63 | U38: 54 | V38: 31 | W38: 1 | X38: 31 | Y38: Poland | Z38: 42.2 | AC38: 11.5 | AD38: =IF($B38=0,"",RANK(AC38,AC$8:AC$87)+COUNTIF(AC$8:AC38,AC38)-1) -> 78 | AE38: 78 | AF38: 54 | AG38: 30 | AH38: 1 | AI38: =30 | AJ38: Poland | AK38: 49.4 | AM38: 47.5 | AN38: =IF($B38=0,"",RANK(AM38,AM$8:AM$87)+COUNTIF(AM$8:AM38,AM38)-1) -> 56 | AO38: 56 | AP38: 18 | AQ38: 30 | AR38: 1 | AS38: =30 | AT38: Ecuador | AU38: 70 | AW38: 13.8 | AX38: =IF($B38=0,"",RANK(AW38,AW$8:AW$87)+COUNTIF(AW$8:AW38,AW38)-1) -> 73 | AY38: 71 | AZ38: 62 | BA38: 31 | BB38: 1 | BC38: 31 | BD38: South Africa | BE38: 63.8 | BG38: 7.5 | BH38: =IF($B38=0,"",RANK(BG38,BG$8:BG$87)+COUNTIF(BG$8:BG38,BG38)-1) -> 77 | BI38: 77 | BJ38: 66 | BK38: 27 | BL38: 1 | BM38: =27 | BN38: Sweden | BO38: 42.5 | BQ38: 44.6 | BR38: =IF($B38=0,"",RANK(BQ38,BQ$8:BQ$87)+COUNTIF(BQ$8:BQ38,BQ38)-1) -> 62 | BS38: 62 | BT38: 71 | BU38: 31 | BV38: 1 | BW38: 31 | BX38: Turkey | BY38: 63.9
A39: =tblCountries!A34 -> 32 | B39: =tblCountries!F34 -> 1 | C39: =tblCountries!C34 -> Iraq | G39: 12.5 | H39: =IF($B39=0,"",RANK(G39,G$8:G$87)+COUNTIF(G$8:G39,G39)-1) -> 80 | I39: 80 | J39: 1 | K39: 32 | L39: 1 | M39: 32 | N39: Argentina | O39: 52.5 | R39: 4.1 | S39: =IF($B39=0,"",RANK(R39,R$8:R$87)+COUNTIF(R$8:R39,R39)-1) -> 80 | T39: 80 | U39: 62 | V39: 32 | W39: 1 | X39: 32 | Y39: South Africa | Z39: 41.7 | AC39: 4 | AD39: =IF($B39=0,"",RANK(AC39,AC$8:AC$87)+COUNTIF(AC$8:AC39,AC39)-1) -> 79 | AE39: 79 | AF39: 10 | AG39: 32 | AH39: 1 | AI39: 32 | AJ39: Chile | AK39: 47.4 | AM39: 40 | AN39: =IF($B39=0,"",RANK(AM39,AM$8:AM$87)+COUNTIF(AM$8:AM39,AM39)-1) -> 61 | AO39: 60 | AP39: 42 | AQ39: 30 | AR39: 1 | AS39: =30 | AT39: Malaysia | AU39: 70 | AW39: 3.8 | AX39: =IF($B39=0,"",RANK(AW39,AW$8:AW$87)+COUNTIF(AW$8:AW39,AW39)-1) -> 80 | AY39: 80 | AZ39: 10 | BA39: 32 | BB39: 1 | BC39: =32 | BD39: Chile | BE39: 60 | BG39: 17.5 | BH39: =IF($B39=0,"",RANK(BG39,BG$8:BG$87)+COUNTIF(BG$8:BG39,BG39)-1) -> 72 | BI39: 66 | BJ39: 73 | BK39: 27 | BL39: 1 | BM39: =27 | BN39: Ukraine | BO39: 42.5 | BQ39: 35 | BR39: =IF($B39=0,"",RANK(BQ39,BQ$8:BQ$87)+COUNTIF(BQ$8:BQ39,BQ39)-1) -> 69 | BS39: 69 | BT39: 61 | BU39: 32 | BV39: 1 | BW39: 32 | BX39: Slovakia | BY39: 63.2
A40: =tblCountries!A35 -> 33 | B40: =tblCountries!F35 -> 1 | C40: =tblCountries!C35 -> Ireland | G40: =IF($B40=0,"",INDEX(aRoundedScores,L$5,$A40)) -> 85.8 | H40: =IF($B40=0,"",RANK(G40,G$8:G$87)+COUNTIF(G$8:G40,G40)-1) -> 4 | I40: 4 | J40: 15 | K40: 33 | L40: 1 | M40: 33 | N40: Czech Republic | O40: 51.8 | R40: =IF($B40=0,"",INDEX(aRoundedScores,W$5,$A40)) -> 81.7 | S40: =IF($B40=0,"",RANK(R40,R$8:R$87)+COUNTIF(R$8:R40,R40)-1) -> 4 | T40: 4 | U40: 55 | V40: 33 | W40: 1 | X40: 33 | Y40: Portugal | Z40: 41.4 | AC40: =IF($B40=0,"",INDEX(aRoundedScores,AH$5,$A40)) -> 86.1 | AD40: =IF($B40=0,"",RANK(AC40,AC$8:AC$87)+COUNTIF(AC$8:AC40,AC40)-1) -> 4 | AE40: 4 | AF40: 7 | AG40: 33 | AH40: 1 | AI40: 33 | AJ40: Brazil | AK40: 46.2 | AM40: =IF($B40=0,"",INDEX(aRoundedScores,AS$5,$A40)) -> 100 | AN40: =IF($B40=0,"",RANK(AM40,AM$8:AM$87)+COUNTIF(AM$8:AM40,AM40)-1) -> 4 | AO40: 1 | AP40: 43 | AQ40: 30 | AR40: 1 | AS40: =30 | AT40: Mexico | AU40: 70 | AW40: =IF($B40=0,"",INDEX(aRoundedScores,BC$5,$A40)) -> 80 | AX40: =IF($B40=0,"",RANK(AW40,AW$8:AW$87)+COUNTIF(AW$8:AW40,AW40)-1) -> 22 | AY40: 22 | AZ40: 44 | BA40: 32 | BB40: 1 | BC40: =32 | BD40: Mongolia | BE40: 60 | BG40: =IF($B40=0,"",INDEX(aRoundedScores,BM$5,$A40)) -> 82.5 | BH40: =IF($B40=0,"",RANK(BG40,BG$8:BG$87)+COUNTIF(BG$8:BG40,BG40)-1) -> 6 | BI40: 5 | BJ40: 37 | BK40: 33 | BL40: 1 | BM40: =33 | BN40: Jordan | BO40: 40 | BQ40: 71.4 | BR40: =IF($B40=0,"",RANK(BQ40,BQ$8:BQ$87)+COUNTIF(BQ$8:BQ40,BQ40)-1) -> 6 | BS40: 6 | BT40: 27 | BU40: 33 | BV40: 1 | BW40: 33 | BX40: Hong Kong | BY40: 62.9
A41: =tblCountries!A36 -> 34 | B41: =tblCountries!F36 -> 1 | C41: =tblCountries!C36 -> Israel | G41: 59.8 | H41: =IF($B41=0,"",RANK(G41,G$8:G$87)+COUNTIF(G$8:G41,G41)-1) -> 25 | I41: 25 | J41: 62 | K41: 34 | L41: 1 | M41: 34 | N41: South Africa | O41: 48.5 | R41: 53.5 | S41: =IF($B41=0,"",RANK(R41,R$8:R$87)+COUNTIF(R$8:R41,R41)-1) -> 21 | T41: 21 | U41: 14 | V41: 34 | W41: 1 | X41: 34 | Y41: Cuba | Z41: 39.7 | AC41: 57.5 | AD41: =IF($B41=0,"",RANK(AC41,AC$8:AC$87)+COUNTIF(AC$8:AC41,AC41)-1) -> 23 | AE41: 23 | AF41: 43 | AG41: 34 | AH41: 1 | AI41: 34 | AJ41: Mexico | AK41: 45.4 | AM41: 52.5 | AN41: =IF($B41=0,"",RANK(AM41,AM$8:AM$87)+COUNTIF(AM$8:AM41,AM41)-1) -> 51 | AO41: 49 | AP41: 59 | AQ41: 30 | AR41: 1 | AS41: =30 | AT41: Saudi Arabia | AU41: 70 | AW41: 76.3 | AX41: =IF($B41=0,"",RANK(AW41,AW$8:AW$87)+COUNTIF(AW$8:AW41,AW41)-1) -> 25 | AY41: 25 | AZ41: 71 | BA41: 34 | BB41: 1 | BC41: 34 | BD41: Turkey | BE41: 57.5 | BG41: 42.5 | BH41: =IF($B41=0,"",RANK(BG41,BG$8:BG$87)+COUNTIF(BG$8:BG41,BG41)-1) -> 28 | BI41: 27 | BJ41: 62 | BK41: 33 | BL41: 1 | BM41: =33 | BN41: South Africa | BO41: 40 | BQ41: 62.6 | BR41: =IF($B41=0,"",RANK(BQ41,BQ$8:BQ$87)+COUNTIF(BQ$8:BQ41,BQ41)-1) -> 34 | BS41: 34 | BT41: 34 | BU41: 34 | BV41: 1 | BW41: 34 | BX41: Israel | BY41: 62.6
A42: =tblCountries!A37 -> 35 | B42: =tblCountries!F37 -> 1 | C42: =tblCountries!C37 -> Italy | G42: 71.1 | H42: =IF($B42=0,"",RANK(G42,G$8:G$87)+COUNTIF(G$8:G42,G42)-1) -> 21 | I42: 21 | J42: 72 | K42: 35 | L42: 1 | M42: 35 | N42: Uganda | O42: 47.8 | R42: 56.7 | S42: =IF($B42=0,"",RANK(R42,R$8:R$87)+COUNTIF(R$8:R42,R42)-1) -> 19 | T42: 19 | U42: 37 | V42: 35 | W42: 1 | X42: 35 | Y42: Jordan | Z42: 39.3 | AC42: 51.5 | AD42: =IF($B42=0,"",RANK(AC42,AC$8:AC$87)+COUNTIF(AC$8:AC42,AC42)-1) -> 27 | AE42: 27 | AF42: 79 | AG42: 35 | AH42: 1 | AI42: 35 | AJ42: Zambia | AK42: 43.2 | AM42: 87.5 | AN42: =IF($B42=0,"",RANK(AM42,AM$8:AM$87)+COUNTIF(AM$8:AM42,AM42)-1) -> 9 | AO42: 6 | AP42: 76 | AQ42: 30 | AR42: 1 | AS42: =30 | AT42: Uruguay | AU42: 70 | AW42: 87.5 | AX42: =IF($B42=0,"",RANK(AW42,AW$8:AW$87)+COUNTIF(AW$8:AW42,AW42)-1) -> 14 | AY42: 13 | AZ42: 72 | BA42: 35 | BB42: 1 | BC42: 35 | BD42: Uganda | BE42: 56.3 | BG42: 57.5 | BH42: =IF($B42=0,"",RANK(BG42,BG$8:BG$87)+COUNTIF(BG$8:BG42,BG42)-1) -> 18 | BI42: 15 | BJ42: 64 | BK42: 33 | BL42: 1 | BM42: =33 | BN42: Spain | BO42: 40 | BQ42: 75.2 | BR42: =IF($B42=0,"",RANK(BQ42,BQ$8:BQ$87)+COUNTIF(BQ$8:BQ42,BQ42)-1) -> 2 | BS42: 2 | BT42: 57 | BU42: 35 | BV42: 1 | BW42: 35 | BX42: Romania | BY42: 61
A43: =tblCountries!A38 -> 36 | B43: =tblCountries!F38 -> 1 | C43: =tblCountries!C38 -> Japan | G43: 76.3 | H43: =IF($B43=0,"",RANK(G43,G$8:G$87)+COUNTIF(G$8:G43,G43)-1) -> 14 | I43: 14 | J43: 14 | K43: 36 | L43: 1 | M43: 36 | N43: Cuba | O43: 46.8 | R43: 62.2 | S43: =IF($B43=0,"",RANK(R43,R$8:R$87)+COUNTIF(R$8:R43,R43)-1) -> 14 | T43: 14 | U43: 7 | V43: 36 | W43: 1 | X43: =36 | Y43: Brazil | Z43: 38 | AC43: 67.5 | AD43: =IF($B43=0,"",RANK(AC43,AC$8:AC$87)+COUNTIF(AC$8:AC43,AC43)-1) -> 16 | AE43: 16 | AF43: 64 | AG43: 36 | AH43: 1 | AI43: 36 | AJ43: Spain | AK43: 42.6 | AM43: 85 | AN43: =IF($B43=0,"",RANK(AM43,AM$8:AM$87)+COUNTIF(AM$8:AM43,AM43)-1) -> 17 | AO43: 17 | AP43: 3 | AQ43: 36 | AR43: 1 | AS43: =36 | AT43: Austria | AU43: 65 | AW43: 83.8 | AX43: =IF($B43=0,"",RANK(AW43,AW$8:AW$87)+COUNTIF(AW$8:AW43,AW43)-1) -> 18 | AY43: 16 | AZ43: 19 | BA43: 36 | BB43: 1 | BC43: 36 | BD43: Egypt | BE43: 53.8 | BG43: 82.5 | BH43: =IF($B43=0,"",RANK(BG43,BG$8:BG$87)+COUNTIF(BG$8:BG43,BG43)-1) -> 7 | BI43: 5 | BJ43: 79 | BK43: 33 | BL43: 1 | BM43: =33 | BN43: Zambia | BO43: 40 | BQ43: 64.1 | BR43: =IF($B43=0,"",RANK(BQ43,BQ$8:BQ$87)+COUNTIF(BQ$8:BQ43,BQ43)-1) -> 30 | BS43: 29 | BT43: 10 | BU43: 36 | BV43: 1 | BW43: 36 | BX43: Chile | BY43: 60.2
A44: =tblCountries!A39 -> 37 | B44: =tblCountries!F39 -> 1 | C44: =tblCountries!C39 -> Jordan | G44: 46.7 | H44: =IF($B44=0,"",RANK(G44,G$8:G$87)+COUNTIF(G$8:G44,G44)-1) -> 37 | I44: 37 | J44: 37 | K44: 37 | L44: 1 | M44: 37 | N44: Jordan | O44: 46.7 | R44: 39.3 | S44: =IF($B44=0,"",RANK(R44,R$8:R$87)+COUNTIF(R$8:R44,R44)-1) -> 35 | T44: 35 | U44: 41 | V44: 36 | W44: 1 | X44: =36 | Y44: Malawi | Z44: 38 | AC44: 49.4 | AD44: =IF($B44=0,"",RANK(AC44,AC$8:AC$87)+COUNTIF(AC$8:AC44,AC44)-1) -> 30 | AE44: 30 | AF44: 55 | AG44: 37 | AH44: 1 | AI44: 37 | AJ44: Portugal | AK44: 42.3 | AM44: 65 | AN44: =IF($B44=0,"",RANK(AM44,AM$8:AM$87)+COUNTIF(AM$8:AM44,AM44)-1) -> 38 | AO44: 36 | AP44: 15 | AQ44: 36 | AR44: 1 | AS44: =36 | AT44: Czech Republic | AU44: 65 | AW44: 40 | AX44: =IF($B44=0,"",RANK(AW44,AW$8:AW$87)+COUNTIF(AW$8:AW44,AW44)-1) -> 45 | AY44: 44 | AZ44: 56 | BA44: 37 | BB44: 1 | BC44: 37 | BD44: Puerto Rico | BE44: 50 | BG44: 40 | BH44: =IF($B44=0,"",RANK(BG44,BG$8:BG$87)+COUNTIF(BG$8:BG44,BG44)-1) -> 33 | BI44: 33 | BJ44: 28 | BK44: 37 | BL44: 1 | BM44: 37 | BN44: Hungary | BO44: 35 | BQ44: 51 | BR44: =IF($B44=0,"",RANK(BQ44,BQ$8:BQ$87)+COUNTIF(BQ$8:BQ44,BQ44)-1) -> 49 | BS44: 49 | BT44: 62 | BU44: 37 | BV44: 1 | BW44: 37 | BX44: South Africa | BY44: 59.9
A45: =tblCountries!A40 -> 38 | B45: =tblCountries!F40 -> 1 | C45: =tblCountries!C40 -> Kazakhstan | G45: 34.8 | H45: =IF($B45=0,"",RANK(G45,G$8:G$87)+COUNTIF(G$8:G45,G45)-1) -> 50 | I45: 50 | J45: 42 | K45: 38 | L45: 1 | M45: 38 | N45: Malaysia | O45: 46.5 | R45: 19.9 | S45: =IF($B45=0,"",RANK(R45,R$8:R$87)+COUNTIF(R$8:R45,R45)-1) -> 70 | T45: 70 | U45: 79 | V45: 38 | W45: 1 | X45: 38 | Y45: Zambia | Z45: 37.8 | AC45: 27 | AD45: =IF($B45=0,"",RANK(AC45,AC$8:AC$87)+COUNTIF(AC$8:AC45,AC45)-1) -> 60 | AE45: 60 | AF45: 28 | AG45: 38 | AH45: 1 | AI45: 38 | AJ45: Hungary | AK45: 42.1 | AM45: 75 | AN45: =IF($B45=0,"",RANK(AM45,AM$8:AM$87)+COUNTIF(AM$8:AM45,AM45)-1) -> 25 | AO45: 25 | AP45: 37 | AQ45: 36 | AR45: 1 | AS45: =36 | AT45: Jordan | AU45: 65 | AW45: 26.3 | AX45: =IF($B45=0,"",RANK(AW45,AW$8:AW$87)+COUNTIF(AW$8:AW45,AW45)-1) -> 61 | AY45: 59 | AZ45: 28 | BA45: 38 | BB45: 1 | BC45: =38 | BD45: Hungary | BE45: 47.5 | BG45: 25 | BH45: =IF($B45=0,"",RANK(BG45,BG$8:BG$87)+COUNTIF(BG$8:BG45,BG45)-1) -> 51 | BI45: 45 | BJ45: 1 | BK45: 38 | BL45: 1 | BM45: =38 | BN45: Argentina | BO45: 32.5 | BQ45: 52.8 | BR45: =IF($B45=0,"",RANK(BQ45,BQ$8:BQ$87)+COUNTIF(BQ$8:BQ45,BQ45)-1) -> 46 | BS45: 46 | BT45: 76 | BU45: 38 | BV45: 1 | BW45: 38 | BX45: Uruguay | BY45: 58.7
A46: =tblCountries!A41 -> 39 | B46: =tblCountries!F41 -> 1 | C46: =tblCountries!C41 -> Kenya | G46: 30 | H46: =IF($B46=0,"",RANK(G46,G$8:G$87)+COUNTIF(G$8:G46,G46)-1) -> 63 | I46: 63 | J46: 76 | K46: 39 | L46: 1 | M46: 39 | N46: Uruguay | O46: 46.1 | R46: 33.6 | S46: =IF($B46=0,"",RANK(R46,R$8:R$87)+COUNTIF(R$8:R46,R46)-1) -> 47 | T46: 47 | U46: 77 | V46: 39 | W46: 1 | X46: 39 | Y46: Venezuela | Z46: 37.7 | AC46: 18.8 | AD46: =IF($B46=0,"",RANK(AC46,AC$8:AC$87)+COUNTIF(AC$8:AC46,AC46)-1) -> 73 | AE46: 73 | AF46: 14 | AG46: 39 | AH46: 1 | AI46: 39 | AJ46: Cuba | AK46: 41.9 | AM46: 40 | AN46: =IF($B46=0,"",RANK(AM46,AM$8:AM$87)+COUNTIF(AM$8:AM46,AM46)-1) -> 62 | AO46: 60 | AP46: 44 | AQ46: 36 | AR46: 1 | AS46: =36 | AT46: Mongolia | AU46: 65 | AW46: 30 | AX46: =IF($B46=0,"",RANK(AW46,AW$8:AW$87)+COUNTIF(AW$8:AW46,AW46)-1) -> 55 | AY46: 55 | AZ46: 42 | BA46: 38 | BB46: 1 | BC46: =38 | BD46: Malaysia | BE46: 47.5 | BG46: 25 | BH46: =IF($B46=0,"",RANK(BG46,BG$8:BG$87)+COUNTIF(BG$8:BG46,BG46)-1) -> 52 | BI46: 45 | BJ46: 25 | BK46: 38 | BL46: 1 | BM46: =38 | BN46: Greece | BO46: 32.5 | BQ46: 31.1 | BR46: =IF($B46=0,"",RANK(BQ46,BQ$8:BQ$87)+COUNTIF(BQ$8:BQ46,BQ46)-1) -> 73 | BS46: 73 | BT46: 13 | BU46: 39 | BV46: 1 | BW46: 39 | BX46: Costa Rica | BY46: 57.3
A47: =tblCountries!A42 -> 40 | B47: =tblCountries!F42 -> 1 | C47: =tblCountries!C42 -> Lithuania | G47: 54 | H47: =IF($B47=0,"",RANK(G47,G$8:G$87)+COUNTIF(G$8:G47,G47)-1) -> 30 | I47: 30 | J47: 18 | K47: 40 | L47: 1 | M47: 40 | N47: Ecuador | O47: 44 | R47: 30.1 | S47: =IF($B47=0,"",RANK(R47,R$8:R$87)+COUNTIF(R$8:R47,R47)-1) -> 55 | T47: 55 | U47: 58 | V47: 40 | W47: 1 | X47: 40 | Y47: Russia | Z47: 37.4 | AC47: 51.3 | AD47: =IF($B47=0,"",RANK(AC47,AC$8:AC$87)+COUNTIF(AC$8:AC47,AC47)-1) -> 28 | AE47: 28 | AF47: 42 | AG47: 40 | AH47: 1 | AI47: 40 | AJ47: Malaysia | AK47: 41.7 | AM47: 75 | AN47: =IF($B47=0,"",RANK(AM47,AM$8:AM$87)+COUNTIF(AM$8:AM47,AM47)-1) -> 26 | AO47: 25 | AP47: 54 | AQ47: 40 | AR47: 1 | AS47: =40 | AT47: Poland | AU47: 62.5 | AW47: 67.5 | AX47: =IF($B47=0,"",RANK(AW47,AW$8:AW$87)+COUNTIF(AW$8:AW47,AW47)-1) -> 29 | AY47: 29 | AZ47: 51 | BA47: 38 | BB47: 1 | BC47: =38 | BD47: Panama | BE47: 47.5 | BG47: 25 | BH47: =IF($B47=0,"",RANK(BG47,BG$8:BG$87)+COUNTIF(BG$8:BG47,BG47)-1) -> 53 | BI47: 45 | BJ47: 27 | BK47: 38 | BL47: 1 | BM47: =38 | BN47: Hong Kong | BO47: 32.5 | BQ47: 56.3 | BR47: =IF($B47=0,"",RANK(BQ47,BQ$8:BQ$87)+COUNTIF(BQ$8:BQ47,BQ47)-1) -> 41 | BS47: 41 | BT47: 73 | BU47: 40 | BV47: 1 | BW47: 40 | BX47: Ukraine | BY47: 56.4
A48: =tblCountries!A43 -> 41 | B48: =tblCountries!F43 -> 1 | C48: =tblCountries!C43 -> Malawi | G48: 27 | H48: =IF($B48=0,"",RANK(G48,G$8:G$87)+COUNTIF(G$8:G48,G48)-1) -> 66 | I48: 66 | J48: 28 | K48: 41 | L48: 1 | M48: 41 | N48: Hungary | O48: 42.7 | R48: 38 | S48: =IF($B48=0,"",RANK(R48,R$8:R$87)+COUNTIF(R$8:R48,R48)-1) -> 37 | T48: 36 | U48: 18 | V48: 41 | W48: 1 | X48: 41 | Y48: Ecuador | Z48: 37.3 | AC48: 35.1 | AD48: =IF($B48=0,"",RANK(AC48,AC$8:AC$87)+COUNTIF(AC$8:AC48,AC48)-1) -> 50 | AE48: 50 | AF48: 13 | AG48: 41 | AH48: 1 | AI48: =41 | AJ48: Costa Rica | AK48: 41.6 | AM48: 40 | AN48: =IF($B48=0,"",RANK(AM48,AM$8:AM$87)+COUNTIF(AM$8:AM48,AM48)-1) -> 63 | AO48: 60 | AP48: 70 | AQ48: 40 | AR48: 1 | AS48: =40 | AT48: Thailand | AU48: 62.5 | AW48: 6.3 | AX48: =IF($B48=0,"",RANK(AW48,AW$8:AW$87)+COUNTIF(AW$8:AW48,AW48)-1) -> 78 | AY48: 78 | AZ48: 18 | BA48: 41 | BB48: 1 | BC48: 41 | BD48: Ecuador | BE48: 43.8 | BG48: 25 | BH48: =IF($B48=0,"",RANK(BG48,BG$8:BG$87)+COUNTIF(BG$8:BG48,BG48)-1) -> 54 | BI48: 45 | BJ48: 30 | BK48: 38 | BL48: 1 | BM48: =38 | BN48: Indonesia | BO48: 32.5 | BQ48: 44.4 | BR48: =IF($B48=0,"",RANK(BQ48,BQ$8:BQ$87)+COUNTIF(BQ$8:BQ48,BQ48)-1) -> 64 | BS48: 64 | BT48: 40 | BU48: 41 | BV48: 1 | BW48: 41 | BX48: Lithuania | BY48: 56.3
A49: =tblCountries!A44 -> 42 | B49: =tblCountries!F44 -> 1 | C49: =tblCountries!C44 -> Malaysia | G49: 46.5 | H49: =IF($B49=0,"",RANK(G49,G$8:G$87)+COUNTIF(G$8:G49,G49)-1) -> 38 | I49: 38 | J49: 7 | K49: 42 | L49: 1 | M49: 42 | N49: Brazil | O49: 42.5 | R49: 37.1 | S49: =IF($B49=0,"",RANK(R49,R$8:R$87)+COUNTIF(R$8:R49,R49)-1) -> 42 | T49: 42 | U49: 42 | V49: 42 | W49: 1 | X49: 42 | Y49: Malaysia | Z49: 37.1 | AC49: 41.7 | AD49: =IF($B49=0,"",RANK(AC49,AC$8:AC$87)+COUNTIF(AC$8:AC49,AC49)-1) -> 40 | AE49: 40 | AF49: 51 | AG49: 41 | AH49: 1 | AI49: =41 | AJ49: Panama | AK49: 41.6 | AM49: 70 | AN49: =IF($B49=0,"",RANK(AM49,AM$8:AM$87)+COUNTIF(AM$8:AM49,AM49)-1) -> 32 | AO49: 30 | AP49: 25 | AQ49: 42 | AR49: 1 | AS49: =42 | AT49: Greece | AU49: 60 | AW49: 47.5 | AX49: =IF($B49=0,"",RANK(AW49,AW$8:AW$87)+COUNTIF(AW$8:AW49,AW49)-1) -> 39 | AY49: 38 | AZ49: 30 | BA49: 42 | BB49: 1 | BC49: 42 | BD49: Indonesia | BE49: 42.5 | BG49: 25 | BH49: =IF($B49=0,"",RANK(BG49,BG$8:BG$87)+COUNTIF(BG$8:BG49,BG49)-1) -> 55 | BI49: 45 | BJ49: 51 | BK49: 38 | BL49: 1 | BM49: =38 | BN49: Panama | BO49: 32.5 | BQ49: 45.9 | BR49: =IF($B49=0,"",RANK(BQ49,BQ$8:BQ$87)+COUNTIF(BQ$8:BQ49,BQ49)-1) -> 59 | BS49: 59 | BT49: 68 | BU49: 42 | BV49: 1 | BW49: 42 | BX49: Taiwan | BY49: 56.1
A50: =tblCountries!A45 -> 43 | B50: =tblCountries!F45 -> 1 | C50: =tblCountries!C45 -> Mexico | G50: 42.3 | H50: =IF($B50=0,"",RANK(G50,G$8:G$87)+COUNTIF(G$8:G50,G50)-1) -> 43 | I50: 43 | J50: 43 | K50: 43 | L50: 1 | M50: 43 | N50: Mexico | O50: 42.3 | R50: 37 | S50: =IF($B50=0,"",RANK(R50,R$8:R$87)+COUNTIF(R$8:R50,R50)-1) -> 43 | T50: 43 | U50: 43 | V50: 43 | W50: 1 | X50: =43 | Y50: Mexico | Z50: 37 | AC50: 45.4 | AD50: =IF($B50=0,"",RANK(AC50,AC$8:AC$87)+COUNTIF(AC$8:AC50,AC50)-1) -> 34 | AE50: 34 | AF50: 73 | AG50: 43 | AH50: 1 | AI50: =43 | AJ50: Ukraine | AK50: 39.8 | AM50: 70 | AN50: =IF($B50=0,"",RANK(AM50,AM$8:AM$87)+COUNTIF(AM$8:AM50,AM50)-1) -> 33 | AO50: 30 | AP50: 58 | AQ50: 42 | AR50: 1 | AS50: =42 | AT50: Russia | AU50: 60 | AW50: 31.3 | AX50: =IF($B50=0,"",RANK(AW50,AW$8:AW$87)+COUNTIF(AW$8:AW50,AW50)-1) -> 54 | AY50: 54 | AZ50: 52 | BA50: 43 | BB50: 1 | BC50: 43 | BD50: Peru | BE50: 41.3 | BG50: 25 | BH50: =IF($B50=0,"",RANK(BG50,BG$8:BG$87)+COUNTIF(BG$8:BG50,BG50)-1) -> 56 | BI50: 45 | BJ50: 69 | BK50: 38 | BL50: 1 | BM50: =38 | BN50: Tanzania | BO50: 32.5 | BQ50: 44.6 | BR50: =IF($B50=0,"",RANK(BQ50,BQ$8:BQ$87)+COUNTIF(BQ$8:BQ50,BQ50)-1) -> 63 | BS50: 62 | BT50: 58 | BU50: 43 | BV50: 1 | BW50: 43 | BX50: Russia | BY50: 55.9
A51: =tblCountries!A46 -> 44 | B51: =tblCountries!F46 -> 1 | C51: =tblCountries!C46 -> Mongolia | G51: 57.7 | H51: =IF($B51=0,"",RANK(G51,G$8:G$87)+COUNTIF(G$8:G51,G51)-1) -> 28 | I51: 28 | J51: 70 | K51: 44 | L51: 1 | M51: 44 | N51: Thailand | O51: 40.2 | R51: 51.3 | S51: =IF($B51=0,"",RANK(R51,R$8:R$87)+COUNTIF(R$8:R51,R51)-1) -> 24 | T51: 24 | U51: 72 | V51: 43 | W51: 1 | X51: =43 | Y51: Uganda | Z51: 37 | AC51: 61.1 | AD51: =IF($B51=0,"",RANK(AC51,AC$8:AC$87)+COUNTIF(AC$8:AC51,AC51)-1) -> 21 | AE51: 21 | AF51: 77 | AG51: 43 | AH51: 1 | AI51: =43 | AJ51: Venezuela | AK51: 39.8 | AM51: 65 | AN51: =IF($B51=0,"",RANK(AM51,AM$8:AM$87)+COUNTIF(AM$8:AM51,AM51)-1) -> 39 | AO51: 36 | AP51: 1 | AQ51: 44 | AR51: 1 | AS51: =44 | AT51: Argentina | AU51: 57.5 | AW51: 60 | AX51: =IF($B51=0,"",RANK(AW51,AW$8:AW$87)+COUNTIF(AW$8:AW51,AW51)-1) -> 33 | AY51: 32 | AZ51: 8 | BA51: 44 | BB51: 1 | BC51: =44 | BD51: Bulgaria | BE51: 40 | BG51: 42.5 | BH51: =IF($B51=0,"",RANK(BG51,BG$8:BG$87)+COUNTIF(BG$8:BG51,BG51)-1) -> 29 | BI51: 27 | BJ51: 77 | BK51: 38 | BL51: 1 | BM51: =38 | BN51: Venezuela | BO51: 32.5 | BQ51: 51 | BR51: =IF($B51=0,"",RANK(BQ51,BQ$8:BQ$87)+COUNTIF(BQ$8:BQ51,BQ51)-1) -> 50 | BS51: 49 | BT51: 80 | BU51: 44 | BV51: 1 | BW51: 44 | BX51: Zimbabwe | BY51: 55.7
A52: =tblCountries!A47 -> 45 | B52: =tblCountries!F47 -> 1 | C52: =tblCountries!C47 -> Morocco | G52: 33.8 | H52: =IF($B52=0,"",RANK(G52,G$8:G$87)+COUNTIF(G$8:G52,G52)-1) -> 52 | I52: 52 | J52: 77 | K52: 45 | L52: 1 | M52: 45 | N52: Venezuela | O52: 40.1 | R52: 22.2 | S52: =IF($B52=0,"",RANK(R52,R$8:R$87)+COUNTIF(R$8:R52,R52)-1) -> 65 | T52: 65 | U52: 78 | V52: 45 | W52: 1 | X52: 45 | Y52: Vietnam | Z52: 34.9 | AC52: 37.1 | AD52: =IF($B52=0,"",RANK(AC52,AC$8:AC$87)+COUNTIF(AC$8:AC52,AC52)-1) -> 46 | AE52: 46 | AF52: 70 | AG52: 45 | AH52: 1 | AI52: 45 | AJ52: Thailand | AK52: 39.5 | AM52: 52.5 | AN52: =IF($B52=0,"",RANK(AM52,AM$8:AM$87)+COUNTIF(AM$8:AM52,AM52)-1) -> 52 | AO52: 49 | AP52: 8 | AQ52: 44 | AR52: 1 | AS52: =44 | AT52: Bulgaria | AU52: 57.5 | AW52: 30 | AX52: =IF($B52=0,"",RANK(AW52,AW$8:AW$87)+COUNTIF(AW$8:AW52,AW52)-1) -> 56 | AY52: 55 | AZ52: 37 | BA52: 44 | BB52: 1 | BC52: =44 | BD52: Jordan | BE52: 40 | BG52: 25 | BH52: =IF($B52=0,"",RANK(BG52,BG$8:BG$87)+COUNTIF(BG$8:BG52,BG52)-1) -> 57 | BI52: 45 | BJ52: 11 | BK52: 45 | BL52: 1 | BM52: =45 | BN52: China | BO52: 25 | BQ52: 47.1 | BR52: =IF($B52=0,"",RANK(BQ52,BQ$8:BQ$87)+COUNTIF(BQ$8:BQ52,BQ52)-1) -> 52 | BS52: 52 | BT52: 17 | BU52: 45 | BV52: 1 | BW52: 45 | BX52: Dominican Republic | BY52: 53.6
A53: =tblCountries!A48 -> 46 | B53: =tblCountries!F48 -> 1 | C53: =tblCountries!C48 -> Myanmar | G53: 17.1 | H53: =IF($B53=0,"",RANK(G53,G$8:G$87)+COUNTIF(G$8:G53,G53)-1) -> 76 | I53: 76 | J53: 56 | K53: 46 | L53: 1 | M53: 46 | N53: Puerto Rico | O53: 40 | R53: 14.5 | S53: =IF($B53=0,"",RANK(R53,R$8:R$87)+COUNTIF(R$8:R53,R53)-1) -> 73 | T53: 73 | U53: 71 | V53: 46 | W53: 1 | X53: 46 | Y53: Turkey | Z53: 34.7 | AC53: 11.6 | AD53: =IF($B53=0,"",RANK(AC53,AC$8:AC$87)+COUNTIF(AC$8:AC53,AC53)-1) -> 77 | AE53: 76 | AF53: 45 | AG53: 46 | AH53: 1 | AI53: 46 | AJ53: Morocco | AK53: 37.1 | AM53: 42.5 | AN53: =IF($B53=0,"",RANK(AM53,AM$8:AM$87)+COUNTIF(AM$8:AM53,AM53)-1) -> 59 | AO53: 58 | AP53: 62 | AQ53: 44 | AR53: 1 | AS53: =44 | AT53: South Africa | AU53: 57.5 | AW53: 11.3 | AX53: =IF($B53=0,"",RANK(AW53,AW$8:AW$87)+COUNTIF(AW$8:AW53,AW53)-1) -> 75 | AY53: 75 | AZ53: 80 | BA53: 44 | BB53: 1 | BC53: =44 | BD53: Zimbabwe | BE53: 40 | BG53: 0 | BH53: =IF($B53=0,"",RANK(BG53,BG$8:BG$87)+COUNTIF(BG$8:BG53,BG53)-1) -> 80 | BI53: 78 | BJ53: 15 | BK53: 45 | BL53: 1 | BM53: =45 | BN53: Czech Republic | BO53: 25 | BQ53: 32.9 | BR53: =IF($B53=0,"",RANK(BQ53,BQ$8:BQ$87)+COUNTIF(BQ$8:BQ53,BQ53)-1) -> 71 | BS53: 71 | BT53: 38 | BU53: 46 | BV53: 1 | BW53: 46 | BX53: Kazakhstan | BY53: 52.8
A54: =tblCountries!A49 -> 47 | B54: =tblCountries!F49 -> 1 | C54: =tblCountries!C49 -> Netherlands | G54: 80.9 | H54: =IF($B54=0,"",RANK(G54,G$8:G$87)+COUNTIF(G$8:G54,G54)-1) -> 8 | I54: 8 | J54: 71 | K54: 47 | L54: 1 | M54: 47 | N54: Turkey | O54: 38.2 | R54: 84.8 | S54: =IF($B54=0,"",RANK(R54,R$8:R$87)+COUNTIF(R$8:R54,R54)-1) -> 2 | T54: 2 | U54: 39 | V54: 47 | W54: 1 | X54: 47 | Y54: Kenya | Z54: 33.6 | AC54: 59.6 | AD54: =IF($B54=0,"",RANK(AC54,AC$8:AC$87)+COUNTIF(AC$8:AC54,AC54)-1) -> 22 | AE54: 22 | AF54: 24 | AG54: 47 | AH54: 1 | AI54: 47 | AJ54: Ghana | AK54: 36.3 | AM54: 87.5 | AN54: =IF($B54=0,"",RANK(AM54,AM$8:AM$87)+COUNTIF(AM$8:AM54,AM54)-1) -> 10 | AO54: 6 | AP54: 28 | AQ54: 47 | AR54: 1 | AS54: =47 | AT54: Hungary | AU54: 55 | AW54: 90 | AX54: =IF($B54=0,"",RANK(AW54,AW$8:AW$87)+COUNTIF(AW$8:AW54,AW54)-1) -> 8 | AY54: 8 | AZ54: 14 | BA54: 47 | BB54: 1 | BC54: 47 | BD54: Cuba | BE54: 37.5 | BG54: 75 | BH54: =IF($B54=0,"",RANK(BG54,BG$8:BG$87)+COUNTIF(BG$8:BG54,BG54)-1) -> 11 | BI54: 9 | BJ54: 18 | BK54: 45 | BL54: 1 | BM54: =45 | BN54: Ecuador | BO54: 25 | BQ54: 78 | BR54: =IF($B54=0,"",RANK(BQ54,BQ$8:BQ$87)+COUNTIF(BQ$8:BQ54,BQ54)-1) -> 1 | BS54: 1 | BT54: 1 | BU54: 47 | BV54: 1 | BW54: 47 | BX54: Argentina | BY54: 52.6
A55: =tblCountries!A50 -> 48 | B55: =tblCountries!F50 -> 1 | C55: =tblCountries!C50 -> New Zealand | G55: 87.6 | H55: =IF($B55=0,"",RANK(G55,G$8:G$87)+COUNTIF(G$8:G55,G55)-1) -> 3 | I55: 3 | J55: 58 | K55: 48 | L55: 1 | M55: 48 | N55: Russia | O55: 37.2 | R55: 76.7 | S55: =IF($B55=0,"",RANK(R55,R$8:R$87)+COUNTIF(R$8:R55,R55)-1) -> 8 | T55: 8 | U55: 24 | V55: 48 | W55: 1 | X55: 48 | Y55: Ghana | Z55: 33.4 | AC55: 81.4 | AD55: =IF($B55=0,"",RANK(AC55,AC$8:AC$87)+COUNTIF(AC$8:AC55,AC55)-1) -> 5 | AE55: 5 | AF55: 19 | AG55: 48 | AH55: 1 | AI55: 48 | AJ55: Egypt | AK55: 36.1 | AM55: 87.5 | AN55: =IF($B55=0,"",RANK(AM55,AM$8:AM$87)+COUNTIF(AM$8:AM55,AM55)-1) -> 11 | AO55: 6 | AP55: 78 | AQ55: 47 | AR55: 1 | AS55: =47 | AT55: Vietnam | AU55: 55 | AW55: 95 | AX55: =IF($B55=0,"",RANK(AW55,AW$8:AW$87)+COUNTIF(AW$8:AW55,AW55)-1) -> 4 | AY55: 4 | AZ55: 57 | BA55: 48 | BB55: 1 | BC55: =48 | BD55: Romania | BE55: 36.3 | BG55: 100 | BH55: =IF($B55=0,"",RANK(BG55,BG$8:BG$87)+COUNTIF(BG$8:BG55,BG55)-1) -> 2 | BI55: 1 | BJ55: 19 | BK55: 45 | BL55: 1 | BM55: =45 | BN55: Egypt | BO55: 25 | BQ55: 71.1 | BR55: =IF($B55=0,"",RANK(BQ55,BQ$8:BQ$87)+COUNTIF(BQ$8:BQ55,BQ55)-1) -> 9 | BS55: 8 | BT55: 78 | BU55: 48 | BV55: 1 | BW55: 48 | BX55: Vietnam | BY55: 51.6
A56: =tblCountries!A51 -> 49 | B56: =tblCountries!F51 -> 1 | C56: =tblCountries!C51 -> Nigeria | G56: 16.9 | H56: =IF($B56=0,"",RANK(G56,G$8:G$87)+COUNTIF(G$8:G56,G56)-1) -> 77 | I56: 77 | J56: 52 | K56: 49 | L56: 1 | M56: 49 | N56: Peru | O56: 36 | R56: 21.8 | S56: =IF($B56=0,"",RANK(R56,R$8:R$87)+COUNTIF(R$8:R56,R56)-1) -> 66 | T56: 66 | U56: 52 | V56: 49 | W56: 1 | X56: 49 | Y56: Peru | Z56: 33.2 | AC56: 27.9 | AD56: =IF($B56=0,"",RANK(AC56,AC$8:AC$87)+COUNTIF(AC$8:AC56,AC56)-1) -> 58 | AE56: 58 | AF56: 59 | AG56: 49 | AH56: 1 | AI56: 49 | AJ56: Saudi Arabia | AK56: 35.4 | AM56: 0 | AN56: =IF($B56=0,"",RANK(AM56,AM$8:AM$87)+COUNTIF(AM$8:AM56,AM56)-1) -> 80 | AO56: 80 | AP56: 6 | AQ56: 49 | AR56: 1 | AS56: =49 | AT56: Botswana | AU56: 52.5 | AW56: 15 | AX56: =IF($B56=0,"",RANK(AW56,AW$8:AW$87)+COUNTIF(AW$8:AW56,AW56)-1) -> 70 | AY56: 70 | AZ56: 70 | BA56: 48 | BB56: 1 | BC56: =48 | BD56: Thailand | BE56: 36.3 | BG56: 25 | BH56: =IF($B56=0,"",RANK(BG56,BG$8:BG$87)+COUNTIF(BG$8:BG56,BG56)-1) -> 58 | BI56: 45 | BJ56: 26 | BK56: 45 | BL56: 1 | BM56: =45 | BN56: Guatemala | BO56: 25 | BQ56: 17.1 | BR56: =IF($B56=0,"",RANK(BQ56,BQ$8:BQ$87)+COUNTIF(BQ$8:BQ56,BQ56)-1) -> 78 | BS56: 78 | BT56: 37 | BU56: 49 | BV56: 1 | BW56: =49 | BX56: Jordan | BY56: 51
A57: =tblCountries!A52 -> 50 | B57: =tblCountries!F52 -> 1 | C57: =tblCountries!C52 -> Norway | G57: 77.4 | H57: =IF($B57=0,"",RANK(G57,G$8:G$87)+COUNTIF(G$8:G57,G57)-1) -> 13 | I57: 13 | J57: 38 | K57: 50 | L57: 1 | M57: 50 | N57: Kazakhstan | O57: 34.8 | R57: 71 | S57: =IF($B57=0,"",RANK(R57,R$8:R$87)+COUNTIF(R$8:R57,R57)-1) -> 9 | T57: 9 | U57: 69 | V57: 50 | W57: 1 | X57: 50 | Y57: Tanzania | Z57: 33.1 | AC57: 75.5 | AD57: =IF($B57=0,"",RANK(AC57,AC$8:AC$87)+COUNTIF(AC$8:AC57,AC57)-1) -> 7 | AE57: 7 | AF57: 41 | AG57: 50 | AH57: 1 | AI57: 50 | AJ57: Malawi | AK57: 35.1 | AM57: 77.5 | AN57: =IF($B57=0,"",RANK(AM57,AM$8:AM$87)+COUNTIF(AM$8:AM57,AM57)-1) -> 24 | AO57: 22 | AP57: 7 | AQ57: 49 | AR57: 1 | AS57: =49 | AT57: Brazil | AU57: 52.5 | AW57: 83.8 | AX57: =IF($B57=0,"",RANK(AW57,AW$8:AW$87)+COUNTIF(AW$8:AW57,AW57)-1) -> 19 | AY57: 16 | AZ57: 69 | BA57: 50 | BB57: 1 | BC57: 50 | BD57: Tanzania | BE57: 35 | BG57: 75 | BH57: =IF($B57=0,"",RANK(BG57,BG$8:BG$87)+COUNTIF(BG$8:BG57,BG57)-1) -> 12 | BI57: 9 | BJ57: 29 | BK57: 45 | BL57: 1 | BM57: =45 | BN57: India | BO57: 25 | BQ57: 67.3 | BR57: =IF($B57=0,"",RANK(BQ57,BQ$8:BQ$87)+COUNTIF(BQ$8:BQ57,BQ57)-1) -> 21 | BS57: 21 | BT57: 44 | BU57: 49 | BV57: 1 | BW57: =49 | BX57: Mongolia | BY57: 51
A58: =tblCountries!A53 -> 51 | B58: =tblCountries!F53 -> 1 | C58: =tblCountries!C53 -> Panama | G58: 53.6 | H58: =IF($B58=0,"",RANK(G58,G$8:G$87)+COUNTIF(G$8:G58,G58)-1) -> 31 | I58: 31 | J58: 24 | K58: 51 | L58: 1 | M58: 51 | N58: Ghana | O58: 34.3 | R58: 51.2 | S58: =IF($B58=0,"",RANK(R58,R$8:R$87)+COUNTIF(R$8:R58,R58)-1) -> 25 | T58: 25 | U58: 29 | V58: 51 | W58: 1 | X58: 51 | Y58: India | Z58: 32.1 | AC58: 41.6 | AD58: =IF($B58=0,"",RANK(AC58,AC$8:AC$87)+COUNTIF(AC$8:AC58,AC58)-1) -> 42 | AE58: 41 | AF58: 18 | AG58: 51 | AH58: 1 | AI58: 51 | AJ58: Ecuador | AK58: 34.4 | AM58: 87.5 | AN58: =IF($B58=0,"",RANK(AM58,AM$8:AM$87)+COUNTIF(AM$8:AM58,AM58)-1) -> 12 | AO58: 6 | AP58: 34 | AQ58: 49 | AR58: 1 | AS58: =49 | AT58: Israel | AU58: 52.5 | AW58: 47.5 | AX58: =IF($B58=0,"",RANK(AW58,AW$8:AW$87)+COUNTIF(AW$8:AW58,AW58)-1) -> 40 | AY58: 38 | AZ58: 7 | BA58: 51 | BB58: 1 | BC58: =51 | BD58: Brazil | BE58: 33.8 | BG58: 32.5 | BH58: =IF($B58=0,"",RANK(BG58,BG$8:BG$87)+COUNTIF(BG$8:BG58,BG58)-1) -> 42 | BI58: 38 | BJ58: 38 | BK58: 45 | BL58: 1 | BM58: =45 | BN58: Kazakhstan | BO58: 25 | BQ58: 46.6 | BR58: =IF($B58=0,"",RANK(BQ58,BQ$8:BQ$87)+COUNTIF(BQ$8:BQ58,BQ58)-1) -> 55 | BS58: 55 | BT58: 30 | BU58: 51 | BV58: 1 | BW58: 51 | BX58: Indonesia | BY58: 48.4
A59: =tblCountries!A54 -> 52 | B59: =tblCountries!F54 -> 1 | C59: =tblCountries!C54 -> Peru | G59: 36 | H59: =IF($B59=0,"",RANK(G59,G$8:G$87)+COUNTIF(G$8:G59,G59)-1) -> 49 | I59: 49 | J59: 45 | K59: 52 | L59: 1 | M59: 52 | N59: Morocco | O59: 33.8 | R59: 33.2 | S59: =IF($B59=0,"",RANK(R59,R$8:R$87)+COUNTIF(R$8:R59,R59)-1) -> 49 | T59: 49 | U59: 70 | V59: 52 | W59: 1 | X59: 52 | Y59: Thailand | Z59: 32 | AC59: 22.5 | AD59: =IF($B59=0,"",RANK(AC59,AC$8:AC$87)+COUNTIF(AC$8:AC59,AC59)-1) -> 66 | AE59: 66 | AF59: 61 | AG59: 52 | AH59: 1 | AI59: 52 | AJ59: Slovakia | AK59: 34 | AM59: 50 | AN59: =IF($B59=0,"",RANK(AM59,AM$8:AM$87)+COUNTIF(AM$8:AM59,AM59)-1) -> 55 | AO59: 54 | AP59: 45 | AQ59: 49 | AR59: 1 | AS59: =49 | AT59: Morocco | AU59: 52.5 | AW59: 41.3 | AX59: =IF($B59=0,"",RANK(AW59,AW$8:AW$87)+COUNTIF(AW$8:AW59,AW59)-1) -> 43 | AY59: 43 | AZ59: 61 | BA59: 51 | BB59: 1 | BC59: =51 | BD59: Slovakia | BE59: 33.8 | BG59: 25 | BH59: =IF($B59=0,"",RANK(BG59,BG$8:BG$87)+COUNTIF(BG$8:BG59,BG59)-1) -> 59 | BI59: 45 | BJ59: 39 | BK59: 45 | BL59: 1 | BM59: =45 | BN59: Kenya | BO59: 25 | BQ59: 40.1 | BR59: =IF($B59=0,"",RANK(BQ59,BQ$8:BQ$87)+COUNTIF(BQ$8:BQ59,BQ59)-1) -> 67 | BS59: 67 | BT59: 45 | BU59: 52 | BV59: 1 | BW59: 52 | BX59: Morocco | BY59: 47.1
A60: =tblCountries!A55 -> 53 | B60: =tblCountries!F55 -> 1 | C60: =tblCountries!C55 -> Philippines | G60: 15.3 | H60: =IF($B60=0,"",RANK(G60,G$8:G$87)+COUNTIF(G$8:G60,G60)-1) -> 78 | I60: 78 | J60: 30 | K60: 53 | L60: 1 | M60: 53 | N60: Indonesia | O60: 33.6 | R60: 8.5 | S60: =IF($B60=0,"",RANK(R60,R$8:R$87)+COUNTIF(R$8:R60,R60)-1) -> 77 | T60: 77 | U60: 65 | V60: 53 | W60: 1 | X60: 53 | Y60: Sri Lanka | Z60: 31 | AC60: 12.8 | AD60: =IF($B60=0,"",RANK(AC60,AC$8:AC$87)+COUNTIF(AC$8:AC60,AC60)-1) -> 75 | AE60: 75 | AF60: 12 | AG60: 53 | AH60: 1 | AI60: 53 | AJ60: Colombia | AK60: 33.8 | AM60: 27.5 | AN60: =IF($B60=0,"",RANK(AM60,AM$8:AM$87)+COUNTIF(AM$8:AM60,AM60)-1) -> 76 | AO60: 74 | AP60: 65 | AQ60: 49 | AR60: 1 | AS60: =49 | AT60: Sri Lanka | AU60: 52.5 | AW60: 10 | AX60: =IF($B60=0,"",RANK(AW60,AW$8:AW$87)+COUNTIF(AW$8:AW60,AW60)-1) -> 76 | AY60: 76 | AZ60: 76 | BA60: 51 | BB60: 1 | BC60: =51 | BD60: Uruguay | BE60: 33.8 | BG60: 25 | BH60: =IF($B60=0,"",RANK(BG60,BG$8:BG$87)+COUNTIF(BG$8:BG60,BG60)-1) -> 60 | BI60: 45 | BJ60: 40 | BK60: 45 | BL60: 1 | BM60: =45 | BN60: Lithuania | BO60: 25 | BQ60: 36.2 | BR60: =IF($B60=0,"",RANK(BQ60,BQ$8:BQ$87)+COUNTIF(BQ$8:BQ60,BQ60)-1) -> 68 | BS60: 68 | BT60: 70 | BU60: 53 | BV60: 1 | BW60: 53 | BX60: Thailand | BY60: 47
A61: =tblCountries!A56 -> 54 | B61: =tblCountries!F56 -> 1 | C61: =tblCountries!C56 -> Poland | G61: 58.7 | H61: =IF($B61=0,"",RANK(G61,G$8:G$87)+COUNTIF(G$8:G61,G61)-1) -> 26 | I61: 26 | J61: 69 | K61: 54 | L61: 1 | M61: 54 | N61: Tanzania | O61: 33.4 | R61: 42.2 | S61: =IF($B61=0,"",RANK(R61,R$8:R$87)+COUNTIF(R$8:R61,R61)-1) -> 31 | T61: 31 | U61: 30 | V61: 54 | W61: 1 | X61: 54 | Y61: Indonesia | Z61: 30.9 | AC61: 49.4 | AD61: =IF($B61=0,"",RANK(AC61,AC$8:AC$87)+COUNTIF(AC$8:AC61,AC61)-1) -> 31 | AE61: 30 | AF61: 57 | AG61: 54 | AH61: 1 | AI61: 54 | AJ61: Romania | AK61: 31.3 | AM61: 62.5 | AN61: =IF($B61=0,"",RANK(AM61,AM$8:AM$87)+COUNTIF(AM$8:AM61,AM61)-1) -> 40 | AO61: 40 | AP61: 24 | AQ61: 54 | AR61: 1 | AS61: =54 | AT61: Ghana | AU61: 50 | AW61: 73.8 | AX61: =IF($B61=0,"",RANK(AW61,AW$8:AW$87)+COUNTIF(AW$8:AW61,AW61)-1) -> 27 | AY61: 27 | AZ61: 43 | BA61: 54 | BB61: 1 | BC61: 54 | BD61: Mexico | BE61: 31.3 | BG61: 57.5 | BH61: =IF($B61=0,"",RANK(BG61,BG$8:BG$87)+COUNTIF(BG$8:BG61,BG61)-1) -> 19 | BI61: 15 | BJ61: 41 | BK61: 45 | BL61: 1 | BM61: =45 | BN61: Malawi | BO61: 25 | BQ61: 68.9 | BR61: =IF($B61=0,"",RANK(BQ61,BQ$8:BQ$87)+COUNTIF(BQ$8:BQ61,BQ61)-1) -> 16 | BS61: 16 | BT61: 18 | BU61: 54 | BV61: 1 | BW61: 54 | BX61: Ecuador | BY61: 46.8
A62: =tblCountries!A57 -> 55 | B62: =tblCountries!F57 -> 1 | C62: =tblCountries!C57 -> Portugal | G62: 60.8 | H62: =IF($B62=0,"",RANK(G62,G$8:G$87)+COUNTIF(G$8:G62,G62)-1) -> 24 | I62: 24 | J62: 61 | K62: 55 | L62: 1 | M62: 55 | N62: Slovakia | O62: 33.2 | R62: 41.4 | S62: =IF($B62=0,"",RANK(R62,R$8:R$87)+COUNTIF(R$8:R62,R62)-1) -> 33 | T62: 33 | U62: 40 | V62: 55 | W62: 1 | X62: 55 | Y62: Lithuania | Z62: 30.1 | AC62: 42.3 | AD62: =IF($B62=0,"",RANK(AC62,AC$8:AC$87)+COUNTIF(AC$8:AC62,AC62)-1) -> 37 | AE62: 37 | AF62: 58 | AG62: 55 | AH62: 1 | AI62: 55 | AJ62: Russia | AK62: 31 | AM62: 75 | AN62: =IF($B62=0,"",RANK(AM62,AM$8:AM$87)+COUNTIF(AM$8:AM62,AM62)-1) -> 27 | AO62: 25 | AP62: 52 | AQ62: 54 | AR62: 1 | AS62: =54 | AT62: Peru | AU62: 50 | AW62: 80 | AX62: =IF($B62=0,"",RANK(AW62,AW$8:AW$87)+COUNTIF(AW$8:AW62,AW62)-1) -> 23 | AY62: 22 | AZ62: 39 | BA62: 55 | BB62: 1 | BC62: =55 | BD62: Kenya | BE62: 30 | BG62: 50 | BH62: =IF($B62=0,"",RANK(BG62,BG$8:BG$87)+COUNTIF(BG$8:BG62,BG62)-1) -> 24 | BI62: 22 | BJ62: 42 | BK62: 45 | BL62: 1 | BM62: =45 | BN62: Malaysia | BO62: 25 | BQ62: 65.5 | BR62: =IF($B62=0,"",RANK(BQ62,BQ$8:BQ$87)+COUNTIF(BQ$8:BQ62,BQ62)-1) -> 25 | BS62: 25 | BT62: 51 | BU62: 55 | BV62: 1 | BW62: =55 | BX62: Panama | BY62: 46.6
A63: =tblCountries!A58 -> 56 | B63: =tblCountries!F58 -> 1 | C63: =tblCountries!C58 -> Puerto Rico | G63: 40 | H63: =IF($B63=0,"",RANK(G63,G$8:G$87)+COUNTIF(G$8:G63,G63)-1) -> 46 | I63: 46 | J63: 19 | K63: 56 | L63: 1 | M63: =56 | N63: Egypt | O63: 32.9 | R63: 44.6 | S63: =IF($B63=0,"",RANK(R63,R$8:R$87)+COUNTIF(R$8:R63,R63)-1) -> 30 | T63: 30 | U63: 80 | V63: 56 | W63: 1 | X63: 56 | Y63: Zimbabwe | Z63: 28.1 | AC63: 23 | AD63: =IF($B63=0,"",RANK(AC63,AC$8:AC$87)+COUNTIF(AC$8:AC63,AC63)-1) -> 65 | AE63: 65 | AF63: 65 | AG63: 56 | AH63: 1 | AI63: 56 | AJ63: Sri Lanka | AK63: 30 | AM63: 45 | AN63: =IF($B63=0,"",RANK(AM63,AM$8:AM$87)+COUNTIF(AM$8:AM63,AM63)-1) -> 57 | AO63: 57 | AP63: 31 | AQ63: 56 | AR63: 1 | AS63: 56 | AT63: Iran | AU63: 47.5 | AW63: 50 | AX63: =IF($B63=0,"",RANK(AW63,AW$8:AW$87)+COUNTIF(AW$8:AW63,AW63)-1) -> 37 | AY63: 37 | AZ63: 45 | BA63: 55 | BB63: 1 | BC63: =55 | BD63: Morocco | BE63: 30 | BG63: 25 | BH63: =IF($B63=0,"",RANK(BG63,BG$8:BG$87)+COUNTIF(BG$8:BG63,BG63)-1) -> 61 | BI63: 45 | BJ63: 43 | BK63: 45 | BL63: 1 | BM63: =45 | BN63: Mexico | BO63: 25 | BQ63: 33.9 | BR63: =IF($B63=0,"",RANK(BQ63,BQ$8:BQ$87)+COUNTIF(BQ$8:BQ63,BQ63)-1) -> 70 | BS63: 70 | BT63: 59 | BU63: 55 | BV63: 1 | BW63: =55 | BX63: Saudi Arabia | BY63: 46.6
A64: =tblCountries!A59 -> 57 | B64: =tblCountries!F59 -> 1 | C64: =tblCountries!C59 -> Romania | G64: 28.3 | H64: =IF($B64=0,"",RANK(G64,G$8:G$87)+COUNTIF(G$8:G64,G64)-1) -> 64 | I64: 64 | J64: 25 | K64: 56 | L64: 1 | M64: =56 | N64: Greece | O64: 32.9 | R64: 9.6 | S64: =IF($B64=0,"",RANK(R64,R$8:R$87)+COUNTIF(R$8:R64,R64)-1) -> 76 | T64: 76 | U64: 28 | V64: 57 | W64: 1 | X64: 57 | Y64: Hungary | Z64: 27.6 | AC64: 31.3 | AD64: =IF($B64=0,"",RANK(AC64,AC$8:AC$87)+COUNTIF(AC$8:AC64,AC64)-1) -> 54 | AE64: 54 | AF64: 71 | AG64: 57 | AH64: 1 | AI64: 57 | AJ64: Turkey | AK64: 28.8 | AM64: 37.5 | AN64: =IF($B64=0,"",RANK(AM64,AM$8:AM$87)+COUNTIF(AM$8:AM64,AM64)-1) -> 67 | AO64: 65 | AP64: 56 | AQ64: 57 | AR64: 1 | AS64: 57 | AT64: Puerto Rico | AU64: 45 | AW64: 36.3 | AX64: =IF($B64=0,"",RANK(AW64,AW$8:AW$87)+COUNTIF(AW$8:AW64,AW64)-1) -> 48 | AY64: 48 | AZ64: 58 | BA64: 55 | BB64: 1 | BC64: =55 | BD64: Russia | BE64: 30 | BG64: 17.5 | BH64: =IF($B64=0,"",RANK(BG64,BG$8:BG$87)+COUNTIF(BG$8:BG64,BG64)-1) -> 73 | BI64: 66 | BJ64: 45 | BK64: 45 | BL64: 1 | BM64: =45 | BN64: Morocco | BO64: 25 | BQ64: 61 | BR64: =IF($B64=0,"",RANK(BQ64,BQ$8:BQ$87)+COUNTIF(BQ$8:BQ64,BQ64)-1) -> 35 | BS64: 35 | BT64: 19 | BU64: 57 | BV64: 1 | BW64: 57 | BX64: Egypt | BY64: 46.4
A65: =tblCountries!A60 -> 58 | B65: =tblCountries!F60 -> 1 | C65: =tblCountries!C60 -> Russia | G65: 37.2 | H65: =IF($B65=0,"",RANK(G65,G$8:G$87)+COUNTIF(G$8:G65,G65)-1) -> 48 | I65: 48 | J65: 78 | K65: 58 | L65: 1 | M65: 58 | N65: Vietnam | O65: 31.9 | R65: 37.4 | S65: =IF($B65=0,"",RANK(R65,R$8:R$87)+COUNTIF(R$8:R65,R65)-1) -> 40 | T65: 40 | U65: 25 | V65: 58 | W65: 1 | X65: 58 | Y65: Greece | Z65: 26.7 | AC65: 31 | AD65: =IF($B65=0,"",RANK(AC65,AC$8:AC$87)+COUNTIF(AC$8:AC65,AC65)-1) -> 55 | AE65: 55 | AF65: 49 | AG65: 58 | AH65: 1 | AI65: 58 | AJ65: Nigeria | AK65: 27.9 | AM65: 60 | AN65: =IF($B65=0,"",RANK(AM65,AM$8:AM$87)+COUNTIF(AM$8:AM65,AM65)-1) -> 43 | AO65: 42 | AP65: 20 | AQ65: 58 | AR65: 1 | AS65: =58 | AT65: Ethiopia | AU65: 42.5 | AW65: 30 | AX65: =IF($B65=0,"",RANK(AW65,AW$8:AW$87)+COUNTIF(AW$8:AW65,AW65)-1) -> 57 | AY65: 55 | AZ65: 24 | BA65: 58 | BB65: 1 | BC65: 58 | BD65: Ghana | BE65: 28.8 | BG65: 25 | BH65: =IF($B65=0,"",RANK(BG65,BG$8:BG$87)+COUNTIF(BG$8:BG65,BG65)-1) -> 62 | BI65: 45 | BJ65: 49 | BK65: 45 | BL65: 1 | BM65: =45 | BN65: Nigeria | BO65: 25 | BQ65: 55.9 | BR65: =IF($B65=0,"",RANK(BQ65,BQ$8:BQ$87)+COUNTIF(BQ$8:BQ65,BQ65)-1) -> 43 | BS65: 43 | BT65: 79 | BU65: 58 | BV65: 1 | BW65: 58 | BX65: Zambia | BY65: 46
A66: =tblCountries!A61 -> 59 | B66: =tblCountries!F61 -> 1 | C66: =tblCountries!C61 -> Saudi Arabia | G66: 30.8 | H66: =IF($B66=0,"",RANK(G66,G$8:G$87)+COUNTIF(G$8:G66,G66)-1) -> 60 | I66: 60 | J66: 80 | K66: 59 | L66: 1 | M66: 59 | N66: Zimbabwe | O66: 31.3 | R66: 21.2 | S66: =IF($B66=0,"",RANK(R66,R$8:R$87)+COUNTIF(R$8:R66,R66)-1) -> 68 | T66: 68 | U66: 1 | V66: 59 | W66: 1 | X66: 59 | Y66: Argentina | Z66: 25.8 | AC66: 35.4 | AD66: =IF($B66=0,"",RANK(AC66,AC$8:AC$87)+COUNTIF(AC$8:AC66,AC66)-1) -> 49 | AE66: 49 | AF66: 62 | AG66: 59 | AH66: 1 | AI66: 59 | AJ66: South Africa | AK66: 27.5 | AM66: 70 | AN66: =IF($B66=0,"",RANK(AM66,AM$8:AM$87)+COUNTIF(AM$8:AM66,AM66)-1) -> 34 | AO66: 30 | AP66: 46 | AQ66: 58 | AR66: 1 | AS66: =58 | AT66: Myanmar | AU66: 42.5 | AW66: 12.5 | AX66: =IF($B66=0,"",RANK(AW66,AW$8:AW$87)+COUNTIF(AW$8:AW66,AW66)-1) -> 74 | AY66: 74 | AZ66: 20 | BA66: 59 | BB66: 1 | BC66: =59 | BD66: Ethiopia | BE66: 26.3 | BG66: 17.5 | BH66: =IF($B66=0,"",RANK(BG66,BG$8:BG$87)+COUNTIF(BG$8:BG66,BG66)-1) -> 74 | BI66: 66 | BJ66: 52 | BK66: 45 | BL66: 1 | BM66: =45 | BN66: Peru | BO66: 25 | BQ66: 46.6 | BR66: =IF($B66=0,"",RANK(BQ66,BQ$8:BQ$87)+COUNTIF(BQ$8:BQ66,BQ66)-1) -> 56 | BS66: 55 | BT66: 42 | BU66: 59 | BV66: 1 | BW66: 59 | BX66: Malaysia | BY66: 45.9
A67: =tblCountries!A62 -> 60 | B67: =tblCountries!F62 -> 1 | C67: =tblCountries!C62 -> Singapore | G67: 77.6 | H67: =IF($B67=0,"",RANK(G67,G$8:G$87)+COUNTIF(G$8:G67,G67)-1) -> 12 | I67: 12 | J67: 59 | K67: 60 | L67: 1 | M67: 60 | N67: Saudi Arabia | O67: 30.8 | R67: 66.4 | S67: =IF($B67=0,"",RANK(R67,R$8:R$87)+COUNTIF(R$8:R67,R67)-1) -> 12 | T67: 12 | U67: 15 | V67: 60 | W67: 1 | X67: 60 | Y67: Czech Republic | Z67: 24.5 | AC67: 74 | AD67: =IF($B67=0,"",RANK(AC67,AC$8:AC$87)+COUNTIF(AC$8:AC67,AC67)-1) -> 8 | AE67: 8 | AF67: 38 | AG67: 60 | AH67: 1 | AI67: 60 | AJ67: Kazakhstan | AK67: 27 | AM67: 87.5 | AN67: =IF($B67=0,"",RANK(AM67,AM$8:AM$87)+COUNTIF(AM$8:AM67,AM67)-1) -> 13 | AO67: 6 | AP67: 12 | AQ67: 60 | AR67: 1 | AS67: =60 | AT67: Colombia | AU67: 40 | AW67: 90 | AX67: =IF($B67=0,"",RANK(AW67,AW$8:AW$87)+COUNTIF(AW$8:AW67,AW67)-1) -> 9 | AY67: 8 | AZ67: 29 | BA67: 59 | BB67: 1 | BC67: =59 | BD67: India | BE67: 26.3 | BG67: 50 | BH67: =IF($B67=0,"",RANK(BG67,BG$8:BG$87)+COUNTIF(BG$8:BG67,BG67)-1) -> 25 | BI67: 22 | BJ67: 53 | BK67: 45 | BL67: 1 | BM67: =45 | BN67: Philippines | BO67: 25 | BQ67: 65.7 | BR67: =IF($B67=0,"",RANK(BQ67,BQ$8:BQ$87)+COUNTIF(BQ$8:BQ67,BQ67)-1) -> 23 | BS67: 23 | BT67: 12 | BU67: 60 | BV67: 1 | BW67: 60 | BX67: Colombia | BY67: 45.1
A68: =tblCountries!A63 -> 61 | B68: =tblCountries!F63 -> 1 | C68: =tblCountries!C63 -> Slovakia | G68: 33.2 | H68: =IF($B68=0,"",RANK(G68,G$8:G$87)+COUNTIF(G$8:G68,G68)-1) -> 55 | I68: 55 | J68: 79 | K68: 61 | L68: 1 | M68: 61 | N68: Zambia | O68: 30.3 | R68: 22.5 | S68: =IF($B68=0,"",RANK(R68,R$8:R$87)+COUNTIF(R$8:R68,R68)-1) -> 64 | T68: 63 | U68: 73 | V68: 61 | W68: 1 | X68: 61 | Y68: Ukraine | Z68: 23.7 | AC68: 34 | AD68: =IF($B68=0,"",RANK(AC68,AC$8:AC$87)+COUNTIF(AC$8:AC68,AC68)-1) -> 52 | AE68: 52 | AF68: 25 | AG68: 61 | AH68: 1 | AI68: 61 | AJ68: Greece | AK68: 25.9 | AM68: 37.5 | AN68: =IF($B68=0,"",RANK(AM68,AM$8:AM$87)+COUNTIF(AM$8:AM68,AM68)-1) -> 68 | AO68: 65 | AP68: 32 | AQ68: 60 | AR68: 1 | AS68: =60 | AT68: Iraq | AU68: 40 | AW68: 33.8 | AX68: =IF($B68=0,"",RANK(AW68,AW$8:AW$87)+COUNTIF(AW$8:AW68,AW68)-1) -> 52 | AY68: 51 | AZ68: 38 | BA68: 59 | BB68: 1 | BC68: =59 | BD68: Kazakhstan | BE68: 26.3 | BG68: 42.5 | BH68: =IF($B68=0,"",RANK(BG68,BG$8:BG$87)+COUNTIF(BG$8:BG68,BG68)-1) -> 30 | BI68: 27 | BJ68: 56 | BK68: 45 | BL68: 1 | BM68: =45 | BN68: Puerto Rico | BO68: 25 | BQ68: 63.2 | BR68: =IF($B68=0,"",RANK(BQ68,BQ$8:BQ$87)+COUNTIF(BQ$8:BQ68,BQ68)-1) -> 32 | BS68: 32 | BT68: 7 | BU68: 61 | BV68: 1 | BW68: 61 | BX68: Brazil | BY68: 44.7
A69: =tblCountries!A64 -> 62 | B69: =tblCountries!F64 -> 1 | C69: =tblCountries!C64 -> South Africa | G69: 48.5 | H69: =IF($B69=0,"",RANK(G69,G$8:G$87)+COUNTIF(G$8:G69,G69)-1) -> 34 | I69: 34 | J69: 8 | K69: 62 | L69: 1 | M69: 62 | N69: Bulgaria | O69: 30.1 | R69: 41.7 | S69: =IF($B69=0,"",RANK(R69,R$8:R$87)+COUNTIF(R$8:R69,R69)-1) -> 32 | T69: 32 | U69: 12 | V69: 62 | W69: 1 | X69: 62 | Y69: Colombia | Z69: 22.7 | AC69: 27.5 | AD69: =IF($B69=0,"",RANK(AC69,AC$8:AC$87)+COUNTIF(AC$8:AC69,AC69)-1) -> 59 | AE69: 59 | AF69: 80 | AG69: 62 | AH69: 1 | AI69: 62 | AJ69: Zimbabwe | AK69: 25.8 | AM69: 57.5 | AN69: =IF($B69=0,"",RANK(AM69,AM$8:AM$87)+COUNTIF(AM$8:AM69,AM69)-1) -> 46 | AO69: 44 | AP69: 39 | AQ69: 60 | AR69: 1 | AS69: =60 | AT69: Kenya | AU69: 40 | AW69: 63.8 | AX69: =IF($B69=0,"",RANK(AW69,AW$8:AW$87)+COUNTIF(AW$8:AW69,AW69)-1) -> 31 | AY69: 31 | AZ69: 78 | BA69: 59 | BB69: 1 | BC69: =59 | BD69: Vietnam | BE69: 26.3 | BG69: 40 | BH69: =IF($B69=0,"",RANK(BG69,BG$8:BG$87)+COUNTIF(BG$8:BG69,BG69)-1) -> 34 | BI69: 33 | BJ69: 58 | BK69: 45 | BL69: 1 | BM69: =45 | BN69: Russia | BO69: 25 | BQ69: 59.9 | BR69: =IF($B69=0,"",RANK(BQ69,BQ$8:BQ$87)+COUNTIF(BQ$8:BQ69,BQ69)-1) -> 37 | BS69: 37 | BT69: 31 | BU69: 62 | BV69: 1 | BW69: =62 | BX69: Iran | BY69: 44.6
A70: =tblCountries!A65 -> 63 | B70: =tblCountries!F65 -> 1 | C70: =tblCountries!C65 -> South Korea | G70: 73.7 | H70: =IF($B70=0,"",RANK(G70,G$8:G$87)+COUNTIF(G$8:G70,G70)-1) -> 18 | I70: 18 | J70: 39 | K70: 63 | L70: 1 | M70: 63 | N70: Kenya | O70: 30 | R70: 55.5 | S70: =IF($B70=0,"",RANK(R70,R$8:R$87)+COUNTIF(R$8:R70,R70)-1) -> 20 | T70: 20 | U70: 31 | V70: 63 | W70: 1 | X70: =63 | Y70: Iran | Z70: 22.5 | AC70: 71.2 | AD70: =IF($B70=0,"",RANK(AC70,AC$8:AC$87)+COUNTIF(AC$8:AC70,AC70)-1) -> 13 | AE70: 13 | AF70: 69 | AG70: 63 | AH70: 1 | AI70: 63 | AJ70: Tanzania | AK70: 25.1 | AM70: 87.5 | AN70: =IF($B70=0,"",RANK(AM70,AM$8:AM$87)+COUNTIF(AM$8:AM70,AM70)-1) -> 14 | AO70: 6 | AP70: 41 | AQ70: 60 | AR70: 1 | AS70: =60 | AT70: Malawi | AU70: 40 | AW70: 81.3 | AX70: =IF($B70=0,"",RANK(AW70,AW$8:AW$87)+COUNTIF(AW$8:AW70,AW70)-1) -> 21 | AY70: 20 | AZ70: 25 | BA70: 63 | BB70: 1 | BC70: 63 | BD70: Greece | BE70: 23.8 | BG70: 65 | BH70: =IF($B70=0,"",RANK(BG70,BG$8:BG$87)+COUNTIF(BG$8:BG70,BG70)-1) -> 14 | BI70: 14 | BJ70: 65 | BK70: 45 | BL70: 1 | BM70: =45 | BN70: Sri Lanka | BO70: 25 | BQ70: 65.6 | BR70: =IF($B70=0,"",RANK(BQ70,BQ$8:BQ$87)+COUNTIF(BQ$8:BQ70,BQ70)-1) -> 24 | BS70: 24 | BT70: 43 | BU70: 62 | BV70: 1 | BW70: =62 | BX70: Mexico | BY70: 44.6
A71: =tblCountries!A66 -> 64 | B71: =tblCountries!F66 -> 1 | C71: =tblCountries!C66 -> Spain | G71: 63.4 | H71: =IF($B71=0,"",RANK(G71,G$8:G$87)+COUNTIF(G$8:G71,G71)-1) -> 23 | I71: 23 | J71: 57 | K71: 64 | L71: 1 | M71: 64 | N71: Romania | O71: 28.3 | R71: 61.2 | S71: =IF($B71=0,"",RANK(R71,R$8:R$87)+COUNTIF(R$8:R71,R71)-1) -> 15 | T71: 15 | U71: 61 | V71: 63 | W71: 1 | X71: =63 | Y71: Slovakia | Z71: 22.5 | AC71: 42.6 | AD71: =IF($B71=0,"",RANK(AC71,AC$8:AC$87)+COUNTIF(AC$8:AC71,AC71)-1) -> 36 | AE71: 36 | AF71: 17 | AG71: 64 | AH71: 1 | AI71: 64 | AJ71: Dominican Republic | AK71: 24.4 | AM71: 75 | AN71: =IF($B71=0,"",RANK(AM71,AM$8:AM$87)+COUNTIF(AM$8:AM71,AM71)-1) -> 28 | AO71: 25 | AP71: 69 | AQ71: 60 | AR71: 1 | AS71: =60 | AT71: Tanzania | AU71: 40 | AW71: 78.8 | AX71: =IF($B71=0,"",RANK(AW71,AW$8:AW$87)+COUNTIF(AW$8:AW71,AW71)-1) -> 24 | AY71: 24 | AZ71: 26 | BA71: 64 | BB71: 1 | BC71: =64 | BD71: Guatemala | BE71: 21.3 | BG71: 40 | BH71: =IF($B71=0,"",RANK(BG71,BG$8:BG$87)+COUNTIF(BG$8:BG71,BG71)-1) -> 35 | BI71: 33 | BJ71: 70 | BK71: 45 | BL71: 1 | BM71: =45 | BN71: Thailand | BO71: 25 | BQ71: 68.1 | BR71: =IF($B71=0,"",RANK(BQ71,BQ$8:BQ$87)+COUNTIF(BQ$8:BQ71,BQ71)-1) -> 18 | BS71: 18 | BT71: 41 | BU71: 64 | BV71: 1 | BW71: 64 | BX71: Malawi | BY71: 44.4
A72: =tblCountries!A67 -> 65 | B72: =tblCountries!F67 -> 1 | C72: =tblCountries!C67 -> Sri Lanka | G72: =IF($B72=0,"",INDEX(aRoundedScores,L$5,$A72)) -> 27.1 | H72: =IF($B72=0,"",RANK(G72,G$8:G$87)+COUNTIF(G$8:G72,G72)-1) -> 65 | I72: 65 | J72: 65 | K72: 65 | L72: 1 | M72: 65 | N72: Sri Lanka | O72: 27.1 | R72: =IF($B72=0,"",INDEX(aRoundedScores,W$5,$A72)) -> 31 | S72: =IF($B72=0,"",RANK(R72,R$8:R$87)+COUNTIF(R$8:R72,R72)-1) -> 53 | T72: 53 | U72: 45 | V72: 65 | W72: 1 | X72: 65 | Y72: Morocco | Z72: 22.2 | AC72: =IF($B72=0,"",INDEX(aRoundedScores,AH$5,$A72)) -> 30 | AD72: =IF($B72=0,"",RANK(AC72,AC$8:AC$87)+COUNTIF(AC$8:AC72,AC72)-1) -> 56 | AE72: 56 | AF72: 56 | AG72: 65 | AH72: 1 | AI72: 65 | AJ72: Puerto Rico | AK72: 23 | AM72: =IF($B72=0,"",INDEX(aRoundedScores,AS$5,$A72)) -> 52.5 | AN72: =IF($B72=0,"",RANK(AM72,AM$8:AM$87)+COUNTIF(AM$8:AM72,AM72)-1) -> 53 | AO72: 49 | AP72: 11 | AQ72: 65 | AR72: 1 | AS72: =65 | AT72: China | AU72: 37.5 | AW72: =IF($B72=0,"",INDEX(aRoundedScores,BC$5,$A72)) -> 6.3 | AX72: =IF($B72=0,"",RANK(AW72,AW$8:AW$87)+COUNTIF(AW$8:AW72,AW72)-1) -> 79 | AY72: 78 | AZ72: 77 | BA72: 64 | BB72: 1 | BC72: =64 | BD72: Venezuela | BE72: 21.3 | BG72: =IF($B72=0,"",INDEX(aRoundedScores,BM$5,$A72)) -> 25 | BH72: =IF($B72=0,"",RANK(BG72,BG$8:BG$87)+COUNTIF(BG$8:BG72,BG72)-1) -> 63 | BI72: 45 | BJ72: 76 | BK72: 45 | BL72: 1 | BM72: =45 | BN72: Uruguay | BO72: 25 | BQ72: =IF($B72=0,"",INDEX(aRoundedScores,BW$5,$A72)) -> 40.8 | BR72: =IF($B72=0,"",RANK(BQ72,BQ$8:BQ$87)+COUNTIF(BQ$8:BQ72,BQ72)-1) -> 66 | BS72: 66 | BT72: 77 | BU72: 65 | BV72: 1 | BW72: 65 | BX72: Venezuela | BY72: 43.1
A73: =tblCountries!A68 -> 66 | B73: =tblCountries!F68 -> 1 | C73: =tblCountries!C68 -> Sweden | G73: 75.4 | H73: =IF($B73=0,"",RANK(G73,G$8:G$87)+COUNTIF(G$8:G73,G73)-1) -> 16 | I73: =IF($B73=0,"",RANK(G73,G$8:G$87)) -> 16 | J73: =MATCH($A73,H$8:H$87,0) -> 41 | K73: =IF(ISNUMBER(J73),INDEX(I$8:I$87,J73),"") -> 66 | L73: =IF(ISNUMBER(K73),INDEX($B$8:$B$87,J73),0) -> 1 | M73: =IF(L73=0,"",CONCATENATE(IF(OR(K73=K72,K73=K74),"=",""),K73)) -> 66 | N73: =IF(L73=0,"",INDEX($C$8:$C$87,J73)) -> Malawi | O73: =IF(L73=0,"",INDEX(G$8:G$87,J73)) -> 27 | R73: 50.5 | S73: =IF($B73=0,"",RANK(R73,R$8:R$87)+COUNTIF(R$8:R73,R73)-1) -> 27 | T73: =IF($B73=0,"",RANK(R73,R$8:R$87)) -> 26 | U73: =MATCH($A73,S$8:S$87,0) -> 49 | V73: =IF(ISNUMBER(U73),INDEX(T$8:T$87,U73),"") -> 66 | W73: =IF(ISNUMBER(V73),INDEX($B$8:$B$87,U73),0) -> 1 | X73: =IF(W73=0,"",CONCATENATE(IF(OR(V73=V72,V73=V74),"=",""),V73)) -> 66 | Y73: =IF(W73=0,"",INDEX($C$8:$C$87,U73)) -> Nigeria | Z73: =IF(W73=0,"",INDEX(R$8:R$87,U73)) -> 21.8 | AC73: 71.6 | AD73: =IF($B73=0,"",RANK(AC73,AC$8:AC$87)+COUNTIF(AC$8:AC73,AC73)-1) -> 11 | AE73: =IF($B73=0,"",RANK(AC73,AC$8:AC$87)) -> 10 | AF73: =MATCH($A73,AD$8:AD$87,0) -> 52 | AG73: =IF(ISNUMBER(AF73),INDEX(AE$8:AE$87,AF73),"") -> 66 | AH73: =IF(ISNUMBER(AG73),INDEX($B$8:$B$87,AF73),0) -> 1 | AI73: =IF(AH73=0,"",CONCATENATE(IF(OR(AG73=AG72,AG73=AG74),"=",""),AG73)) -> 66 | AJ73: =IF(AH73=0,"",INDEX($C$8:$C$87,AF73)) -> Peru | AK73: =IF(AH73=0,"",INDEX(AC$8:AC$87,AF73)) -> 22.5 | AM73: 87.5 | AN73: =IF($B73=0,"",RANK(AM73,AM$8:AM$87)+COUNTIF(AM$8:AM73,AM73)-1) -> 15 | AO73: =IF($B73=0,"",RANK(AM73,AM$8:AM$87)) -> 6 | AP73: =MATCH($A73,AN$8:AN$87,0) -> 30 | AQ73: =IF(ISNUMBER(AP73),INDEX(AO$8:AO$87,AP73),"") -> 65 | AR73: =IF(ISNUMBER(AQ73),INDEX($B$8:$B$87,AP73),0) -> 1 | AS73: =IF(AR73=0,"",CONCATENATE(IF(OR(AQ73=AQ72,AQ73=AQ74),"=",""),AQ73)) -> =65 | AT73: =IF(AR73=0,"",INDEX($C$8:$C$87,AP73)) -> Indonesia | AU73: =IF(AR73=0,"",INDEX(AM$8:AM$87,AP73)) -> 37.5 | AW73: 97.5 | AX73: =IF($B73=0,"",RANK(AW73,AW$8:AW$87)+COUNTIF(AW$8:AW73,AW73)-1) -> 2 | AY73: =IF($B73=0,"",RANK(AW73,AW$8:AW$87)) -> 2 | AZ73: =MATCH($A73,AX$8:AX$87,0) -> 73 | BA73: =IF(ISNUMBER(AZ73),INDEX(AY$8:AY$87,AZ73),"") -> 66 | BB73: =IF(ISNUMBER(BA73),INDEX($B$8:$B$87,AZ73),0) -> 1 | BC73: =IF(BB73=0,"",CONCATENATE(IF(OR(BA73=BA72,BA73=BA74),"=",""),BA73)) -> 66 | BD73: =IF(BB73=0,"",INDEX($C$8:$C$87,AZ73)) -> Ukraine | BE73: =IF(BB73=0,"",INDEX(AW$8:AW$87,AZ73)) -> 20 | BG73: 42.5 | BH73: =IF($B73=0,"",RANK(BG73,BG$8:BG$87)+COUNTIF(BG$8:BG73,BG73)-1) -> 31 | BI73: =IF($B73=0,"",RANK(BG73,BG$8:BG$87)) -> 27 | BJ73: =MATCH($A73,BH$8:BH$87,0) -> 4 | BK73: =IF(ISNUMBER(BJ73),INDEX(BI$8:BI$87,BJ73),"") -> 66 | BL73: =IF(ISNUMBER(BK73),INDEX($B$8:$B$87,BJ73),0) -> 1 | BM73: =IF(BL73=0,"",CONCATENATE(IF(OR(BK73=BK72,BK73=BK74),"=",""),BK73)) -> =66 | BN73: =IF(BL73=0,"",INDEX($C$8:$C$87,BJ73)) -> Bangladesh | BO73: =IF(BL73=0,"",INDEX(BG$8:BG$87,BJ73)) -> 17.5 | BQ73: 68.7 | BR73: =IF($B73=0,"",RANK(BQ73,BQ$8:BQ$87)+COUNTIF(BQ$8:BQ73,BQ73)-1) -> 17 | BS73: =IF($B73=0,"",RANK(BQ73,BQ$8:BQ$87)) -> 17 | BT73: =MATCH($A73,BR$8:BR$87,0) -> 65 | BU73: =IF(ISNUMBER(BT73),INDEX(BS$8:BS$87,BT73),"") -> 66 | BV73: =IF(ISNUMBER(BU73),INDEX($B$8:$B$87,BT73),0) -> 1 | BW73: =IF(BV73=0,"",CONCATENATE(IF(OR(BU73=BU72,BU73=BU74),"=",""),BU73)) -> 66 | BX73: =IF(BV73=0,"",INDEX($C$8:$C$87,BT73)) -> Sri Lanka | BY73: =IF(BV73=0,"",INDEX(BQ$8:BQ$87,BT73)) -> 40.8
A74: =tblCountries!A69 -> 67 | B74: =tblCountries!F69 -> 1 | C74: =tblCountries!C69 -> Switzerland | G74: 76.1 | H74: =IF($B74=0,"",RANK(G74,G$8:G$87)+COUNTIF(G$8:G74,G74)-1) -> 15 | I74: 15 | J74: 29 | K74: 67 | L74: 1 | M74: 67 | N74: India | O74: 26.8 | R74: 64.8 | S74: =IF($B74=0,"",RANK(R74,R$8:R$87)+COUNTIF(R$8:R74,R74)-1) -> 13 | T74: 13 | U74: 6 | V74: 67 | W74: 1 | X74: 67 | Y74: Botswana | Z74: 21.5 | AC74: 69.4 | AD74: =IF($B74=0,"",RANK(AC74,AC$8:AC$87)+COUNTIF(AC$8:AC74,AC74)-1) -> 15 | AE74: 15 | AF74: 29 | AG74: 67 | AH74: 1 | AI74: 67 | AJ74: India | AK74: 22.3 | AM74: 82.5 | AN74: =IF($B74=0,"",RANK(AM74,AM$8:AM$87)+COUNTIF(AM$8:AM74,AM74)-1) -> 20 | AO74: 18 | AP74: 57 | AQ74: 65 | AR74: 1 | AS74: =65 | AT74: Romania | AU74: 37.5 | AW74: 90 | AX74: =IF($B74=0,"",RANK(AW74,AW$8:AW$87)+COUNTIF(AW$8:AW74,AW74)-1) -> 10 | AY74: 8 | AZ74: 12 | BA74: 67 | BB74: 1 | BC74: =67 | BD74: Colombia | BE74: 18.8 | BG74: 57.5 | BH74: =IF($B74=0,"",RANK(BG74,BG$8:BG$87)+COUNTIF(BG$8:BG74,BG74)-1) -> 20 | BI74: 15 | BJ74: 8 | BK74: 66 | BL74: 1 | BM74: =66 | BN74: Bulgaria | BO74: 17.5 | BQ74: 70.7 | BR74: =IF($B74=0,"",RANK(BQ74,BQ$8:BQ$87)+COUNTIF(BQ$8:BQ74,BQ74)-1) -> 11 | BS74: 11 | BT74: 52 | BU74: 67 | BV74: 1 | BW74: 67 | BX74: Peru | BY74: 40.1
A75: =tblCountries!A70 -> 68 | B75: =tblCountries!F70 -> 1 | C75: =tblCountries!C70 -> Taiwan | G75: 83.1 | H75: =IF($B75=0,"",RANK(G75,G$8:G$87)+COUNTIF(G$8:G75,G75)-1) -> 6 | I75: 6 | J75: 12 | K75: 68 | L75: 1 | M75: 68 | N75: Colombia | O75: 26.7 | R75: 79.6 | S75: =IF($B75=0,"",RANK(R75,R$8:R$87)+COUNTIF(R$8:R75,R75)-1) -> 5 | T75: 5 | U75: 59 | V75: 68 | W75: 1 | X75: 68 | Y75: Saudi Arabia | Z75: 21.2 | AC75: 72.2 | AD75: =IF($B75=0,"",RANK(AC75,AC$8:AC$87)+COUNTIF(AC$8:AC75,AC75)-1) -> 9 | AE75: 9 | AF75: 26 | AG75: 68 | AH75: 1 | AI75: 68 | AJ75: Guatemala | AK75: 22.1 | AM75: 87.5 | AN75: =IF($B75=0,"",RANK(AM75,AM$8:AM$87)+COUNTIF(AM$8:AM75,AM75)-1) -> 16 | AO75: 6 | AP75: 61 | AQ75: 65 | AR75: 1 | AS75: =65 | AT75: Slovakia | AU75: 37.5 | AW75: 90 | AX75: =IF($B75=0,"",RANK(AW75,AW$8:AW$87)+COUNTIF(AW$8:AW75,AW75)-1) -> 11 | AY75: 8 | AZ75: 79 | BA75: 67 | BB75: 1 | BC75: =67 | BD75: Zambia | BE75: 18.8 | BG75: 82.5 | BH75: =IF($B75=0,"",RANK(BG75,BG$8:BG$87)+COUNTIF(BG$8:BG75,BG75)-1) -> 8 | BI75: 5 | BJ75: 12 | BK75: 66 | BL75: 1 | BM75: =66 | BN75: Colombia | BO75: 17.5 | BQ75: 56.1 | BR75: =IF($B75=0,"",RANK(BQ75,BQ$8:BQ$87)+COUNTIF(BQ$8:BQ75,BQ75)-1) -> 42 | BS75: 42 | BT75: 53 | BU75: 68 | BV75: 1 | BW75: 68 | BX75: Philippines | BY75: 36.2
A76: =tblCountries!A71 -> 69 | B76: =tblCountries!F71 -> 1 | C76: =tblCountries!C71 -> Tanzania | G76: 33.4 | H76: =IF($B76=0,"",RANK(G76,G$8:G$87)+COUNTIF(G$8:G76,G76)-1) -> 54 | I76: 54 | J76: 73 | K76: 69 | L76: 1 | M76: 69 | N76: Ukraine | O76: 25.5 | R76: 33.1 | S76: =IF($B76=0,"",RANK(R76,R$8:R$87)+COUNTIF(R$8:R76,R76)-1) -> 50 | T76: 50 | U76: 11 | V76: 69 | W76: 1 | X76: 69 | Y76: China | Z76: 21.1 | AC76: 25.1 | AD76: =IF($B76=0,"",RANK(AC76,AC$8:AC$87)+COUNTIF(AC$8:AC76,AC76)-1) -> 63 | AE76: 63 | AF76: 78 | AG76: 69 | AH76: 1 | AI76: 69 | AJ76: Vietnam | AK76: 21.3 | AM76: 40 | AN76: =IF($B76=0,"",RANK(AM76,AM$8:AM$87)+COUNTIF(AM$8:AM76,AM76)-1) -> 64 | AO76: 60 | AP76: 17 | AQ76: 69 | AR76: 1 | AS76: =69 | AT76: Dominican Republic | AU76: 35 | AW76: 35 | AX76: =IF($B76=0,"",RANK(AW76,AW$8:AW$87)+COUNTIF(AW$8:AW76,AW76)-1) -> 50 | AY76: 50 | AZ76: 11 | BA76: 69 | BB76: 1 | BC76: 69 | BD76: China | BE76: 16.3 | BG76: 32.5 | BH76: =IF($B76=0,"",RANK(BG76,BG$8:BG$87)+COUNTIF(BG$8:BG76,BG76)-1) -> 43 | BI76: 38 | BJ76: 14 | BK76: 66 | BL76: 1 | BM76: =66 | BN76: Cuba | BO76: 17.5 | BQ76: 29 | BR76: =IF($B76=0,"",RANK(BQ76,BQ$8:BQ$87)+COUNTIF(BQ$8:BQ76,BQ76)-1) -> 74 | BS76: 74 | BT76: 32 | BU76: 69 | BV76: 1 | BW76: 69 | BX76: Iraq | BY76: 35
A77: =tblCountries!A72 -> 70 | B77: =tblCountries!F72 -> 1 | C77: =tblCountries!C72 -> Thailand | G77: 40.2 | H77: =IF($B77=0,"",RANK(G77,G$8:G$87)+COUNTIF(G$8:G77,G77)-1) -> 44 | I77: 44 | J77: 20 | K77: 70 | L77: 1 | M77: 70 | N77: Ethiopia | O77: 25.1 | R77: 32 | S77: =IF($B77=0,"",RANK(R77,R$8:R$87)+COUNTIF(R$8:R77,R77)-1) -> 52 | T77: 52 | U77: 38 | V77: 70 | W77: 1 | X77: 70 | Y77: Kazakhstan | Z77: 19.9 | AC77: 39.5 | AD77: =IF($B77=0,"",RANK(AC77,AC$8:AC$87)+COUNTIF(AC$8:AC77,AC77)-1) -> 45 | AE77: 45 | AF77: 11 | AG77: 70 | AH77: 1 | AI77: 70 | AJ77: China | AK77: 21 | AM77: 62.5 | AN77: =IF($B77=0,"",RANK(AM77,AM$8:AM$87)+COUNTIF(AM$8:AM77,AM77)-1) -> 41 | AO77: 40 | AP77: 72 | AQ77: 69 | AR77: 1 | AS77: =69 | AT77: Uganda | AU77: 35 | AW77: 36.3 | AX77: =IF($B77=0,"",RANK(AW77,AW$8:AW$87)+COUNTIF(AW$8:AW77,AW77)-1) -> 49 | AY77: 48 | AZ77: 49 | BA77: 70 | BB77: 1 | BC77: 70 | BD77: Nigeria | BE77: 15 | BG77: 25 | BH77: =IF($B77=0,"",RANK(BG77,BG$8:BG$87)+COUNTIF(BG$8:BG77,BG77)-1) -> 64 | BI77: 45 | BJ77: 20 | BK77: 66 | BL77: 1 | BM77: =66 | BN77: Ethiopia | BO77: 17.5 | BQ77: 47 | BR77: =IF($B77=0,"",RANK(BQ77,BQ$8:BQ$87)+COUNTIF(BQ$8:BQ77,BQ77)-1) -> 53 | BS77: 53 | BT77: 56 | BU77: 70 | BV77: 1 | BW77: 70 | BX77: Puerto Rico | BY77: 33.9
A78: =tblCountries!A73 -> 71 | B78: =tblCountries!F73 -> 1 | C78: =tblCountries!C73 -> Turkey | G78: 38.2 | H78: =IF($B78=0,"",RANK(G78,G$8:G$87)+COUNTIF(G$8:G78,G78)-1) -> 47 | I78: 47 | J78: 11 | K78: 71 | L78: 1 | M78: 71 | N78: China | O78: 23.3 | R78: 34.7 | S78: =IF($B78=0,"",RANK(R78,R$8:R$87)+COUNTIF(R$8:R78,R78)-1) -> 46 | T78: 46 | U78: 4 | V78: 71 | W78: 1 | X78: 71 | Y78: Bangladesh | Z78: 19 | AC78: 28.8 | AD78: =IF($B78=0,"",RANK(AC78,AC$8:AC$87)+COUNTIF(AC$8:AC78,AC78)-1) -> 57 | AE78: 57 | AF78: 30 | AG78: 71 | AH78: 1 | AI78: 71 | AJ78: Indonesia | AK78: 19.7 | AM78: 32.5 | AN78: =IF($B78=0,"",RANK(AM78,AM$8:AM$87)+COUNTIF(AM$8:AM78,AM78)-1) -> 71 | AO78: 71 | AP78: 71 | AQ78: 71 | AR78: 1 | AS78: 71 | AT78: Turkey | AU78: 32.5 | AW78: 57.5 | AX78: =IF($B78=0,"",RANK(AW78,AW$8:AW$87)+COUNTIF(AW$8:AW78,AW78)-1) -> 34 | AY78: 34 | AZ78: 6 | BA78: 71 | BB78: 1 | BC78: =71 | BD78: Botswana | BE78: 13.8 | BG78: 17.5 | BH78: =IF($B78=0,"",RANK(BG78,BG$8:BG$87)+COUNTIF(BG$8:BG78,BG78)-1) -> 75 | BI78: 66 | BJ78: 24 | BK78: 66 | BL78: 1 | BM78: =66 | BN78: Ghana | BO78: 17.5 | BQ78: 63.9 | BR78: =IF($B78=0,"",RANK(BQ78,BQ$8:BQ$87)+COUNTIF(BQ$8:BQ78,BQ78)-1) -> 31 | BS78: 31 | BT78: 46 | BU78: 71 | BV78: 1 | BW78: 71 | BX78: Myanmar | BY78: 32.9
A79: =tblCountries!A74 -> 72 | B79: =tblCountries!F74 -> 1 | C79: =tblCountries!C74 -> Uganda | G79: 47.8 | H79: =IF($B79=0,"",RANK(G79,G$8:G$87)+COUNTIF(G$8:G79,G79)-1) -> 35 | I79: 35 | J79: 6 | K79: 72 | L79: 1 | M79: 72 | N79: Botswana | O79: 22.8 | R79: 37 | S79: =IF($B79=0,"",RANK(R79,R$8:R$87)+COUNTIF(R$8:R79,R79)-1) -> 44 | T79: 43 | U79: 20 | V79: 72 | W79: 1 | X79: 72 | Y79: Ethiopia | Z79: 16.8 | AC79: 54 | AD79: =IF($B79=0,"",RANK(AC79,AC$8:AC$87)+COUNTIF(AC$8:AC79,AC79)-1) -> 24 | AE79: 24 | AF79: 6 | AG79: 72 | AH79: 1 | AI79: 72 | AJ79: Botswana | AK79: 19.6 | AM79: 35 | AN79: =IF($B79=0,"",RANK(AM79,AM$8:AM$87)+COUNTIF(AM$8:AM79,AM79)-1) -> 70 | AO79: 69 | AP79: 4 | AQ79: 72 | AR79: 1 | AS79: =72 | AT79: Bangladesh | AU79: 30 | AW79: 56.3 | AX79: =IF($B79=0,"",RANK(AW79,AW$8:AW$87)+COUNTIF(AW$8:AW79,AW79)-1) -> 35 | AY79: 35 | AZ79: 17 | BA79: 71 | BB79: 1 | BC79: =71 | BD79: Dominican Republic | BE79: 13.8 | BG79: 57.5 | BH79: =IF($B79=0,"",RANK(BG79,BG$8:BG$87)+COUNTIF(BG$8:BG79,BG79)-1) -> 21 | BI79: 15 | BJ79: 32 | BK79: 66 | BL79: 1 | BM79: =66 | BN79: Iraq | BO79: 17.5 | BQ79: 32.3 | BR79: =IF($B79=0,"",RANK(BQ79,BQ$8:BQ$87)+COUNTIF(BQ$8:BQ79,BQ79)-1) -> 72 | BS79: 72 | BT79: 72 | BU79: 72 | BV79: 1 | BW79: 72 | BX79: Uganda | BY79: 32.3
A80: =tblCountries!A75 -> 73 | B80: =tblCountries!F75 -> 1 | C80: =tblCountries!C75 -> Ukraine | G80: 25.5 | H80: =IF($B80=0,"",RANK(G80,G$8:G$87)+COUNTIF(G$8:G80,G80)-1) -> 69 | I80: 69 | J80: 31 | K80: 73 | L80: 1 | M80: 73 | N80: Iran | O80: 21.2 | R80: 23.7 | S80: =IF($B80=0,"",RANK(R80,R$8:R$87)+COUNTIF(R$8:R80,R80)-1) -> 61 | T80: 61 | U80: 46 | V80: 73 | W80: 1 | X80: 73 | Y80: Myanmar | Z80: 14.5 | AC80: 39.8 | AD80: =IF($B80=0,"",RANK(AC80,AC$8:AC$87)+COUNTIF(AC$8:AC80,AC80)-1) -> 43 | AE80: 43 | AF80: 39 | AG80: 73 | AH80: 1 | AI80: 73 | AJ80: Kenya | AK80: 18.8 | AM80: 12.5 | AN80: =IF($B80=0,"",RANK(AM80,AM$8:AM$87)+COUNTIF(AM$8:AM80,AM80)-1) -> 79 | AO80: 79 | AP80: 19 | AQ80: 72 | AR80: 1 | AS80: =72 | AT80: Egypt | AU80: 30 | AW80: 20 | AX80: =IF($B80=0,"",RANK(AW80,AW$8:AW$87)+COUNTIF(AW$8:AW80,AW80)-1) -> 66 | AY80: 66 | AZ80: 31 | BA80: 71 | BB80: 1 | BC80: =71 | BD80: Iran | BE80: 13.8 | BG80: 42.5 | BH80: =IF($B80=0,"",RANK(BG80,BG$8:BG$87)+COUNTIF(BG$8:BG80,BG80)-1) -> 32 | BI80: 27 | BJ80: 57 | BK80: 66 | BL80: 1 | BM80: =66 | BN80: Romania | BO80: 17.5 | BQ80: 56.4 | BR80: =IF($B80=0,"",RANK(BQ80,BQ$8:BQ$87)+COUNTIF(BQ$8:BQ80,BQ80)-1) -> 40 | BS80: 40 | BT80: 39 | BU80: 73 | BV80: 1 | BW80: 73 | BX80: Kenya | BY80: 31.1
A81: =tblCountries!A76 -> 74 | B81: =tblCountries!F76 -> 1 | C81: =tblCountries!C76 -> United Kingdom | G81: 93.9 | H81: =IF($B81=0,"",RANK(G81,G$8:G$87)+COUNTIF(G$8:G81,G81)-1) -> 1 | I81: 1 | J81: 26 | K81: 74 | L81: 1 | M81: 74 | N81: Guatemala | O81: 20.9 | R81: 85.2 | S81: =IF($B81=0,"",RANK(R81,R$8:R$87)+COUNTIF(R$8:R81,R81)-1) -> 1 | T81: 1 | U81: 8 | V81: 74 | W81: 1 | X81: 74 | Y81: Bulgaria | Z81: 12.6 | AC81: 88.2 | AD81: =IF($B81=0,"",RANK(AC81,AC$8:AC$87)+COUNTIF(AC$8:AC81,AC81)-1) -> 2 | AE81: 2 | AF81: 20 | AG81: 74 | AH81: 1 | AI81: 74 | AJ81: Ethiopia | AK81: 17.9 | AM81: 100 | AN81: =IF($B81=0,"",RANK(AM81,AM$8:AM$87)+COUNTIF(AM$8:AM81,AM81)-1) -> 5 | AO81: 1 | AP81: 26 | AQ81: 74 | AR81: 1 | AS81: =74 | AT81: Guatemala | AU81: 27.5 | AW81: 100 | AX81: =IF($B81=0,"",RANK(AW81,AW$8:AW$87)+COUNTIF(AW$8:AW81,AW81)-1) -> 1 | AY81: 1 | AZ81: 59 | BA81: 74 | BB81: 1 | BC81: 74 | BD81: Saudi Arabia | BE81: 12.5 | BG81: 92.5 | BH81: =IF($B81=0,"",RANK(BG81,BG$8:BG$87)+COUNTIF(BG$8:BG81,BG81)-1) -> 4 | BI81: 3 | BJ81: 59 | BK81: 66 | BL81: 1 | BM81: =66 | BN81: Saudi Arabia | BO81: 17.5 | BQ81: 67.4 | BR81: =IF($B81=0,"",RANK(BQ81,BQ$8:BQ$87)+COUNTIF(BQ$8:BQ81,BQ81)-1) -> 20 | BS81: 20 | BT81: 69 | BU81: 74 | BV81: 1 | BW81: 74 | BX81: Tanzania | BY81: 29
A82: =tblCountries!A77 -> 75 | B82: =tblCountries!F77 -> 1 | C82: =tblCountries!C77 -> United States of America | G82: 80.8 | H82: =IF($B82=0,"",RANK(G82,G$8:G$87)+COUNTIF(G$8:G82,G82)-1) -> 9 | I82: 9 | J82: 17 | K82: 75 | L82: 1 | M82: 75 | N82: Dominican Republic | O82: 17.2 | R82: 78.9 | S82: =IF($B82=0,"",RANK(R82,R$8:R$87)+COUNTIF(R$8:R82,R82)-1) -> 6 | T82: 6 | U82: 26 | V82: 75 | W82: 1 | X82: 75 | Y82: Guatemala | Z82: 10.3 | AC82: 70.2 | AD82: =IF($B82=0,"",RANK(AC82,AC$8:AC$87)+COUNTIF(AC$8:AC82,AC82)-1) -> 14 | AE82: 14 | AF82: 53 | AG82: 75 | AH82: 1 | AI82: 75 | AJ82: Philippines | AK82: 12.8 | AM82: 82.5 | AN82: =IF($B82=0,"",RANK(AM82,AM$8:AM$87)+COUNTIF(AM$8:AM82,AM82)-1) -> 21 | AO82: 18 | AP82: 29 | AQ82: 74 | AR82: 1 | AS82: =74 | AT82: India | AU82: 27.5 | AW82: 90 | AX82: =IF($B82=0,"",RANK(AW82,AW$8:AW$87)+COUNTIF(AW$8:AW82,AW82)-1) -> 12 | AY82: 8 | AZ82: 46 | BA82: 75 | BB82: 1 | BC82: 75 | BD82: Myanmar | BE82: 11.3 | BG82: 75 | BH82: =IF($B82=0,"",RANK(BG82,BG$8:BG$87)+COUNTIF(BG$8:BG82,BG82)-1) -> 13 | BI82: 9 | BJ82: 71 | BK82: 66 | BL82: 1 | BM82: =66 | BN82: Turkey | BO82: 17.5 | BQ82: 65.5 | BR82: =IF($B82=0,"",RANK(BQ82,BQ$8:BQ$87)+COUNTIF(BQ$8:BQ82,BQ82)-1) -> 26 | BS82: 25 | BT82: 29 | BU82: 75 | BV82: 1 | BW82: 75 | BX82: India | BY82: 28.2
A83: =tblCountries!A78 -> 76 | B83: =tblCountries!F78 -> 1 | C83: =tblCountries!C78 -> Uruguay | G83: 46.1 | H83: =IF($B83=0,"",RANK(G83,G$8:G$87)+COUNTIF(G$8:G83,G83)-1) -> 39 | I83: 39 | J83: 46 | K83: 76 | L83: 1 | M83: 76 | N83: Myanmar | O83: 17.1 | R83: 44.8 | S83: =IF($B83=0,"",RANK(R83,R$8:R$87)+COUNTIF(R$8:R83,R83)-1) -> 29 | T83: 29 | U83: 57 | V83: 76 | W83: 1 | X83: 76 | Y83: Romania | Z83: 9.6 | AC83: 52.6 | AD83: =IF($B83=0,"",RANK(AC83,AC$8:AC$87)+COUNTIF(AC$8:AC83,AC83)-1) -> 25 | AE83: 25 | AF83: 8 | AG83: 76 | AH83: 1 | AI83: =76 | AJ83: Bulgaria | AK83: 11.6 | AM83: 70 | AN83: =IF($B83=0,"",RANK(AM83,AM$8:AM$87)+COUNTIF(AM$8:AM83,AM83)-1) -> 35 | AO83: 30 | AP83: 53 | AQ83: 74 | AR83: 1 | AS83: =74 | AT83: Philippines | AU83: 27.5 | AW83: 33.8 | AX83: =IF($B83=0,"",RANK(AW83,AW$8:AW$87)+COUNTIF(AW$8:AW83,AW83)-1) -> 53 | AY83: 51 | AZ83: 53 | BA83: 76 | BB83: 1 | BC83: 76 | BD83: Philippines | BE83: 10 | BG83: 25 | BH83: =IF($B83=0,"",RANK(BG83,BG$8:BG$87)+COUNTIF(BG$8:BG83,BG83)-1) -> 65 | BI83: 45 | BJ83: 78 | BK83: 66 | BL83: 1 | BM83: =66 | BN83: Vietnam | BO83: 17.5 | BQ83: 58.7 | BR83: =IF($B83=0,"",RANK(BQ83,BQ$8:BQ$87)+COUNTIF(BQ$8:BQ83,BQ83)-1) -> 38 | BS83: 38 | BT83: 26 | BU83: 76 | BV83: 1 | BW83: 76 | BX83: Guatemala | BY83: 25.7
A84: =tblCountries!A79 -> 77 | B84: =tblCountries!F79 -> 1 | C84: =tblCountries!C79 -> Venezuela | G84: 40.1 | H84: =IF($B84=0,"",RANK(G84,G$8:G$87)+COUNTIF(G$8:G84,G84)-1) -> 45 | I84: 45 | J84: 49 | K84: 77 | L84: 1 | M84: 77 | N84: Nigeria | O84: 16.9 | R84: 37.7 | S84: =IF($B84=0,"",RANK(R84,R$8:R$87)+COUNTIF(R$8:R84,R84)-1) -> 39 | T84: 39 | U84: 53 | V84: 77 | W84: 1 | X84: 77 | Y84: Philippines | Z84: 8.5 | AC84: 39.8 | AD84: =IF($B84=0,"",RANK(AC84,AC$8:AC$87)+COUNTIF(AC$8:AC84,AC84)-1) -> 44 | AE84: 43 | AF84: 46 | AG84: 76 | AH84: 1 | AI84: =76 | AJ84: Myanmar | AK84: 11.6 | AM84: 75 | AN84: =IF($B84=0,"",RANK(AM84,AM$8:AM$87)+COUNTIF(AM$8:AM84,AM84)-1) -> 29 | AO84: 25 | AP84: 79 | AQ84: 77 | AR84: 1 | AS84: 77 | AT84: Zambia | AU84: 22.5 | AW84: 21.3 | AX84: =IF($B84=0,"",RANK(AW84,AW$8:AW$87)+COUNTIF(AW$8:AW84,AW84)-1) -> 65 | AY84: 64 | AZ84: 4 | BA84: 77 | BB84: 1 | BC84: 77 | BD84: Bangladesh | BE84: 7.5 | BG84: 32.5 | BH84: =IF($B84=0,"",RANK(BG84,BG$8:BG$87)+COUNTIF(BG$8:BG84,BG84)-1) -> 44 | BI84: 38 | BJ84: 31 | BK84: 77 | BL84: 1 | BM84: 77 | BN84: Iran | BO84: 7.5 | BQ84: 43.1 | BR84: =IF($B84=0,"",RANK(BQ84,BQ$8:BQ$87)+COUNTIF(BQ$8:BQ84,BQ84)-1) -> 65 | BS84: 65 | BT84: 4 | BU84: 77 | BV84: 1 | BW84: 77 | BX84: Bangladesh | BY84: 23.9
A85: =tblCountries!A80 -> 78 | B85: =tblCountries!F80 -> 1 | C85: =tblCountries!C80 -> Vietnam | G85: 31.9 | H85: =IF($B85=0,"",RANK(G85,G$8:G$87)+COUNTIF(G$8:G85,G85)-1) -> 58 | I85: 58 | J85: 53 | K85: 78 | L85: 1 | M85: 78 | N85: Philippines | O85: 15.3 | R85: 34.9 | S85: =IF($B85=0,"",RANK(R85,R$8:R$87)+COUNTIF(R$8:R85,R85)-1) -> 45 | T85: 45 | U85: 17 | V85: 78 | W85: 1 | X85: 78 | Y85: Dominican Republic | Z85: 6.1 | AC85: 21.3 | AD85: =IF($B85=0,"",RANK(AC85,AC$8:AC$87)+COUNTIF(AC$8:AC85,AC85)-1) -> 69 | AE85: 69 | AF85: 31 | AG85: 78 | AH85: 1 | AI85: 78 | AJ85: Iran | AK85: 11.5 | AM85: 55 | AN85: =IF($B85=0,"",RANK(AM85,AM$8:AM$87)+COUNTIF(AM$8:AM85,AM85)-1) -> 48 | AO85: 47 | AP85: 80 | AQ85: 78 | AR85: 1 | AS85: 78 | AT85: Zimbabwe | AU85: 17.5 | AW85: 26.3 | AX85: =IF($B85=0,"",RANK(AW85,AW$8:AW$87)+COUNTIF(AW$8:AW85,AW85)-1) -> 62 | AY85: 59 | AZ85: 41 | BA85: 78 | BB85: 1 | BC85: =78 | BD85: Malawi | BE85: 6.3 | BG85: 17.5 | BH85: =IF($B85=0,"",RANK(BG85,BG$8:BG$87)+COUNTIF(BG$8:BG85,BG85)-1) -> 76 | BI85: 66 | BJ85: 6 | BK85: 78 | BL85: 1 | BM85: =78 | BN85: Botswana | BO85: 0 | BQ85: 51.6 | BR85: =IF($B85=0,"",RANK(BQ85,BQ$8:BQ$87)+COUNTIF(BQ$8:BQ85,BQ85)-1) -> 48 | BS85: 48 | BT85: 49 | BU85: 78 | BV85: 1 | BW85: 78 | BX85: Nigeria | BY85: 17.1
A86: =tblCountries!A81 -> 79 | B86: =tblCountries!F81 -> 1 | C86: =tblCountries!C81 -> Zambia | G86: 30.3 | H86: =IF($B86=0,"",RANK(G86,G$8:G$87)+COUNTIF(G$8:G86,G86)-1) -> 61 | I86: 61 | J86: 4 | K86: 79 | L86: 1 | M86: 79 | N86: Bangladesh | O86: 14.1 | R86: 37.8 | S86: =IF($B86=0,"",RANK(R86,R$8:R$87)+COUNTIF(R$8:R86,R86)-1) -> 38 | T86: 38 | U86: 19 | V86: 79 | W86: 1 | X86: 79 | Y86: Egypt | Z86: 5.5 | AC86: 43.2 | AD86: =IF($B86=0,"",RANK(AC86,AC$8:AC$87)+COUNTIF(AC$8:AC86,AC86)-1) -> 35 | AE86: 35 | AF86: 32 | AG86: 79 | AH86: 1 | AI86: 79 | AJ86: Iraq | AK86: 4 | AM86: 22.5 | AN86: =IF($B86=0,"",RANK(AM86,AM$8:AM$87)+COUNTIF(AM$8:AM86,AM86)-1) -> 77 | AO86: 77 | AP86: 73 | AQ86: 79 | AR86: 1 | AS86: 79 | AT86: Ukraine | AU86: 12.5 | AW86: 18.8 | AX86: =IF($B86=0,"",RANK(AW86,AW$8:AW$87)+COUNTIF(AW$8:AW86,AW86)-1) -> 68 | AY86: 67 | AZ86: 65 | BA86: 78 | BB86: 1 | BC86: =78 | BD86: Sri Lanka | BE86: 6.3 | BG86: 40 | BH86: =IF($B86=0,"",RANK(BG86,BG$8:BG$87)+COUNTIF(BG$8:BG86,BG86)-1) -> 36 | BI86: 33 | BJ86: 17 | BK86: 78 | BL86: 1 | BM86: =78 | BN86: Dominican Republic | BO86: 0 | BQ86: 46 | BR86: =IF($B86=0,"",RANK(BQ86,BQ$8:BQ$87)+COUNTIF(BQ$8:BQ86,BQ86)-1) -> 58 | BS86: 58 | BT86: 24 | BU86: 79 | BV86: 1 | BW86: 79 | BX86: Ghana | BY86: 15.8
A87: =tblCountries!A82 -> 80 | B87: =tblCountries!F82 -> 1 | C87: =tblCountries!C82 -> Zimbabwe | G87: 31.3 | H87: =IF($B87=0,"",RANK(G87,G$8:G$87)+COUNTIF(G$8:G87,G87)-1) -> 59 | I87: 59 | J87: 32 | K87: 80 | L87: 1 | M87: 80 | N87: Iraq | O87: 12.5 | R87: 28.1 | S87: =IF($B87=0,"",RANK(R87,R$8:R$87)+COUNTIF(R$8:R87,R87)-1) -> 56 | T87: 56 | U87: 32 | V87: 80 | W87: 1 | X87: 80 | Y87: Iraq | Z87: 4.1 | AC87: 25.8 | AD87: =IF($B87=0,"",RANK(AC87,AC$8:AC$87)+COUNTIF(AC$8:AC87,AC87)-1) -> 62 | AE87: 62 | AF87: 4 | AG87: 80 | AH87: 1 | AI87: 80 | AJ87: Bangladesh | AK87: 1.3 | AM87: 17.5 | AN87: =IF($B87=0,"",RANK(AM87,AM$8:AM$87)+COUNTIF(AM$8:AM87,AM87)-1) -> 78 | AO87: 78 | AP87: 49 | AQ87: 80 | AR87: 1 | AS87: 80 | AT87: Nigeria | AU87: 0 | AW87: 40 | AX87: =IF($B87=0,"",RANK(AW87,AW$8:AW$87)+COUNTIF(AW$8:AW87,AW87)-1) -> 46 | AY87: 44 | AZ87: 32 | BA87: 80 | BB87: 1 | BC87: 80 | BD87: Iraq | BE87: 3.8 | BG87: 50 | BH87: =IF($B87=0,"",RANK(BG87,BG$8:BG$87)+COUNTIF(BG$8:BG87,BG87)-1) -> 26 | BI87: 22 | BJ87: 46 | BK87: 78 | BL87: 1 | BM87: =78 | BN87: Myanmar | BO87: 0 | BQ87: 55.7 | BR87: =IF($B87=0,"",RANK(BQ87,BQ$8:BQ$87)+COUNTIF(BQ$8:BQ87,BQ87)-1) -> 44 | BS87: 44 | BT87: 20 | BU87: 80 | BV87: 1 | BW87: 80 | BX87: Ethiopia | BY87: 9.9

Sheet Rankings
B1: CATEGORY RANKINGS
B3: COUNTRY HIGHLIGHT
H4: =iRank!M6 -> SUPPLY ENVIRONMENT | M4: =iRank!X6 -> Palliative and healthcare environment | R4: =iRank!AI6 -> Human resources | W4: =iRank!AS6 -> Affordability of care | AB4: =iRank!BC6 -> Quality of care | AG4: =iRank!BM6 -> Community engagement | AL4: =iRank!BW6 -> DEMAND FOR PALLIATIVE CARE
B5: GROUP HIGHLIGHT | G5: =iRank!L8 -> 1 | H5: =iRank!M8 -> 1 | I5: =iRank!N8 -> United Kingdom | J5: =iRank!O8 -> 93.9 | L5: =iRank!W8 -> 1 | M5: =iRank!X8 -> 1 | N5: =iRank!Y8 -> United Kingdom | O5: =iRank!Z8 -> 85.2 | Q5: =iRank!AH8 -> 1 | R5: =iRank!AI8 -> 1 | S5: =iRank!AJ8 -> Australia | T5: =iRank!AK8 -> 92.3 | V5: =iRank!AR8 -> 1 | W5: =iRank!AS8 -> =1 | X5: =iRank!AT8 -> Australia | Y5: =iRank!AU8 -> 100 | AA5: =iRank!BB8 -> 1 | AB5: =iRank!BC8 -> 1 | AC5: =iRank!BD8 -> United Kingdom | AD5: =iRank!BE8 -> 100 | AF5: =iRank!BL8 -> 1 | AG5: =iRank!BM8 -> =1 | AH5: =iRank!BN8 -> Belgium | AI5: =iRank!BO8 -> 100 | AK5: =iRank!BV8 -> 1 | AL5: =iRank!BW8 -> 1 | AM5: =iRank!BX8 -> Netherlands | AN5: =iRank!BY8 -> 78
G6: =iRank!L9 -> 1 | H6: =iRank!M9 -> 2 | I6: =iRank!N9 -> Australia | J6: =iRank!O9 -> 91.6 | L6: =iRank!W9 -> 1 | M6: =iRank!X9 -> 2 | N6: =iRank!Y9 -> Netherlands | O6: =iRank!Z9 -> 84.8 | Q6: =iRank!AH9 -> 1 | R6: =iRank!AI9 -> 2 | S6: =iRank!AJ9 -> United Kingdom | T6: =iRank!AK9 -> 88.2 | V6: =iRank!AR9 -> 1 | W6: =iRank!AS9 -> =1 | X6: =iRank!AT9 -> Belgium | Y6: =iRank!AU9 -> 100 | AA6: =iRank!BB9 -> 1 | AB6: =iRank!BC9 -> 2 | AC6: =iRank!BD9 -> Sweden | AD6: =iRank!BE9 -> 97.5 | AF6: =iRank!BL9 -> 1 | AG6: =iRank!BM9 -> =1 | AH6: =iRank!BN9 -> New Zealand | AI6: =iRank!BO9 -> 100 | AK6: =iRank!BV9 -> 1 | AL6: =iRank!BW9 -> 2 | AM6: =iRank!BX9 -> Italy | AN6: =iRank!BY9 -> 75.2
G7: =iRank!L10 -> 1 | H7: =iRank!M10 -> 3 | I7: =iRank!N10 -> New Zealand | J7: =iRank!O10 -> 87.6 | L7: =iRank!W10 -> 1 | M7: =iRank!X10 -> 3 | N7: =iRank!Y10 -> Australia | O7: =iRank!Z10 -> 84.1 | Q7: =iRank!AH10 -> 1 | R7: =iRank!AI10 -> 3 | S7: =iRank!AJ10 -> Germany | T7: =iRank!AK10 -> 87.9 | V7: =iRank!AR10 -> 1 | W7: =iRank!AS10 -> =1 | X7: =iRank!AT10 -> Denmark | Y7: =iRank!AU10 -> 100 | AA7: =iRank!BB10 -> 1 | AB7: =iRank!BC10 -> 3 | AC7: =iRank!BD10 -> Australia | AD7: =iRank!BE10 -> 96.3 | AF7: =iRank!BL10 -> 1 | AG7: =iRank!BM10 -> =3 | AH7: =iRank!BN10 -> France | AI7: =iRank!BO10 -> 92.5 | AK7: =iRank!BV10 -> 1 | AL7: =iRank!BW10 -> 3 | AM7: =iRank!BX10 -> Denmark | AN7: =iRank!BY10 -> 75.1
G8: =iRank!L11 -> 1 | H8: =iRank!M11 -> 4 | I8: =iRank!N11 -> Ireland | J8: =iRank!O11 -> 85.8 | L8: =iRank!W11 -> 1 | M8: =iRank!X11 -> 4 | N8: =iRank!Y11 -> Ireland | O8: =iRank!Z11 -> 81.7 | Q8: =iRank!AH11 -> 1 | R8: =iRank!AI11 -> 4 | S8: =iRank!AJ11 -> Ireland | T8: =iRank!AK11 -> 86.1 | V8: =iRank!AR11 -> 1 | W8: =iRank!AS11 -> =1 | X8: =iRank!AT11 -> Ireland | Y8: =iRank!AU11 -> 100 | AA8: =iRank!BB11 -> 1 | AB8: =iRank!BC11 -> 4 | AC8: =iRank!BD11 -> New Zealand | AD8: =iRank!BE11 -> 95 | AF8: =iRank!BL11 -> 1 | AG8: =iRank!BM11 -> =3 | AH8: =iRank!BN11 -> United Kingdom | AI8: =iRank!BO11 -> 92.5 | AK8: =iRank!BV11 -> 1 | AL8: =iRank!BW11 -> 4 | AM8: =iRank!BX11 -> Austria | AN8: =iRank!BY11 -> 73.4
B9: INCOME FILTER | G9: =iRank!L12 -> 1 | H9: =iRank!M12 -> 5 | I9: =iRank!N12 -> Belgium | J9: =iRank!O12 -> 84.5 | L9: =iRank!W12 -> 1 | M9: =iRank!X12 -> 5 | N9: =iRank!Y12 -> Taiwan | O9: =iRank!Z12 -> 79.6 | Q9: =iRank!AH12 -> 1 | R9: =iRank!AI12 -> 5 | S9: =iRank!AJ12 -> New Zealand | T9: =iRank!AK12 -> 81.4 | V9: =iRank!AR12 -> 1 | W9: =iRank!AS12 -> =1 | X9: =iRank!AT12 -> United Kingdom | Y9: =iRank!AU12 -> 100 | AA9: =iRank!BB12 -> 1 | AB9: =iRank!BC12 -> 5 | AC9: =iRank!BD12 -> France | AD9: =iRank!BE12 -> 93.8 | AF9: =iRank!BL12 -> 1 | AG9: =iRank!BM12 -> =5 | AH9: =iRank!BN12 -> Germany | AI9: =iRank!BO12 -> 82.5 | AK9: =iRank!BV12 -> 1 | AL9: =iRank!BW12 -> 5 | AM9: =iRank!BX12 -> Canada | AN9: =iRank!BY12 -> 72.8
G10: =iRank!L13 -> 1 | H10: =iRank!M13 -> 6 | I10: =iRank!N13 -> Taiwan | J10: =iRank!O13 -> 83.1 | L10: =iRank!W13 -> 1 | M10: =iRank!X13 -> 6 | N10: =iRank!Y13 -> United States of America | O10: =iRank!Z13 -> 78.9 | Q10: =iRank!AH13 -> 1 | R10: =iRank!AI13 -> 6 | S10: =iRank!AJ13 -> Canada | T10: =iRank!AK13 -> 78 | V10: =iRank!AR13 -> 1 | W10: =iRank!AS13 -> =6 | X10: =iRank!AT13 -> Cuba | Y10: =iRank!AU13 -> 87.5 | AA10: =iRank!BB13 -> 1 | AB10: =iRank!BC13 -> 6 | AC10: =iRank!BD13 -> Canada | AD10: =iRank!BE13 -> 92.5 | AF10: =iRank!BL13 -> 1 | AG10: =iRank!BM13 -> =5 | AH10: =iRank!BN13 -> Ireland | AI10: =iRank!BO13 -> 82.5 | AK10: =iRank!BV13 -> 1 | AL10: =iRank!BW13 -> 6 | AM10: =iRank!BX13 -> Ireland | AN10: =iRank!BY13 -> 71.4
G11: =iRank!L14 -> 1 | H11: =iRank!M14 -> 7 | I11: =iRank!N14 -> Germany | J11: =iRank!O14 -> 82 | L11: =iRank!W14 -> 1 | M11: =iRank!X14 -> 7 | N11: =iRank!Y14 -> Austria | O11: =iRank!Z14 -> 77.8 | Q11: =iRank!AH14 -> 1 | R11: =iRank!AI14 -> 7 | S11: =iRank!AJ14 -> Norway | T11: =iRank!AK14 -> 75.5 | V11: =iRank!AR14 -> 1 | W11: =iRank!AS14 -> =6 | X11: =iRank!AT14 -> Finland | Y11: =iRank!AU14 -> 87.5 | AA11: =iRank!BB14 -> 1 | AB11: =iRank!BC14 -> 7 | AC11: =iRank!BD14 -> Belgium | AD11: =iRank!BE14 -> 91.3 | AF11: =iRank!BL14 -> 1 | AG11: =iRank!BM14 -> =5 | AH11: =iRank!BN14 -> Japan | AI11: =iRank!BO14 -> 82.5 | AK11: =iRank!BV14 -> 1 | AL11: =iRank!BW14 -> 7 | AM11: =iRank!BX14 -> Australia | AN11: =iRank!BY14 -> 71.2
B12: REGION FILTER | G12: =iRank!L15 -> 1 | H12: =iRank!M15 -> 8 | I12: =iRank!N15 -> Netherlands | J12: =iRank!O15 -> 80.9 | L12: =iRank!W15 -> 1 | M12: =iRank!X15 -> 8 | N12: =iRank!Y15 -> New Zealand | O12: =iRank!Z15 -> 76.7 | Q12: =iRank!AH15 -> 1 | R12: =iRank!AI15 -> 8 | S12: =iRank!AJ15 -> Singapore | T12: =iRank!AK15 -> 74 | V12: =iRank!AR15 -> 1 | W12: =iRank!AS15 -> =6 | X12: =iRank!AT15 -> Germany | Y12: =iRank!AU15 -> 87.5 | AA12: =iRank!BB15 -> 1 | AB12: =iRank!BC15 -> =8 | AC12: =iRank!BD15 -> Netherlands | AD12: =iRank!BE15 -> 90 | AF12: =iRank!BL15 -> 1 | AG12: =iRank!BM15 -> =5 | AH12: =iRank!BN15 -> Taiwan | AI12: =iRank!BO15 -> 82.5 | AK12: =iRank!BV15 -> 1 | AL12: =iRank!BW15 -> =8 | AM12: =iRank!BX15 -> China | AN12: =iRank!BY15 -> 71.1
G13: =iRank!L16 -> 1 | H13: =iRank!M16 -> 9 | I13: =iRank!N16 -> United States of America | J13: =iRank!O16 -> 80.8 | L13: =iRank!W16 -> 1 | M13: =iRank!X16 -> 9 | N13: =iRank!Y16 -> Norway | O13: =iRank!Z16 -> 71 | Q13: =iRank!AH16 -> 1 | R13: =iRank!AI16 -> 9 | S13: =iRank!AJ16 -> Taiwan | T13: =iRank!AK16 -> 72.2 | V13: =iRank!AR16 -> 1 | W13: =iRank!AS16 -> =6 | X13: =iRank!AT16 -> Italy | Y13: =iRank!AU16 -> 87.5 | AA13: =iRank!BB16 -> 1 | AB13: =iRank!BC16 -> =8 | AC13: =iRank!BD16 -> Singapore | AD13: =iRank!BE16 -> 90 | AF13: =iRank!BL16 -> 1 | AG13: =iRank!BM16 -> =9 | AH13: =iRank!BN16 -> Australia | AI13: =iRank!BO16 -> 75 | AK13: =iRank!BV16 -> 1 | AL13: =iRank!BW16 -> =8 | AM13: =iRank!BX16 -> New Zealand | AN13: =iRank!BY16 -> 71.1
G14: =iRank!L17 -> 1 | H14: =iRank!M17 -> 10 | I14: =iRank!N17 -> France | J14: =iRank!O17 -> 79.4 | L14: =iRank!W17 -> 1 | M14: =iRank!X17 -> 10 | N14: =iRank!Y17 -> Belgium | O14: =iRank!Z17 -> 69.4 | Q14: =iRank!AH17 -> 1 | R14: =iRank!AI17 -> =10 | S14: =iRank!AJ17 -> France | T14: =iRank!AK17 -> 71.6 | V14: =iRank!AR17 -> 1 | W14: =iRank!AS17 -> =6 | X14: =iRank!AT17 -> Netherlands | Y14: =iRank!AU17 -> 87.5 | AA14: =iRank!BB17 -> 1 | AB14: =iRank!BC17 -> =8 | AC14: =iRank!BD17 -> Switzerland | AD14: =iRank!BE17 -> 90 | AF14: =iRank!BL17 -> 1 | AG14: =iRank!BM17 -> =9 | AH14: =iRank!BN17 -> Canada | AI14: =iRank!BO17 -> 75 | AK14: =iRank!BV17 -> 1 | AL14: =iRank!BW17 -> 10 | AM14: =iRank!BX17 -> Germany | AN14: =iRank!BY17 -> 70.9
G15: =iRank!L18 -> 1 | H15: =iRank!M18 -> 11 | I15: =iRank!N18 -> Canada | J15: =iRank!O18 -> 77.8 | L15: =iRank!W18 -> 1 | M15: =iRank!X18 -> 11 | N15: =iRank!Y18 -> Germany | O15: =iRank!Z18 -> 67.6 | Q15: =iRank!AH18 -> 1 | R15: =iRank!AI18 -> =10 | S15: =iRank!AJ18 -> Sweden | T15: =iRank!AK18 -> 71.6 | V15: =iRank!AR18 -> 1 | W15: =iRank!AS18 -> =6 | X15: =iRank!AT18 -> New Zealand | Y15: =iRank!AU18 -> 87.5 | AA15: =iRank!BB18 -> 1 | AB15: =iRank!BC18 -> =8 | AC15: =iRank!BD18 -> Taiwan | AD15: =iRank!BE18 -> 90 | AF15: =iRank!BL18 -> 1 | AG15: =iRank!BM18 -> =9 | AH15: =iRank!BN18 -> Netherlands | AI15: =iRank!BO18 -> 75 | AK15: =iRank!BV18 -> 1 | AL15: =iRank!BW18 -> 11 | AM15: =iRank!BX18 -> Switzerland | AN15: =iRank!BY18 -> 70.7
G16: =iRank!L19 -> 1 | H16: =iRank!M19 -> 12 | I16: =iRank!N19 -> Singapore | J16: =iRank!O19 -> 77.6 | L16: =iRank!W19 -> 1 | M16: =iRank!X19 -> 12 | N16: =iRank!Y19 -> Singapore | O16: =iRank!Z19 -> 66.4 | Q16: =iRank!AH19 -> 1 | R16: =iRank!AI19 -> 12 | S16: =iRank!AJ19 -> Austria | T16: =iRank!AK19 -> 71.4 | V16: =iRank!AR19 -> 1 | W16: =iRank!AS19 -> =6 | X16: =iRank!AT19 -> Panama | Y16: =iRank!AU19 -> 87.5 | AA16: =iRank!BB19 -> 1 | AB16: =iRank!BC19 -> =8 | AC16: =iRank!BD19 -> United States of America | AD16: =iRank!BE19 -> 90 | AF16: =iRank!BL19 -> 1 | AG16: =iRank!BM19 -> =9 | AH16: =iRank!BN19 -> Norway | AI16: =iRank!BO19 -> 75 | AK16: =iRank!BV19 -> 1 | AL16: =iRank!BW19 -> 12 | AM16: =iRank!BX19 -> Czech Republic | AN16: =iRank!BY19 -> 70.6
G17: =iRank!L20 -> 1 | H17: =iRank!M20 -> 13 | I17: =iRank!N20 -> Norway | J17: =iRank!O20 -> 77.4 | L17: =iRank!W20 -> 1 | M17: =iRank!X20 -> 13 | N17: =iRank!Y20 -> Switzerland | O17: =iRank!Z20 -> 64.8 | Q17: =iRank!AH20 -> 1 | R17: =iRank!AI20 -> 13 | S17: =iRank!AJ20 -> South Korea | T17: =iRank!AK20 -> 71.2 | V17: =iRank!AR20 -> 1 | W17: =iRank!AS20 -> =6 | X17: =iRank!AT20 -> Singapore | Y17: =iRank!AU20 -> 87.5 | AA17: =iRank!BB20 -> 1 | AB17: =iRank!BC20 -> =13 | AC17: =iRank!BD20 -> Austria | AD17: =iRank!BE20 -> 87.5 | AF17: =iRank!BL20 -> 1 | AG17: =iRank!BM20 -> =9 | AH17: =iRank!BN20 -> United States of America | AI17: =iRank!BO20 -> 75 | AK17: =iRank!BV20 -> 1 | AL17: =iRank!BW20 -> 13 | AM17: =iRank!BX20 -> Hungary | AN17: =iRank!BY20 -> 70
G18: =iRank!L21 -> 1 | H18: =iRank!M21 -> 14 | I18: =iRank!N21 -> Japan | J18: =iRank!O21 -> 76.3 | L18: =iRank!W21 -> 1 | M18: =iRank!X21 -> 14 | N18: =iRank!Y21 -> Japan | O18: =iRank!Z21 -> 62.2 | Q18: =iRank!AH21 -> 1 | R18: =iRank!AI21 -> 14 | S18: =iRank!AJ21 -> United States of America | T18: =iRank!AK21 -> 70.2 | V18: =iRank!AR21 -> 1 | W18: =iRank!AS21 -> =6 | X18: =iRank!AT21 -> South Korea | Y18: =iRank!AU21 -> 87.5 | AA18: =iRank!BB21 -> 1 | AB18: =iRank!BC21 -> =13 | AC18: =iRank!BD21 -> Italy | AD18: =iRank!BE21 -> 87.5 | AF18: =iRank!BL21 -> 1 | AG18: =iRank!BM21 -> 14 | AH18: =iRank!BN21 -> South Korea | AI18: =iRank!BO21 -> 65 | AK18: =iRank!BV21 -> 1 | AL18: =iRank!BW21 -> 14 | AM18: =iRank!BX21 -> Finland | AN18: =iRank!BY21 -> 69.1
G19: =iRank!L22 -> 1 | H19: =iRank!M22 -> 15 | I19: =iRank!N22 -> Switzerland | J19: =iRank!O22 -> 76.1 | L19: =iRank!W22 -> 1 | M19: =iRank!X22 -> 15 | N19: =iRank!Y22 -> Spain | O19: =iRank!Z22 -> 61.2 | Q19: =iRank!AH22 -> 1 | R19: =iRank!AI22 -> 15 | S19: =iRank!AJ22 -> Switzerland | T19: =iRank!AK22 -> 69.4 | V19: =iRank!AR22 -> 1 | W19: =iRank!AS22 -> =6 | X19: =iRank!AT22 -> Sweden | Y19: =iRank!AU22 -> 87.5 | AA19: =iRank!BB22 -> 1 | AB19: =iRank!BC22 -> 15 | AC19: =iRank!BD22 -> Finland | AD19: =iRank!BE22 -> 86.3 | AF19: =iRank!BL22 -> 1 | AG19: =iRank!BM22 -> =15 | AH19: =iRank!BN22 -> Austria | AI19: =iRank!BO22 -> 57.5 | AK19: =iRank!BV22 -> 1 | AL19: =iRank!BW22 -> 15 | AM19: =iRank!BX22 -> Greece | AN19: =iRank!BY22 -> 69
G20: =iRank!L23 -> 1 | H20: =iRank!M23 -> 16 | I20: =iRank!N23 -> Sweden | J20: =iRank!O23 -> 75.4 | L20: =iRank!W23 -> 1 | M20: =iRank!X23 -> 16 | N20: =iRank!Y23 -> France | O20: =iRank!Z23 -> 60.9 | Q20: =iRank!AH23 -> 1 | R20: =iRank!AI23 -> 16 | S20: =iRank!AJ23 -> Japan | T20: =iRank!AK23 -> 67.5 | V20: =iRank!AR23 -> 1 | W20: =iRank!AS23 -> =6 | X20: =iRank!AT23 -> Taiwan | Y20: =iRank!AU23 -> 87.5 | AA20: =iRank!BB23 -> 1 | AB20: =iRank!BC23 -> =16 | AC20: =iRank!BD23 -> Denmark | AD20: =iRank!BE23 -> 83.8 | AF20: =iRank!BL23 -> 1 | AG20: =iRank!BM23 -> =15 | AH20: =iRank!BN23 -> Denmark | AI20: =iRank!BO23 -> 57.5 | AK20: =iRank!BV23 -> 1 | AL20: =iRank!BW23 -> 16 | AM20: =iRank!BX23 -> Poland | AN20: =iRank!BY23 -> 68.9
G21: =iRank!L24 -> 1 | H21: =iRank!M24 -> 17 | I21: =iRank!N24 -> Austria | J21: =iRank!O24 -> 74.8 | L21: =iRank!W24 -> 1 | M21: =iRank!X24 -> 17 | N21: =iRank!Y24 -> Finland | O21: =iRank!Z24 -> 58.4 | Q21: =iRank!AH24 -> 1 | R21: =iRank!AI24 -> 17 | S21: =iRank!AJ24 -> Belgium | T21: =iRank!AK24 -> 66 | V21: =iRank!AR24 -> 1 | W21: =iRank!AS24 -> 17 | X21: =iRank!AT24 -> Japan | Y21: =iRank!AU24 -> 85 | AA21: =iRank!BB24 -> 1 | AB21: =iRank!BC24 -> =16 | AC21: =iRank!BD24 -> Germany | AD21: =iRank!BE24 -> 83.8 | AF21: =iRank!BL24 -> 1 | AG21: =iRank!BM24 -> =15 | AH21: =iRank!BN24 -> Finland | AI21: =iRank!BO24 -> 57.5 | AK21: =iRank!BV24 -> 1 | AL21: =iRank!BW24 -> 17 | AM21: =iRank!BX24 -> Sweden | AN21: =iRank!BY24 -> 68.7
G22: =iRank!L25 -> 1 | H22: =iRank!M25 -> 18 | I22: =iRank!N25 -> South Korea | J22: =iRank!O25 -> 73.7 | L22: =iRank!W25 -> 1 | M22: =iRank!X25 -> 18 | N22: =iRank!Y25 -> Canada | O22: =iRank!Z25 -> 57.5 | Q22: =iRank!AH25 -> 1 | R22: =iRank!AI25 -> 18 | S22: =iRank!AJ25 -> Finland | T22: =iRank!AK25 -> 62.6 | V22: =iRank!AR25 -> 1 | W22: =iRank!AS25 -> =18 | X22: =iRank!AT25 -> Chile | Y22: =iRank!AU25 -> 82.5 | AA22: =iRank!BB25 -> 1 | AB22: =iRank!BC25 -> =16 | AC22: =iRank!BD25 -> Japan | AD22: =iRank!BE25 -> 83.8 | AF22: =iRank!BL25 -> 1 | AG22: =iRank!BM25 -> =15 | AH22: =iRank!BN25 -> Italy | AI22: =iRank!BO25 -> 57.5 | AK22: =iRank!BV25 -> 1 | AL22: =iRank!BW25 -> 18 | AM22: =iRank!BX25 -> Spain | AN22: =iRank!BY25 -> 68.1
G23: =iRank!L26 -> 1 | H23: =iRank!M26 -> 19 | I23: =iRank!N26 -> Denmark | J23: =iRank!O26 -> 73.5 | L23: =iRank!W26 -> 1 | M23: =iRank!X26 -> 19 | N23: =iRank!Y26 -> Italy | O23: =iRank!Z26 -> 56.7 | Q23: =iRank!AH26 -> 1 | R23: =iRank!AI26 -> 19 | S23: =iRank!AJ26 -> Denmark | T23: =iRank!AK26 -> 62.4 | V23: =iRank!AR26 -> 1 | W23: =iRank!AS26 -> =18 | X23: =iRank!AT26 -> Hong Kong | Y23: =iRank!AU26 -> 82.5 | AA23: =iRank!BB26 -> 1 | AB23: =iRank!BC26 -> =16 | AC23: =iRank!BD26 -> Norway | AD23: =iRank!BE26 -> 83.8 | AF23: =iRank!BL26 -> 1 | AG23: =iRank!BM26 -> =15 | AH23: =iRank!BN26 -> Poland | AI23: =iRank!BO26 -> 57.5 | AK23: =iRank!BV26 -> 1 | AL23: =iRank!BW26 -> 19 | AM23: =iRank!BX26 -> France | AN23: =iRank!BY26 -> 67.7
G24: =iRank!L27 -> 1 | H24: =iRank!M27 -> 20 | I24: =iRank!N27 -> Finland | J24: =iRank!O27 -> 73.3 | L24: =iRank!W27 -> 1 | M24: =iRank!X27 -> 20 | N24: =iRank!Y27 -> South Korea | O24: =iRank!Z27 -> 55.5 | Q24: =iRank!AH27 -> 1 | R24: =iRank!AI27 -> 20 | S24: =iRank!AJ27 -> Hong Kong | T24: =iRank!AK27 -> 62.1 | V24: =iRank!AR27 -> 1 | W24: =iRank!AS27 -> =18 | X24: =iRank!AT27 -> Switzerland | Y24: =iRank!AU27 -> 82.5 | AA24: =iRank!BB27 -> 1 | AB24: =iRank!BC27 -> =20 | AC24: =iRank!BD27 -> Hong Kong | AD24: =iRank!BE27 -> 81.3 | AF24: =iRank!BL27 -> 1 | AG24: =iRank!BM27 -> =15 | AH24: =iRank!BN27 -> Switzerland | AI24: =iRank!BO27 -> 57.5 | AK24: =iRank!BV27 -> 1 | AL24: =iRank!BW27 -> 20 | AM24: =iRank!BX27 -> United Kingdom | AN24: =iRank!BY27 -> 67.4
